Workbook

Sheet A1
A3: A1 | B3: - | C3: HÔTEL DE VILLE (Place d'Armes)
D7: INSCRITS | E7: 856 | F7: %
D8: Émargements | E8: 368
D9: Votants (participation) | E9: 368 | F9: =IF($E$7=0,0,E9/$E$7) -> 0.4299065421 | G9: (1)
D10: Blancs | E10: 4 | F10: =IF($E$9=0,0,E10/$E$9) -> 0.01086956522 | G10: (2)
D11: Nuls | E11: 4 | F11: =IF($E$9=0,0,E11/$E$9) -> 0.01086956522 | G11: (2)
D12: Exprimés | E12: 360 | F12: =IF($E$7=0,0,E12/$E$7) -> 0.4205607477 | G12: (3)
D13: =CONCATENATE("Liste ",RESULTATS!U$9," ",RESULTATS!U$10) -> Liste Nadine MORANO | E13: 87 | F13: =IF(E$12=0,0,E13/E$12) -> 0.2416666667 | G13: (4)
D14: =CONCATENATE("Liste ",RESULTATS!Y$9," ",RESULTATS!Y$10) -> Liste Joe LABAT | E14: 1 | F14: 0.002777777778
D15: =CONCATENATE("Liste ",RESULTATS!AC$9," ",RESULTATS!AC$10) -> Liste Claire ROCHER | E15: 5 | F15: 0.01388888889
D16: =CONCATENATE("Liste ",RESULTATS!AG$9," ",RESULTATS!AG$10) -> Liste Christian D'ANDLAU-HOMBOURG | E16: 0 | F16: 0
D17: =CONCATENATE("Liste ",RESULTATS!AK$9," ",RESULTATS!AK$10) -> Liste Edouard MARTIN | E17: 57 | F17: 0.1583333333
D18: =CONCATENATE("Liste ",RESULTATS!AO$9," ",RESULTATS!AO$10) -> Liste Gaël DIAFERIA | E18: 1 | F18: 0.002777777778
D19: =CONCATENATE("Liste ",RESULTATS!AS$9," ",RESULTATS!AS$10) -> Liste Nathalie GRIESBECK | E19: 42 | F19: 0.1166666667
D20: =CONCATENATE("Liste ",RESULTATS!AW$9," ",RESULTATS!AW$10) -> Liste Julien GONZALEZ | E20: 7 | F20: 0.01944444444
D21: =CONCATENATE("Liste ",RESULTATS!BA$9," ",RESULTATS!BA$10) -> Liste Philippe COUKA | E21: 0 | F21: 0
D22: =CONCATENATE("Liste ",RESULTATS!BE$9," ",RESULTATS!BE$10) -> Liste Antoine RENARD | E22: 6 | F22: =IF(E$12=0,0,E22/E$12) -> 0.01666666667
D23: =CONCATENATE("Liste ",RESULTATS!BI$9," ",RESULTATS!BI$10) -> Liste Geneviève MARTIN | E23: 1 | F23: 0.002777777778
D24: =CONCATENATE("Liste ",RESULTATS!BM$9," ",RESULTATS!BM$10) -> Liste Isabelle VÉRIN | E24: 3 | F24: 0.008333333333
D25: =CONCATENATE("Liste ",RESULTATS!U$59," ",RESULTATS!U$60) -> Liste Xavier DESSAIGNE | E25: 3 | F25: 0.008333333333
D26: =CONCATENATE("Liste ",RESULTATS!Y$59," ",RESULTATS!Y$60) -> Liste Sandrine PICO | E26: 0 | F26: 0
D27: =CONCATENATE("Liste ",RESULTATS!AC$59," ",RESULTATS!AC$60) -> Liste Florian PHILIPPOT | E27: 58 | F27: 0.1611111111
D28: =CONCATENATE("Liste ",RESULTATS!AG$59," ",RESULTATS!AG$60) -> Liste Sandrine BELIER | E28: 31 | F28: 0.08611111111
D29: =CONCATENATE("Liste ",RESULTATS!AK$59," ",RESULTATS!AK$60) -> Liste Ismaël BOUDJEKADA | E29: 0 | F29: 0
D30: =CONCATENATE("Liste ",RESULTATS!AO$59," ",RESULTATS!AO$60) -> Liste Laure FERRARI | E30: 18 | F30: 0.05
D31: =CONCATENATE("Liste ",RESULTATS!AS$59," ",RESULTATS!AS$60) -> Liste Antonio SANCHEZ | E31: 0 | F31: 0
D32: =CONCATENATE("Liste ",RESULTATS!AW$59," ",RESULTATS!AW$60) -> Liste Isabelle MAURER | E32: 21 | F32: =IF(E$12=0,0,E32/E$12) -> 0.05833333333
D33: =CONCATENATE("Liste ",RESULTATS!BA$59," ",RESULTATS!BA$60) -> Liste Yannick HERVE | E33: 3 | F33: =IF(E$12=0,0,E33/E$12) -> 0.008333333333
D34: =CONCATENATE("Liste ",RESULTATS!BE$59," ",RESULTATS!BE$60) -> Liste Gabriel AMARD | E34: 14 | F34: =IF(E$12=0,0,E34/E$12) -> 0.03888888889
D35: =CONCATENATE("Liste ",RESULTATS!BI$59," ",RESULTATS!BI$60) -> Liste Florence LHOTE | E35: 2 | F35: =IF(E$12=0,0,E35/E$12) -> 0.005555555556
E36: =IF(SUM(E13:E35)<>E12,"!!! FAUX","") -> 
D37: TOTAL : | E37: =SUM(E13:E35) -> 360
F39: (1) Votants / Inscrits
F40: (2) Nuls / Votants
F41: (3) Exprimés / Inscrits
F42: (4) Score / Exprimés

Sheet A2
A3: A2 | B3: - | C3: SALLE DES FÊTES (Place de la République)
D7: INSCRITS | E7: 934 | F7: %
D8: Émargements | E8: 476
D9: Votants (participation) | E9: 476 | F9: =IF($E$7=0,0,E9/$E$7) -> 0.5096359743 | G9: (1)
D10: Blancs | E10: 7 | F10: =IF($E$9=0,0,E10/$E$9) -> 0.01470588235 | G10: (2)
D11: Nuls | E11: 10 | F11: =IF($E$9=0,0,E11/$E$9) -> 0.02100840336 | G11: (2)
D12: Exprimés | E12: 459 | F12: =IF($E$7=0,0,E12/$E$7) -> 0.4914346895 | G12: (3)
D13: =CONCATENATE("Liste ",RESULTATS!U$9," ",RESULTATS!U$10) -> Liste Nadine MORANO | E13: 160 | F13: =IF(E$12=0,0,E13/E$12) -> 0.348583878 | G13: (4)
D14: =CONCATENATE("Liste ",RESULTATS!Y$9," ",RESULTATS!Y$10) -> Liste Joe LABAT | E14: 0 | F14: 0
D15: =CONCATENATE("Liste ",RESULTATS!AC$9," ",RESULTATS!AC$10) -> Liste Claire ROCHER | E15: 5 | F15: 0.01089324619
D16: =CONCATENATE("Liste ",RESULTATS!AG$9," ",RESULTATS!AG$10) -> Liste Christian D'ANDLAU-HOMBOURG | E16: 0 | F16: 0
D17: =CONCATENATE("Liste ",RESULTATS!AK$9," ",RESULTATS!AK$10) -> Liste Edouard MARTIN | E17: 60 | F17: 0.1307189542
D18: =CONCATENATE("Liste ",RESULTATS!AO$9," ",RESULTATS!AO$10) -> Liste Gaël DIAFERIA | E18: 0 | F18: 0
D19: =CONCATENATE("Liste ",RESULTATS!AS$9," ",RESULTATS!AS$10) -> Liste Nathalie GRIESBECK | E19: 53 | F19: 0.1154684096
D20: =CONCATENATE("Liste ",RESULTATS!AW$9," ",RESULTATS!AW$10) -> Liste Julien GONZALEZ | E20: 10 | F20: 0.02178649237
D21: =CONCATENATE("Liste ",RESULTATS!BA$9," ",RESULTATS!BA$10) -> Liste Philippe COUKA | E21: 0 | F21: 0
D22: =CONCATENATE("Liste ",RESULTATS!BE$9," ",RESULTATS!BE$10) -> Liste Antoine RENARD | E22: 6 | F22: 0.01307189542
D23: =CONCATENATE("Liste ",RESULTATS!BI$9," ",RESULTATS!BI$10) -> Liste Geneviève MARTIN | E23: 0 | F23: 0
D24: =CONCATENATE("Liste ",RESULTATS!BM$9," ",RESULTATS!BM$10) -> Liste Isabelle VÉRIN | E24: 2 | F24: 0.004357298475
D25: =CONCATENATE("Liste ",RESULTATS!U$59," ",RESULTATS!U$60) -> Liste Xavier DESSAIGNE | E25: 7 | F25: 0.01525054466
D26: =CONCATENATE("Liste ",RESULTATS!Y$59," ",RESULTATS!Y$60) -> Liste Sandrine PICO | E26: 1 | F26: 0.002178649237
D27: =CONCATENATE("Liste ",RESULTATS!AC$59," ",RESULTATS!AC$60) -> Liste Florian PHILIPPOT | E27: 66 | F27: 0.1437908497
D28: =CONCATENATE("Liste ",RESULTATS!AG$59," ",RESULTATS!AG$60) -> Liste Sandrine BELIER | E28: 32 | F28: 0.0697167756
D29: =CONCATENATE("Liste ",RESULTATS!AK$59," ",RESULTATS!AK$60) -> Liste Ismaël BOUDJEKADA | E29: 0 | F29: 0
D30: =CONCATENATE("Liste ",RESULTATS!AO$59," ",RESULTATS!AO$60) -> Liste Laure FERRARI | E30: 16 | F30: 0.0348583878
D31: =CONCATENATE("Liste ",RESULTATS!AS$59," ",RESULTATS!AS$60) -> Liste Antonio SANCHEZ | E31: 0 | F31: 0
D32: =CONCATENATE("Liste ",RESULTATS!AW$59," ",RESULTATS!AW$60) -> Liste Isabelle MAURER | E32: 7 | F32: =IF(E$12=0,0,E32/E$12) -> 0.01525054466
D33: =CONCATENATE("Liste ",RESULTATS!BA$59," ",RESULTATS!BA$60) -> Liste Yannick HERVE | E33: 2 | F33: =IF(E$12=0,0,E33/E$12) -> 0.004357298475
D34: =CONCATENATE("Liste ",RESULTATS!BE$59," ",RESULTATS!BE$60) -> Liste Gabriel AMARD | E34: 30 | F34: =IF(E$12=0,0,E34/E$12) -> 0.06535947712
D35: =CONCATENATE("Liste ",RESULTATS!BI$59," ",RESULTATS!BI$60) -> Liste Florence LHOTE | E35: 2 | F35: =IF(E$12=0,0,E35/E$12) -> 0.004357298475
E36: =IF(SUM(E13:E35)<>E12,"!!! FAUX","") -> 
D37: TOTAL : | E37: =SUM(E13:E35) -> 459
F39: (1) Votants / Inscrits
F40: (2) Nuls / Votants
F41: (3) Exprimés / Inscrits
F42: (4) Score / Exprimés

Sheet B1
A3: B1 | B3: - | C3: GROUPE SCOLAIRE VICTOR HUGO (Faubourg de Montbéliard)
D7: INSCRITS | E7: 1068 | F7: %
D8: Émargements | E8: 434
D9: Votants (participation) | E9: 434 | F9: =IF($E$7=0,0,E9/$E$7) -> 0.4063670412 | G9: (1)
D10: Blancs | E10: 4 | F10: =IF($E$9=0,0,E10/$E$9) -> 0.009216589862 | G10: (2)
D11: Nuls | E11: 3 | F11: =IF($E$9=0,0,E11/$E$9) -> 0.006912442396 | G11: (2)
D12: Exprimés | E12: 427 | F12: =IF($E$7=0,0,E12/$E$7) -> 0.3998127341 | G12: (3)
D13: =CONCATENATE("Liste ",RESULTATS!U$9," ",RESULTATS!U$10) -> Liste Nadine MORANO | E13: 121 | F13: =IF(E$12=0,0,E13/E$12) -> 0.2833723653 | G13: (4)
D14: =CONCATENATE("Liste ",RESULTATS!Y$9," ",RESULTATS!Y$10) -> Liste Joe LABAT | E14: 2 | F14: 0.004683840749
D15: =CONCATENATE("Liste ",RESULTATS!AC$9," ",RESULTATS!AC$10) -> Liste Claire ROCHER | E15: 4 | F15: 0.009367681499
D16: =CONCATENATE("Liste ",RESULTATS!AG$9," ",RESULTATS!AG$10) -> Liste Christian D'ANDLAU-HOMBOURG | E16: 1 | F16: 0.002341920375
D17: =CONCATENATE("Liste ",RESULTATS!AK$9," ",RESULTATS!AK$10) -> Liste Edouard MARTIN | E17: 74 | F17: 0.1733021077
D18: =CONCATENATE("Liste ",RESULTATS!AO$9," ",RESULTATS!AO$10) -> Liste Gaël DIAFERIA | E18: 0 | F18: 0
D19: =CONCATENATE("Liste ",RESULTATS!AS$9," ",RESULTATS!AS$10) -> Liste Nathalie GRIESBECK | E19: 61 | F19: 0.1428571429
D20: =CONCATENATE("Liste ",RESULTATS!AW$9," ",RESULTATS!AW$10) -> Liste Julien GONZALEZ | E20: 8 | F20: 0.018735363
D21: =CONCATENATE("Liste ",RESULTATS!BA$9," ",RESULTATS!BA$10) -> Liste Philippe COUKA | E21: 0 | F21: 0
D22: =CONCATENATE("Liste ",RESULTATS!BE$9," ",RESULTATS!BE$10) -> Liste Antoine RENARD | E22: 2 | F22: 0.004683840749
D23: =CONCATENATE("Liste ",RESULTATS!BI$9," ",RESULTATS!BI$10) -> Liste Geneviève MARTIN | E23: 1 | F23: 0.002341920375
D24: =CONCATENATE("Liste ",RESULTATS!BM$9," ",RESULTATS!BM$10) -> Liste Isabelle VÉRIN | E24: 1 | F24: 0.002341920375
D25: =CONCATENATE("Liste ",RESULTATS!U$59," ",RESULTATS!U$60) -> Liste Xavier DESSAIGNE | E25: 4 | F25: 0.009367681499
D26: =CONCATENATE("Liste ",RESULTATS!Y$59," ",RESULTATS!Y$60) -> Liste Sandrine PICO | E26: 0 | F26: 0
D27: =CONCATENATE("Liste ",RESULTATS!AC$59," ",RESULTATS!AC$60) -> Liste Florian PHILIPPOT | E27: 57 | F27: 0.1334894614
D28: =CONCATENATE("Liste ",RESULTATS!AG$59," ",RESULTATS!AG$60) -> Liste Sandrine BELIER | E28: 33 | F28: 0.07728337237
D29: =CONCATENATE("Liste ",RESULTATS!AK$59," ",RESULTATS!AK$60) -> Liste Ismaël BOUDJEKADA | E29: 0 | F29: 0
D30: =CONCATENATE("Liste ",RESULTATS!AO$59," ",RESULTATS!AO$60) -> Liste Laure FERRARI | E30: 16 | F30: 0.037470726
D31: =CONCATENATE("Liste ",RESULTATS!AS$59," ",RESULTATS!AS$60) -> Liste Antonio SANCHEZ | E31: 0 | F31: 0
D32: =CONCATENATE("Liste ",RESULTATS!AW$59," ",RESULTATS!AW$60) -> Liste Isabelle MAURER | E32: 9 | F32: =IF(E$12=0,0,E32/E$12) -> 0.02107728337
D33: =CONCATENATE("Liste ",RESULTATS!BA$59," ",RESULTATS!BA$60) -> Liste Yannick HERVE | E33: 6 | F33: =IF(E$12=0,0,E33/E$12) -> 0.01405152225
D34: =CONCATENATE("Liste ",RESULTATS!BE$59," ",RESULTATS!BE$60) -> Liste Gabriel AMARD | E34: 25 | F34: =IF(E$12=0,0,E34/E$12) -> 0.05854800937
D35: =CONCATENATE("Liste ",RESULTATS!BI$59," ",RESULTATS!BI$60) -> Liste Florence LHOTE | E35: 2 | F35: =IF(E$12=0,0,E35/E$12) -> 0.004683840749
E36: =IF(SUM(E13:E35)<>E12,"!!! FAUX","") -> 
D37: TOTAL : | E37: =SUM(E13:E35) -> 427
F39: (1) Votants / Inscrits
F40: (2) Nuls / Votants
F41: (3) Exprimés / Inscrits
F42: (4) Score / Exprimés

Sheet B2
A3: B2 | B3: - | C3: GROUPE SCOLAIRE VICTOR HUGO (Faubourg de Montbéliard)
D7: INSCRITS | E7: 1149 | F7: %
D8: Émargements | E8: 524
D9: Votants (participation) | E9: 524 | F9: =IF($E$7=0,0,E9/$E$7) -> 0.456048738 | G9: (1)
D10: Blancs | E10: 1 | F10: =IF($E$9=0,0,E10/$E$9) -> 0.001908396947 | G10: (2)
D11: Nuls | E11: 7 | F11: =IF($E$9=0,0,E11/$E$9) -> 0.01335877863 | G11: (2)
D12: Exprimés | E12: 516 | F12: =IF($E$7=0,0,E12/$E$7) -> 0.4490861619 | G12: (3)
D13: =CONCATENATE("Liste ",RESULTATS!U$9," ",RESULTATS!U$10) -> Liste Nadine MORANO | E13: 145 | F13: =IF(E$12=0,0,E13/E$12) -> 0.2810077519 | G13: (4)
D14: =CONCATENATE("Liste ",RESULTATS!Y$9," ",RESULTATS!Y$10) -> Liste Joe LABAT | E14: 0 | F14: 0
D15: =CONCATENATE("Liste ",RESULTATS!AC$9," ",RESULTATS!AC$10) -> Liste Claire ROCHER | E15: 5 | F15: 0.009689922481
D16: =CONCATENATE("Liste ",RESULTATS!AG$9," ",RESULTATS!AG$10) -> Liste Christian D'ANDLAU-HOMBOURG | E16: 1 | F16: 0.001937984496
D17: =CONCATENATE("Liste ",RESULTATS!AK$9," ",RESULTATS!AK$10) -> Liste Edouard MARTIN | E17: 66 | F17: 0.1279069767
D18: =CONCATENATE("Liste ",RESULTATS!AO$9," ",RESULTATS!AO$10) -> Liste Gaël DIAFERIA | E18: 4 | F18: 0.007751937984
D19: =CONCATENATE("Liste ",RESULTATS!AS$9," ",RESULTATS!AS$10) -> Liste Nathalie GRIESBECK | E19: 64 | F19: 0.1240310078
D20: =CONCATENATE("Liste ",RESULTATS!AW$9," ",RESULTATS!AW$10) -> Liste Julien GONZALEZ | E20: 12 | F20: 0.02325581395
D21: =CONCATENATE("Liste ",RESULTATS!BA$9," ",RESULTATS!BA$10) -> Liste Philippe COUKA | E21: 1 | F21: 0.001937984496
D22: =CONCATENATE("Liste ",RESULTATS!BE$9," ",RESULTATS!BE$10) -> Liste Antoine RENARD | E22: 10 | F22: 0.01937984496
D23: =CONCATENATE("Liste ",RESULTATS!BI$9," ",RESULTATS!BI$10) -> Liste Geneviève MARTIN | E23: 1 | F23: 0.001937984496
D24: =CONCATENATE("Liste ",RESULTATS!BM$9," ",RESULTATS!BM$10) -> Liste Isabelle VÉRIN | E24: 0 | F24: 0
D25: =CONCATENATE("Liste ",RESULTATS!U$59," ",RESULTATS!U$60) -> Liste Xavier DESSAIGNE | E25: 4 | F25: 0.007751937984
D26: =CONCATENATE("Liste ",RESULTATS!Y$59," ",RESULTATS!Y$60) -> Liste Sandrine PICO | E26: 0 | F26: 0
D27: =CONCATENATE("Liste ",RESULTATS!AC$59," ",RESULTATS!AC$60) -> Liste Florian PHILIPPOT | E27: 86 | F27: 0.1666666667
D28: =CONCATENATE("Liste ",RESULTATS!AG$59," ",RESULTATS!AG$60) -> Liste Sandrine BELIER | E28: 59 | F28: 0.1143410853
D29: =CONCATENATE("Liste ",RESULTATS!AK$59," ",RESULTATS!AK$60) -> Liste Ismaël BOUDJEKADA | E29: 0 | F29: 0
D30: =CONCATENATE("Liste ",RESULTATS!AO$59," ",RESULTATS!AO$60) -> Liste Laure FERRARI | E30: 19 | F30: 0.03682170543
D31: =CONCATENATE("Liste ",RESULTATS!AS$59," ",RESULTATS!AS$60) -> Liste Antonio SANCHEZ | E31: 0 | F31: 0
D32: =CONCATENATE("Liste ",RESULTATS!AW$59," ",RESULTATS!AW$60) -> Liste Isabelle MAURER | E32: 17 | F32: =IF(E$12=0,0,E32/E$12) -> 0.03294573643
D33: =CONCATENATE("Liste ",RESULTATS!BA$59," ",RESULTATS!BA$60) -> Liste Yannick HERVE | E33: 1 | F33: =IF(E$12=0,0,E33/E$12) -> 0.001937984496
D34: =CONCATENATE("Liste ",RESULTATS!BE$59," ",RESULTATS!BE$60) -> Liste Gabriel AMARD | E34: 20 | F34: =IF(E$12=0,0,E34/E$12) -> 0.03875968992
D35: =CONCATENATE("Liste ",RESULTATS!BI$59," ",RESULTATS!BI$60) -> Liste Florence LHOTE | E35: 1 | F35: =IF(E$12=0,0,E35/E$12) -> 0.001937984496
E36: =IF(SUM(E13:E35)<>E12,"!!! FAUX","") -> 
D37: TOTAL : | E37: =SUM(E13:E35) -> 516
F39: (1) Votants / Inscrits
F40: (2) Nuls / Votants
F41: (3) Exprimés / Inscrits
F42: (4) Score / Exprimés

Sheet M1
A3: M1 | B3: - | C3: ÉCOLE MATERNELLE SAINT-EXUPÉRY (Rue de la Paix)
D7: INSCRITS | E7: 1300 | F7: %
D8: Émargements | E8: 274
D9: Votants (participation) | E9: 274 | F9: =IF($E$7=0,0,E9/$E$7) -> 0.2107692308 | G9: (1)
D10: Blancs | E10: 4 | F10: =IF($E$9=0,0,E10/$E$9) -> 0.01459854015 | G10: (2)
D11: Nuls | E11: 14 | F11: =IF($E$9=0,0,E11/$E$9) -> 0.05109489051 | G11: (2)
D12: Exprimés | E12: 256 | F12: =IF($E$7=0,0,E12/$E$7) -> 0.1969230769 | G12: (3)
D13: =CONCATENATE("Liste ",RESULTATS!U$9," ",RESULTATS!U$10) -> Liste Nadine MORANO | E13: 50 | F13: =IF(E$12=0,0,E13/E$12) -> 0.1953125 | G13: (4)
D14: =CONCATENATE("Liste ",RESULTATS!Y$9," ",RESULTATS!Y$10) -> Liste Joe LABAT | E14: 0 | F14: 0
D15: =CONCATENATE("Liste ",RESULTATS!AC$9," ",RESULTATS!AC$10) -> Liste Claire ROCHER | E15: 4 | F15: 0.015625
D16: =CONCATENATE("Liste ",RESULTATS!AG$9," ",RESULTATS!AG$10) -> Liste Christian D'ANDLAU-HOMBOURG | E16: 1 | F16: 0.00390625
D17: =CONCATENATE("Liste ",RESULTATS!AK$9," ",RESULTATS!AK$10) -> Liste Edouard MARTIN | E17: 48 | F17: 0.1875
D18: =CONCATENATE("Liste ",RESULTATS!AO$9," ",RESULTATS!AO$10) -> Liste Gaël DIAFERIA | E18: 2 | F18: 0.0078125
D19: =CONCATENATE("Liste ",RESULTATS!AS$9," ",RESULTATS!AS$10) -> Liste Nathalie GRIESBECK | E19: 24 | F19: 0.09375
D20: =CONCATENATE("Liste ",RESULTATS!AW$9," ",RESULTATS!AW$10) -> Liste Julien GONZALEZ | E20: 4 | F20: 0.015625
D21: =CONCATENATE("Liste ",RESULTATS!BA$9," ",RESULTATS!BA$10) -> Liste Philippe COUKA | E21: 0 | F21: 0
D22: =CONCATENATE("Liste ",RESULTATS!BE$9," ",RESULTATS!BE$10) -> Liste Antoine RENARD | E22: 1 | F22: 0.00390625
D23: =CONCATENATE("Liste ",RESULTATS!BI$9," ",RESULTATS!BI$10) -> Liste Geneviève MARTIN | E23: 1 | F23: 0.00390625
D24: =CONCATENATE("Liste ",RESULTATS!BM$9," ",RESULTATS!BM$10) -> Liste Isabelle VÉRIN | E24: 2 | F24: 0.0078125
D25: =CONCATENATE("Liste ",RESULTATS!U$59," ",RESULTATS!U$60) -> Liste Xavier DESSAIGNE | E25: 1 | F25: 0.00390625
D26: =CONCATENATE("Liste ",RESULTATS!Y$59," ",RESULTATS!Y$60) -> Liste Sandrine PICO | E26: 0 | F26: 0
D27: =CONCATENATE("Liste ",RESULTATS!AC$59," ",RESULTATS!AC$60) -> Liste Florian PHILIPPOT | E27: 63 | F27: 0.24609375
D28: =CONCATENATE("Liste ",RESULTATS!AG$59," ",RESULTATS!AG$60) -> Liste Sandrine BELIER | E28: 11 | F28: 0.04296875
D29: =CONCATENATE("Liste ",RESULTATS!AK$59," ",RESULTATS!AK$60) -> Liste Ismaël BOUDJEKADA | E29: 0 | F29: 0
D30: =CONCATENATE("Liste ",RESULTATS!AO$59," ",RESULTATS!AO$60) -> Liste Laure FERRARI | E30: 5 | F30: 0.01953125
D31: =CONCATENATE("Liste ",RESULTATS!AS$59," ",RESULTATS!AS$60) -> Liste Antonio SANCHEZ | E31: 0 | F31: 0
D32: =CONCATENATE("Liste ",RESULTATS!AW$59," ",RESULTATS!AW$60) -> Liste Isabelle MAURER | E32: 3 | F32: =IF(E$12=0,0,E32/E$12) -> 0.01171875
D33: =CONCATENATE("Liste ",RESULTATS!BA$59," ",RESULTATS!BA$60) -> Liste Yannick HERVE | E33: 1 | F33: =IF(E$12=0,0,E33/E$12) -> 0.00390625
D34: =CONCATENATE("Liste ",RESULTATS!BE$59," ",RESULTATS!BE$60) -> Liste Gabriel AMARD | E34: 33 | F34: =IF(E$12=0,0,E34/E$12) -> 0.12890625
D35: =CONCATENATE("Liste ",RESULTATS!BI$59," ",RESULTATS!BI$60) -> Liste Florence LHOTE | E35: 2 | F35: =IF(E$12=0,0,E35/E$12) -> 0.0078125
E36: =IF(SUM(E13:E35)<>E12,"!!! FAUX","") -> 
D37: TOTAL : | E37: =SUM(E13:E35) -> 256
F39: (1) Votants / Inscrits
F40: (2) Nuls / Votants
F41: (3) Exprimés / Inscrits
F42: (4) Score / Exprimés

Sheet N1
A3: N1 | B3: - | C3: ÉCOLE JEAN MOULIN (Rue Steiner)
D7: INSCRITS | E7: 1451 | F7: %
D8: Émargements | E8: 603
D9: Votants (participation) | E9: 603 | F9: =IF($E$7=0,0,E9/$E$7) -> 0.4155754652 | G9: (1)
D10: Blancs | E10: 12 | F10: =IF($E$9=0,0,E10/$E$9) -> 0.01990049751 | G10: (2)
D11: Nuls | E11: 8 | F11: =IF($E$9=0,0,E11/$E$9) -> 0.01326699834 | G11: (2)
D12: Exprimés | E12: 583 | F12: =IF($E$7=0,0,E12/$E$7) -> 0.4017918677 | G12: (3)
D13: =CONCATENATE("Liste ",RESULTATS!U$9," ",RESULTATS!U$10) -> Liste Nadine MORANO | E13: 141 | F13: =IF(E$12=0,0,E13/E$12) -> 0.2418524871 | G13: (4)
D14: =CONCATENATE("Liste ",RESULTATS!Y$9," ",RESULTATS!Y$10) -> Liste Joe LABAT | E14: 0 | F14: 0
D15: =CONCATENATE("Liste ",RESULTATS!AC$9," ",RESULTATS!AC$10) -> Liste Claire ROCHER | E15: 4 | F15: 0.006861063465
D16: =CONCATENATE("Liste ",RESULTATS!AG$9," ",RESULTATS!AG$10) -> Liste Christian D'ANDLAU-HOMBOURG | E16: 1 | F16: 0.001715265866
D17: =CONCATENATE("Liste ",RESULTATS!AK$9," ",RESULTATS!AK$10) -> Liste Edouard MARTIN | E17: 78 | F17: 0.1337907376
D18: =CONCATENATE("Liste ",RESULTATS!AO$9," ",RESULTATS!AO$10) -> Liste Gaël DIAFERIA | E18: 4 | F18: 0.006861063465
D19: =CONCATENATE("Liste ",RESULTATS!AS$9," ",RESULTATS!AS$10) -> Liste Nathalie GRIESBECK | E19: 62 | F19: 0.1063464837
D20: =CONCATENATE("Liste ",RESULTATS!AW$9," ",RESULTATS!AW$10) -> Liste Julien GONZALEZ | E20: 13 | F20: 0.02229845626
D21: =CONCATENATE("Liste ",RESULTATS!BA$9," ",RESULTATS!BA$10) -> Liste Philippe COUKA | E21: 2 | F21: 0.003430531732
D22: =CONCATENATE("Liste ",RESULTATS!BE$9," ",RESULTATS!BE$10) -> Liste Antoine RENARD | E22: 3 | F22: 0.005145797599
D23: =CONCATENATE("Liste ",RESULTATS!BI$9," ",RESULTATS!BI$10) -> Liste Geneviève MARTIN | E23: 0 | F23: 0
D24: =CONCATENATE("Liste ",RESULTATS!BM$9," ",RESULTATS!BM$10) -> Liste Isabelle VÉRIN | E24: 3 | F24: 0.005145797599
D25: =CONCATENATE("Liste ",RESULTATS!U$59," ",RESULTATS!U$60) -> Liste Xavier DESSAIGNE | E25: 6 | F25: 0.0102915952
D26: =CONCATENATE("Liste ",RESULTATS!Y$59," ",RESULTATS!Y$60) -> Liste Sandrine PICO | E26: 0 | F26: 0
D27: =CONCATENATE("Liste ",RESULTATS!AC$59," ",RESULTATS!AC$60) -> Liste Florian PHILIPPOT | E27: 149 | F27: 0.2555746141
D28: =CONCATENATE("Liste ",RESULTATS!AG$59," ",RESULTATS!AG$60) -> Liste Sandrine BELIER | E28: 46 | F28: 0.07890222985
D29: =CONCATENATE("Liste ",RESULTATS!AK$59," ",RESULTATS!AK$60) -> Liste Ismaël BOUDJEKADA | E29: 0 | F29: 0
D30: =CONCATENATE("Liste ",RESULTATS!AO$59," ",RESULTATS!AO$60) -> Liste Laure FERRARI | E30: 19 | F30: 0.03259005146
D31: =CONCATENATE("Liste ",RESULTATS!AS$59," ",RESULTATS!AS$60) -> Liste Antonio SANCHEZ | E31: 0 | F31: 0
D32: =CONCATENATE("Liste ",RESULTATS!AW$59," ",RESULTATS!AW$60) -> Liste Isabelle MAURER | E32: 13 | F32: =IF(E$12=0,0,E32/E$12) -> 0.02229845626
D33: =CONCATENATE("Liste ",RESULTATS!BA$59," ",RESULTATS!BA$60) -> Liste Yannick HERVE | E33: 2 | F33: =IF(E$12=0,0,E33/E$12) -> 0.003430531732
D34: =CONCATENATE("Liste ",RESULTATS!BE$59," ",RESULTATS!BE$60) -> Liste Gabriel AMARD | E34: 34 | F34: =IF(E$12=0,0,E34/E$12) -> 0.05831903945
D35: =CONCATENATE("Liste ",RESULTATS!BI$59," ",RESULTATS!BI$60) -> Liste Florence LHOTE | E35: 3 | F35: =IF(E$12=0,0,E35/E$12) -> 0.005145797599
E36: =IF(SUM(E13:E35)<>E12,"!!! FAUX","") -> 
D37: TOTAL : | E37: =SUM(E13:E35) -> 583
F39: (1) Votants / Inscrits
F40: (2) Nuls / Votants
F41: (3) Exprimés / Inscrits
F42: (4) Score / Exprimés

Sheet N2
A3: N2 | B3: - | C3: CITÉ DES ASSOCIATIONS (Rue Jean Pierre Melville)
D7: INSCRITS | E7: 899 | F7: %
D8: Émargements | E8: 409
D9: Votants (participation) | E9: 409 | F9: =IF($E$7=0,0,E9/$E$7) -> 0.4549499444 | G9: (1)
D10: Blancs | E10: 12 | F10: =IF($E$9=0,0,E10/$E$9) -> 0.0293398533 | G10: (2)
D11: Nuls | E11: 7 | F11: =IF($E$9=0,0,E11/$E$9) -> 0.01711491443 | G11: (2)
D12: Exprimés | E12: 390 | F12: =IF($E$7=0,0,E12/$E$7) -> 0.4338153504 | G12: (3)
D13: =CONCATENATE("Liste ",RESULTATS!U$9," ",RESULTATS!U$10) -> Liste Nadine MORANO | E13: 70 | F13: =IF(E$12=0,0,E13/E$12) -> 0.1794871795 | G13: (4)
D14: =CONCATENATE("Liste ",RESULTATS!Y$9," ",RESULTATS!Y$10) -> Liste Joe LABAT | E14: 2 | F14: 0.005128205128
D15: =CONCATENATE("Liste ",RESULTATS!AC$9," ",RESULTATS!AC$10) -> Liste Claire ROCHER | E15: 6 | F15: 0.01538461538
D16: =CONCATENATE("Liste ",RESULTATS!AG$9," ",RESULTATS!AG$10) -> Liste Christian D'ANDLAU-HOMBOURG | E16: 0 | F16: 0
D17: =CONCATENATE("Liste ",RESULTATS!AK$9," ",RESULTATS!AK$10) -> Liste Edouard MARTIN | E17: 83 | F17: 0.2128205128
D18: =CONCATENATE("Liste ",RESULTATS!AO$9," ",RESULTATS!AO$10) -> Liste Gaël DIAFERIA | E18: 1 | F18: 0.002564102564
D19: =CONCATENATE("Liste ",RESULTATS!AS$9," ",RESULTATS!AS$10) -> Liste Nathalie GRIESBECK | E19: 47 | F19: 0.1205128205
D20: =CONCATENATE("Liste ",RESULTATS!AW$9," ",RESULTATS!AW$10) -> Liste Julien GONZALEZ | E20: 6 | F20: 0.01538461538
D21: =CONCATENATE("Liste ",RESULTATS!BA$9," ",RESULTATS!BA$10) -> Liste Philippe COUKA | E21: 0 | F21: 0
D22: =CONCATENATE("Liste ",RESULTATS!BE$9," ",RESULTATS!BE$10) -> Liste Antoine RENARD | E22: 2 | F22: 0.005128205128
D23: =CONCATENATE("Liste ",RESULTATS!BI$9," ",RESULTATS!BI$10) -> Liste Geneviève MARTIN | E23: 2 | F23: 0.005128205128
D24: =CONCATENATE("Liste ",RESULTATS!BM$9," ",RESULTATS!BM$10) -> Liste Isabelle VÉRIN | E24: 2 | F24: 0.005128205128
D25: =CONCATENATE("Liste ",RESULTATS!U$59," ",RESULTATS!U$60) -> Liste Xavier DESSAIGNE | E25: 6 | F25: 0.01538461538
D26: =CONCATENATE("Liste ",RESULTATS!Y$59," ",RESULTATS!Y$60) -> Liste Sandrine PICO | E26: 0 | F26: 0
D27: =CONCATENATE("Liste ",RESULTATS!AC$59," ",RESULTATS!AC$60) -> Liste Florian PHILIPPOT | E27: 83 | F27: 0.2128205128
D28: =CONCATENATE("Liste ",RESULTATS!AG$59," ",RESULTATS!AG$60) -> Liste Sandrine BELIER | E28: 38 | F28: 0.09743589744
D29: =CONCATENATE("Liste ",RESULTATS!AK$59," ",RESULTATS!AK$60) -> Liste Ismaël BOUDJEKADA | E29: 0 | F29: 0
D30: =CONCATENATE("Liste ",RESULTATS!AO$59," ",RESULTATS!AO$60) -> Liste Laure FERRARI | E30: 8 | F30: 0.02051282051
D31: =CONCATENATE("Liste ",RESULTATS!AS$59," ",RESULTATS!AS$60) -> Liste Antonio SANCHEZ | E31: 0 | F31: 0
D32: =CONCATENATE("Liste ",RESULTATS!AW$59," ",RESULTATS!AW$60) -> Liste Isabelle MAURER | E32: 8 | F32: =IF(E$12=0,0,E32/E$12) -> 0.02051282051
D33: =CONCATENATE("Liste ",RESULTATS!BA$59," ",RESULTATS!BA$60) -> Liste Yannick HERVE | E33: 3 | F33: =IF(E$12=0,0,E33/E$12) -> 0.007692307692
D34: =CONCATENATE("Liste ",RESULTATS!BE$59," ",RESULTATS!BE$60) -> Liste Gabriel AMARD | E34: 23 | F34: =IF(E$12=0,0,E34/E$12) -> 0.05897435897
D35: =CONCATENATE("Liste ",RESULTATS!BI$59," ",RESULTATS!BI$60) -> Liste Florence LHOTE | E35: 0 | F35: =IF(E$12=0,0,E35/E$12) -> 0
E36: =IF(SUM(E13:E35)<>E12,"!!! FAUX","") -> 
D37: TOTAL : | E37: =SUM(E13:E35) -> 390
F39: (1) Votants / Inscrits
F40: (2) Nuls / Votants
F41: (3) Exprimés / Inscrits
F42: (4) Score / Exprimés

Sheet C1
A3: C1 | B3: - | C3: ÉCOLE VICTOR SCHOELCHER (Rue Gaston Deferre)
D7: INSCRITS | E7: 1194 | F7: %
D8: Émargements | E8: 487
D9: Votants (participation) | E9: 487 | F9: =IF($E$7=0,0,E9/$E$7) -> 0.4078726968 | G9: (1)
D10: Blancs | E10: 8 | F10: =IF($E$9=0,0,E10/$E$9) -> 0.01642710472 | G10: (2)
D11: Nuls | E11: 4 | F11: =IF($E$9=0,0,E11/$E$9) -> 0.008213552361 | G11: (2)
D12: Exprimés | E12: 475 | F12: =IF($E$7=0,0,E12/$E$7) -> 0.3978224456 | G12: (3)
D13: =CONCATENATE("Liste ",RESULTATS!U$9," ",RESULTATS!U$10) -> Liste Nadine MORANO | E13: 127 | F13: =IF(E$12=0,0,E13/E$12) -> 0.2673684211 | G13: (4)
D14: =CONCATENATE("Liste ",RESULTATS!Y$9," ",RESULTATS!Y$10) -> Liste Joe LABAT | E14: 2 | F14: 0.004210526316
D15: =CONCATENATE("Liste ",RESULTATS!AC$9," ",RESULTATS!AC$10) -> Liste Claire ROCHER | E15: 4 | F15: 0.008421052632
D16: =CONCATENATE("Liste ",RESULTATS!AG$9," ",RESULTATS!AG$10) -> Liste Christian D'ANDLAU-HOMBOURG | E16: 1 | F16: 0.002105263158
D17: =CONCATENATE("Liste ",RESULTATS!AK$9," ",RESULTATS!AK$10) -> Liste Edouard MARTIN | E17: 86 | F17: 0.1810526316
D18: =CONCATENATE("Liste ",RESULTATS!AO$9," ",RESULTATS!AO$10) -> Liste Gaël DIAFERIA | E18: 2 | F18: 0.004210526316
D19: =CONCATENATE("Liste ",RESULTATS!AS$9," ",RESULTATS!AS$10) -> Liste Nathalie GRIESBECK | E19: 56 | F19: 0.1178947368
D20: =CONCATENATE("Liste ",RESULTATS!AW$9," ",RESULTATS!AW$10) -> Liste Julien GONZALEZ | E20: 10 | F20: 0.02105263158
D21: =CONCATENATE("Liste ",RESULTATS!BA$9," ",RESULTATS!BA$10) -> Liste Philippe COUKA | E21: 0 | F21: 0
D22: =CONCATENATE("Liste ",RESULTATS!BE$9," ",RESULTATS!BE$10) -> Liste Antoine RENARD | E22: 4 | F22: 0.008421052632
D23: =CONCATENATE("Liste ",RESULTATS!BI$9," ",RESULTATS!BI$10) -> Liste Geneviève MARTIN | E23: 0 | F23: 0
D24: =CONCATENATE("Liste ",RESULTATS!BM$9," ",RESULTATS!BM$10) -> Liste Isabelle VÉRIN | E24: 3 | F24: 0.006315789474
D25: =CONCATENATE("Liste ",RESULTATS!U$59," ",RESULTATS!U$60) -> Liste Xavier DESSAIGNE | E25: 1 | F25: 0.002105263158
D26: =CONCATENATE("Liste ",RESULTATS!Y$59," ",RESULTATS!Y$60) -> Liste Sandrine PICO | E26: 0 | F26: 0
D27: =CONCATENATE("Liste ",RESULTATS!AC$59," ",RESULTATS!AC$60) -> Liste Florian PHILIPPOT | E27: 89 | F27: 0.1873684211
D28: =CONCATENATE("Liste ",RESULTATS!AG$59," ",RESULTATS!AG$60) -> Liste Sandrine BELIER | E28: 37 | F28: 0.07789473684
D29: =CONCATENATE("Liste ",RESULTATS!AK$59," ",RESULTATS!AK$60) -> Liste Ismaël BOUDJEKADA | E29: 0 | F29: 0
D30: =CONCATENATE("Liste ",RESULTATS!AO$59," ",RESULTATS!AO$60) -> Liste Laure FERRARI | E30: 19 | F30: 0.04
D31: =CONCATENATE("Liste ",RESULTATS!AS$59," ",RESULTATS!AS$60) -> Liste Antonio SANCHEZ | E31: 0 | F31: 0
D32: =CONCATENATE("Liste ",RESULTATS!AW$59," ",RESULTATS!AW$60) -> Liste Isabelle MAURER | E32: 11 | F32: =IF(E$12=0,0,E32/E$12) -> 0.02315789474
D33: =CONCATENATE("Liste ",RESULTATS!BA$59," ",RESULTATS!BA$60) -> Liste Yannick HERVE | E33: 4 | F33: =IF(E$12=0,0,E33/E$12) -> 0.008421052632
D34: =CONCATENATE("Liste ",RESULTATS!BE$59," ",RESULTATS!BE$60) -> Liste Gabriel AMARD | E34: 18 | F34: =IF(E$12=0,0,E34/E$12) -> 0.03789473684
D35: =CONCATENATE("Liste ",RESULTATS!BI$59," ",RESULTATS!BI$60) -> Liste Florence LHOTE | E35: 1 | F35: =IF(E$12=0,0,E35/E$12) -> 0.002105263158
E36: =IF(SUM(E13:E35)<>E12,"!!! FAUX","") -> 
D37: TOTAL : | E37: =SUM(E13:E35) -> 475
F39: (1) Votants / Inscrits
F40: (2) Nuls / Votants
F41: (3) Exprimés / Inscrits
F42: (4) Score / Exprimés

Sheet C2
A3: C2 | B3: - | C3: MAISON DU PEUPLE (Place de la Résistance)
D7: INSCRITS | E7: 749 | F7: %
D8: Émargements | E8: 359
D9: Votants (participation) | E9: 359 | F9: =IF($E$7=0,0,E9/$E$7) -> 0.479305741 | G9: (1)
D10: Blancs | E10: 4 | F10: =IF($E$9=0,0,E10/$E$9) -> 0.01114206128 | G10: (2)
D11: Nuls | E11: 8 | F11: =IF($E$9=0,0,E11/$E$9) -> 0.02228412256 | G11: (2)
D12: Exprimés | E12: 347 | F12: =IF($E$7=0,0,E12/$E$7) -> 0.4632843792 | G12: (3)
D13: =CONCATENATE("Liste ",RESULTATS!U$9," ",RESULTATS!U$10) -> Liste Nadine MORANO | E13: 108 | F13: =IF(E$12=0,0,E13/E$12) -> 0.3112391931 | G13: (4)
D14: =CONCATENATE("Liste ",RESULTATS!Y$9," ",RESULTATS!Y$10) -> Liste Joe LABAT | E14: 0 | F14: 0
D15: =CONCATENATE("Liste ",RESULTATS!AC$9," ",RESULTATS!AC$10) -> Liste Claire ROCHER | E15: 2 | F15: 0.005763688761
D16: =CONCATENATE("Liste ",RESULTATS!AG$9," ",RESULTATS!AG$10) -> Liste Christian D'ANDLAU-HOMBOURG | E16: 0 | F16: 0
D17: =CONCATENATE("Liste ",RESULTATS!AK$9," ",RESULTATS!AK$10) -> Liste Edouard MARTIN | E17: 52 | F17: 0.1498559078
D18: =CONCATENATE("Liste ",RESULTATS!AO$9," ",RESULTATS!AO$10) -> Liste Gaël DIAFERIA | E18: 2 | F18: 0.005763688761
D19: =CONCATENATE("Liste ",RESULTATS!AS$9," ",RESULTATS!AS$10) -> Liste Nathalie GRIESBECK | E19: 33 | F19: 0.09510086455
D20: =CONCATENATE("Liste ",RESULTATS!AW$9," ",RESULTATS!AW$10) -> Liste Julien GONZALEZ | E20: 7 | F20: 0.02017291066
D21: =CONCATENATE("Liste ",RESULTATS!BA$9," ",RESULTATS!BA$10) -> Liste Philippe COUKA | E21: 1 | F21: 0.00288184438
D22: =CONCATENATE("Liste ",RESULTATS!BE$9," ",RESULTATS!BE$10) -> Liste Antoine RENARD | E22: 1 | F22: 0.00288184438
D23: =CONCATENATE("Liste ",RESULTATS!BI$9," ",RESULTATS!BI$10) -> Liste Geneviève MARTIN | E23: 1 | F23: 0.00288184438
D24: =CONCATENATE("Liste ",RESULTATS!BM$9," ",RESULTATS!BM$10) -> Liste Isabelle VÉRIN | E24: 1 | F24: 0.00288184438
D25: =CONCATENATE("Liste ",RESULTATS!U$59," ",RESULTATS!U$60) -> Liste Xavier DESSAIGNE | E25: 6 | F25: 0.01729106628
D26: =CONCATENATE("Liste ",RESULTATS!Y$59," ",RESULTATS!Y$60) -> Liste Sandrine PICO | E26: 0 | F26: 0
D27: =CONCATENATE("Liste ",RESULTATS!AC$59," ",RESULTATS!AC$60) -> Liste Florian PHILIPPOT | E27: 57 | F27: 0.1642651297
D28: =CONCATENATE("Liste ",RESULTATS!AG$59," ",RESULTATS!AG$60) -> Liste Sandrine BELIER | E28: 23 | F28: 0.06628242075
D29: =CONCATENATE("Liste ",RESULTATS!AK$59," ",RESULTATS!AK$60) -> Liste Ismaël BOUDJEKADA | E29: 0 | F29: 0
D30: =CONCATENATE("Liste ",RESULTATS!AO$59," ",RESULTATS!AO$60) -> Liste Laure FERRARI | E30: 17 | F30: 0.04899135447
D31: =CONCATENATE("Liste ",RESULTATS!AS$59," ",RESULTATS!AS$60) -> Liste Antonio SANCHEZ | E31: 0 | F31: 0
D32: =CONCATENATE("Liste ",RESULTATS!AW$59," ",RESULTATS!AW$60) -> Liste Isabelle MAURER | E32: 12 | F32: =IF(E$12=0,0,E32/E$12) -> 0.03458213256
D33: =CONCATENATE("Liste ",RESULTATS!BA$59," ",RESULTATS!BA$60) -> Liste Yannick HERVE | E33: 0 | F33: =IF(E$12=0,0,E33/E$12) -> 0
D34: =CONCATENATE("Liste ",RESULTATS!BE$59," ",RESULTATS!BE$60) -> Liste Gabriel AMARD | E34: 20 | F34: =IF(E$12=0,0,E34/E$12) -> 0.05763688761
D35: =CONCATENATE("Liste ",RESULTATS!BI$59," ",RESULTATS!BI$60) -> Liste Florence LHOTE | E35: 4 | F35: =IF(E$12=0,0,E35/E$12) -> 0.01152737752
E36: =IF(SUM(E13:E35)<>E12,"!!! FAUX","") -> 
D37: TOTAL : | E37: =SUM(E13:E35) -> 347
F39: (1) Votants / Inscrits
F40: (2) Nuls / Votants
F41: (3) Exprimés / Inscrits
F42: (4) Score / Exprimés

Sheet C3
A3: C3 | B3: - | C3: MAISON DU PEUPLE (Place de la Résistance)
D7: INSCRITS | E7: 909 | F7: %
D8: Émargements | E8: 426
D9: Votants (participation) | E9: 426 | F9: =IF($E$7=0,0,E9/$E$7) -> 0.4686468647 | G9: (1)
D10: Blancs | E10: 6 | F10: =IF($E$9=0,0,E10/$E$9) -> 0.01408450704 | G10: (2)
D11: Nuls | E11: 5 | F11: =IF($E$9=0,0,E11/$E$9) -> 0.0117370892 | G11: (2)
D12: Exprimés | E12: 415 | F12: =IF($E$7=0,0,E12/$E$7) -> 0.4565456546 | G12: (3)
D13: =CONCATENATE("Liste ",RESULTATS!U$9," ",RESULTATS!U$10) -> Liste Nadine MORANO | E13: 148 | F13: =IF(E$12=0,0,E13/E$12) -> 0.356626506 | G13: (4)
D14: =CONCATENATE("Liste ",RESULTATS!Y$9," ",RESULTATS!Y$10) -> Liste Joe LABAT | E14: 1 | F14: 0.002409638554
D15: =CONCATENATE("Liste ",RESULTATS!AC$9," ",RESULTATS!AC$10) -> Liste Claire ROCHER | E15: 2 | F15: 0.004819277108
D16: =CONCATENATE("Liste ",RESULTATS!AG$9," ",RESULTATS!AG$10) -> Liste Christian D'ANDLAU-HOMBOURG | E16: 0 | F16: 0
D17: =CONCATENATE("Liste ",RESULTATS!AK$9," ",RESULTATS!AK$10) -> Liste Edouard MARTIN | E17: 65 | F17: 0.156626506
D18: =CONCATENATE("Liste ",RESULTATS!AO$9," ",RESULTATS!AO$10) -> Liste Gaël DIAFERIA | E18: 2 | F18: 0.004819277108
D19: =CONCATENATE("Liste ",RESULTATS!AS$9," ",RESULTATS!AS$10) -> Liste Nathalie GRIESBECK | E19: 39 | F19: 0.09397590361
D20: =CONCATENATE("Liste ",RESULTATS!AW$9," ",RESULTATS!AW$10) -> Liste Julien GONZALEZ | E20: 7 | F20: 0.01686746988
D21: =CONCATENATE("Liste ",RESULTATS!BA$9," ",RESULTATS!BA$10) -> Liste Philippe COUKA | E21: 0 | F21: 0
D22: =CONCATENATE("Liste ",RESULTATS!BE$9," ",RESULTATS!BE$10) -> Liste Antoine RENARD | E22: 3 | F22: 0.007228915663
D23: =CONCATENATE("Liste ",RESULTATS!BI$9," ",RESULTATS!BI$10) -> Liste Geneviève MARTIN | E23: 1 | F23: 0.002409638554
D24: =CONCATENATE("Liste ",RESULTATS!BM$9," ",RESULTATS!BM$10) -> Liste Isabelle VÉRIN | E24: 3 | F24: 0.007228915663
D25: =CONCATENATE("Liste ",RESULTATS!U$59," ",RESULTATS!U$60) -> Liste Xavier DESSAIGNE | E25: 6 | F25: 0.01445783133
D26: =CONCATENATE("Liste ",RESULTATS!Y$59," ",RESULTATS!Y$60) -> Liste Sandrine PICO | E26: 0 | F26: 0
D27: =CONCATENATE("Liste ",RESULTATS!AC$59," ",RESULTATS!AC$60) -> Liste Florian PHILIPPOT | E27: 66 | F27: 0.1590361446
D28: =CONCATENATE("Liste ",RESULTATS!AG$59," ",RESULTATS!AG$60) -> Liste Sandrine BELIER | E28: 36 | F28: 0.08674698795
D29: =CONCATENATE("Liste ",RESULTATS!AK$59," ",RESULTATS!AK$60) -> Liste Ismaël BOUDJEKADA | E29: 0 | F29: 0
D30: =CONCATENATE("Liste ",RESULTATS!AO$59," ",RESULTATS!AO$60) -> Liste Laure FERRARI | E30: 9 | F30: 0.02168674699
D31: =CONCATENATE("Liste ",RESULTATS!AS$59," ",RESULTATS!AS$60) -> Liste Antonio SANCHEZ | E31: 0 | F31: 0
D32: =CONCATENATE("Liste ",RESULTATS!AW$59," ",RESULTATS!AW$60) -> Liste Isabelle MAURER | E32: 10 | F32: =IF(E$12=0,0,E32/E$12) -> 0.02409638554
D33: =CONCATENATE("Liste ",RESULTATS!BA$59," ",RESULTATS!BA$60) -> Liste Yannick HERVE | E33: 0 | F33: =IF(E$12=0,0,E33/E$12) -> 0
D34: =CONCATENATE("Liste ",RESULTATS!BE$59," ",RESULTATS!BE$60) -> Liste Gabriel AMARD | E34: 16 | F34: =IF(E$12=0,0,E34/E$12) -> 0.03855421687
D35: =CONCATENATE("Liste ",RESULTATS!BI$59," ",RESULTATS!BI$60) -> Liste Florence LHOTE | E35: 1 | F35: =IF(E$12=0,0,E35/E$12) -> 0.002409638554
E36: =IF(SUM(E13:E35)<>E12,"!!! FAUX","") -> 
D37: TOTAL : | E37: =SUM(E13:E35) -> 415
F39: (1) Votants / Inscrits
F40: (2) Nuls / Votants
F41: (3) Exprimés / Inscrits
F42: (4) Score / Exprimés

Sheet D1
A3: D1 | B3: - | C3: GROUPE SCOLAIRE CHÂTEAUDUN (Rue de Châteaudun)
D7: INSCRITS | E7: 1058 | F7: %
D8: Émargements | E8: 444
D9: Votants (participation) | E9: 444 | F9: =IF($E$7=0,0,E9/$E$7) -> 0.4196597353 | G9: (1)
D10: Blancs | E10: 6 | F10: =IF($E$9=0,0,E10/$E$9) -> 0.01351351351 | G10: (2)
D11: Nuls | E11: 7 | F11: =IF($E$9=0,0,E11/$E$9) -> 0.01576576577 | G11: (2)
D12: Exprimés | E12: 431 | F12: =IF($E$7=0,0,E12/$E$7) -> 0.4073724008 | G12: (3)
D13: =CONCATENATE("Liste ",RESULTATS!U$9," ",RESULTATS!U$10) -> Liste Nadine MORANO | E13: 140 | F13: =IF(E$12=0,0,E13/E$12) -> 0.3248259861 | G13: (4)
D14: =CONCATENATE("Liste ",RESULTATS!Y$9," ",RESULTATS!Y$10) -> Liste Joe LABAT | E14: 0 | F14: 0
D15: =CONCATENATE("Liste ",RESULTATS!AC$9," ",RESULTATS!AC$10) -> Liste Claire ROCHER | E15: 3 | F15: 0.006960556845
D16: =CONCATENATE("Liste ",RESULTATS!AG$9," ",RESULTATS!AG$10) -> Liste Christian D'ANDLAU-HOMBOURG | E16: 0 | F16: 0
D17: =CONCATENATE("Liste ",RESULTATS!AK$9," ",RESULTATS!AK$10) -> Liste Edouard MARTIN | E17: 61 | F17: 0.1415313225
D18: =CONCATENATE("Liste ",RESULTATS!AO$9," ",RESULTATS!AO$10) -> Liste Gaël DIAFERIA | E18: 1 | F18: 0.002320185615
D19: =CONCATENATE("Liste ",RESULTATS!AS$9," ",RESULTATS!AS$10) -> Liste Nathalie GRIESBECK | E19: 35 | F19: 0.08120649652
D20: =CONCATENATE("Liste ",RESULTATS!AW$9," ",RESULTATS!AW$10) -> Liste Julien GONZALEZ | E20: 10 | F20: 0.02320185615
D21: =CONCATENATE("Liste ",RESULTATS!BA$9," ",RESULTATS!BA$10) -> Liste Philippe COUKA | E21: 0 | F21: 0
D22: =CONCATENATE("Liste ",RESULTATS!BE$9," ",RESULTATS!BE$10) -> Liste Antoine RENARD | E22: 1 | F22: 0.002320185615
D23: =CONCATENATE("Liste ",RESULTATS!BI$9," ",RESULTATS!BI$10) -> Liste Geneviève MARTIN | E23: 1 | F23: 0.002320185615
D24: =CONCATENATE("Liste ",RESULTATS!BM$9," ",RESULTATS!BM$10) -> Liste Isabelle VÉRIN | E24: 0 | F24: 0
D25: =CONCATENATE("Liste ",RESULTATS!U$59," ",RESULTATS!U$60) -> Liste Xavier DESSAIGNE | E25: 4 | F25: 0.009280742459
D26: =CONCATENATE("Liste ",RESULTATS!Y$59," ",RESULTATS!Y$60) -> Liste Sandrine PICO | E26: 0 | F26: 0
D27: =CONCATENATE("Liste ",RESULTATS!AC$59," ",RESULTATS!AC$60) -> Liste Florian PHILIPPOT | E27: 84 | F27: 0.1948955916
D28: =CONCATENATE("Liste ",RESULTATS!AG$59," ",RESULTATS!AG$60) -> Liste Sandrine BELIER | E28: 32 | F28: 0.07424593968
D29: =CONCATENATE("Liste ",RESULTATS!AK$59," ",RESULTATS!AK$60) -> Liste Ismaël BOUDJEKADA | E29: 0 | F29: 0
D30: =CONCATENATE("Liste ",RESULTATS!AO$59," ",RESULTATS!AO$60) -> Liste Laure FERRARI | E30: 20 | F30: 0.0464037123
D31: =CONCATENATE("Liste ",RESULTATS!AS$59," ",RESULTATS!AS$60) -> Liste Antonio SANCHEZ | E31: 0 | F31: 0
D32: =CONCATENATE("Liste ",RESULTATS!AW$59," ",RESULTATS!AW$60) -> Liste Isabelle MAURER | E32: 10 | F32: =IF(E$12=0,0,E32/E$12) -> 0.02320185615
D33: =CONCATENATE("Liste ",RESULTATS!BA$59," ",RESULTATS!BA$60) -> Liste Yannick HERVE | E33: 3 | F33: =IF(E$12=0,0,E33/E$12) -> 0.006960556845
D34: =CONCATENATE("Liste ",RESULTATS!BE$59," ",RESULTATS!BE$60) -> Liste Gabriel AMARD | E34: 24 | F34: =IF(E$12=0,0,E34/E$12) -> 0.05568445476
D35: =CONCATENATE("Liste ",RESULTATS!BI$59," ",RESULTATS!BI$60) -> Liste Florence LHOTE | E35: 2 | F35: =IF(E$12=0,0,E35/E$12) -> 0.00464037123
E36: =IF(SUM(E13:E35)<>E12,"!!! FAUX","") -> 
D37: TOTAL : | E37: =SUM(E13:E35) -> 431
F39: (1) Votants / Inscrits
F40: (2) Nuls / Votants
F41: (3) Exprimés / Inscrits
F42: (4) Score / Exprimés

Sheet D2
A3: D2 | B3: - | C3: GROUPE SCOLAIRE CHÂTEAUDUN (Rue de Châteaudun)
D7: INSCRITS | E7: 827 | F7: %
D8: Émargements | E8: 365
D9: Votants (participation) | E9: 365 | F9: =IF($E$7=0,0,E9/$E$7) -> 0.4413542926 | G9: (1)
D10: Blancs | E10: 5 | F10: =IF($E$9=0,0,E10/$E$9) -> 0.01369863014 | G10: (2)
D11: Nuls | E11: 4 | F11: =IF($E$9=0,0,E11/$E$9) -> 0.01095890411 | G11: (2)
D12: Exprimés | E12: 356 | F12: =IF($E$7=0,0,E12/$E$7) -> 0.430471584 | G12: (3)
D13: =CONCATENATE("Liste ",RESULTATS!U$9," ",RESULTATS!U$10) -> Liste Nadine MORANO | E13: 104 | F13: =IF(E$12=0,0,E13/E$12) -> 0.2921348315 | G13: (4)
D14: =CONCATENATE("Liste ",RESULTATS!Y$9," ",RESULTATS!Y$10) -> Liste Joe LABAT | E14: 1 | F14: 0.002808988764
D15: =CONCATENATE("Liste ",RESULTATS!AC$9," ",RESULTATS!AC$10) -> Liste Claire ROCHER | E15: 0 | F15: 0
D16: =CONCATENATE("Liste ",RESULTATS!AG$9," ",RESULTATS!AG$10) -> Liste Christian D'ANDLAU-HOMBOURG | E16: 0 | F16: 0
D17: =CONCATENATE("Liste ",RESULTATS!AK$9," ",RESULTATS!AK$10) -> Liste Edouard MARTIN | E17: 44 | F17: 0.1235955056
D18: =CONCATENATE("Liste ",RESULTATS!AO$9," ",RESULTATS!AO$10) -> Liste Gaël DIAFERIA | E18: 3 | F18: 0.008426966292
D19: =CONCATENATE("Liste ",RESULTATS!AS$9," ",RESULTATS!AS$10) -> Liste Nathalie GRIESBECK | E19: 44 | F19: 0.1235955056
D20: =CONCATENATE("Liste ",RESULTATS!AW$9," ",RESULTATS!AW$10) -> Liste Julien GONZALEZ | E20: 2 | F20: 0.005617977528
D21: =CONCATENATE("Liste ",RESULTATS!BA$9," ",RESULTATS!BA$10) -> Liste Philippe COUKA | E21: 0 | F21: 0
D22: =CONCATENATE("Liste ",RESULTATS!BE$9," ",RESULTATS!BE$10) -> Liste Antoine RENARD | E22: 0 | F22: 0
D23: =CONCATENATE("Liste ",RESULTATS!BI$9," ",RESULTATS!BI$10) -> Liste Geneviève MARTIN | E23: 1 | F23: 0.002808988764
D24: =CONCATENATE("Liste ",RESULTATS!BM$9," ",RESULTATS!BM$10) -> Liste Isabelle VÉRIN | E24: 2 | F24: 0.005617977528
D25: =CONCATENATE("Liste ",RESULTATS!U$59," ",RESULTATS!U$60) -> Liste Xavier DESSAIGNE | E25: 6 | F25: 0.01685393258
D26: =CONCATENATE("Liste ",RESULTATS!Y$59," ",RESULTATS!Y$60) -> Liste Sandrine PICO | E26: 0 | F26: 0
D27: =CONCATENATE("Liste ",RESULTATS!AC$59," ",RESULTATS!AC$60) -> Liste Florian PHILIPPOT | E27: 84 | F27: 0.2359550562
D28: =CONCATENATE("Liste ",RESULTATS!AG$59," ",RESULTATS!AG$60) -> Liste Sandrine BELIER | E28: 32 | F28: 0.08988764045
D29: =CONCATENATE("Liste ",RESULTATS!AK$59," ",RESULTATS!AK$60) -> Liste Ismaël BOUDJEKADA | E29: 0 | F29: 0
D30: =CONCATENATE("Liste ",RESULTATS!AO$59," ",RESULTATS!AO$60) -> Liste Laure FERRARI | E30: 10 | F30: 0.02808988764
D31: =CONCATENATE("Liste ",RESULTATS!AS$59," ",RESULTATS!AS$60) -> Liste Antonio SANCHEZ | E31: 0 | F31: 0
D32: =CONCATENATE("Liste ",RESULTATS!AW$59," ",RESULTATS!AW$60) -> Liste Isabelle MAURER | E32: 5 | F32: =IF(E$12=0,0,E32/E$12) -> 0.01404494382
D33: =CONCATENATE("Liste ",RESULTATS!BA$59," ",RESULTATS!BA$60) -> Liste Yannick HERVE | E33: 0 | F33: =IF(E$12=0,0,E33/E$12) -> 0
D34: =CONCATENATE("Liste ",RESULTATS!BE$59," ",RESULTATS!BE$60) -> Liste Gabriel AMARD | E34: 18 | F34: =IF(E$12=0,0,E34/E$12) -> 0.05056179775
D35: =CONCATENATE("Liste ",RESULTATS!BI$59," ",RESULTATS!BI$60) -> Liste Florence LHOTE | E35: 0 | F35: =IF(E$12=0,0,E35/E$12) -> 0
E36: =IF(SUM(E13:E35)<>E12,"!!! FAUX","") -> 
D37: TOTAL : | E37: =SUM(E13:E35) -> 356
F39: (1) Votants / Inscrits
F40: (2) Nuls / Votants
F41: (3) Exprimés / Inscrits
F42: (4) Score / Exprimés

Sheet D3
A3: D3 | B3: - | C3: GROUPE SCOLAIRE CHÂTEAUDUN (Rue de Châteaudun)
D7: INSCRITS | E7: 895 | F7: %
D8: Émargements | E8: 365
D9: Votants (participation) | E9: 365 | F9: =IF($E$7=0,0,E9/$E$7) -> 0.4078212291 | G9: (1)
D10: Blancs | E10: 8 | F10: =IF($E$9=0,0,E10/$E$9) -> 0.02191780822 | G10: (2)
D11: Nuls | E11: 7 | F11: =IF($E$9=0,0,E11/$E$9) -> 0.01917808219 | G11: (2)
D12: Exprimés | E12: 350 | F12: =IF($E$7=0,0,E12/$E$7) -> 0.3910614525 | G12: (3)
D13: =CONCATENATE("Liste ",RESULTATS!U$9," ",RESULTATS!U$10) -> Liste Nadine MORANO | E13: 83 | F13: =IF(E$12=0,0,E13/E$12) -> 0.2371428571 | G13: (4)
D14: =CONCATENATE("Liste ",RESULTATS!Y$9," ",RESULTATS!Y$10) -> Liste Joe LABAT | E14: 0 | F14: 0
D15: =CONCATENATE("Liste ",RESULTATS!AC$9," ",RESULTATS!AC$10) -> Liste Claire ROCHER | E15: 7 | F15: 0.02
D16: =CONCATENATE("Liste ",RESULTATS!AG$9," ",RESULTATS!AG$10) -> Liste Christian D'ANDLAU-HOMBOURG | E16: 1 | F16: 0.002857142857
D17: =CONCATENATE("Liste ",RESULTATS!AK$9," ",RESULTATS!AK$10) -> Liste Edouard MARTIN | E17: 42 | F17: 0.12
D18: =CONCATENATE("Liste ",RESULTATS!AO$9," ",RESULTATS!AO$10) -> Liste Gaël DIAFERIA | E18: 3 | F18: 0.008571428571
D19: =CONCATENATE("Liste ",RESULTATS!AS$9," ",RESULTATS!AS$10) -> Liste Nathalie GRIESBECK | E19: 32 | F19: 0.09142857143
D20: =CONCATENATE("Liste ",RESULTATS!AW$9," ",RESULTATS!AW$10) -> Liste Julien GONZALEZ | E20: 6 | F20: 0.01714285714
D21: =CONCATENATE("Liste ",RESULTATS!BA$9," ",RESULTATS!BA$10) -> Liste Philippe COUKA | E21: 0 | F21: 0
D22: =CONCATENATE("Liste ",RESULTATS!BE$9," ",RESULTATS!BE$10) -> Liste Antoine RENARD | E22: 2 | F22: 0.005714285714
D23: =CONCATENATE("Liste ",RESULTATS!BI$9," ",RESULTATS!BI$10) -> Liste Geneviève MARTIN | E23: 1 | F23: 0.002857142857
D24: =CONCATENATE("Liste ",RESULTATS!BM$9," ",RESULTATS!BM$10) -> Liste Isabelle VÉRIN | E24: 4 | F24: 0.01142857143
D25: =CONCATENATE("Liste ",RESULTATS!U$59," ",RESULTATS!U$60) -> Liste Xavier DESSAIGNE | E25: 4 | F25: 0.01142857143
D26: =CONCATENATE("Liste ",RESULTATS!Y$59," ",RESULTATS!Y$60) -> Liste Sandrine PICO | E26: 0 | F26: 0
D27: =CONCATENATE("Liste ",RESULTATS!AC$59," ",RESULTATS!AC$60) -> Liste Florian PHILIPPOT | E27: 103 | F27: 0.2942857143
D28: =CONCATENATE("Liste ",RESULTATS!AG$59," ",RESULTATS!AG$60) -> Liste Sandrine BELIER | E28: 21 | F28: 0.06
D29: =CONCATENATE("Liste ",RESULTATS!AK$59," ",RESULTATS!AK$60) -> Liste Ismaël BOUDJEKADA | E29: 0 | F29: 0
D30: =CONCATENATE("Liste ",RESULTATS!AO$59," ",RESULTATS!AO$60) -> Liste Laure FERRARI | E30: 9 | F30: 0.02571428571
D31: =CONCATENATE("Liste ",RESULTATS!AS$59," ",RESULTATS!AS$60) -> Liste Antonio SANCHEZ | E31: 0 | F31: 0
D32: =CONCATENATE("Liste ",RESULTATS!AW$59," ",RESULTATS!AW$60) -> Liste Isabelle MAURER | E32: 5 | F32: =IF(E$12=0,0,E32/E$12) -> 0.01428571429
D33: =CONCATENATE("Liste ",RESULTATS!BA$59," ",RESULTATS!BA$60) -> Liste Yannick HERVE | E33: 2 | F33: =IF(E$12=0,0,E33/E$12) -> 0.005714285714
D34: =CONCATENATE("Liste ",RESULTATS!BE$59," ",RESULTATS!BE$60) -> Liste Gabriel AMARD | E34: 25 | F34: =IF(E$12=0,0,E34/E$12) -> 0.07142857143
D35: =CONCATENATE("Liste ",RESULTATS!BI$59," ",RESULTATS!BI$60) -> Liste Florence LHOTE | E35: 0 | F35: =IF(E$12=0,0,E35/E$12) -> 0
E36: =IF(SUM(E13:E35)<>E12,"!!! FAUX","") -> 
D37: TOTAL : | E37: =SUM(E13:E35) -> 350
F39: (1) Votants / Inscrits
F40: (2) Nuls / Votants
F41: (3) Exprimés / Inscrits
F42: (4) Score / Exprimés

Sheet E1
A3: E1 | B3: - | C3: GROUPE SCOLAIRE RAYMOND AUBERT (Rue de la 1ère Armée Française)
D7: INSCRITS | E7: 1168 | F7: %
D8: Émargements | E8: 475
D9: Votants (participation) | E9: 475 | F9: =IF($E$7=0,0,E9/$E$7) -> 0.4066780822 | G9: (1)
D10: Blancs | E10: 10 | F10: =IF($E$9=0,0,E10/$E$9) -> 0.02105263158 | G10: (2)
D11: Nuls | E11: 8 | F11: =IF($E$9=0,0,E11/$E$9) -> 0.01684210526 | G11: (2)
D12: Exprimés | E12: 457 | F12: =IF($E$7=0,0,E12/$E$7) -> 0.3912671233 | G12: (3)
D13: =CONCATENATE("Liste ",RESULTATS!U$9," ",RESULTATS!U$10) -> Liste Nadine MORANO | E13: 117 | F13: =IF(E$12=0,0,E13/E$12) -> 0.2560175055 | G13: (4)
D14: =CONCATENATE("Liste ",RESULTATS!Y$9," ",RESULTATS!Y$10) -> Liste Joe LABAT | E14: 0 | F14: 0
D15: =CONCATENATE("Liste ",RESULTATS!AC$9," ",RESULTATS!AC$10) -> Liste Claire ROCHER | E15: 8 | F15: 0.01750547046
D16: =CONCATENATE("Liste ",RESULTATS!AG$9," ",RESULTATS!AG$10) -> Liste Christian D'ANDLAU-HOMBOURG | E16: 1 | F16: 0.002188183807
D17: =CONCATENATE("Liste ",RESULTATS!AK$9," ",RESULTATS!AK$10) -> Liste Edouard MARTIN | E17: 59 | F17: 0.1291028446
D18: =CONCATENATE("Liste ",RESULTATS!AO$9," ",RESULTATS!AO$10) -> Liste Gaël DIAFERIA | E18: 1 | F18: 0.002188183807
D19: =CONCATENATE("Liste ",RESULTATS!AS$9," ",RESULTATS!AS$10) -> Liste Nathalie GRIESBECK | E19: 48 | F19: 0.1050328228
D20: =CONCATENATE("Liste ",RESULTATS!AW$9," ",RESULTATS!AW$10) -> Liste Julien GONZALEZ | E20: 6 | F20: 0.01312910284
D21: =CONCATENATE("Liste ",RESULTATS!BA$9," ",RESULTATS!BA$10) -> Liste Philippe COUKA | E21: 0 | F21: 0
D22: =CONCATENATE("Liste ",RESULTATS!BE$9," ",RESULTATS!BE$10) -> Liste Antoine RENARD | E22: 0 | F22: 0
D23: =CONCATENATE("Liste ",RESULTATS!BI$9," ",RESULTATS!BI$10) -> Liste Geneviève MARTIN | E23: 1 | F23: 0.002188183807
D24: =CONCATENATE("Liste ",RESULTATS!BM$9," ",RESULTATS!BM$10) -> Liste Isabelle VÉRIN | E24: 1 | F24: 0.002188183807
D25: =CONCATENATE("Liste ",RESULTATS!U$59," ",RESULTATS!U$60) -> Liste Xavier DESSAIGNE | E25: 3 | F25: 0.006564551422
D26: =CONCATENATE("Liste ",RESULTATS!Y$59," ",RESULTATS!Y$60) -> Liste Sandrine PICO | E26: 0 | F26: 0
D27: =CONCATENATE("Liste ",RESULTATS!AC$59," ",RESULTATS!AC$60) -> Liste Florian PHILIPPOT | E27: 131 | F27: 0.2866520788
D28: =CONCATENATE("Liste ",RESULTATS!AG$59," ",RESULTATS!AG$60) -> Liste Sandrine BELIER | E28: 30 | F28: 0.06564551422
D29: =CONCATENATE("Liste ",RESULTATS!AK$59," ",RESULTATS!AK$60) -> Liste Ismaël BOUDJEKADA | E29: 0 | F29: 0
D30: =CONCATENATE("Liste ",RESULTATS!AO$59," ",RESULTATS!AO$60) -> Liste Laure FERRARI | E30: 16 | F30: 0.03501094092
D31: =CONCATENATE("Liste ",RESULTATS!AS$59," ",RESULTATS!AS$60) -> Liste Antonio SANCHEZ | E31: 0 | F31: 0
D32: =CONCATENATE("Liste ",RESULTATS!AW$59," ",RESULTATS!AW$60) -> Liste Isabelle MAURER | E32: 12 | F32: =IF(E$12=0,0,E32/E$12) -> 0.02625820569
D33: =CONCATENATE("Liste ",RESULTATS!BA$59," ",RESULTATS!BA$60) -> Liste Yannick HERVE | E33: 0 | F33: =IF(E$12=0,0,E33/E$12) -> 0
D34: =CONCATENATE("Liste ",RESULTATS!BE$59," ",RESULTATS!BE$60) -> Liste Gabriel AMARD | E34: 23 | F34: =IF(E$12=0,0,E34/E$12) -> 0.05032822757
D35: =CONCATENATE("Liste ",RESULTATS!BI$59," ",RESULTATS!BI$60) -> Liste Florence LHOTE | E35: 0 | F35: =IF(E$12=0,0,E35/E$12) -> 0
E36: =IF(SUM(E13:E35)<>E12,"!!! FAUX","") -> 
D37: TOTAL : | E37: =SUM(E13:E35) -> 457
F39: (1) Votants / Inscrits
F40: (2) Nuls / Votants
F41: (3) Exprimés / Inscrits
F42: (4) Score / Exprimés

Sheet E2
A3: E2 | B3: - | C3: GROUPE SCOLAIRE RAYMOND AUBERT (Rue de la 1ère Armée Française)
D7: INSCRITS | E7: 1204 | F7: %
D8: Émargements | E8: 452
D9: Votants (participation) | E9: 452 | F9: =IF($E$7=0,0,E9/$E$7) -> 0.3754152824 | G9: (1)
D10: Blancs | E10: 13 | F10: =IF($E$9=0,0,E10/$E$9) -> 0.02876106195 | G10: (2)
D11: Nuls | E11: 8 | F11: =IF($E$9=0,0,E11/$E$9) -> 0.01769911504 | G11: (2)
D12: Exprimés | E12: 431 | F12: =IF($E$7=0,0,E12/$E$7) -> 0.3579734219 | G12: (3)
D13: =CONCATENATE("Liste ",RESULTATS!U$9," ",RESULTATS!U$10) -> Liste Nadine MORANO | E13: 120 | F13: =IF(E$12=0,0,E13/E$12) -> 0.2784222738 | G13: (4)
D14: =CONCATENATE("Liste ",RESULTATS!Y$9," ",RESULTATS!Y$10) -> Liste Joe LABAT | E14: 0 | F14: 0
D15: =CONCATENATE("Liste ",RESULTATS!AC$9," ",RESULTATS!AC$10) -> Liste Claire ROCHER | E15: 5 | F15: 0.01160092807
D16: =CONCATENATE("Liste ",RESULTATS!AG$9," ",RESULTATS!AG$10) -> Liste Christian D'ANDLAU-HOMBOURG | E16: 2 | F16: 0.00464037123
D17: =CONCATENATE("Liste ",RESULTATS!AK$9," ",RESULTATS!AK$10) -> Liste Edouard MARTIN | E17: 51 | F17: 0.1183294664
D18: =CONCATENATE("Liste ",RESULTATS!AO$9," ",RESULTATS!AO$10) -> Liste Gaël DIAFERIA | E18: 2 | F18: 0.00464037123
D19: =CONCATENATE("Liste ",RESULTATS!AS$9," ",RESULTATS!AS$10) -> Liste Nathalie GRIESBECK | E19: 45 | F19: 0.1044083527
D20: =CONCATENATE("Liste ",RESULTATS!AW$9," ",RESULTATS!AW$10) -> Liste Julien GONZALEZ | E20: 11 | F20: 0.02552204176
D21: =CONCATENATE("Liste ",RESULTATS!BA$9," ",RESULTATS!BA$10) -> Liste Philippe COUKA | E21: 0 | F21: 0
D22: =CONCATENATE("Liste ",RESULTATS!BE$9," ",RESULTATS!BE$10) -> Liste Antoine RENARD | E22: 1 | F22: 0.002320185615
D23: =CONCATENATE("Liste ",RESULTATS!BI$9," ",RESULTATS!BI$10) -> Liste Geneviève MARTIN | E23: 3 | F23: 0.006960556845
D24: =CONCATENATE("Liste ",RESULTATS!BM$9," ",RESULTATS!BM$10) -> Liste Isabelle VÉRIN | E24: 3 | F24: 0.006960556845
D25: =CONCATENATE("Liste ",RESULTATS!U$59," ",RESULTATS!U$60) -> Liste Xavier DESSAIGNE | E25: 4 | F25: 0.009280742459
D26: =CONCATENATE("Liste ",RESULTATS!Y$59," ",RESULTATS!Y$60) -> Liste Sandrine PICO | E26: 0 | F26: 0
D27: =CONCATENATE("Liste ",RESULTATS!AC$59," ",RESULTATS!AC$60) -> Liste Florian PHILIPPOT | E27: 122 | F27: 0.283062645
D28: =CONCATENATE("Liste ",RESULTATS!AG$59," ",RESULTATS!AG$60) -> Liste Sandrine BELIER | E28: 31 | F28: 0.07192575406
D29: =CONCATENATE("Liste ",RESULTATS!AK$59," ",RESULTATS!AK$60) -> Liste Ismaël BOUDJEKADA | E29: 0 | F29: 0
D30: =CONCATENATE("Liste ",RESULTATS!AO$59," ",RESULTATS!AO$60) -> Liste Laure FERRARI | E30: 9 | F30: 0.02088167053
D31: =CONCATENATE("Liste ",RESULTATS!AS$59," ",RESULTATS!AS$60) -> Liste Antonio SANCHEZ | E31: 0 | F31: 0
D32: =CONCATENATE("Liste ",RESULTATS!AW$59," ",RESULTATS!AW$60) -> Liste Isabelle MAURER | E32: 5 | F32: =IF(E$12=0,0,E32/E$12) -> 0.01160092807
D33: =CONCATENATE("Liste ",RESULTATS!BA$59," ",RESULTATS!BA$60) -> Liste Yannick HERVE | E33: 2 | F33: =IF(E$12=0,0,E33/E$12) -> 0.00464037123
D34: =CONCATENATE("Liste ",RESULTATS!BE$59," ",RESULTATS!BE$60) -> Liste Gabriel AMARD | E34: 14 | F34: =IF(E$12=0,0,E34/E$12) -> 0.03248259861
D35: =CONCATENATE("Liste ",RESULTATS!BI$59," ",RESULTATS!BI$60) -> Liste Florence LHOTE | E35: 1 | F35: =IF(E$12=0,0,E35/E$12) -> 0.002320185615
E36: =IF(SUM(E13:E35)<>E12,"!!! FAUX","") -> 
D37: TOTAL : | E37: =SUM(E13:E35) -> 431
F39: (1) Votants / Inscrits
F40: (2) Nuls / Votants
F41: (3) Exprimés / Inscrits
F42: (4) Score / Exprimés

Sheet E3
A3: E3 | B3: - | C3: GROUPE SCOLAIRE RAYMOND AUBERT (Rue de la 1ère Armée Française)
D7: INSCRITS | E7: 1030 | F7: %
D8: Émargements | E8: 389
D9: Votants (participation) | E9: 389 | F9: =IF($E$7=0,0,E9/$E$7) -> 0.3776699029 | G9: (1)
D10: Blancs | E10: 12 | F10: =IF($E$9=0,0,E10/$E$9) -> 0.03084832905 | G10: (2)
D11: Nuls | E11: 11 | F11: =IF($E$9=0,0,E11/$E$9) -> 0.02827763496 | G11: (2)
D12: Exprimés | E12: 366 | F12: =IF($E$7=0,0,E12/$E$7) -> 0.3553398058 | G12: (3)
D13: =CONCATENATE("Liste ",RESULTATS!U$9," ",RESULTATS!U$10) -> Liste Nadine MORANO | E13: 81 | F13: =IF(E$12=0,0,E13/E$12) -> 0.2213114754 | G13: (4)
D14: =CONCATENATE("Liste ",RESULTATS!Y$9," ",RESULTATS!Y$10) -> Liste Joe LABAT | E14: 0 | F14: 0
D15: =CONCATENATE("Liste ",RESULTATS!AC$9," ",RESULTATS!AC$10) -> Liste Claire ROCHER | E15: 10 | F15: 0.02732240437
D16: =CONCATENATE("Liste ",RESULTATS!AG$9," ",RESULTATS!AG$10) -> Liste Christian D'ANDLAU-HOMBOURG | E16: 1 | F16: 0.002732240437
D17: =CONCATENATE("Liste ",RESULTATS!AK$9," ",RESULTATS!AK$10) -> Liste Edouard MARTIN | E17: 58 | F17: 0.1584699454
D18: =CONCATENATE("Liste ",RESULTATS!AO$9," ",RESULTATS!AO$10) -> Liste Gaël DIAFERIA | E18: 0 | F18: 0
D19: =CONCATENATE("Liste ",RESULTATS!AS$9," ",RESULTATS!AS$10) -> Liste Nathalie GRIESBECK | E19: 31 | F19: 0.08469945355
D20: =CONCATENATE("Liste ",RESULTATS!AW$9," ",RESULTATS!AW$10) -> Liste Julien GONZALEZ | E20: 7 | F20: 0.01912568306
D21: =CONCATENATE("Liste ",RESULTATS!BA$9," ",RESULTATS!BA$10) -> Liste Philippe COUKA | E21: 0 | F21: 0
D22: =CONCATENATE("Liste ",RESULTATS!BE$9," ",RESULTATS!BE$10) -> Liste Antoine RENARD | E22: 2 | F22: 0.005464480874
D23: =CONCATENATE("Liste ",RESULTATS!BI$9," ",RESULTATS!BI$10) -> Liste Geneviève MARTIN | E23: 1 | F23: 0.002732240437
D24: =CONCATENATE("Liste ",RESULTATS!BM$9," ",RESULTATS!BM$10) -> Liste Isabelle VÉRIN | E24: 0 | F24: 0
D25: =CONCATENATE("Liste ",RESULTATS!U$59," ",RESULTATS!U$60) -> Liste Xavier DESSAIGNE | E25: 1 | F25: 0.002732240437
D26: =CONCATENATE("Liste ",RESULTATS!Y$59," ",RESULTATS!Y$60) -> Liste Sandrine PICO | E26: 0 | F26: 0
D27: =CONCATENATE("Liste ",RESULTATS!AC$59," ",RESULTATS!AC$60) -> Liste Florian PHILIPPOT | E27: 103 | F27: 0.281420765
D28: =CONCATENATE("Liste ",RESULTATS!AG$59," ",RESULTATS!AG$60) -> Liste Sandrine BELIER | E28: 25 | F28: 0.06830601093
D29: =CONCATENATE("Liste ",RESULTATS!AK$59," ",RESULTATS!AK$60) -> Liste Ismaël BOUDJEKADA | E29: 0 | F29: 0
D30: =CONCATENATE("Liste ",RESULTATS!AO$59," ",RESULTATS!AO$60) -> Liste Laure FERRARI | E30: 12 | F30: 0.03278688525
D31: =CONCATENATE("Liste ",RESULTATS!AS$59," ",RESULTATS!AS$60) -> Liste Antonio SANCHEZ | E31: 0 | F31: 0
D32: =CONCATENATE("Liste ",RESULTATS!AW$59," ",RESULTATS!AW$60) -> Liste Isabelle MAURER | E32: 11 | F32: =IF(E$12=0,0,E32/E$12) -> 0.03005464481
D33: =CONCATENATE("Liste ",RESULTATS!BA$59," ",RESULTATS!BA$60) -> Liste Yannick HERVE | E33: 1 | F33: =IF(E$12=0,0,E33/E$12) -> 0.002732240437
D34: =CONCATENATE("Liste ",RESULTATS!BE$59," ",RESULTATS!BE$60) -> Liste Gabriel AMARD | E34: 22 | F34: =IF(E$12=0,0,E34/E$12) -> 0.06010928962
D35: =CONCATENATE("Liste ",RESULTATS!BI$59," ",RESULTATS!BI$60) -> Liste Florence LHOTE | E35: 0 | F35: =IF(E$12=0,0,E35/E$12) -> 0
E36: =IF(SUM(E13:E35)<>E12,"!!! FAUX","") -> 
D37: TOTAL : | E37: =SUM(E13:E35) -> 366
F39: (1) Votants / Inscrits
F40: (2) Nuls / Votants
F41: (3) Exprimés / Inscrits
F42: (4) Score / Exprimés

Sheet F1
A3: F1 | B3: - | C3: MAISON DE L'ENFANT (Rue Salvador Allendé)
D7: INSCRITS | E7: 768 | F7: %
D8: Émargements | E8: 331
D9: Votants (participation) | E9: 331 | F9: =IF($E$7=0,0,E9/$E$7) -> 0.4309895833 | G9: (1)
D10: Blancs | E10: 4 | F10: =IF($E$9=0,0,E10/$E$9) -> 0.01208459215 | G10: (2)
D11: Nuls | E11: 9 | F11: =IF($E$9=0,0,E11/$E$9) -> 0.02719033233 | G11: (2)
D12: Exprimés | E12: 318 | F12: =IF($E$7=0,0,E12/$E$7) -> 0.4140625 | G12: (3)
D13: =CONCATENATE("Liste ",RESULTATS!U$9," ",RESULTATS!U$10) -> Liste Nadine MORANO | E13: 72 | F13: =IF(E$12=0,0,E13/E$12) -> 0.2264150943 | G13: (4)
D14: =CONCATENATE("Liste ",RESULTATS!Y$9," ",RESULTATS!Y$10) -> Liste Joe LABAT | E14: 0 | F14: 0
D15: =CONCATENATE("Liste ",RESULTATS!AC$9," ",RESULTATS!AC$10) -> Liste Claire ROCHER | E15: 9 | F15: 0.02830188679
D16: =CONCATENATE("Liste ",RESULTATS!AG$9," ",RESULTATS!AG$10) -> Liste Christian D'ANDLAU-HOMBOURG | E16: 0 | F16: 0
D17: =CONCATENATE("Liste ",RESULTATS!AK$9," ",RESULTATS!AK$10) -> Liste Edouard MARTIN | E17: 48 | F17: 0.1509433962
D18: =CONCATENATE("Liste ",RESULTATS!AO$9," ",RESULTATS!AO$10) -> Liste Gaël DIAFERIA | E18: 3 | F18: 0.009433962264
D19: =CONCATENATE("Liste ",RESULTATS!AS$9," ",RESULTATS!AS$10) -> Liste Nathalie GRIESBECK | E19: 37 | F19: 0.1163522013
D20: =CONCATENATE("Liste ",RESULTATS!AW$9," ",RESULTATS!AW$10) -> Liste Julien GONZALEZ | E20: 12 | F20: 0.03773584906
D21: =CONCATENATE("Liste ",RESULTATS!BA$9," ",RESULTATS!BA$10) -> Liste Philippe COUKA | E21: 0 | F21: 0
D22: =CONCATENATE("Liste ",RESULTATS!BE$9," ",RESULTATS!BE$10) -> Liste Antoine RENARD | E22: 1 | F22: 0.003144654088
D23: =CONCATENATE("Liste ",RESULTATS!BI$9," ",RESULTATS!BI$10) -> Liste Geneviève MARTIN | E23: 0 | F23: 0
D24: =CONCATENATE("Liste ",RESULTATS!BM$9," ",RESULTATS!BM$10) -> Liste Isabelle VÉRIN | E24: 2 | F24: 0.006289308176
D25: =CONCATENATE("Liste ",RESULTATS!U$59," ",RESULTATS!U$60) -> Liste Xavier DESSAIGNE | E25: 2 | F25: 0.006289308176
D26: =CONCATENATE("Liste ",RESULTATS!Y$59," ",RESULTATS!Y$60) -> Liste Sandrine PICO | E26: 0 | F26: 0
D27: =CONCATENATE("Liste ",RESULTATS!AC$59," ",RESULTATS!AC$60) -> Liste Florian PHILIPPOT | E27: 66 | F27: 0.2075471698
D28: =CONCATENATE("Liste ",RESULTATS!AG$59," ",RESULTATS!AG$60) -> Liste Sandrine BELIER | E28: 21 | F28: 0.06603773585
D29: =CONCATENATE("Liste ",RESULTATS!AK$59," ",RESULTATS!AK$60) -> Liste Ismaël BOUDJEKADA | E29: 0 | F29: 0
D30: =CONCATENATE("Liste ",RESULTATS!AO$59," ",RESULTATS!AO$60) -> Liste Laure FERRARI | E30: 8 | F30: 0.0251572327
D31: =CONCATENATE("Liste ",RESULTATS!AS$59," ",RESULTATS!AS$60) -> Liste Antonio SANCHEZ | E31: 0 | F31: 0
D32: =CONCATENATE("Liste ",RESULTATS!AW$59," ",RESULTATS!AW$60) -> Liste Isabelle MAURER | E32: 10 | F32: =IF(E$12=0,0,E32/E$12) -> 0.03144654088
D33: =CONCATENATE("Liste ",RESULTATS!BA$59," ",RESULTATS!BA$60) -> Liste Yannick HERVE | E33: 2 | F33: =IF(E$12=0,0,E33/E$12) -> 0.006289308176
D34: =CONCATENATE("Liste ",RESULTATS!BE$59," ",RESULTATS!BE$60) -> Liste Gabriel AMARD | E34: 25 | F34: =IF(E$12=0,0,E34/E$12) -> 0.0786163522
D35: =CONCATENATE("Liste ",RESULTATS!BI$59," ",RESULTATS!BI$60) -> Liste Florence LHOTE | E35: 0 | F35: =IF(E$12=0,0,E35/E$12) -> 0
E36: =IF(SUM(E13:E35)<>E12,"!!! FAUX","") -> 
D37: TOTAL : | E37: =SUM(E13:E35) -> 318
F39: (1) Votants / Inscrits
F40: (2) Nuls / Votants
F41: (3) Exprimés / Inscrits
F42: (4) Score / Exprimés

Sheet F2
A3: F2 | B3: - | C3: GROUPE SCOLAIRE ÉMILE GEHANT (Avenue des Frères Lumière)
D7: INSCRITS | E7: 516 | F7: %
D8: Émargements | E8: 224
D9: Votants (participation) | E9: 224 | F9: =IF($E$7=0,0,E9/$E$7) -> 0.4341085271 | G9: (1)
D10: Blancs | E10: 6 | F10: =IF($E$9=0,0,E10/$E$9) -> 0.02678571429 | G10: (2)
D11: Nuls | E11: 3 | F11: =IF($E$9=0,0,E11/$E$9) -> 0.01339285714 | G11: (2)
D12: Exprimés | E12: 215 | F12: =IF($E$7=0,0,E12/$E$7) -> 0.4166666667 | G12: (3)
D13: =CONCATENATE("Liste ",RESULTATS!U$9," ",RESULTATS!U$10) -> Liste Nadine MORANO | E13: 27 | F13: =IF(E$12=0,0,E13/E$12) -> 0.1255813953 | G13: (4)
D14: =CONCATENATE("Liste ",RESULTATS!Y$9," ",RESULTATS!Y$10) -> Liste Joe LABAT | E14: 0 | F14: 0
D15: =CONCATENATE("Liste ",RESULTATS!AC$9," ",RESULTATS!AC$10) -> Liste Claire ROCHER | E15: 6 | F15: 0.02790697674
D16: =CONCATENATE("Liste ",RESULTATS!AG$9," ",RESULTATS!AG$10) -> Liste Christian D'ANDLAU-HOMBOURG | E16: 0 | F16: 0
D17: =CONCATENATE("Liste ",RESULTATS!AK$9," ",RESULTATS!AK$10) -> Liste Edouard MARTIN | E17: 25 | F17: 0.1162790698
D18: =CONCATENATE("Liste ",RESULTATS!AO$9," ",RESULTATS!AO$10) -> Liste Gaël DIAFERIA | E18: 0 | F18: 0
D19: =CONCATENATE("Liste ",RESULTATS!AS$9," ",RESULTATS!AS$10) -> Liste Nathalie GRIESBECK | E19: 13 | F19: 0.06046511628
D20: =CONCATENATE("Liste ",RESULTATS!AW$9," ",RESULTATS!AW$10) -> Liste Julien GONZALEZ | E20: 11 | F20: 0.0511627907
D21: =CONCATENATE("Liste ",RESULTATS!BA$9," ",RESULTATS!BA$10) -> Liste Philippe COUKA | E21: 0 | F21: 0
D22: =CONCATENATE("Liste ",RESULTATS!BE$9," ",RESULTATS!BE$10) -> Liste Antoine RENARD | E22: 0 | F22: 0
D23: =CONCATENATE("Liste ",RESULTATS!BI$9," ",RESULTATS!BI$10) -> Liste Geneviève MARTIN | E23: 1 | F23: 0.004651162791
D24: =CONCATENATE("Liste ",RESULTATS!BM$9," ",RESULTATS!BM$10) -> Liste Isabelle VÉRIN | E24: 1 | F24: 0.004651162791
D25: =CONCATENATE("Liste ",RESULTATS!U$59," ",RESULTATS!U$60) -> Liste Xavier DESSAIGNE | E25: 1 | F25: 0.004651162791
D26: =CONCATENATE("Liste ",RESULTATS!Y$59," ",RESULTATS!Y$60) -> Liste Sandrine PICO | E26: 0 | F26: 0
D27: =CONCATENATE("Liste ",RESULTATS!AC$59," ",RESULTATS!AC$60) -> Liste Florian PHILIPPOT | E27: 71 | F27: 0.3302325581
D28: =CONCATENATE("Liste ",RESULTATS!AG$59," ",RESULTATS!AG$60) -> Liste Sandrine BELIER | E28: 22 | F28: 0.1023255814
D29: =CONCATENATE("Liste ",RESULTATS!AK$59," ",RESULTATS!AK$60) -> Liste Ismaël BOUDJEKADA | E29: 0 | F29: 0
D30: =CONCATENATE("Liste ",RESULTATS!AO$59," ",RESULTATS!AO$60) -> Liste Laure FERRARI | E30: 4 | F30: 0.01860465116
D31: =CONCATENATE("Liste ",RESULTATS!AS$59," ",RESULTATS!AS$60) -> Liste Antonio SANCHEZ | E31: 0 | F31: 0
D32: =CONCATENATE("Liste ",RESULTATS!AW$59," ",RESULTATS!AW$60) -> Liste Isabelle MAURER | E32: 2 | F32: =IF(E$12=0,0,E32/E$12) -> 0.009302325581
D33: =CONCATENATE("Liste ",RESULTATS!BA$59," ",RESULTATS!BA$60) -> Liste Yannick HERVE | E33: 3 | F33: =IF(E$12=0,0,E33/E$12) -> 0.01395348837
D34: =CONCATENATE("Liste ",RESULTATS!BE$59," ",RESULTATS!BE$60) -> Liste Gabriel AMARD | E34: 27 | F34: =IF(E$12=0,0,E34/E$12) -> 0.1255813953
D35: =CONCATENATE("Liste ",RESULTATS!BI$59," ",RESULTATS!BI$60) -> Liste Florence LHOTE | E35: 1 | F35: =IF(E$12=0,0,E35/E$12) -> 0.004651162791
E36: =IF(SUM(E13:E35)<>E12,"!!! FAUX","") -> 
D37: TOTAL : | E37: =SUM(E13:E35) -> 215
F39: (1) Votants / Inscrits
F40: (2) Nuls / Votants
F41: (3) Exprimés / Inscrits
F42: (4) Score / Exprimés

Sheet G1
A3: G1 | B3: - | C3: GROUPE SCOLAIRE HUBERT METZGER (La Pépinière - Rue Cuvier)
D7: INSCRITS | E7: 650 | F7: %
D8: Émargements | E8: 266
D9: Votants (participation) | E9: 266 | F9: =IF($E$7=0,0,E9/$E$7) -> 0.4092307692 | G9: (1)
D10: Blancs | E10: 7 | F10: =IF($E$9=0,0,E10/$E$9) -> 0.02631578947 | G10: (2)
D11: Nuls | E11: 7 | F11: =IF($E$9=0,0,E11/$E$9) -> 0.02631578947 | G11: (2)
D12: Exprimés | E12: 252 | F12: =IF($E$7=0,0,E12/$E$7) -> 0.3876923077 | G12: (3)
D13: =CONCATENATE("Liste ",RESULTATS!U$9," ",RESULTATS!U$10) -> Liste Nadine MORANO | E13: 31 | F13: =IF(E$12=0,0,E13/E$12) -> 0.123015873 | G13: (4)
D14: =CONCATENATE("Liste ",RESULTATS!Y$9," ",RESULTATS!Y$10) -> Liste Joe LABAT | E14: 1 | F14: 0.003968253968
D15: =CONCATENATE("Liste ",RESULTATS!AC$9," ",RESULTATS!AC$10) -> Liste Claire ROCHER | E15: 5 | F15: 0.01984126984
D16: =CONCATENATE("Liste ",RESULTATS!AG$9," ",RESULTATS!AG$10) -> Liste Christian D'ANDLAU-HOMBOURG | E16: 0 | F16: 0
D17: =CONCATENATE("Liste ",RESULTATS!AK$9," ",RESULTATS!AK$10) -> Liste Edouard MARTIN | E17: 29 | F17: 0.1150793651
D18: =CONCATENATE("Liste ",RESULTATS!AO$9," ",RESULTATS!AO$10) -> Liste Gaël DIAFERIA | E18: 1 | F18: 0.003968253968
D19: =CONCATENATE("Liste ",RESULTATS!AS$9," ",RESULTATS!AS$10) -> Liste Nathalie GRIESBECK | E19: 31 | F19: 0.123015873
D20: =CONCATENATE("Liste ",RESULTATS!AW$9," ",RESULTATS!AW$10) -> Liste Julien GONZALEZ | E20: 7 | F20: 0.02777777778
D21: =CONCATENATE("Liste ",RESULTATS!BA$9," ",RESULTATS!BA$10) -> Liste Philippe COUKA | E21: 0 | F21: 0
D22: =CONCATENATE("Liste ",RESULTATS!BE$9," ",RESULTATS!BE$10) -> Liste Antoine RENARD | E22: 3 | F22: 0.0119047619
D23: =CONCATENATE("Liste ",RESULTATS!BI$9," ",RESULTATS!BI$10) -> Liste Geneviève MARTIN | E23: 0 | F23: 0
D24: =CONCATENATE("Liste ",RESULTATS!BM$9," ",RESULTATS!BM$10) -> Liste Isabelle VÉRIN | E24: 0 | F24: 0
D25: =CONCATENATE("Liste ",RESULTATS!U$59," ",RESULTATS!U$60) -> Liste Xavier DESSAIGNE | E25: 1 | F25: 0.003968253968
D26: =CONCATENATE("Liste ",RESULTATS!Y$59," ",RESULTATS!Y$60) -> Liste Sandrine PICO | E26: 0 | F26: 0
D27: =CONCATENATE("Liste ",RESULTATS!AC$59," ",RESULTATS!AC$60) -> Liste Florian PHILIPPOT | E27: 67 | F27: 0.2658730159
D28: =CONCATENATE("Liste ",RESULTATS!AG$59," ",RESULTATS!AG$60) -> Liste Sandrine BELIER | E28: 29 | F28: 0.1150793651
D29: =CONCATENATE("Liste ",RESULTATS!AK$59," ",RESULTATS!AK$60) -> Liste Ismaël BOUDJEKADA | E29: 0 | F29: 0
D30: =CONCATENATE("Liste ",RESULTATS!AO$59," ",RESULTATS!AO$60) -> Liste Laure FERRARI | E30: 7 | F30: 0.02777777778
D31: =CONCATENATE("Liste ",RESULTATS!AS$59," ",RESULTATS!AS$60) -> Liste Antonio SANCHEZ | E31: 0 | F31: 0
D32: =CONCATENATE("Liste ",RESULTATS!AW$59," ",RESULTATS!AW$60) -> Liste Isabelle MAURER | E32: 4 | F32: =IF(E$12=0,0,E32/E$12) -> 0.01587301587
D33: =CONCATENATE("Liste ",RESULTATS!BA$59," ",RESULTATS!BA$60) -> Liste Yannick HERVE | E33: 4 | F33: =IF(E$12=0,0,E33/E$12) -> 0.01587301587
D34: =CONCATENATE("Liste ",RESULTATS!BE$59," ",RESULTATS!BE$60) -> Liste Gabriel AMARD | E34: 31 | F34: =IF(E$12=0,0,E34/E$12) -> 0.123015873
D35: =CONCATENATE("Liste ",RESULTATS!BI$59," ",RESULTATS!BI$60) -> Liste Florence LHOTE | E35: 1 | F35: =IF(E$12=0,0,E35/E$12) -> 0.003968253968
E36: =IF(SUM(E13:E35)<>E12,"!!! FAUX","") -> 
D37: TOTAL : | E37: =SUM(E13:E35) -> 252
F39: (1) Votants / Inscrits
F40: (2) Nuls / Votants
F41: (3) Exprimés / Inscrits
F42: (4) Score / Exprimés

Sheet G2
A3: G2 | B3: - | C3: GROUPE SCOLAIRE HUBERT METZGER (La Pépinière - Rue Claude Bernard)
D7: INSCRITS | E7: 753 | F7: %
D8: Émargements | E8: 250
D9: Votants (participation) | E9: 250 | F9: =IF($E$7=0,0,E9/$E$7) -> 0.3320053121 | G9: (1)
D10: Blancs | E10: 7 | F10: =IF($E$9=0,0,E10/$E$9) -> 0.028 | G10: (2)
D11: Nuls | E11: 6 | F11: =IF($E$9=0,0,E11/$E$9) -> 0.024 | G11: (2)
D12: Exprimés | E12: 237 | F12: =IF($E$7=0,0,E12/$E$7) -> 0.3147410359 | G12: (3)
D13: =CONCATENATE("Liste ",RESULTATS!U$9," ",RESULTATS!U$10) -> Liste Nadine MORANO | E13: 41 | F13: =IF(E$12=0,0,E13/E$12) -> 0.1729957806 | G13: (4)
D14: =CONCATENATE("Liste ",RESULTATS!Y$9," ",RESULTATS!Y$10) -> Liste Joe LABAT | E14: 0 | F14: 0
D15: =CONCATENATE("Liste ",RESULTATS!AC$9," ",RESULTATS!AC$10) -> Liste Claire ROCHER | E15: 2 | F15: 0.008438818565
D16: =CONCATENATE("Liste ",RESULTATS!AG$9," ",RESULTATS!AG$10) -> Liste Christian D'ANDLAU-HOMBOURG | E16: 2 | F16: 0.008438818565
D17: =CONCATENATE("Liste ",RESULTATS!AK$9," ",RESULTATS!AK$10) -> Liste Edouard MARTIN | E17: 49 | F17: 0.2067510549
D18: =CONCATENATE("Liste ",RESULTATS!AO$9," ",RESULTATS!AO$10) -> Liste Gaël DIAFERIA | E18: 0 | F18: 0
D19: =CONCATENATE("Liste ",RESULTATS!AS$9," ",RESULTATS!AS$10) -> Liste Nathalie GRIESBECK | E19: 14 | F19: 0.05907172996
D20: =CONCATENATE("Liste ",RESULTATS!AW$9," ",RESULTATS!AW$10) -> Liste Julien GONZALEZ | E20: 4 | F20: 0.01687763713
D21: =CONCATENATE("Liste ",RESULTATS!BA$9," ",RESULTATS!BA$10) -> Liste Philippe COUKA | E21: 0 | F21: 0
D22: =CONCATENATE("Liste ",RESULTATS!BE$9," ",RESULTATS!BE$10) -> Liste Antoine RENARD | E22: 1 | F22: 0.004219409283
D23: =CONCATENATE("Liste ",RESULTATS!BI$9," ",RESULTATS!BI$10) -> Liste Geneviève MARTIN | E23: 0 | F23: 0
D24: =CONCATENATE("Liste ",RESULTATS!BM$9," ",RESULTATS!BM$10) -> Liste Isabelle VÉRIN | E24: 2 | F24: 0.008438818565
D25: =CONCATENATE("Liste ",RESULTATS!U$59," ",RESULTATS!U$60) -> Liste Xavier DESSAIGNE | E25: 0 | F25: 0
D26: =CONCATENATE("Liste ",RESULTATS!Y$59," ",RESULTATS!Y$60) -> Liste Sandrine PICO | E26: 0 | F26: 0
D27: =CONCATENATE("Liste ",RESULTATS!AC$59," ",RESULTATS!AC$60) -> Liste Florian PHILIPPOT | E27: 75 | F27: 0.3164556962
D28: =CONCATENATE("Liste ",RESULTATS!AG$59," ",RESULTATS!AG$60) -> Liste Sandrine BELIER | E28: 11 | F28: 0.04641350211
D29: =CONCATENATE("Liste ",RESULTATS!AK$59," ",RESULTATS!AK$60) -> Liste Ismaël BOUDJEKADA | E29: 0 | F29: 0
D30: =CONCATENATE("Liste ",RESULTATS!AO$59," ",RESULTATS!AO$60) -> Liste Laure FERRARI | E30: 4 | F30: 0.01687763713
D31: =CONCATENATE("Liste ",RESULTATS!AS$59," ",RESULTATS!AS$60) -> Liste Antonio SANCHEZ | E31: 0 | F31: 0
D32: =CONCATENATE("Liste ",RESULTATS!AW$59," ",RESULTATS!AW$60) -> Liste Isabelle MAURER | E32: 9 | F32: =IF(E$12=0,0,E32/E$12) -> 0.03797468354
D33: =CONCATENATE("Liste ",RESULTATS!BA$59," ",RESULTATS!BA$60) -> Liste Yannick HERVE | E33: 1 | F33: =IF(E$12=0,0,E33/E$12) -> 0.004219409283
D34: =CONCATENATE("Liste ",RESULTATS!BE$59," ",RESULTATS!BE$60) -> Liste Gabriel AMARD | E34: 22 | F34: =IF(E$12=0,0,E34/E$12) -> 0.09282700422
D35: =CONCATENATE("Liste ",RESULTATS!BI$59," ",RESULTATS!BI$60) -> Liste Florence LHOTE | E35: 0 | F35: =IF(E$12=0,0,E35/E$12) -> 0
E36: =IF(SUM(E13:E35)<>E12,"!!! FAUX","") -> 
D37: TOTAL : | E37: =SUM(E13:E35) -> 237
F39: (1) Votants / Inscrits
F40: (2) Nuls / Votants
F41: (3) Exprimés / Inscrits
F42: (4) Score / Exprimés

Sheet H1
A3: H1 | B3: - | C3: ANNEXE DU COLLÈGE LÉONARD DE VINCI (Faubourg de Lyon)
D7: INSCRITS | E7: 1037 | F7: %
D8: Émargements | E8: 377
D9: Votants (participation) | E9: 377 | F9: =IF($E$7=0,0,E9/$E$7) -> 0.3635486982 | G9: (1)
D10: Blancs | E10: 7 | F10: =IF($E$9=0,0,E10/$E$9) -> 0.01856763926 | G10: (2)
D11: Nuls | E11: 5 | F11: =IF($E$9=0,0,E11/$E$9) -> 0.01326259947 | G11: (2)
D12: Exprimés | E12: 365 | F12: =IF($E$7=0,0,E12/$E$7) -> 0.3519768563 | G12: (3)
D13: =CONCATENATE("Liste ",RESULTATS!U$9," ",RESULTATS!U$10) -> Liste Nadine MORANO | E13: 87 | F13: =IF(E$12=0,0,E13/E$12) -> 0.2383561644 | G13: (4)
D14: =CONCATENATE("Liste ",RESULTATS!Y$9," ",RESULTATS!Y$10) -> Liste Joe LABAT | E14: 0 | F14: 0
D15: =CONCATENATE("Liste ",RESULTATS!AC$9," ",RESULTATS!AC$10) -> Liste Claire ROCHER | E15: 9 | F15: 0.02465753425
D16: =CONCATENATE("Liste ",RESULTATS!AG$9," ",RESULTATS!AG$10) -> Liste Christian D'ANDLAU-HOMBOURG | E16: 1 | F16: 0.002739726027
D17: =CONCATENATE("Liste ",RESULTATS!AK$9," ",RESULTATS!AK$10) -> Liste Edouard MARTIN | E17: 54 | F17: 0.1479452055
D18: =CONCATENATE("Liste ",RESULTATS!AO$9," ",RESULTATS!AO$10) -> Liste Gaël DIAFERIA | E18: 4 | F18: 0.01095890411
D19: =CONCATENATE("Liste ",RESULTATS!AS$9," ",RESULTATS!AS$10) -> Liste Nathalie GRIESBECK | E19: 29 | F19: 0.07945205479
D20: =CONCATENATE("Liste ",RESULTATS!AW$9," ",RESULTATS!AW$10) -> Liste Julien GONZALEZ | E20: 3 | F20: 0.008219178082
D21: =CONCATENATE("Liste ",RESULTATS!BA$9," ",RESULTATS!BA$10) -> Liste Philippe COUKA | E21: 0 | F21: 0
D22: =CONCATENATE("Liste ",RESULTATS!BE$9," ",RESULTATS!BE$10) -> Liste Antoine RENARD | E22: 1 | F22: 0.002739726027
D23: =CONCATENATE("Liste ",RESULTATS!BI$9," ",RESULTATS!BI$10) -> Liste Geneviève MARTIN | E23: 0 | F23: 0
D24: =CONCATENATE("Liste ",RESULTATS!BM$9," ",RESULTATS!BM$10) -> Liste Isabelle VÉRIN | E24: 0 | F24: 0
D25: =CONCATENATE("Liste ",RESULTATS!U$59," ",RESULTATS!U$60) -> Liste Xavier DESSAIGNE | E25: 5 | F25: 0.01369863014
D26: =CONCATENATE("Liste ",RESULTATS!Y$59," ",RESULTATS!Y$60) -> Liste Sandrine PICO | E26: 0 | F26: 0
D27: =CONCATENATE("Liste ",RESULTATS!AC$59," ",RESULTATS!AC$60) -> Liste Florian PHILIPPOT | E27: 96 | F27: 0.2630136986
D28: =CONCATENATE("Liste ",RESULTATS!AG$59," ",RESULTATS!AG$60) -> Liste Sandrine BELIER | E28: 30 | F28: 0.08219178082
D29: =CONCATENATE("Liste ",RESULTATS!AK$59," ",RESULTATS!AK$60) -> Liste Ismaël BOUDJEKADA | E29: 0 | F29: 0
D30: =CONCATENATE("Liste ",RESULTATS!AO$59," ",RESULTATS!AO$60) -> Liste Laure FERRARI | E30: 11 | F30: 0.0301369863
D31: =CONCATENATE("Liste ",RESULTATS!AS$59," ",RESULTATS!AS$60) -> Liste Antonio SANCHEZ | E31: 0 | F31: 0
D32: =CONCATENATE("Liste ",RESULTATS!AW$59," ",RESULTATS!AW$60) -> Liste Isabelle MAURER | E32: 8 | F32: =IF(E$12=0,0,E32/E$12) -> 0.02191780822
D33: =CONCATENATE("Liste ",RESULTATS!BA$59," ",RESULTATS!BA$60) -> Liste Yannick HERVE | E33: 1 | F33: =IF(E$12=0,0,E33/E$12) -> 0.002739726027
D34: =CONCATENATE("Liste ",RESULTATS!BE$59," ",RESULTATS!BE$60) -> Liste Gabriel AMARD | E34: 26 | F34: =IF(E$12=0,0,E34/E$12) -> 0.07123287671
D35: =CONCATENATE("Liste ",RESULTATS!BI$59," ",RESULTATS!BI$60) -> Liste Florence LHOTE | E35: 0 | F35: =IF(E$12=0,0,E35/E$12) -> 0
E36: =IF(SUM(E13:E35)<>E12,"!!! FAUX","") -> 
D37: TOTAL : | E37: =SUM(E13:E35) -> 365
F39: (1) Votants / Inscrits
F40: (2) Nuls / Votants
F41: (3) Exprimés / Inscrits
F42: (4) Score / Exprimés

Sheet J1
A3: J1 | B3: - | C3: GROUPE SCOLAIRE RENÉ RÜCKLIN (Rue Braille)
D7: INSCRITS | E7: 591 | F7: %
D8: Émargements | E8: 179
D9: Votants (participation) | E9: 179 | F9: =IF($E$7=0,0,E9/$E$7) -> 0.3028764805 | G9: (1)
D10: Blancs | E10: 8 | F10: =IF($E$9=0,0,E10/$E$9) -> 0.04469273743 | G10: (2)
D11: Nuls | E11: 7 | F11: =IF($E$9=0,0,E11/$E$9) -> 0.03910614525 | G11: (2)
D12: Exprimés | E12: 164 | F12: =IF($E$7=0,0,E12/$E$7) -> 0.2774957699 | G12: (3)
D13: =CONCATENATE("Liste ",RESULTATS!U$9," ",RESULTATS!U$10) -> Liste Nadine MORANO | E13: 23 | F13: =IF(E$12=0,0,E13/E$12) -> 0.1402439024 | G13: (4)
D14: =CONCATENATE("Liste ",RESULTATS!Y$9," ",RESULTATS!Y$10) -> Liste Joe LABAT | E14: 0 | F14: 0
D15: =CONCATENATE("Liste ",RESULTATS!AC$9," ",RESULTATS!AC$10) -> Liste Claire ROCHER | E15: 7 | F15: 0.04268292683
D16: =CONCATENATE("Liste ",RESULTATS!AG$9," ",RESULTATS!AG$10) -> Liste Christian D'ANDLAU-HOMBOURG | E16: 1 | F16: 0.006097560976
D17: =CONCATENATE("Liste ",RESULTATS!AK$9," ",RESULTATS!AK$10) -> Liste Edouard MARTIN | E17: 21 | F17: 0.1280487805
D18: =CONCATENATE("Liste ",RESULTATS!AO$9," ",RESULTATS!AO$10) -> Liste Gaël DIAFERIA | E18: 0 | F18: 0
D19: =CONCATENATE("Liste ",RESULTATS!AS$9," ",RESULTATS!AS$10) -> Liste Nathalie GRIESBECK | E19: 10 | F19: 0.06097560976
D20: =CONCATENATE("Liste ",RESULTATS!AW$9," ",RESULTATS!AW$10) -> Liste Julien GONZALEZ | E20: 1 | F20: 0.006097560976
D21: =CONCATENATE("Liste ",RESULTATS!BA$9," ",RESULTATS!BA$10) -> Liste Philippe COUKA | E21: 0 | F21: 0
D22: =CONCATENATE("Liste ",RESULTATS!BE$9," ",RESULTATS!BE$10) -> Liste Antoine RENARD | E22: 1 | F22: 0.006097560976
D23: =CONCATENATE("Liste ",RESULTATS!BI$9," ",RESULTATS!BI$10) -> Liste Geneviève MARTIN | E23: 1 | F23: 0.006097560976
D24: =CONCATENATE("Liste ",RESULTATS!BM$9," ",RESULTATS!BM$10) -> Liste Isabelle VÉRIN | E24: 1 | F24: 0.006097560976
D25: =CONCATENATE("Liste ",RESULTATS!U$59," ",RESULTATS!U$60) -> Liste Xavier DESSAIGNE | E25: 1 | F25: 0.006097560976
D26: =CONCATENATE("Liste ",RESULTATS!Y$59," ",RESULTATS!Y$60) -> Liste Sandrine PICO | E26: 0 | F26: 0
D27: =CONCATENATE("Liste ",RESULTATS!AC$59," ",RESULTATS!AC$60) -> Liste Florian PHILIPPOT | E27: 66 | F27: 0.4024390244
D28: =CONCATENATE("Liste ",RESULTATS!AG$59," ",RESULTATS!AG$60) -> Liste Sandrine BELIER | E28: 8 | F28: 0.0487804878
D29: =CONCATENATE("Liste ",RESULTATS!AK$59," ",RESULTATS!AK$60) -> Liste Ismaël BOUDJEKADA | E29: 0 | F29: 0
D30: =CONCATENATE("Liste ",RESULTATS!AO$59," ",RESULTATS!AO$60) -> Liste Laure FERRARI | E30: 5 | F30: 0.03048780488
D31: =CONCATENATE("Liste ",RESULTATS!AS$59," ",RESULTATS!AS$60) -> Liste Antonio SANCHEZ | E31: 0 | F31: 0
D32: =CONCATENATE("Liste ",RESULTATS!AW$59," ",RESULTATS!AW$60) -> Liste Isabelle MAURER | E32: 2 | F32: =IF(E$12=0,0,E32/E$12) -> 0.01219512195
D33: =CONCATENATE("Liste ",RESULTATS!BA$59," ",RESULTATS!BA$60) -> Liste Yannick HERVE | E33: 4 | F33: =IF(E$12=0,0,E33/E$12) -> 0.0243902439
D34: =CONCATENATE("Liste ",RESULTATS!BE$59," ",RESULTATS!BE$60) -> Liste Gabriel AMARD | E34: 12 | F34: =IF(E$12=0,0,E34/E$12) -> 0.07317073171
D35: =CONCATENATE("Liste ",RESULTATS!BI$59," ",RESULTATS!BI$60) -> Liste Florence LHOTE | E35: 0 | F35: =IF(E$12=0,0,E35/E$12) -> 0
E36: =IF(SUM(E13:E35)<>E12,"!!! FAUX","") -> 
D37: TOTAL : | E37: =SUM(E13:E35) -> 164
F39: (1) Votants / Inscrits
F40: (2) Nuls / Votants
F41: (3) Exprimés / Inscrits
F42: (4) Score / Exprimés

Sheet J2
A3: J2 | B3: - | C3: GROUPE SCOLAIRE RENÉ RÜCKLIN (Rue Braille)
D7: INSCRITS | E7: 813 | F7: %
D8: Émargements | E8: 244
D9: Votants (participation) | E9: 244 | F9: =IF($E$7=0,0,E9/$E$7) -> 0.3001230012 | G9: (1)
D10: Blancs | E10: 6 | F10: =IF($E$9=0,0,E10/$E$9) -> 0.02459016393 | G10: (2)
D11: Nuls | E11: 1 | F11: =IF($E$9=0,0,E11/$E$9) -> 0.004098360656 | G11: (2)
D12: Exprimés | E12: 237 | F12: =IF($E$7=0,0,E12/$E$7) -> 0.2915129151 | G12: (3)
D13: =CONCATENATE("Liste ",RESULTATS!U$9," ",RESULTATS!U$10) -> Liste Nadine MORANO | E13: 54 | F13: =IF(E$12=0,0,E13/E$12) -> 0.2278481013 | G13: (4)
D14: =CONCATENATE("Liste ",RESULTATS!Y$9," ",RESULTATS!Y$10) -> Liste Joe LABAT | E14: 0 | F14: 0
D15: =CONCATENATE("Liste ",RESULTATS!AC$9," ",RESULTATS!AC$10) -> Liste Claire ROCHER | E15: 10 | F15: 0.04219409283
D16: =CONCATENATE("Liste ",RESULTATS!AG$9," ",RESULTATS!AG$10) -> Liste Christian D'ANDLAU-HOMBOURG | E16: 0 | F16: 0
D17: =CONCATENATE("Liste ",RESULTATS!AK$9," ",RESULTATS!AK$10) -> Liste Edouard MARTIN | E17: 34 | F17: 0.1434599156
D18: =CONCATENATE("Liste ",RESULTATS!AO$9," ",RESULTATS!AO$10) -> Liste Gaël DIAFERIA | E18: 0 | F18: 0
D19: =CONCATENATE("Liste ",RESULTATS!AS$9," ",RESULTATS!AS$10) -> Liste Nathalie GRIESBECK | E19: 23 | F19: 0.0970464135
D20: =CONCATENATE("Liste ",RESULTATS!AW$9," ",RESULTATS!AW$10) -> Liste Julien GONZALEZ | E20: 3 | F20: 0.01265822785
D21: =CONCATENATE("Liste ",RESULTATS!BA$9," ",RESULTATS!BA$10) -> Liste Philippe COUKA | E21: 0 | F21: 0
D22: =CONCATENATE("Liste ",RESULTATS!BE$9," ",RESULTATS!BE$10) -> Liste Antoine RENARD | E22: 1 | F22: 0.004219409283
D23: =CONCATENATE("Liste ",RESULTATS!BI$9," ",RESULTATS!BI$10) -> Liste Geneviève MARTIN | E23: 1 | F23: 0.004219409283
D24: =CONCATENATE("Liste ",RESULTATS!BM$9," ",RESULTATS!BM$10) -> Liste Isabelle VÉRIN | E24: 0 | F24: 0
D25: =CONCATENATE("Liste ",RESULTATS!U$59," ",RESULTATS!U$60) -> Liste Xavier DESSAIGNE | E25: 1 | F25: 0.004219409283
D26: =CONCATENATE("Liste ",RESULTATS!Y$59," ",RESULTATS!Y$60) -> Liste Sandrine PICO | E26: 0 | F26: 0
D27: =CONCATENATE("Liste ",RESULTATS!AC$59," ",RESULTATS!AC$60) -> Liste Florian PHILIPPOT | E27: 69 | F27: 0.2911392405
D28: =CONCATENATE("Liste ",RESULTATS!AG$59," ",RESULTATS!AG$60) -> Liste Sandrine BELIER | E28: 11 | F28: 0.04641350211
D29: =CONCATENATE("Liste ",RESULTATS!AK$59," ",RESULTATS!AK$60) -> Liste Ismaël BOUDJEKADA | E29: 0 | F29: 0
D30: =CONCATENATE("Liste ",RESULTATS!AO$59," ",RESULTATS!AO$60) -> Liste Laure FERRARI | E30: 6 | F30: 0.0253164557
D31: =CONCATENATE("Liste ",RESULTATS!AS$59," ",RESULTATS!AS$60) -> Liste Antonio SANCHEZ | E31: 0 | F31: 0
D32: =CONCATENATE("Liste ",RESULTATS!AW$59," ",RESULTATS!AW$60) -> Liste Isabelle MAURER | E32: 2 | F32: =IF(E$12=0,0,E32/E$12) -> 0.008438818565
D33: =CONCATENATE("Liste ",RESULTATS!BA$59," ",RESULTATS!BA$60) -> Liste Yannick HERVE | E33: 1 | F33: =IF(E$12=0,0,E33/E$12) -> 0.004219409283
D34: =CONCATENATE("Liste ",RESULTATS!BE$59," ",RESULTATS!BE$60) -> Liste Gabriel AMARD | E34: 20 | F34: =IF(E$12=0,0,E34/E$12) -> 0.08438818565
D35: =CONCATENATE("Liste ",RESULTATS!BI$59," ",RESULTATS!BI$60) -> Liste Florence LHOTE | E35: 1 | F35: =IF(E$12=0,0,E35/E$12) -> 0.004219409283
E36: =IF(SUM(E13:E35)<>E12,"!!! FAUX","") -> 
D37: TOTAL : | E37: =SUM(E13:E35) -> 237
F39: (1) Votants / Inscrits
F40: (2) Nuls / Votants
F41: (3) Exprimés / Inscrits
F42: (4) Score / Exprimés

Sheet J3
A3: J3 | B3: - | C3: GROUPE SCOLAIRE RENÉ RÜCKLIN (Rue de Rome)
D7: INSCRITS | E7: 556 | F7: %
D8: Émargements | E8: 142
D9: Votants (participation) | E9: 142 | F9: =IF($E$7=0,0,E9/$E$7) -> 0.2553956835 | G9: (1)
D10: Blancs | E10: 4 | F10: =IF($E$9=0,0,E10/$E$9) -> 0.02816901408 | G10: (2)
D11: Nuls | E11: 5 | F11: =IF($E$9=0,0,E11/$E$9) -> 0.03521126761 | G11: (2)
D12: Exprimés | E12: 133 | F12: =IF($E$7=0,0,E12/$E$7) -> 0.2392086331 | G12: (3)
D13: =CONCATENATE("Liste ",RESULTATS!U$9," ",RESULTATS!U$10) -> Liste Nadine MORANO | E13: 19 | F13: =IF(E$12=0,0,E13/E$12) -> 0.1428571429 | G13: (4)
D14: =CONCATENATE("Liste ",RESULTATS!Y$9," ",RESULTATS!Y$10) -> Liste Joe LABAT | E14: 0 | F14: 0
D15: =CONCATENATE("Liste ",RESULTATS!AC$9," ",RESULTATS!AC$10) -> Liste Claire ROCHER | E15: 2 | F15: 0.01503759398
D16: =CONCATENATE("Liste ",RESULTATS!AG$9," ",RESULTATS!AG$10) -> Liste Christian D'ANDLAU-HOMBOURG | E16: 1 | F16: 0.007518796992
D17: =CONCATENATE("Liste ",RESULTATS!AK$9," ",RESULTATS!AK$10) -> Liste Edouard MARTIN | E17: 18 | F17: 0.1353383459
D18: =CONCATENATE("Liste ",RESULTATS!AO$9," ",RESULTATS!AO$10) -> Liste Gaël DIAFERIA | E18: 1 | F18: 0.007518796992
D19: =CONCATENATE("Liste ",RESULTATS!AS$9," ",RESULTATS!AS$10) -> Liste Nathalie GRIESBECK | E19: 14 | F19: 0.1052631579
D20: =CONCATENATE("Liste ",RESULTATS!AW$9," ",RESULTATS!AW$10) -> Liste Julien GONZALEZ | E20: 5 | F20: 0.03759398496
D21: =CONCATENATE("Liste ",RESULTATS!BA$9," ",RESULTATS!BA$10) -> Liste Philippe COUKA | E21: 0 | F21: 0
D22: =CONCATENATE("Liste ",RESULTATS!BE$9," ",RESULTATS!BE$10) -> Liste Antoine RENARD | E22: 1 | F22: 0.007518796992
D23: =CONCATENATE("Liste ",RESULTATS!BI$9," ",RESULTATS!BI$10) -> Liste Geneviève MARTIN | E23: 0 | F23: 0
D24: =CONCATENATE("Liste ",RESULTATS!BM$9," ",RESULTATS!BM$10) -> Liste Isabelle VÉRIN | E24: 0 | F24: 0
D25: =CONCATENATE("Liste ",RESULTATS!U$59," ",RESULTATS!U$60) -> Liste Xavier DESSAIGNE | E25: 2 | F25: 0.01503759398
D26: =CONCATENATE("Liste ",RESULTATS!Y$59," ",RESULTATS!Y$60) -> Liste Sandrine PICO | E26: 0 | F26: 0
D27: =CONCATENATE("Liste ",RESULTATS!AC$59," ",RESULTATS!AC$60) -> Liste Florian PHILIPPOT | E27: 32 | F27: 0.2406015038
D28: =CONCATENATE("Liste ",RESULTATS!AG$59," ",RESULTATS!AG$60) -> Liste Sandrine BELIER | E28: 10 | F28: 0.07518796992
D29: =CONCATENATE("Liste ",RESULTATS!AK$59," ",RESULTATS!AK$60) -> Liste Ismaël BOUDJEKADA | E29: 0 | F29: 0
D30: =CONCATENATE("Liste ",RESULTATS!AO$59," ",RESULTATS!AO$60) -> Liste Laure FERRARI | E30: 2 | F30: 0.01503759398
D31: =CONCATENATE("Liste ",RESULTATS!AS$59," ",RESULTATS!AS$60) -> Liste Antonio SANCHEZ | E31: 0 | F31: 0
D32: =CONCATENATE("Liste ",RESULTATS!AW$59," ",RESULTATS!AW$60) -> Liste Isabelle MAURER | E32: 3 | F32: =IF(E$12=0,0,E32/E$12) -> 0.02255639098
D33: =CONCATENATE("Liste ",RESULTATS!BA$59," ",RESULTATS!BA$60) -> Liste Yannick HERVE | E33: 0 | F33: =IF(E$12=0,0,E33/E$12) -> 0
D34: =CONCATENATE("Liste ",RESULTATS!BE$59," ",RESULTATS!BE$60) -> Liste Gabriel AMARD | E34: 23 | F34: =IF(E$12=0,0,E34/E$12) -> 0.1729323308
D35: =CONCATENATE("Liste ",RESULTATS!BI$59," ",RESULTATS!BI$60) -> Liste Florence LHOTE | E35: 0 | F35: =IF(E$12=0,0,E35/E$12) -> 0
E36: =IF(SUM(E13:E35)<>E12,"!!! FAUX","") -> 
D37: TOTAL : | E37: =SUM(E13:E35) -> 133
F39: (1) Votants / Inscrits
F40: (2) Nuls / Votants
F41: (3) Exprimés / Inscrits
F42: (4) Score / Exprimés

Sheet K1
A3: K1 | B3: - | C3: GROUPE SCOLAIRE LOUIS PERGAUD (Rue de Zaporojie - Primaire)
D7: INSCRITS | E7: 944 | F7: %
D8: Émargements | E8: 193
D9: Votants (participation) | E9: 193 | F9: =IF($E$7=0,0,E9/$E$7) -> 0.2044491525 | G9: (1)
D10: Blancs | E10: 4 | F10: =IF($E$9=0,0,E10/$E$9) -> 0.0207253886 | G10: (2)
D11: Nuls | E11: 8 | F11: =IF($E$9=0,0,E11/$E$9) -> 0.0414507772 | G11: (2)
D12: Exprimés | E12: 181 | F12: =IF($E$7=0,0,E12/$E$7) -> 0.1917372881 | G12: (3)
D13: =CONCATENATE("Liste ",RESULTATS!U$9," ",RESULTATS!U$10) -> Liste Nadine MORANO | E13: 45 | F13: =IF(E$12=0,0,E13/E$12) -> 0.2486187845 | G13: (4)
D14: =CONCATENATE("Liste ",RESULTATS!Y$9," ",RESULTATS!Y$10) -> Liste Joe LABAT | E14: 0 | F14: 0
D15: =CONCATENATE("Liste ",RESULTATS!AC$9," ",RESULTATS!AC$10) -> Liste Claire ROCHER | E15: 8 | F15: 0.04419889503
D16: =CONCATENATE("Liste ",RESULTATS!AG$9," ",RESULTATS!AG$10) -> Liste Christian D'ANDLAU-HOMBOURG | E16: 0 | F16: 0
D17: =CONCATENATE("Liste ",RESULTATS!AK$9," ",RESULTATS!AK$10) -> Liste Edouard MARTIN | E17: 30 | F17: 0.1657458564
D18: =CONCATENATE("Liste ",RESULTATS!AO$9," ",RESULTATS!AO$10) -> Liste Gaël DIAFERIA | E18: 0 | F18: 0
D19: =CONCATENATE("Liste ",RESULTATS!AS$9," ",RESULTATS!AS$10) -> Liste Nathalie GRIESBECK | E19: 11 | F19: 0.06077348066
D20: =CONCATENATE("Liste ",RESULTATS!AW$9," ",RESULTATS!AW$10) -> Liste Julien GONZALEZ | E20: 1 | F20: 0.005524861878
D21: =CONCATENATE("Liste ",RESULTATS!BA$9," ",RESULTATS!BA$10) -> Liste Philippe COUKA | E21: 0 | F21: 0
D22: =CONCATENATE("Liste ",RESULTATS!BE$9," ",RESULTATS!BE$10) -> Liste Antoine RENARD | E22: 1 | F22: 0.005524861878
D23: =CONCATENATE("Liste ",RESULTATS!BI$9," ",RESULTATS!BI$10) -> Liste Geneviève MARTIN | E23: 0 | F23: 0
D24: =CONCATENATE("Liste ",RESULTATS!BM$9," ",RESULTATS!BM$10) -> Liste Isabelle VÉRIN | E24: 1 | F24: 0.005524861878
D25: =CONCATENATE("Liste ",RESULTATS!U$59," ",RESULTATS!U$60) -> Liste Xavier DESSAIGNE | E25: 0 | F25: 0
D26: =CONCATENATE("Liste ",RESULTATS!Y$59," ",RESULTATS!Y$60) -> Liste Sandrine PICO | E26: 0 | F26: 0
D27: =CONCATENATE("Liste ",RESULTATS!AC$59," ",RESULTATS!AC$60) -> Liste Florian PHILIPPOT | E27: 46 | F27: 0.2541436464
D28: =CONCATENATE("Liste ",RESULTATS!AG$59," ",RESULTATS!AG$60) -> Liste Sandrine BELIER | E28: 8 | F28: 0.04419889503
D29: =CONCATENATE("Liste ",RESULTATS!AK$59," ",RESULTATS!AK$60) -> Liste Ismaël BOUDJEKADA | E29: 0 | F29: 0
D30: =CONCATENATE("Liste ",RESULTATS!AO$59," ",RESULTATS!AO$60) -> Liste Laure FERRARI | E30: 8 | F30: 0.04419889503
D31: =CONCATENATE("Liste ",RESULTATS!AS$59," ",RESULTATS!AS$60) -> Liste Antonio SANCHEZ | E31: 0 | F31: 0
D32: =CONCATENATE("Liste ",RESULTATS!AW$59," ",RESULTATS!AW$60) -> Liste Isabelle MAURER | E32: 3 | F32: =IF(E$12=0,0,E32/E$12) -> 0.01657458564
D33: =CONCATENATE("Liste ",RESULTATS!BA$59," ",RESULTATS!BA$60) -> Liste Yannick HERVE | E33: 2 | F33: =IF(E$12=0,0,E33/E$12) -> 0.01104972376
D34: =CONCATENATE("Liste ",RESULTATS!BE$59," ",RESULTATS!BE$60) -> Liste Gabriel AMARD | E34: 17 | F34: =IF(E$12=0,0,E34/E$12) -> 0.09392265193
D35: =CONCATENATE("Liste ",RESULTATS!BI$59," ",RESULTATS!BI$60) -> Liste Florence LHOTE | E35: 0 | F35: =IF(E$12=0,0,E35/E$12) -> 0
E36: =IF(SUM(E13:E35)<>E12,"!!! FAUX","") -> 
D37: TOTAL : | E37: =SUM(E13:E35) -> 181
F39: (1) Votants / Inscrits
F40: (2) Nuls / Votants
F41: (3) Exprimés / Inscrits
F42: (4) Score / Exprimés

Sheet K2
A3: K2 | B3: - | C3: GROUPE SCOLAIRE LOUIS PERGAUD (Rue de Zaporojie - Maternelle)
D7: INSCRITS | E7: 784 | F7: %
D8: Émargements | E8: 187
D9: Votants (participation) | E9: 187 | F9: =IF($E$7=0,0,E9/$E$7) -> 0.2385204082 | G9: (1)
D10: Blancs | E10: 0 | F10: =IF($E$9=0,0,E10/$E$9) -> 0 | G10: (2)
D11: Nuls | E11: 6 | F11: =IF($E$9=0,0,E11/$E$9) -> 0.0320855615 | G11: (2)
D12: Exprimés | E12: 181 | F12: =IF($E$7=0,0,E12/$E$7) -> 0.2308673469 | G12: (3)
D13: =CONCATENATE("Liste ",RESULTATS!U$9," ",RESULTATS!U$10) -> Liste Nadine MORANO | E13: 36 | F13: =IF(E$12=0,0,E13/E$12) -> 0.1988950276 | G13: (4)
D14: =CONCATENATE("Liste ",RESULTATS!Y$9," ",RESULTATS!Y$10) -> Liste Joe LABAT | E14: 0 | F14: 0
D15: =CONCATENATE("Liste ",RESULTATS!AC$9," ",RESULTATS!AC$10) -> Liste Claire ROCHER | E15: 6 | F15: 0.03314917127
D16: =CONCATENATE("Liste ",RESULTATS!AG$9," ",RESULTATS!AG$10) -> Liste Christian D'ANDLAU-HOMBOURG | E16: 0 | F16: 0
D17: =CONCATENATE("Liste ",RESULTATS!AK$9," ",RESULTATS!AK$10) -> Liste Edouard MARTIN | E17: 33 | F17: 0.182320442
D18: =CONCATENATE("Liste ",RESULTATS!AO$9," ",RESULTATS!AO$10) -> Liste Gaël DIAFERIA | E18: 0 | F18: 0
D19: =CONCATENATE("Liste ",RESULTATS!AS$9," ",RESULTATS!AS$10) -> Liste Nathalie GRIESBECK | E19: 11 | F19: 0.06077348066
D20: =CONCATENATE("Liste ",RESULTATS!AW$9," ",RESULTATS!AW$10) -> Liste Julien GONZALEZ | E20: 3 | F20: 0.01657458564
D21: =CONCATENATE("Liste ",RESULTATS!BA$9," ",RESULTATS!BA$10) -> Liste Philippe COUKA | E21: 0 | F21: 0
D22: =CONCATENATE("Liste ",RESULTATS!BE$9," ",RESULTATS!BE$10) -> Liste Antoine RENARD | E22: 0 | F22: 0
D23: =CONCATENATE("Liste ",RESULTATS!BI$9," ",RESULTATS!BI$10) -> Liste Geneviève MARTIN | E23: 2 | F23: 0.01104972376
D24: =CONCATENATE("Liste ",RESULTATS!BM$9," ",RESULTATS!BM$10) -> Liste Isabelle VÉRIN | E24: 0 | F24: 0
D25: =CONCATENATE("Liste ",RESULTATS!U$59," ",RESULTATS!U$60) -> Liste Xavier DESSAIGNE | E25: 1 | F25: 0.005524861878
D26: =CONCATENATE("Liste ",RESULTATS!Y$59," ",RESULTATS!Y$60) -> Liste Sandrine PICO | E26: 0 | F26: 0
D27: =CONCATENATE("Liste ",RESULTATS!AC$59," ",RESULTATS!AC$60) -> Liste Florian PHILIPPOT | E27: 48 | F27: 0.2651933702
D28: =CONCATENATE("Liste ",RESULTATS!AG$59," ",RESULTATS!AG$60) -> Liste Sandrine BELIER | E28: 15 | F28: 0.08287292818
D29: =CONCATENATE("Liste ",RESULTATS!AK$59," ",RESULTATS!AK$60) -> Liste Ismaël BOUDJEKADA | E29: 0 | F29: 0
D30: =CONCATENATE("Liste ",RESULTATS!AO$59," ",RESULTATS!AO$60) -> Liste Laure FERRARI | E30: 4 | F30: 0.02209944751
D31: =CONCATENATE("Liste ",RESULTATS!AS$59," ",RESULTATS!AS$60) -> Liste Antonio SANCHEZ | E31: 0 | F31: 0
D32: =CONCATENATE("Liste ",RESULTATS!AW$59," ",RESULTATS!AW$60) -> Liste Isabelle MAURER | E32: 8 | F32: =IF(E$12=0,0,E32/E$12) -> 0.04419889503
D33: =CONCATENATE("Liste ",RESULTATS!BA$59," ",RESULTATS!BA$60) -> Liste Yannick HERVE | E33: 1 | F33: =IF(E$12=0,0,E33/E$12) -> 0.005524861878
D34: =CONCATENATE("Liste ",RESULTATS!BE$59," ",RESULTATS!BE$60) -> Liste Gabriel AMARD | E34: 13 | F34: =IF(E$12=0,0,E34/E$12) -> 0.07182320442
D35: =CONCATENATE("Liste ",RESULTATS!BI$59," ",RESULTATS!BI$60) -> Liste Florence LHOTE | E35: 0 | F35: =IF(E$12=0,0,E35/E$12) -> 0
E36: =IF(SUM(E13:E35)<>E12,"!!! FAUX","") -> 
D37: TOTAL : | E37: =SUM(E13:E35) -> 181
F39: (1) Votants / Inscrits
F40: (2) Nuls / Votants
F41: (3) Exprimés / Inscrits
F42: (4) Score / Exprimés

Sheet L1
A3: L1 | B3: - | C3: LES BARRES - MATERNELLE (Via d'Auxelles)
D7: INSCRITS | E7: 1314 | F7: %
D8: Émargements | E8: 500
D9: Votants (participation) | E9: 500 | F9: =IF($E$7=0,0,E9/$E$7) -> 0.3805175038 | G9: (1)
D10: Blancs | E10: 11 | F10: =IF($E$9=0,0,E10/$E$9) -> 0.022 | G10: (2)
D11: Nuls | E11: 5 | F11: =IF($E$9=0,0,E11/$E$9) -> 0.01 | G11: (2)
D12: Exprimés | E12: 484 | F12: =IF($E$7=0,0,E12/$E$7) -> 0.3683409437 | G12: (3)
D13: =CONCATENATE("Liste ",RESULTATS!U$9," ",RESULTATS!U$10) -> Liste Nadine MORANO | E13: 99 | F13: =IF(E$12=0,0,E13/E$12) -> 0.2045454545 | G13: (4)
D14: =CONCATENATE("Liste ",RESULTATS!Y$9," ",RESULTATS!Y$10) -> Liste Joe LABAT | E14: 2 | F14: 0.004132231405
D15: =CONCATENATE("Liste ",RESULTATS!AC$9," ",RESULTATS!AC$10) -> Liste Claire ROCHER | E15: 12 | F15: 0.02479338843
D16: =CONCATENATE("Liste ",RESULTATS!AG$9," ",RESULTATS!AG$10) -> Liste Christian D'ANDLAU-HOMBOURG | E16: 1 | F16: 0.002066115702
D17: =CONCATENATE("Liste ",RESULTATS!AK$9," ",RESULTATS!AK$10) -> Liste Edouard MARTIN | E17: 87 | F17: 0.1797520661
D18: =CONCATENATE("Liste ",RESULTATS!AO$9," ",RESULTATS!AO$10) -> Liste Gaël DIAFERIA | E18: 4 | F18: 0.00826446281
D19: =CONCATENATE("Liste ",RESULTATS!AS$9," ",RESULTATS!AS$10) -> Liste Nathalie GRIESBECK | E19: 29 | F19: 0.05991735537
D20: =CONCATENATE("Liste ",RESULTATS!AW$9," ",RESULTATS!AW$10) -> Liste Julien GONZALEZ | E20: 19 | F20: 0.03925619835
D21: =CONCATENATE("Liste ",RESULTATS!BA$9," ",RESULTATS!BA$10) -> Liste Philippe COUKA | E21: 1 | F21: 0.002066115702
D22: =CONCATENATE("Liste ",RESULTATS!BE$9," ",RESULTATS!BE$10) -> Liste Antoine RENARD | E22: 2 | F22: 0.004132231405
D23: =CONCATENATE("Liste ",RESULTATS!BI$9," ",RESULTATS!BI$10) -> Liste Geneviève MARTIN | E23: 1 | F23: 0.002066115702
D24: =CONCATENATE("Liste ",RESULTATS!BM$9," ",RESULTATS!BM$10) -> Liste Isabelle VÉRIN | E24: 2 | F24: 0.004132231405
D25: =CONCATENATE("Liste ",RESULTATS!U$59," ",RESULTATS!U$60) -> Liste Xavier DESSAIGNE | E25: 2 | F25: 0.004132231405
D26: =CONCATENATE("Liste ",RESULTATS!Y$59," ",RESULTATS!Y$60) -> Liste Sandrine PICO | E26: 0 | F26: 0
D27: =CONCATENATE("Liste ",RESULTATS!AC$59," ",RESULTATS!AC$60) -> Liste Florian PHILIPPOT | E27: 111 | F27: 0.229338843
D28: =CONCATENATE("Liste ",RESULTATS!AG$59," ",RESULTATS!AG$60) -> Liste Sandrine BELIER | E28: 37 | F28: 0.07644628099
D29: =CONCATENATE("Liste ",RESULTATS!AK$59," ",RESULTATS!AK$60) -> Liste Ismaël BOUDJEKADA | E29: 0 | F29: 0
D30: =CONCATENATE("Liste ",RESULTATS!AO$59," ",RESULTATS!AO$60) -> Liste Laure FERRARI | E30: 7 | F30: 0.01446280992
D31: =CONCATENATE("Liste ",RESULTATS!AS$59," ",RESULTATS!AS$60) -> Liste Antonio SANCHEZ | E31: 0 | F31: 0
D32: =CONCATENATE("Liste ",RESULTATS!AW$59," ",RESULTATS!AW$60) -> Liste Isabelle MAURER | E32: 22 | F32: =IF(E$12=0,0,E32/E$12) -> 0.04545454545
D33: =CONCATENATE("Liste ",RESULTATS!BA$59," ",RESULTATS!BA$60) -> Liste Yannick HERVE | E33: 3 | F33: =IF(E$12=0,0,E33/E$12) -> 0.006198347107
D34: =CONCATENATE("Liste ",RESULTATS!BE$59," ",RESULTATS!BE$60) -> Liste Gabriel AMARD | E34: 40 | F34: =IF(E$12=0,0,E34/E$12) -> 0.0826446281
D35: =CONCATENATE("Liste ",RESULTATS!BI$59," ",RESULTATS!BI$60) -> Liste Florence LHOTE | E35: 3 | F35: =IF(E$12=0,0,E35/E$12) -> 0.006198347107
E36: =IF(SUM(E13:E35)<>E12,"!!! FAUX","") -> 
D37: TOTAL : | E37: =SUM(E13:E35) -> 484
F39: (1) Votants / Inscrits
F40: (2) Nuls / Votants
F41: (3) Exprimés / Inscrits
F42: (4) Score / Exprimés

Sheet L2
A3: L2 | B3: - | C3: LES BARRES - PRIMAIRE (Rue Ernest Duvillard)
D7: INSCRITS | E7: 1146 | F7: %
D8: Émargements | E8: 507
D9: Votants (participation) | E9: 507 | F9: =IF($E$7=0,0,E9/$E$7) -> 0.442408377 | G9: (1)
D10: Blancs | E10: 5 | F10: =IF($E$9=0,0,E10/$E$9) -> 0.009861932939 | G10: (2)
D11: Nuls | E11: 15 | F11: =IF($E$9=0,0,E11/$E$9) -> 0.02958579882 | G11: (2)
D12: Exprimés | E12: 487 | F12: =IF($E$7=0,0,E12/$E$7) -> 0.42495637 | G12: (3)
D13: =CONCATENATE("Liste ",RESULTATS!U$9," ",RESULTATS!U$10) -> Liste Nadine MORANO | E13: 91 | F13: =IF(E$12=0,0,E13/E$12) -> 0.1868583162 | G13: (4)
D14: =CONCATENATE("Liste ",RESULTATS!Y$9," ",RESULTATS!Y$10) -> Liste Joe LABAT | E14: 0 | F14: 0
D15: =CONCATENATE("Liste ",RESULTATS!AC$9," ",RESULTATS!AC$10) -> Liste Claire ROCHER | E15: 8 | F15: 0.01642710472
D16: =CONCATENATE("Liste ",RESULTATS!AG$9," ",RESULTATS!AG$10) -> Liste Christian D'ANDLAU-HOMBOURG | E16: 0 | F16: 0
D17: =CONCATENATE("Liste ",RESULTATS!AK$9," ",RESULTATS!AK$10) -> Liste Edouard MARTIN | E17: 74 | F17: 0.1519507187
D18: =CONCATENATE("Liste ",RESULTATS!AO$9," ",RESULTATS!AO$10) -> Liste Gaël DIAFERIA | E18: 3 | F18: 0.006160164271
D19: =CONCATENATE("Liste ",RESULTATS!AS$9," ",RESULTATS!AS$10) -> Liste Nathalie GRIESBECK | E19: 36 | F19: 0.07392197125
D20: =CONCATENATE("Liste ",RESULTATS!AW$9," ",RESULTATS!AW$10) -> Liste Julien GONZALEZ | E20: 14 | F20: 0.02874743326
D21: =CONCATENATE("Liste ",RESULTATS!BA$9," ",RESULTATS!BA$10) -> Liste Philippe COUKA | E21: 0 | F21: 0
D22: =CONCATENATE("Liste ",RESULTATS!BE$9," ",RESULTATS!BE$10) -> Liste Antoine RENARD | E22: 3 | F22: 0.006160164271
D23: =CONCATENATE("Liste ",RESULTATS!BI$9," ",RESULTATS!BI$10) -> Liste Geneviève MARTIN | E23: 0 | F23: 0
D24: =CONCATENATE("Liste ",RESULTATS!BM$9," ",RESULTATS!BM$10) -> Liste Isabelle VÉRIN | E24: 4 | F24: 0.008213552361
D25: =CONCATENATE("Liste ",RESULTATS!U$59," ",RESULTATS!U$60) -> Liste Xavier DESSAIGNE | E25: 12 | F25: 0.02464065708
D26: =CONCATENATE("Liste ",RESULTATS!Y$59," ",RESULTATS!Y$60) -> Liste Sandrine PICO | E26: 0 | F26: 0
D27: =CONCATENATE("Liste ",RESULTATS!AC$59," ",RESULTATS!AC$60) -> Liste Florian PHILIPPOT | E27: 122 | F27: 0.250513347
D28: =CONCATENATE("Liste ",RESULTATS!AG$59," ",RESULTATS!AG$60) -> Liste Sandrine BELIER | E28: 44 | F28: 0.09034907598
D29: =CONCATENATE("Liste ",RESULTATS!AK$59," ",RESULTATS!AK$60) -> Liste Ismaël BOUDJEKADA | E29: 0 | F29: 0
D30: =CONCATENATE("Liste ",RESULTATS!AO$59," ",RESULTATS!AO$60) -> Liste Laure FERRARI | E30: 17 | F30: 0.03490759754
D31: =CONCATENATE("Liste ",RESULTATS!AS$59," ",RESULTATS!AS$60) -> Liste Antonio SANCHEZ | E31: 0 | F31: 0
D32: =CONCATENATE("Liste ",RESULTATS!AW$59," ",RESULTATS!AW$60) -> Liste Isabelle MAURER | E32: 17 | F32: =IF(E$12=0,0,E32/E$12) -> 0.03490759754
D33: =CONCATENATE("Liste ",RESULTATS!BA$59," ",RESULTATS!BA$60) -> Liste Yannick HERVE | E33: 2 | F33: =IF(E$12=0,0,E33/E$12) -> 0.004106776181
D34: =CONCATENATE("Liste ",RESULTATS!BE$59," ",RESULTATS!BE$60) -> Liste Gabriel AMARD | E34: 39 | F34: =IF(E$12=0,0,E34/E$12) -> 0.08008213552
D35: =CONCATENATE("Liste ",RESULTATS!BI$59," ",RESULTATS!BI$60) -> Liste Florence LHOTE | E35: 1 | F35: =IF(E$12=0,0,E35/E$12) -> 0.00205338809
E36: =IF(SUM(E13:E35)<>E12,"!!! FAUX","") -> 
D37: TOTAL : | E37: =SUM(E13:E35) -> 487
F39: (1) Votants / Inscrits
F40: (2) Nuls / Votants
F41: (3) Exprimés / Inscrits
F42: (4) Score / Exprimés

Sheet Candidats
A1: Prénom | B1: Nom | C1: Parti | D1: Photo | E1: Commentaire
A2: Nadine | B2: MORANO | C2: POUR LA FRANCE, AGIR EN EUROPE AVEC NADINE MORANO | D2: liste1
A3: Joe | B3: LABAT | C3: EST DÉCROISSANCE 2014 | D3: liste2
A4: Claire | B4: ROCHER | C4: LUTTE OUVRIERE FAIRE ENTENDRE LE CAMP DES TRAVAILLEURS | D4: liste3
A5: Christian | B5: D'ANDLAU-HOMBOURG | C5: PARTI FÉDÉRALISTE EUROPÉEN GRAND EST | D5: liste4
A6: Edouard | B6: MARTIN | C6: CHOISIR NOTRE EUROPE | D6: liste5
A7: Gaël | B7: DIAFERIA | C7: POUR UNE EUROPE DES TRAVAILLEURES ET DES PEUPLES ENVOYONS VALSER L'AUSTÉRITÉ ET LE GOUVERNEMENT! | D7: liste6
A8: Nathalie | B8: GRIESBECK | C8: UDI MODEM LES EUROPEENS. LISTE SOUTENUE PAR FRANÇOIS BAYROU ET JEAN-LOUIS BORLOO | D8: liste7
A9: Julien | B9: GONZALEZ | C9: ALLIANCE ECOLOGISTE INDEPENDANTE | D9: liste8
A10: Philippe | B10: COUKA | C10: CITOYENS DU VOTE BLANC | D10: liste9
A11: Antoine | B11: RENARD | C11: FORCE VIE | D11: liste10
A12: Geneviève | B12: MARTIN | C12: ESPÉRANTO LANGUE COMMUNE EQUITABLE POUR L'EUROPE | D12: liste11
A13: Isabelle | B13: VÉRIN | C13: EUROPE CITOYENNE | D13: liste12
A14: Xavier | B14: DESSAIGNE | C14: NOUS CITOYENS | D14: liste13
A15: Sandrine | B15: PICO | C15: POUR UNE FRANCE ROYALE AU COEUR DE L'EUROPE | D15: liste14
A16: Florian | B16: PHILIPPOT | C16: LISTE BLEU MARINE - NON A BRUXELLES, OUI A LA FRANCE | D16: liste15
A17: Sandrine | B17: BELIER | C17: LISTE EUROPE ECOLOGIE | D17: liste16
A18: Ismaël | B18: BOUDJEKADA | C18: POUR L'UNION, UNE GÉNÉRATION D'ACTION! | D18: liste17
A19: Laure | B19: FERRARI | C19: DEBOUT LA FRANCE ! NI SYSTEME, NI EXTREMES AVEC NICOLAS DUPONT-AIGNAN | D19: liste18
A20: Antonio | B20: SANCHEZ | C20: COMMUNISTES | D20: liste19
A21: Isabelle | B21: MAURER | C21: NOUVELLE DONNE | D21: liste20
A22: Yannick | B22: HERVE | C22: UPR EST | D22: liste21
A23: Gabriel | B23: AMARD | C23: ROMPRE ET REFONDER L'EUROPE LISTE FRONT DE GAUCHE SOUTENUE PAR JEAN-LUC MELENCHON | D23: liste22
A24: Florence | B24: LHOTE | C24: FEMINISTES POUR UNE EUROPE SOLIDAIRE | D24: liste23

Sheet RECENS
R3: R E C E N S E M E N T par B U R E A U
B6: Listes 1 à 12
T8: Liste | V8: Liste | X8: Liste | Z8: Liste | AB8: Liste | AD8: Liste | AF8: Liste | AH8: Liste | AJ8: Liste | AL8: Liste | AN8: Liste | AP8: Liste
D9: BUREAUX | F9: Inscrits | H9: Émargements | J9: Votants | L9: Abstentions | N9: Nuls | P9: Blancs | R9: Exprimés | T9: =CONCATENATE(RESULTATS!U$9," ",RESULTATS!U$10) -> Nadine MORANO | V9: =CONCATENATE(RESULTATS!Y$9," ",RESULTATS!Y$10) -> Joe LABAT | X9: =CONCATENATE(RESULTATS!AC$9," ",RESULTATS!AC$10) -> Claire ROCHER | Z9: =CONCATENATE(RESULTATS!AG$9," ",RESULTATS!AG$10) -> Christian D'ANDLAU-HOMBOURG | AB9: =CONCATENATE(RESULTATS!AK$9," ",RESULTATS!AK$10) -> Edouard MARTIN | AD9: =CONCATENATE(RESULTATS!AO$9," ",RESULTATS!AO$10) -> Gaël DIAFERIA | AF9: =CONCATENATE(RESULTATS!AS$9," ",RESULTATS!AS$10) -> Nathalie GRIESBECK | AH9: =CONCATENATE(RESULTATS!AW$9," ",RESULTATS!AW$10) -> Julien GONZALEZ | AJ9: =CONCATENATE(RESULTATS!BA$9," ",RESULTATS!BA$10) -> Philippe COUKA | AL9: =CONCATENATE(RESULTATS!BE$9," ",RESULTATS!BE$10) -> Antoine RENARD | AN9: =CONCATENATE(RESULTATS!BI$9," ",RESULTATS!BI$10) -> Geneviève MARTIN | AP9: =CONCATENATE(RESULTATS!BM$9," ",RESULTATS!BM$10) -> Isabelle VÉRIN
D10: 1 | F10: 2 | H10: 3 | J10: 4 | L10: 5 | N10: 6 | P10: 7 | R10: 8 | T10: 9 | V10: 10 | X10: 11 | Z10: 12 | AB10: 13 | AD10: 14 | AF10: 15 | AH10: 16 | AJ10: 17 | AL10: 18 | AN10: 19 | AP10: 20
A13: A | B13: 01 | C13: - | D13: Hôtel de Ville | E13: E | F13: =RESULTATS!E13 -> 856 | H13: =RESULTATS!G13 -> 368 | J13: =RESULTATS!I13 -> 368 | L13: =IF(ISNUMBER(J13),F13-J13,"") -> 488 | N13: =RESULTATS!O13 -> 4 | P13: =RESULTATS!M13 -> 4 | R13: =RESULTATS!Q13 -> 360 | T13: =RESULTATS!U13 -> 87 | V13: =RESULTATS!Y13 -> 1 | X13: =RESULTATS!AC13 -> 5 | Z13: =RESULTATS!AG13 -> 0 | AB13: =RESULTATS!AK13 -> 57 | AD13: =RESULTATS!AO13 -> 1 | AF13: =RESULTATS!AS13 -> 42 | AH13: =RESULTATS!AW13 -> 7 | AJ13: =RESULTATS!BA13 -> 0 | AL13: =RESULTATS!BE13 -> 6 | AN13: =RESULTATS!BI13 -> 1 | AP13: =RESULTATS!BM13 -> 3
A14: A | B14: 02 | C14: - | D14: Salle des fêtes | E14: E | F14: =RESULTATS!E14 -> 934 | H14: =RESULTATS!G14 -> 476 | J14: =RESULTATS!I14 -> 476 | L14: =IF(ISNUMBER(J14),F14-J14,"") -> 458 | N14: =RESULTATS!O14 -> 10 | P14: =RESULTATS!M14 -> 7 | R14: =RESULTATS!Q14 -> 459 | T14: =RESULTATS!U14 -> 160 | V14: =RESULTATS!Y14 -> 0 | X14: =RESULTATS!AC14 -> 5 | Z14: =RESULTATS!AG14 -> 0 | AB14: =RESULTATS!AK14 -> 60 | AD14: =RESULTATS!AO14 -> 0 | AF14: =RESULTATS!AS14 -> 53 | AH14: =RESULTATS!AW14 -> 10 | AJ14: =RESULTATS!BA14 -> 0 | AL14: =RESULTATS!BE14 -> 6 | AN14: =RESULTATS!BI14 -> 0 | AP14: =RESULTATS!BM14 -> 2
A15: B | B15: 01 | C15: - | D15: Victor Hugo | E15: E | F15: =RESULTATS!E15 -> 1068 | H15: =RESULTATS!G15 -> 434 | J15: =RESULTATS!I15 -> 434 | L15: 634 | N15: =RESULTATS!O15 -> 3 | P15: =RESULTATS!M15 -> 4 | R15: =RESULTATS!Q15 -> 427 | T15: =RESULTATS!U15 -> 121 | V15: =RESULTATS!Y15 -> 2 | X15: =RESULTATS!AC15 -> 4 | Z15: =RESULTATS!AG15 -> 1 | AB15: =RESULTATS!AK15 -> 74 | AD15: =RESULTATS!AO15 -> 0 | AF15: =RESULTATS!AS15 -> 61 | AH15: =RESULTATS!AW15 -> 8 | AJ15: =RESULTATS!BA15 -> 0 | AL15: =RESULTATS!BE15 -> 2 | AN15: =RESULTATS!BI15 -> 1 | AP15: =RESULTATS!BM15 -> 1
A16: B | B16: 02 | C16: - | D16: Victor Hugo | E16: E | F16: =RESULTATS!E16 -> 1149 | H16: =RESULTATS!G16 -> 524 | J16: =RESULTATS!I16 -> 524 | L16: 625 | N16: =RESULTATS!O16 -> 7 | P16: =RESULTATS!M16 -> 1 | R16: =RESULTATS!Q16 -> 516 | T16: =RESULTATS!U16 -> 145 | V16: =RESULTATS!Y16 -> 0 | X16: =RESULTATS!AC16 -> 5 | Z16: =RESULTATS!AG16 -> 1 | AB16: =RESULTATS!AK16 -> 66 | AD16: =RESULTATS!AO16 -> 4 | AF16: =RESULTATS!AS16 -> 64 | AH16: =RESULTATS!AW16 -> 12 | AJ16: =RESULTATS!BA16 -> 1 | AL16: =RESULTATS!BE16 -> 10 | AN16: =RESULTATS!BI16 -> 1 | AP16: =RESULTATS!BM16 -> 0
A17: M | B17: 01 | C17: - | D17: Saint-Exupéry | E17: E | F17: =RESULTATS!E17 -> 1300 | H17: =RESULTATS!G17 -> 274 | J17: =RESULTATS!I17 -> 274 | L17: 1026 | N17: =RESULTATS!O17 -> 14 | P17: =RESULTATS!M17 -> 4 | R17: =RESULTATS!Q17 -> 256 | T17: =RESULTATS!U17 -> 50 | V17: =RESULTATS!Y17 -> 0 | X17: =RESULTATS!AC17 -> 4 | Z17: =RESULTATS!AG17 -> 1 | AB17: =RESULTATS!AK17 -> 48 | AD17: =RESULTATS!AO17 -> 2 | AF17: =RESULTATS!AS17 -> 24 | AH17: =RESULTATS!AW17 -> 4 | AJ17: =RESULTATS!BA17 -> 0 | AL17: =RESULTATS!BE17 -> 1 | AN17: =RESULTATS!BI17 -> 1 | AP17: =RESULTATS!BM17 -> 2
A18: N | B18: 01 | C18: - | D18: Jean Moulin | E18: E | F18: =RESULTATS!E18 -> 1451 | H18: =RESULTATS!G18 -> 603 | J18: =RESULTATS!I18 -> 603 | L18: 848 | N18: =RESULTATS!O18 -> 8 | P18: =RESULTATS!M18 -> 12 | R18: =RESULTATS!Q18 -> 583 | T18: =RESULTATS!U18 -> 141 | V18: =RESULTATS!Y18 -> 0 | X18: =RESULTATS!AC18 -> 4 | Z18: =RESULTATS!AG18 -> 1 | AB18: =RESULTATS!AK18 -> 78 | AD18: =RESULTATS!AO18 -> 4 | AF18: =RESULTATS!AS18 -> 62 | AH18: =RESULTATS!AW18 -> 13 | AJ18: =RESULTATS!BA18 -> 2 | AL18: =RESULTATS!BE18 -> 3 | AN18: =RESULTATS!BI18 -> 0 | AP18: =RESULTATS!BM18 -> 3
A19: N | B19: 02 | C19: - | D19: Cité des Associations | E19: E | F19: =RESULTATS!E19 -> 899 | H19: =RESULTATS!G19 -> 409 | J19: =RESULTATS!I19 -> 409 | L19: 490 | N19: =RESULTATS!O19 -> 7 | P19: =RESULTATS!M19 -> 12 | R19: =RESULTATS!Q19 -> 390 | T19: =RESULTATS!U19 -> 70 | V19: =RESULTATS!Y19 -> 2 | X19: =RESULTATS!AC19 -> 6 | Z19: =RESULTATS!AG19 -> 0 | AB19: =RESULTATS!AK19 -> 83 | AD19: =RESULTATS!AO19 -> 1 | AF19: =RESULTATS!AS19 -> 47 | AH19: =RESULTATS!AW19 -> 6 | AJ19: =RESULTATS!BA19 -> 0 | AL19: =RESULTATS!BE19 -> 2 | AN19: =RESULTATS!BI19 -> 2 | AP19: =RESULTATS!BM19 -> 2
A20: C | B20: 01 | C20: - | D20: Victor Schoelcher | E20: C | F20: =RESULTATS!E21 -> 1194 | H20: =RESULTATS!G21 -> 487 | J20: =RESULTATS!I21 -> 487 | L20: 707 | N20: =RESULTATS!O21 -> 4 | P20: =RESULTATS!M21 -> 8 | R20: =RESULTATS!Q21 -> 475 | T20: =RESULTATS!U21 -> 127 | V20: =RESULTATS!Y21 -> 2 | X20: =RESULTATS!AC21 -> 4 | Z20: =RESULTATS!AG21 -> 1 | AB20: =RESULTATS!AK21 -> 86 | AD20: =RESULTATS!AO21 -> 2 | AF20: =RESULTATS!AS21 -> 56 | AH20: =RESULTATS!AW21 -> 10 | AJ20: =RESULTATS!BA21 -> 0 | AL20: =RESULTATS!BE21 -> 4 | AN20: =RESULTATS!BI21 -> 0 | AP20: =RESULTATS!BM21 -> 3
A21: C | B21: 02 | C21: - | D21: Maison du Peuple | E21: C | F21: =RESULTATS!E22 -> 749 | H21: =RESULTATS!G22 -> 359 | J21: =RESULTATS!I22 -> 359 | L21: 390 | N21: =RESULTATS!O22 -> 8 | P21: =RESULTATS!M22 -> 4 | R21: =RESULTATS!Q22 -> 347 | T21: =RESULTATS!U22 -> 108 | V21: =RESULTATS!Y22 -> 0 | X21: =RESULTATS!AC22 -> 2 | Z21: =RESULTATS!AG22 -> 0 | AB21: =RESULTATS!AK22 -> 52 | AD21: =RESULTATS!AO22 -> 2 | AF21: =RESULTATS!AS22 -> 33 | AH21: =RESULTATS!AW22 -> 7 | AJ21: =RESULTATS!BA22 -> 1 | AL21: =RESULTATS!BE22 -> 1 | AN21: =RESULTATS!BI22 -> 1 | AP21: =RESULTATS!BM22 -> 1
A22: C | B22: 03 | C22: - | D22: Maison du Peuple | E22: C | F22: =RESULTATS!E23 -> 909 | H22: =RESULTATS!G23 -> 426 | J22: =RESULTATS!I23 -> 426 | L22: 483 | N22: =RESULTATS!O23 -> 5 | P22: =RESULTATS!M23 -> 6 | R22: =RESULTATS!Q23 -> 415 | T22: =RESULTATS!U23 -> 148 | V22: =RESULTATS!Y23 -> 1 | X22: =RESULTATS!AC23 -> 2 | Z22: =RESULTATS!AG23 -> 0 | AB22: =RESULTATS!AK23 -> 65 | AD22: =RESULTATS!AO23 -> 2 | AF22: =RESULTATS!AS23 -> 39 | AH22: =RESULTATS!AW23 -> 7 | AJ22: =RESULTATS!BA23 -> 0 | AL22: =RESULTATS!BE23 -> 3 | AN22: =RESULTATS!BI23 -> 1 | AP22: =RESULTATS!BM23 -> 3
A23: D | B23: 01 | C23: - | D23: Châteaudun | E23: C | F23: =RESULTATS!E24 -> 1058 | H23: =RESULTATS!G24 -> 444 | J23: =RESULTATS!I24 -> 444 | L23: 614 | N23: =RESULTATS!O24 -> 7 | P23: =RESULTATS!M24 -> 6 | R23: =RESULTATS!Q24 -> 431 | T23: =RESULTATS!U24 -> 140 | V23: =RESULTATS!Y24 -> 0 | X23: =RESULTATS!AC24 -> 3 | Z23: =RESULTATS!AG24 -> 0 | AB23: =RESULTATS!AK24 -> 61 | AD23: =RESULTATS!AO24 -> 1 | AF23: =RESULTATS!AS24 -> 35 | AH23: =RESULTATS!AW24 -> 10 | AJ23: =RESULTATS!BA24 -> 0 | AL23: =RESULTATS!BE24 -> 1 | AN23: =RESULTATS!BI24 -> 1 | AP23: =RESULTATS!BM24 -> 0
A24: D | B24: 02 | C24: - | D24: Châteaudun | E24: C | F24: =RESULTATS!E25 -> 827 | H24: =RESULTATS!G25 -> 365 | J24: =RESULTATS!I25 -> 365 | L24: 462 | N24: =RESULTATS!O25 -> 4 | P24: =RESULTATS!M25 -> 5 | R24: =RESULTATS!Q25 -> 356 | T24: =RESULTATS!U25 -> 104 | V24: =RESULTATS!Y25 -> 1 | X24: =RESULTATS!AC25 -> 0 | Z24: =RESULTATS!AG25 -> 0 | AB24: =RESULTATS!AK25 -> 44 | AD24: =RESULTATS!AO25 -> 3 | AF24: =RESULTATS!AS25 -> 44 | AH24: =RESULTATS!AW25 -> 2 | AJ24: =RESULTATS!BA25 -> 0 | AL24: =RESULTATS!BE25 -> 0 | AN24: =RESULTATS!BI25 -> 1 | AP24: =RESULTATS!BM25 -> 2
A25: D | B25: 03 | C25: - | D25: Châteaudun | E25: C | F25: =RESULTATS!E26 -> 895 | H25: =RESULTATS!G26 -> 365 | J25: =RESULTATS!I26 -> 365 | L25: 530 | N25: =RESULTATS!O26 -> 7 | P25: =RESULTATS!M26 -> 8 | R25: =RESULTATS!Q26 -> 350 | T25: =RESULTATS!U26 -> 83 | V25: =RESULTATS!Y26 -> 0 | X25: =RESULTATS!AC26 -> 7 | Z25: =RESULTATS!AG26 -> 1 | AB25: =RESULTATS!AK26 -> 42 | AD25: =RESULTATS!AO26 -> 3 | AF25: =RESULTATS!AS26 -> 32 | AH25: =RESULTATS!AW26 -> 6 | AJ25: =RESULTATS!BA26 -> 0 | AL25: =RESULTATS!BE26 -> 2 | AN25: =RESULTATS!BI26 -> 1 | AP25: =RESULTATS!BM26 -> 4
A26: E | B26: 01 | C26: - | D26: Raymond Aubert | E26: N | F26: =RESULTATS!E28 -> 1168 | H26: =RESULTATS!G28 -> 475 | J26: =RESULTATS!I28 -> 475 | L26: 693 | N26: =RESULTATS!O28 -> 8 | P26: =RESULTATS!M28 -> 10 | R26: =RESULTATS!Q28 -> 457 | T26: =RESULTATS!U28 -> 117 | V26: =RESULTATS!Y28 -> 0 | X26: =RESULTATS!AC28 -> 8 | Z26: =RESULTATS!AG28 -> 1 | AB26: =RESULTATS!AK28 -> 59 | AD26: =RESULTATS!AO28 -> 1 | AF26: =RESULTATS!AS28 -> 48 | AH26: =RESULTATS!AW28 -> 6 | AJ26: =RESULTATS!BA28 -> 0 | AL26: =RESULTATS!BE28 -> 0 | AN26: =RESULTATS!BI28 -> 1 | AP26: =RESULTATS!BM28 -> 1
A27: E | B27: 02 | C27: - | D27: Raymond Aubert | E27: N | F27: =RESULTATS!E29 -> 1204 | H27: =RESULTATS!G29 -> 452 | J27: =RESULTATS!I29 -> 452 | L27: 752 | N27: =RESULTATS!O29 -> 8 | P27: =RESULTATS!M29 -> 13 | R27: =RESULTATS!Q29 -> 431 | T27: =RESULTATS!U29 -> 120 | V27: =RESULTATS!Y29 -> 0 | X27: =RESULTATS!AC29 -> 5 | Z27: =RESULTATS!AG29 -> 2 | AB27: =RESULTATS!AK29 -> 51 | AD27: =RESULTATS!AO29 -> 2 | AF27: =RESULTATS!AS29 -> 45 | AH27: =RESULTATS!AW29 -> 11 | AJ27: =RESULTATS!BA29 -> 0 | AL27: =RESULTATS!BE29 -> 1 | AN27: =RESULTATS!BI29 -> 3 | AP27: =RESULTATS!BM29 -> 3
A28: E | B28: 03 | C28: - | D28: Raymond Aubert | E28: N | F28: =RESULTATS!E30 -> 1030 | H28: =RESULTATS!G30 -> 389 | J28: =RESULTATS!I30 -> 389 | L28: 641 | N28: =RESULTATS!O30 -> 11 | P28: =RESULTATS!M30 -> 12 | R28: =RESULTATS!Q30 -> 366 | T28: =RESULTATS!U30 -> 81 | V28: =RESULTATS!Y30 -> 0 | X28: =RESULTATS!AC30 -> 10 | Z28: =RESULTATS!AG30 -> 1 | AB28: =RESULTATS!AK30 -> 58 | AD28: =RESULTATS!AO30 -> 0 | AF28: =RESULTATS!AS30 -> 31 | AH28: =RESULTATS!AW30 -> 7 | AJ28: =RESULTATS!BA30 -> 0 | AL28: =RESULTATS!BE30 -> 2 | AN28: =RESULTATS!BI30 -> 1 | AP28: =RESULTATS!BM30 -> 0
A29: F | B29: 01 | C29: - | D29: Maison de l'enfant | E29: N | F29: =RESULTATS!E31 -> 768 | H29: =RESULTATS!G31 -> 331 | J29: =RESULTATS!I31 -> 331 | L29: 437 | N29: =RESULTATS!O31 -> 9 | P29: =RESULTATS!M31 -> 4 | R29: =RESULTATS!Q31 -> 318 | T29: =RESULTATS!U31 -> 72 | V29: =RESULTATS!Y31 -> 0 | X29: =RESULTATS!AC31 -> 9 | Z29: =RESULTATS!AG31 -> 0 | AB29: =RESULTATS!AK31 -> 48 | AD29: =RESULTATS!AO31 -> 3 | AF29: =RESULTATS!AS31 -> 37 | AH29: =RESULTATS!AW31 -> 12 | AJ29: =RESULTATS!BA31 -> 0 | AL29: =RESULTATS!BE31 -> 1 | AN29: =RESULTATS!BI31 -> 0 | AP29: =RESULTATS!BM31 -> 2
A30: F | B30: 02 | C30: - | D30: Émile Géhant | E30: N | F30: =RESULTATS!E32 -> 516 | H30: =RESULTATS!G32 -> 224 | J30: =RESULTATS!I32 -> 224 | L30: 292 | N30: =RESULTATS!O32 -> 3 | P30: =RESULTATS!M32 -> 6 | R30: =RESULTATS!Q32 -> 215 | T30: =RESULTATS!U32 -> 27 | V30: =RESULTATS!Y32 -> 0 | X30: =RESULTATS!AC32 -> 6 | Z30: =RESULTATS!AG32 -> 0 | AB30: =RESULTATS!AK32 -> 25 | AD30: =RESULTATS!AO32 -> 0 | AF30: =RESULTATS!AS32 -> 13 | AH30: =RESULTATS!AW32 -> 11 | AJ30: =RESULTATS!BA32 -> 0 | AL30: =RESULTATS!BE32 -> 0 | AN30: =RESULTATS!BI32 -> 1 | AP30: =RESULTATS!BM32 -> 1
A31: G | B31: 01 | C31: - | D31: Hubert Metzger | E31: S | F31: =RESULTATS!E34 -> 650 | H31: =RESULTATS!G34 -> 266 | J31: =RESULTATS!I34 -> 266 | L31: 384 | N31: =RESULTATS!O34 -> 7 | P31: =RESULTATS!M34 -> 7 | R31: =RESULTATS!Q34 -> 252 | T31: =RESULTATS!U34 -> 31 | V31: =RESULTATS!Y34 -> 1 | X31: =RESULTATS!AC34 -> 5 | Z31: =RESULTATS!AG34 -> 0 | AB31: =RESULTATS!AK34 -> 29 | AD31: =RESULTATS!AO34 -> 1 | AF31: =RESULTATS!AS34 -> 31 | AH31: =RESULTATS!AW34 -> 7 | AJ31: =RESULTATS!BA34 -> 0 | AL31: =RESULTATS!BE34 -> 3 | AN31: =RESULTATS!BI34 -> 0 | AP31: =RESULTATS!BM34 -> 0
A32: G | B32: 02 | C32: - | D32: Hubert Metzger | E32: S | F32: =RESULTATS!E35 -> 753 | H32: =RESULTATS!G35 -> 250 | J32: =RESULTATS!I35 -> 250 | L32: 503 | N32: =RESULTATS!O35 -> 6 | P32: =RESULTATS!M35 -> 7 | R32: =RESULTATS!Q35 -> 237 | T32: =RESULTATS!U35 -> 41 | V32: =RESULTATS!Y35 -> 0 | X32: =RESULTATS!AC35 -> 2 | Z32: =RESULTATS!AG35 -> 2 | AB32: =RESULTATS!AK35 -> 49 | AD32: =RESULTATS!AO35 -> 0 | AF32: =RESULTATS!AS35 -> 14 | AH32: =RESULTATS!AW35 -> 4 | AJ32: =RESULTATS!BA35 -> 0 | AL32: =RESULTATS!BE35 -> 1 | AN32: =RESULTATS!BI35 -> 0 | AP32: =RESULTATS!BM35 -> 2
A33: H | B33: 01 | C33: - | D33: Léonard de Vinci | E33: S | F33: =RESULTATS!E36 -> 1037 | H33: =RESULTATS!G36 -> 377 | J33: =RESULTATS!I36 -> 377 | L33: 660 | N33: =RESULTATS!O36 -> 5 | P33: =RESULTATS!M36 -> 7 | R33: =RESULTATS!Q36 -> 365 | T33: =RESULTATS!U36 -> 87 | V33: =RESULTATS!Y36 -> 0 | X33: =RESULTATS!AC36 -> 9 | Z33: =RESULTATS!AG36 -> 1 | AB33: =RESULTATS!AK36 -> 54 | AD33: =RESULTATS!AO36 -> 4 | AF33: =RESULTATS!AS36 -> 29 | AH33: =RESULTATS!AW36 -> 3 | AJ33: =RESULTATS!BA36 -> 0 | AL33: =RESULTATS!BE36 -> 1 | AN33: =RESULTATS!BI36 -> 0 | AP33: =RESULTATS!BM36 -> 0
A34: J | B34: 01 | C34: - | D34: René Rücklin | E34: S | F34: =RESULTATS!E37 -> 591 | H34: =RESULTATS!G37 -> 179 | J34: =RESULTATS!I37 -> 179 | L34: 412 | N34: =RESULTATS!O37 -> 7 | P34: =RESULTATS!M37 -> 8 | R34: =RESULTATS!Q37 -> 164 | T34: =RESULTATS!U37 -> 23 | V34: =RESULTATS!Y37 -> 0 | X34: =RESULTATS!AC37 -> 7 | Z34: =RESULTATS!AG37 -> 1 | AB34: =RESULTATS!AK37 -> 21 | AD34: =RESULTATS!AO37 -> 0 | AF34: =RESULTATS!AS37 -> 10 | AH34: =RESULTATS!AW37 -> 1 | AJ34: =RESULTATS!BA37 -> 0 | AL34: =RESULTATS!BE37 -> 1 | AN34: =RESULTATS!BI37 -> 1 | AP34: =RESULTATS!BM37 -> 1
A35: J | B35: 02 | C35: - | D35: René Rücklin | E35: S | F35: =RESULTATS!E38 -> 813 | H35: =RESULTATS!G38 -> 244 | J35: =RESULTATS!I38 -> 244 | L35: 569 | N35: =RESULTATS!O38 -> 1 | P35: =RESULTATS!M38 -> 6 | R35: =RESULTATS!Q38 -> 237 | T35: =RESULTATS!U38 -> 54 | V35: =RESULTATS!Y38 -> 0 | X35: =RESULTATS!AC38 -> 10 | Z35: =RESULTATS!AG38 -> 0 | AB35: =RESULTATS!AK38 -> 34 | AD35: =RESULTATS!AO38 -> 0 | AF35: =RESULTATS!AS38 -> 23 | AH35: =RESULTATS!AW38 -> 3 | AJ35: =RESULTATS!BA38 -> 0 | AL35: =RESULTATS!BE38 -> 1 | AN35: =RESULTATS!BI38 -> 1 | AP35: =RESULTATS!BM38 -> 0
A36: J | B36: 03 | C36: - | D36: René Rücklin | E36: S | F36: =RESULTATS!E39 -> 556 | H36: =RESULTATS!G39 -> 142 | J36: =RESULTATS!I39 -> 142 | L36: 414 | N36: =RESULTATS!O39 -> 5 | P36: =RESULTATS!M39 -> 4 | R36: =RESULTATS!Q39 -> 133 | T36: =RESULTATS!U39 -> 19 | V36: =RESULTATS!Y39 -> 0 | X36: =RESULTATS!AC39 -> 2 | Z36: =RESULTATS!AG39 -> 1 | AB36: =RESULTATS!AK39 -> 18 | AD36: =RESULTATS!AO39 -> 1 | AF36: =RESULTATS!AS39 -> 14 | AH36: =RESULTATS!AW39 -> 5 | AJ36: =RESULTATS!BA39 -> 0 | AL36: =RESULTATS!BE39 -> 1 | AN36: =RESULTATS!BI39 -> 0 | AP36: =RESULTATS!BM39 -> 0
A37: K | B37: 01 | C37: - | D37: Louis Pergaud | E37: O | F37: =RESULTATS!E41 -> 944 | H37: =RESULTATS!G41 -> 193 | J37: =RESULTATS!I41 -> 193 | L37: 751 | N37: =RESULTATS!O41 -> 8 | P37: =RESULTATS!M41 -> 4 | R37: =RESULTATS!Q41 -> 181 | T37: =RESULTATS!U41 -> 45 | V37: =RESULTATS!Y41 -> 0 | X37: =RESULTATS!AC41 -> 8 | Z37: =RESULTATS!AG41 -> 0 | AB37: =RESULTATS!AK41 -> 30 | AD37: =RESULTATS!AO41 -> 0 | AF37: =RESULTATS!AS41 -> 11 | AH37: =RESULTATS!AW41 -> 1 | AJ37: =RESULTATS!BA41 -> 0 | AL37: =RESULTATS!BE41 -> 1 | AN37: =RESULTATS!BI41 -> 0 | AP37: =RESULTATS!BM41 -> 1
A38: K | B38: 02 | C38: - | D38: Louis Pergaud | E38: O | F38: =RESULTATS!E42 -> 784 | H38: =RESULTATS!G42 -> 187 | J38: =RESULTATS!I42 -> 187 | L38: 597 | N38: =RESULTATS!O42 -> 6 | P38: =RESULTATS!M42 -> 0 | R38: =RESULTATS!Q42 -> 181 | T38: =RESULTATS!U42 -> 36 | V38: =RESULTATS!Y42 -> 0 | X38: =RESULTATS!AC42 -> 6 | Z38: =RESULTATS!AG42 -> 0 | AB38: =RESULTATS!AK42 -> 33 | AD38: =RESULTATS!AO42 -> 0 | AF38: =RESULTATS!AS42 -> 11 | AH38: =RESULTATS!AW42 -> 3 | AJ38: =RESULTATS!BA42 -> 0 | AL38: =RESULTATS!BE42 -> 0 | AN38: =RESULTATS!BI42 -> 2 | AP38: =RESULTATS!BM42 -> 0
A39: L | B39: 01 | C39: - | D39: Les Barres | E39: O | F39: =RESULTATS!E43 -> 1314 | H39: =RESULTATS!G43 -> 500 | J39: =RESULTATS!I43 -> 500 | L39: 814 | N39: =RESULTATS!O43 -> 5 | P39: =RESULTATS!M43 -> 11 | R39: =RESULTATS!Q43 -> 484 | T39: =RESULTATS!U43 -> 99 | V39: =RESULTATS!Y43 -> 2 | X39: =RESULTATS!AC43 -> 12 | Z39: =RESULTATS!AG43 -> 1 | AB39: =RESULTATS!AK43 -> 87 | AD39: =RESULTATS!AO43 -> 4 | AF39: =RESULTATS!AS43 -> 29 | AH39: =RESULTATS!AW43 -> 19 | AJ39: =RESULTATS!BA43 -> 1 | AL39: =RESULTATS!BE43 -> 2 | AN39: =RESULTATS!BI43 -> 1 | AP39: =RESULTATS!BM43 -> 2
A40: L | B40: 02 | C40: - | D40: Les Barres | E40: O | F40: =RESULTATS!E44 -> 1146 | H40: =RESULTATS!G44 -> 507 | J40: =RESULTATS!I44 -> 507 | L40: 639 | N40: =RESULTATS!O44 -> 15 | P40: =RESULTATS!M44 -> 5 | R40: =RESULTATS!Q44 -> 487 | T40: =RESULTATS!U44 -> 91 | V40: =RESULTATS!Y44 -> 0 | X40: =RESULTATS!AC44 -> 8 | Z40: =RESULTATS!AG44 -> 0 | AB40: =RESULTATS!AK44 -> 74 | AD40: =RESULTATS!AO44 -> 3 | AF40: =RESULTATS!AS44 -> 36 | AH40: =RESULTATS!AW44 -> 14 | AJ40: =RESULTATS!BA44 -> 0 | AL40: =RESULTATS!BE44 -> 3 | AN40: =RESULTATS!BI44 -> 0 | AP40: =RESULTATS!BM44 -> 4
D42: TOTAUX | F42: =SUM(F13:F41) -> 26563 | H42: =SUM(H13:H41) -> 10250 | J42: =SUM(J13:J41) -> 10250 | L42: =SUM(L13:L41) -> 16313 | N42: =SUM(N13:N41) -> 192 | P42: =SUM(P13:P41) -> 185 | R42: =SUM(R13:R41) -> 9873 | T42: =SUM(T13:T41) -> 2427 | V42: =SUM(V13:V41) -> 12 | X42: =SUM(X13:X41) -> 158 | Z42: =SUM(Z13:Z41) -> 16 | AB42: =SUM(AB13:AB41) -> 1486 | AD42: =SUM(AD13:AD41) -> 44 | AF42: =SUM(AF13:AF41) -> 974 | AH42: =SUM(AH13:AH41) -> 209 | AJ42: =SUM(AJ13:AJ41) -> 5 | AL42: =SUM(AL13:AL41) -> 59 | AN42: =SUM(AN13:AN41) -> 22 | AP42: =SUM(AP13:AP41) -> 43
R46: R E C E N S E M E N T par B U R E A U
B49: Listes 13 à 23
T51: Liste | V51: Liste | X51: Liste | Z51: Liste | AB51: Liste | AD51: Liste | AF51: Liste | AH51: Liste | AJ51: Liste | AL51: Liste | AN51: Liste
D52: BUREAUX | F52: Inscrits | H52: Emargements | J52: Votants | L52: Abstentions | N52: Nuls | P52: Blancs | R52: Exprimés | T52: =CONCATENATE(RESULTATS!U$59," ",RESULTATS!U$60) -> Xavier DESSAIGNE | V52: =CONCATENATE(RESULTATS!Y$59," ",RESULTATS!Y$60) -> Sandrine PICO | X52: =CONCATENATE(RESULTATS!AC$59," ",RESULTATS!AC$60) -> Florian PHILIPPOT | Z52: =CONCATENATE(RESULTATS!AG$59," ",RESULTATS!AG$60) -> Sandrine BELIER | AB52: =CONCATENATE(RESULTATS!AK$59," ",RESULTATS!AK$60) -> Ismaël BOUDJEKADA | AD52: =CONCATENATE(RESULTATS!AO$59," ",RESULTATS!AO$60) -> Laure FERRARI | AF52: =CONCATENATE(RESULTATS!AS$59," ",RESULTATS!AS$60) -> Antonio SANCHEZ | AH52: =CONCATENATE(RESULTATS!AW$59," ",RESULTATS!AW$60) -> Isabelle MAURER | AJ52: =CONCATENATE(RESULTATS!BA$59," ",RESULTATS!BA$60) -> Yannick HERVE | AL52: =CONCATENATE(RESULTATS!BE$59," ",RESULTATS!BE$60) -> Gabriel AMARD | AN52: =CONCATENATE(RESULTATS!BI$59," ",RESULTATS!BI$60) -> Florence LHOTE | AP52: =CONCATENATE(RESULTATS!BM$59," ",RESULTATS!BM$60) -> 
D53: 1 | F53: 2 | H53: 3 | J53: 4 | L53: 5 | N53: 6 | P53: 7 | R53: 8 | T53: 9 | V53: 10 | X53: 11 | Z53: 12 | AB53: 13 | AD53: 14 | AF53: 15 | AH53: 16 | AJ53: 17 | AL53: 18 | AN53: 19
A56: A | B56: 01 | C56: - | D56: Hôtel de Ville | E56: E | F56: =RESULTATS!E13 -> 856 | H56: =RESULTATS!G13 -> 368 | J56: =RESULTATS!I13 -> 368 | L56: =IF(ISNUMBER(J13),F56-J56,"") -> 488 | N56: =RESULTATS!O13 -> 4 | P56: =RESULTATS!M13 -> 4 | R56: =RESULTATS!Q13 -> 360 | T56: =RESULTATS!U63 -> 3 | V56: =RESULTATS!Y63 -> 0 | X56: =RESULTATS!AC63 -> 58 | Z56: =RESULTATS!AG63 -> 31 | AB56: =RESULTATS!AK63 -> 0 | AD56: =RESULTATS!AO63 -> 18 | AF56: =RESULTATS!AS63 -> 0 | AH56: =RESULTATS!AW63 -> 21 | AJ56: =RESULTATS!BA63 -> 3 | AL56: =RESULTATS!BE63 ->  | AN56: =RESULTATS!BI63 -> 2
A57: A | B57: 02 | C57: - | D57: Salle des fêtes | E57: E | F57: =RESULTATS!E14 -> 934 | H57: =RESULTATS!G14 -> 476 | J57: =RESULTATS!I14 -> 476 | L57: =IF(ISNUMBER(J14),F57-J57,"") -> 458 | N57: =RESULTATS!O14 -> 10 | P57: =RESULTATS!M14 -> 7 | R57: =RESULTATS!Q14 -> 459 | T57: =RESULTATS!U64 -> 7 | V57: =RESULTATS!Y64 -> 1 | X57: =RESULTATS!AC64 -> 66 | Z57: =RESULTATS!AG64 -> 32 | AB57: =RESULTATS!AK64 -> 0 | AD57: =RESULTATS!AO64 -> 16 | AF57: =RESULTATS!AS64 -> 0 | AH57: =RESULTATS!AW64 -> 7 | AJ57: =RESULTATS!BA64 -> 2 | AL57: =RESULTATS!BE64 -> 30 | AN57: =RESULTATS!BI64 -> 2
A58: B | B58: 01 | C58: - | D58: Victor Hugo | E58: E | F58: =RESULTATS!E15 -> 1068 | H58: =RESULTATS!G15 -> 434 | J58: =RESULTATS!I15 -> 434 | L58: 634 | N58: =RESULTATS!O15 -> 3 | P58: =RESULTATS!M15 -> 4 | R58: =RESULTATS!Q15 -> 427 | T58: =RESULTATS!U65 -> 4 | V58: =RESULTATS!Y65 -> 0 | X58: =RESULTATS!AC65 -> 57 | Z58: =RESULTATS!AG65 -> 33 | AB58: =RESULTATS!AK65 -> 0 | AD58: =RESULTATS!AO65 -> 16 | AF58: =RESULTATS!AS65 -> 0 | AH58: =RESULTATS!AW65 -> 9 | AJ58: =RESULTATS!BA65 -> 6 | AL58: =RESULTATS!BE65 -> 25 | AN58: =RESULTATS!BI65 -> 2
A59: B | B59: 02 | C59: - | D59: Victor Hugo | E59: E | F59: =RESULTATS!E16 -> 1149 | H59: =RESULTATS!G16 -> 524 | J59: =RESULTATS!I16 -> 524 | L59: 625 | N59: =RESULTATS!O16 -> 7 | P59: =RESULTATS!M16 -> 1 | R59: =RESULTATS!Q16 -> 516 | T59: =RESULTATS!U66 -> 4 | V59: =RESULTATS!Y66 -> 0 | X59: =RESULTATS!AC66 -> 86 | Z59: =RESULTATS!AG66 -> 59 | AB59: =RESULTATS!AK66 -> 0 | AD59: =RESULTATS!AO66 -> 19 | AF59: =RESULTATS!AS66 -> 0 | AH59: =RESULTATS!AW66 -> 17 | AJ59: =RESULTATS!BA66 -> 1 | AL59: =RESULTATS!BE66 -> 20 | AN59: =RESULTATS!BI66 -> 1
A60: M | B60: 01 | C60: - | D60: Saint-Exupéry | E60: E | F60: =RESULTATS!E17 -> 1300 | H60: =RESULTATS!G17 -> 274 | J60: =RESULTATS!I17 -> 274 | L60: 1026 | N60: =RESULTATS!O17 -> 14 | P60: =RESULTATS!M17 -> 4 | R60: =RESULTATS!Q17 -> 256 | T60: =RESULTATS!U67 -> 1 | V60: =RESULTATS!Y67 -> 0 | X60: =RESULTATS!AC67 -> 63 | Z60: =RESULTATS!AG67 -> 11 | AB60: =RESULTATS!AK67 -> 0 | AD60: =RESULTATS!AO67 -> 5 | AF60: =RESULTATS!AS67 -> 0 | AH60: =RESULTATS!AW67 -> 3 | AJ60: =RESULTATS!BA67 -> 1 | AL60: =RESULTATS!BE67 -> 33 | AN60: =RESULTATS!BI67 -> 2
A61: N | B61: 01 | C61: - | D61: Jean Moulin | E61: E | F61: =RESULTATS!E18 -> 1451 | H61: =RESULTATS!G18 -> 603 | J61: =RESULTATS!I18 -> 603 | L61: 848 | N61: =RESULTATS!O18 -> 8 | P61: =RESULTATS!M18 -> 12 | R61: =RESULTATS!Q18 -> 583 | T61: =RESULTATS!U68 -> 6 | V61: =RESULTATS!Y68 -> 0 | X61: =RESULTATS!AC68 -> 149 | Z61: =RESULTATS!AG68 -> 46 | AB61: =RESULTATS!AK68 -> 0 | AD61: =RESULTATS!AO68 -> 19 | AF61: =RESULTATS!AS68 -> 0 | AH61: =RESULTATS!AW68 -> 13 | AJ61: =RESULTATS!BA68 -> 2 | AL61: =RESULTATS!BE68 -> 34 | AN61: =RESULTATS!BI68 -> 3
A62: N | B62: 02 | C62: - | D62: Cité des Associations | E62: E | F62: =RESULTATS!E19 -> 899 | H62: =RESULTATS!G19 -> 409 | J62: =RESULTATS!I19 -> 409 | L62: 490 | N62: =RESULTATS!O19 -> 7 | P62: =RESULTATS!M19 -> 12 | R62: =RESULTATS!Q19 -> 390 | T62: =RESULTATS!U69 -> 6 | V62: =RESULTATS!Y69 -> 0 | X62: =RESULTATS!AC69 -> 83 | Z62: =RESULTATS!AG69 -> 38 | AB62: =RESULTATS!AK69 -> 0 | AD62: =RESULTATS!AO69 -> 8 | AF62: =RESULTATS!AS69 -> 0 | AH62: =RESULTATS!AW69 -> 8 | AJ62: =RESULTATS!BA69 -> 3 | AL62: =RESULTATS!BE69 -> 23 | AN62: =RESULTATS!BI69 -> 0
A63: C | B63: 01 | C63: - | D63: Victor Schoelcher | E63: C | F63: =RESULTATS!E21 -> 1194 | H63: =RESULTATS!G21 -> 487 | J63: =RESULTATS!I21 -> 487 | L63: 707 | N63: =RESULTATS!O21 -> 4 | P63: =RESULTATS!M21 -> 8 | R63: =RESULTATS!Q21 -> 475 | T63: =RESULTATS!U71 -> 1 | V63: =RESULTATS!Y71 -> 0 | X63: =RESULTATS!AC71 -> 89 | Z63: =RESULTATS!AG71 -> 37 | AB63: =RESULTATS!AK71 -> 0 | AD63: =RESULTATS!AO71 -> 19 | AF63: =RESULTATS!AS71 -> 0 | AH63: =RESULTATS!AW71 -> 11 | AJ63: =RESULTATS!BA71 -> 4 | AL63: =RESULTATS!BE71 -> 18 | AN63: =RESULTATS!BI71 -> 1
A64: C | B64: 02 | C64: - | D64: Maison du Peuple | E64: C | F64: =RESULTATS!E22 -> 749 | H64: =RESULTATS!G22 -> 359 | J64: =RESULTATS!I22 -> 359 | L64: 390 | N64: =RESULTATS!O22 -> 8 | P64: =RESULTATS!M22 -> 4 | R64: =RESULTATS!Q22 -> 347 | T64: =RESULTATS!U72 -> 6 | V64: =RESULTATS!Y72 -> 0 | X64: =RESULTATS!AC72 -> 57 | Z64: =RESULTATS!AG72 -> 23 | AB64: =RESULTATS!AK72 -> 0 | AD64: =RESULTATS!AO72 -> 17 | AF64: =RESULTATS!AS72 -> 0 | AH64: =RESULTATS!AW72 -> 12 | AJ64: =RESULTATS!BA72 -> 0 | AL64: =RESULTATS!BE72 -> 20 | AN64: =RESULTATS!BI72 -> 4
A65: C | B65: 03 | C65: - | D65: Maison du Peuple | E65: C | F65: =RESULTATS!E23 -> 909 | H65: =RESULTATS!G23 -> 426 | J65: =RESULTATS!I23 -> 426 | L65: 483 | N65: =RESULTATS!O23 -> 5 | P65: =RESULTATS!M23 -> 6 | R65: =RESULTATS!Q23 -> 415 | T65: =RESULTATS!U73 -> 6 | V65: =RESULTATS!Y73 -> 0 | X65: =RESULTATS!AC73 -> 66 | Z65: =RESULTATS!AG73 -> 36 | AB65: =RESULTATS!AK73 -> 0 | AD65: =RESULTATS!AO73 -> 9 | AF65: =RESULTATS!AS73 -> 0 | AH65: =RESULTATS!AW73 -> 10 | AJ65: =RESULTATS!BA73 -> 0 | AL65: =RESULTATS!BE73 -> 16 | AN65: =RESULTATS!BI73 -> 1
A66: D | B66: 01 | C66: - | D66: Châteaudun | E66: C | F66: =RESULTATS!E24 -> 1058 | H66: =RESULTATS!G24 -> 444 | J66: =RESULTATS!I24 -> 444 | L66: 614 | N66: =RESULTATS!O24 -> 7 | P66: =RESULTATS!M24 -> 6 | R66: =RESULTATS!Q24 -> 431 | T66: =RESULTATS!U74 -> 4 | V66: =RESULTATS!Y74 -> 0 | X66: =RESULTATS!AC74 -> 84 | Z66: =RESULTATS!AG74 -> 32 | AB66: =RESULTATS!AK74 -> 0 | AD66: =RESULTATS!AO74 -> 20 | AF66: =RESULTATS!AS74 -> 0 | AH66: =RESULTATS!AW74 -> 10 | AJ66: =RESULTATS!BA74 -> 3 | AL66: =RESULTATS!BE74 -> 24 | AN66: =RESULTATS!BI74 -> 2
A67: D | B67: 02 | C67: - | D67: Châteaudun | E67: C | F67: =RESULTATS!E25 -> 827 | H67: =RESULTATS!G25 -> 365 | J67: =RESULTATS!I25 -> 365 | L67: 462 | N67: =RESULTATS!O25 -> 4 | P67: =RESULTATS!M25 -> 5 | R67: =RESULTATS!Q25 -> 356 | T67: =RESULTATS!U75 -> 6 | V67: =RESULTATS!Y75 -> 0 | X67: =RESULTATS!AC75 -> 84 | Z67: =RESULTATS!AG75 -> 32 | AB67: =RESULTATS!AK75 -> 0 | AD67: =RESULTATS!AO75 -> 10 | AF67: =RESULTATS!AS75 -> 0 | AH67: =RESULTATS!AW75 -> 5 | AJ67: =RESULTATS!BA75 -> 0 | AL67: =RESULTATS!BE75 -> 18 | AN67: =RESULTATS!BI75 -> 0
A68: D | B68: 03 | C68: - | D68: Châteaudun | E68: C | F68: =RESULTATS!E26 -> 895 | H68: =RESULTATS!G26 -> 365 | J68: =RESULTATS!I26 -> 365 | L68: 530 | N68: =RESULTATS!O26 -> 7 | P68: =RESULTATS!M26 -> 8 | R68: =RESULTATS!Q26 -> 350 | T68: =RESULTATS!U76 -> 4 | V68: =RESULTATS!Y76 -> 0 | X68: =RESULTATS!AC76 -> 103 | Z68: =RESULTATS!AG76 -> 21 | AB68: =RESULTATS!AK76 -> 0 | AD68: =RESULTATS!AO76 -> 9 | AF68: =RESULTATS!AS76 -> 0 | AH68: =RESULTATS!AW76 -> 5 | AJ68: =RESULTATS!BA76 -> 2 | AL68: =RESULTATS!BE76 -> 25 | AN68: =RESULTATS!BI76 -> 0
A69: E | B69: 01 | C69: - | D69: Raymond Aubert | E69: N | F69: =RESULTATS!E28 -> 1168 | H69: =RESULTATS!G28 -> 475 | J69: =RESULTATS!I28 -> 475 | L69: 693 | N69: =RESULTATS!O28 -> 8 | P69: =RESULTATS!M28 -> 10 | R69: =RESULTATS!Q28 -> 457 | T69: =RESULTATS!U78 -> 3 | V69: =RESULTATS!Y78 -> 0 | X69: =RESULTATS!AC78 -> 131 | Z69: =RESULTATS!AG78 -> 30 | AB69: =RESULTATS!AK78 -> 0 | AD69: =RESULTATS!AO78 -> 16 | AF69: =RESULTATS!AS78 -> 0 | AH69: =RESULTATS!AW78 -> 12 | AJ69: =RESULTATS!BA78 -> 0 | AL69: =RESULTATS!BE78 -> 23 | AN69: =RESULTATS!BI78 -> 0
A70: E | B70: 02 | C70: - | D70: Raymond Aubert | E70: N | F70: =RESULTATS!E29 -> 1204 | H70: =RESULTATS!G29 -> 452 | J70: =RESULTATS!I29 -> 452 | L70: 752 | N70: =RESULTATS!O29 -> 8 | P70: =RESULTATS!M29 -> 13 | R70: =RESULTATS!Q29 -> 431 | T70: =RESULTATS!U79 -> 4 | V70: =RESULTATS!Y79 -> 0 | X70: =RESULTATS!AC79 -> 122 | Z70: =RESULTATS!AG79 -> 31 | AB70: =RESULTATS!AK79 -> 0 | AD70: =RESULTATS!AO79 -> 9 | AF70: =RESULTATS!AS79 -> 0 | AH70: =RESULTATS!AW79 -> 5 | AJ70: =RESULTATS!BA79 -> 2 | AL70: =RESULTATS!BE79 -> 14 | AN70: =RESULTATS!BI79 -> 1
A71: E | B71: 03 | C71: - | D71: Raymond Aubert | E71: N | F71: =RESULTATS!E30 -> 1030 | H71: =RESULTATS!G30 -> 389 | J71: =RESULTATS!I30 -> 389 | L71: 641 | N71: =RESULTATS!O30 -> 11 | P71: =RESULTATS!M30 -> 12 | R71: =RESULTATS!Q30 -> 366 | T71: =RESULTATS!U80 -> 1 | V71: =RESULTATS!Y80 -> 0 | X71: =RESULTATS!AC80 -> 103 | Z71: =RESULTATS!AG80 -> 25 | AB71: =RESULTATS!AK80 -> 0 | AD71: =RESULTATS!AO80 -> 12 | AF71: =RESULTATS!AS80 -> 0 | AH71: =RESULTATS!AW80 -> 11 | AJ71: =RESULTATS!BA80 -> 1 | AL71: =RESULTATS!BE80 -> 22 | AN71: =RESULTATS!BI80 -> 0
A72: F | B72: 01 | C72: - | D72: Maison de l'enfant | E72: N | F72: =RESULTATS!E31 -> 768 | H72: =RESULTATS!G31 -> 331 | J72: =RESULTATS!I31 -> 331 | L72: 437 | N72: =RESULTATS!O31 -> 9 | P72: =RESULTATS!M31 -> 4 | R72: =RESULTATS!Q31 -> 318 | T72: =RESULTATS!U81 -> 2 | V72: =RESULTATS!Y81 -> 0 | X72: =RESULTATS!AC81 -> 66 | Z72: =RESULTATS!AG81 -> 21 | AB72: =RESULTATS!AK81 -> 0 | AD72: =RESULTATS!AO81 -> 8 | AF72: =RESULTATS!AS81 -> 0 | AH72: =RESULTATS!AW81 -> 10 | AJ72: =RESULTATS!BA81 -> 2 | AL72: =RESULTATS!BE81 -> 25 | AN72: =RESULTATS!BI81 -> 0
A73: F | B73: 02 | C73: - | D73: Émile Géhant | E73: N | F73: =RESULTATS!E32 -> 516 | H73: =RESULTATS!G32 -> 224 | J73: =RESULTATS!I32 -> 224 | L73: 292 | N73: =RESULTATS!O32 -> 3 | P73: =RESULTATS!M32 -> 6 | R73: =RESULTATS!Q32 -> 215 | T73: =RESULTATS!U82 -> 1 | V73: =RESULTATS!Y82 -> 0 | X73: =RESULTATS!AC82 -> 71 | Z73: =RESULTATS!AG82 -> 22 | AB73: =RESULTATS!AK82 -> 0 | AD73: =RESULTATS!AO82 -> 4 | AF73: =RESULTATS!AS82 -> 0 | AH73: =RESULTATS!AW82 -> 2 | AJ73: =RESULTATS!BA82 -> 3 | AL73: =RESULTATS!BE82 -> 27 | AN73: =RESULTATS!BI82 -> 1
A74: G | B74: 01 | C74: - | D74: Hubert Metzger | E74: S | F74: =RESULTATS!E34 -> 650 | H74: =RESULTATS!G34 -> 266 | J74: =RESULTATS!I34 -> 266 | L74: 384 | N74: =RESULTATS!O34 -> 7 | P74: =RESULTATS!M34 -> 7 | R74: =RESULTATS!Q34 -> 252 | T74: =RESULTATS!U84 -> 1 | V74: =RESULTATS!Y84 -> 0 | X74: =RESULTATS!AC84 -> 67 | Z74: =RESULTATS!AG84 -> 29 | AB74: =RESULTATS!AK84 -> 0 | AD74: =RESULTATS!AO84 -> 7 | AF74: =RESULTATS!AS84 -> 0 | AH74: =RESULTATS!AW84 -> 4 | AJ74: =RESULTATS!BA84 -> 4 | AL74: =RESULTATS!BE84 -> 31 | AN74: =RESULTATS!BI84 -> 1
A75: G | B75: 02 | C75: - | D75: Hubert Metzger | E75: S | F75: =RESULTATS!E35 -> 753 | H75: =RESULTATS!G35 -> 250 | J75: =RESULTATS!I35 -> 250 | L75: 503 | N75: =RESULTATS!O35 -> 6 | P75: =RESULTATS!M35 -> 7 | R75: =RESULTATS!Q35 -> 237 | T75: =RESULTATS!U85 -> 0 | V75: =RESULTATS!Y85 -> 0 | X75: =RESULTATS!AC85 -> 75 | Z75: =RESULTATS!AG85 -> 11 | AB75: =RESULTATS!AK85 -> 0 | AD75: =RESULTATS!AO85 -> 4 | AF75: =RESULTATS!AS85 -> 0 | AH75: =RESULTATS!AW85 -> 9 | AJ75: =RESULTATS!BA85 -> 1 | AL75: =RESULTATS!BE85 -> 22 | AN75: =RESULTATS!BI85 -> 0
A76: H | B76: 01 | C76: - | D76: Léonard de Vinci | E76: S | F76: =RESULTATS!E36 -> 1037 | H76: =RESULTATS!G36 -> 377 | J76: =RESULTATS!I36 -> 377 | L76: 660 | N76: =RESULTATS!O36 -> 5 | P76: =RESULTATS!M36 -> 7 | R76: =RESULTATS!Q36 -> 365 | T76: =RESULTATS!U86 -> 5 | V76: =RESULTATS!Y86 -> 0 | X76: =RESULTATS!AC86 -> 96 | Z76: =RESULTATS!AG86 -> 30 | AB76: =RESULTATS!AK86 -> 0 | AD76: =RESULTATS!AO86 -> 11 | AF76: =RESULTATS!AS86 -> 0 | AH76: =RESULTATS!AW86 -> 8 | AJ76: =RESULTATS!BA86 -> 1 | AL76: =RESULTATS!BE86 -> 26 | AN76: =RESULTATS!BI86 -> 0
A77: J | B77: 01 | C77: - | D77: René Rücklin | E77: S | F77: =RESULTATS!E37 -> 591 | H77: =RESULTATS!G37 -> 179 | J77: =RESULTATS!I37 -> 179 | L77: 412 | N77: =RESULTATS!O37 -> 7 | P77: =RESULTATS!M37 -> 8 | R77: =RESULTATS!Q37 -> 164 | T77: =RESULTATS!U87 -> 1 | V77: =RESULTATS!Y87 -> 0 | X77: =RESULTATS!AC87 -> 66 | Z77: =RESULTATS!AG87 -> 8 | AB77: =RESULTATS!AK87 -> 0 | AD77: =RESULTATS!AO87 -> 5 | AF77: =RESULTATS!AS87 -> 0 | AH77: =RESULTATS!AW87 -> 2 | AJ77: =RESULTATS!BA87 -> 4 | AL77: =RESULTATS!BE87 -> 12 | AN77: =RESULTATS!BI87 -> 0
A78: J | B78: 02 | C78: - | D78: René Rücklin | E78: S | F78: =RESULTATS!E38 -> 813 | H78: =RESULTATS!G38 -> 244 | J78: =RESULTATS!I38 -> 244 | L78: 569 | N78: =RESULTATS!O38 -> 1 | P78: =RESULTATS!M38 -> 6 | R78: =RESULTATS!Q38 -> 237 | T78: =RESULTATS!U88 -> 1 | V78: =RESULTATS!Y88 -> 0 | X78: =RESULTATS!AC88 -> 69 | Z78: =RESULTATS!AG88 -> 11 | AB78: =RESULTATS!AK88 -> 0 | AD78: =RESULTATS!AO88 -> 6 | AF78: =RESULTATS!AS88 -> 0 | AH78: =RESULTATS!AW88 -> 2 | AJ78: =RESULTATS!BA88 -> 1 | AL78: =RESULTATS!BE88 -> 20 | AN78: =RESULTATS!BI88 -> 1
A79: J | B79: 03 | C79: - | D79: René Rücklin | E79: S | F79: =RESULTATS!E39 -> 556 | H79: =RESULTATS!G39 -> 142 | J79: =RESULTATS!I39 -> 142 | L79: 414 | N79: =RESULTATS!O39 -> 5 | P79: =RESULTATS!M39 -> 4 | R79: =RESULTATS!Q39 -> 133 | T79: =RESULTATS!U89 -> 2 | V79: =RESULTATS!Y89 -> 0 | X79: =RESULTATS!AC89 -> 32 | Z79: =RESULTATS!AG89 -> 10 | AB79: =RESULTATS!AK89 -> 0 | AD79: =RESULTATS!AO89 -> 2 | AF79: =RESULTATS!AS89 -> 0 | AH79: =RESULTATS!AW89 -> 3 | AJ79: =RESULTATS!BA89 -> 0 | AL79: =RESULTATS!BE89 -> 23 | AN79: =RESULTATS!BI89 -> 0
A80: K | B80: 01 | C80: - | D80: Louis Pergaud | E80: O | F80: =RESULTATS!E41 -> 944 | H80: =RESULTATS!G41 -> 193 | J80: =RESULTATS!I41 -> 193 | L80: 751 | N80: =RESULTATS!O41 -> 8 | P80: =RESULTATS!M41 -> 4 | R80: =RESULTATS!Q41 -> 181 | T80: =RESULTATS!U91 -> 0 | V80: =RESULTATS!Y91 -> 0 | X80: =RESULTATS!AC91 -> 46 | Z80: =RESULTATS!AG91 -> 8 | AB80: =RESULTATS!AK91 -> 0 | AD80: =RESULTATS!AO91 -> 8 | AF80: =RESULTATS!AS91 -> 0 | AH80: =RESULTATS!AW91 -> 3 | AJ80: =RESULTATS!BA91 -> 2 | AL80: =RESULTATS!BE91 -> 17 | AN80: =RESULTATS!BI91 -> 0
A81: K | B81: 02 | C81: - | D81: Louis Pergaud | E81: O | F81: =RESULTATS!E42 -> 784 | H81: =RESULTATS!G42 -> 187 | J81: =RESULTATS!I42 -> 187 | L81: 597 | N81: =RESULTATS!O42 -> 6 | P81: =RESULTATS!M42 -> 0 | R81: =RESULTATS!Q42 -> 181 | T81: =RESULTATS!U92 -> 1 | V81: =RESULTATS!Y92 -> 0 | X81: =RESULTATS!AC92 -> 48 | Z81: =RESULTATS!AG92 -> 15 | AB81: =RESULTATS!AK92 -> 0 | AD81: =RESULTATS!AO92 -> 4 | AF81: =RESULTATS!AS92 -> 0 | AH81: =RESULTATS!AW92 -> 8 | AJ81: =RESULTATS!BA92 -> 1 | AL81: =RESULTATS!BE92 -> 13 | AN81: =RESULTATS!BI92 -> 0
A82: L | B82: 01 | C82: - | D82: Les Barres | E82: O | F82: =RESULTATS!E43 -> 1314 | H82: =RESULTATS!G43 -> 500 | J82: =RESULTATS!I43 -> 500 | L82: 814 | N82: =RESULTATS!O43 -> 5 | P82: =RESULTATS!M43 -> 11 | R82: =RESULTATS!Q43 -> 484 | T82: =RESULTATS!U93 -> 2 | V82: =RESULTATS!Y93 -> 0 | X82: =RESULTATS!AC93 -> 111 | Z82: =RESULTATS!AG93 -> 37 | AB82: =RESULTATS!AK93 -> 0 | AD82: =RESULTATS!AO93 -> 7 | AF82: =RESULTATS!AS93 -> 0 | AH82: =RESULTATS!AW93 -> 22 | AJ82: =RESULTATS!BA93 -> 3 | AL82: =RESULTATS!BE93 -> 40 | AN82: =RESULTATS!BI93 -> 3
A83: L | B83: 02 | C83: - | D83: Les Barres | E83: O | F83: =RESULTATS!E44 -> 1146 | H83: =RESULTATS!G44 -> 507 | J83: =RESULTATS!I44 -> 507 | L83: 639 | N83: =RESULTATS!O44 -> 15 | P83: =RESULTATS!M44 -> 5 | R83: =RESULTATS!Q44 -> 487 | T83: =RESULTATS!U94 -> 12 | V83: =RESULTATS!Y94 -> 0 | X83: =RESULTATS!AC94 -> 122 | Z83: =RESULTATS!AG94 -> 44 | AB83: =RESULTATS!AK94 -> 0 | AD83: =RESULTATS!AO94 -> 17 | AF83: =RESULTATS!AS94 -> 0 | AH83: =RESULTATS!AW94 -> 17 | AJ83: =RESULTATS!BA94 -> 2 | AL83: =RESULTATS!BE94 -> 39 | AN83: =RESULTATS!BI94 -> 1
D85: TOTAUX | F85: =SUM(F56:F84) -> 26563 | H85: =SUM(H56:H84) -> 10250 | J85: =SUM(J56:J84) -> 10250 | L85: =SUM(L56:L84) -> 16313 | N85: =SUM(N56:N84) -> 192 | P85: =SUM(P56:P84) -> 185 | R85: =SUM(R56:R84) -> 9873 | T85: =SUM(T56:T84) -> 94 | V85: =SUM(V56:V84) -> 1 | X85: =SUM(X56:X84) -> 2270 | Z85: =SUM(Z56:Z84) -> 763 | AB85: =SUM(AB56:AB84) -> 0 | AD85: =SUM(AD56:AD84) -> 305 | AF85: =SUM(AF56:AF84) -> 0 | AH85: =SUM(AH56:AH84) -> 249 | AJ85: =SUM(AJ56:AJ84) -> 54 | AL85: =SUM(AL56:AL84) -> 640 | AN85: =SUM(AN56:AN84) -> 28

Sheet RESULTATS
U1: ÉLECTIONS EUROPÉENNES
A2: RÉSULTATS
BK3: 25 mai 2014
Z4: =COUNTIF($I$13:$I$19,">0")+COUNTIF($I$21:$I$26,">0")+COUNTIF($I$28:$I$32,">0")+COUNTIF($I$34:$I$39,">0")+COUNTIF($I$41:$I$44,">0") -> 28 | AC4: Bureaux sur | AE4: 28
E6: Listes 1 à 12 | Z6: =SUMIF($I$13:$I$19,">0",$E$13:$E$19)+SUMIF($I$21:$I$26,">0",$E$21:$E$26)+SUMIF($I$28:$I$32,">0",$E$28:$E$32)+SUMIF($I$34:$I$39,">0",$E$34:$E$39)+SUMIF($I$41:$I$44,">0",$E$41:$E$44) -> 26563 | AC6: Inscrits sur | AE6: =$E$48 -> 26563 | AG6: soit | AH6: : | AI6: =Z6/AE6 -> 1
S9: % / | U9: =Candidats!A2 -> Nadine | Y9: =Candidats!A3 -> Joe | AC9: =Candidats!A4 -> Claire | AG9: =Candidats!A5 -> Christian | AK9: =Candidats!A6 -> Edouard | AO9: =Candidats!A7 -> Gaël | AS9: =Candidats!A8 -> Nathalie | AW9: =Candidats!A9 -> Julien | BA9: =Candidats!A10 -> Philippe | BE9: =Candidats!A11 -> Antoine | BI9: =Candidats!A12 -> Geneviève | BM9: =Candidats!A13 -> Isabelle
D10: BUREAUX | E10: Inscrits | G10: Émarg. | I10: Votants | K10: Particip. | M10: Blancs | O10: Nuls | Q10: Exprimés | S10: Inscrits | U10: =Candidats!B2 -> MORANO | W10: % | Y10: =Candidats!B3 -> LABAT | AA10: % | AC10: =Candidats!B4 -> ROCHER | AE10: % | AG10: =Candidats!B5 -> D'ANDLAU-HOMBOURG | AI10: % | AK10: =Candidats!B6 -> MARTIN | AM10: % | AO10: =Candidats!B7 -> DIAFERIA | AQ10: % | AS10: =Candidats!B8 -> GRIESBECK | AU10: % | AW10: =Candidats!B9 -> GONZALEZ | AY10: % | BA10: =Candidats!B10 -> COUKA | BC10: % | BE10: =Candidats!B11 -> RENARD | BG10: % | BI10: =Candidats!B12 -> MARTIN | BK10: % | BM10: =Candidats!B13 -> VÉRIN | BO10: %
B13: A1 - Hôtel de Ville | E13: =IF('A1'!$E7="","",'A1'!$E7) -> 856 | G13: =IF('A1'!$E8="","",'A1'!$E8) -> 368 | I13: =IF('A1'!$E9="","",'A1'!$E9) -> 368 | K13: =IF(I13=""," ",I13/$E13) -> 0.4299065421 | M13: =IF('A1'!$E10="","",'A1'!$E10) -> 4 | O13: =IF('A1'!$E11="","",'A1'!$E11) -> 4 | Q13: =IF('A1'!$E12="","",'A1'!$E12) -> 360 | S13: =IF(Q13=""," ",Q13/$E13) -> 0.4205607477 | U13: =IF('A1'!$E13="","",'A1'!$E13) -> 87 | W13: =IF(U13=""," ",U13/$Q13) -> 0.2416666667 | Y13: =IF('A1'!$E14="","",'A1'!$E14) -> 1 | AA13: =IF(Y13=""," ",Y13/$Q13) -> 0.002777777778 | AC13: =IF('A1'!$E15="","",'A1'!$E15) -> 5 | AE13: =IF(AC13=""," ",AC13/$Q13) -> 0.01388888889 | AG13: =IF('A1'!$E16="","",'A1'!$E16) -> 0 | AI13: =IF(AG13=""," ",AG13/$Q13) -> 0 | AK13: =IF('A1'!$E17="","",'A1'!$E17) -> 57 | AM13: =IF(AK13=""," ",AK13/$Q13) -> 0.1583333333 | AO13: =IF('A1'!$E18="","",'A1'!$E18) -> 1 | AQ13: =IF(AO13=""," ",AO13/$Q13) -> 0.002777777778 | AS13: =IF('A1'!$E19="","",'A1'!$E19) -> 42 | AU13: =IF(AS13=""," ",AS13/$Q13) -> 0.1166666667 | AW13: =IF('A1'!$E20="","",'A1'!$E20) -> 7 | AY13: =IF(AW13=""," ",AW13/$Q13) -> 0.01944444444 | BA13: =IF('A1'!$E21="","",'A1'!$E21) -> 0 | BC13: =IF(BA13=""," ",BA13/$Q13) -> 0 | BE13: =IF('A1'!$E22="","",'A1'!$E22) -> 6 | BG13: =IF(BE13=""," ",BE13/$Q13) -> 0.01666666667 | BI13: =IF('A1'!$E23="","",'A1'!$E23) -> 1 | BK13: =IF(BI13=""," ",BI13/$Q63) -> 0.002777777778 | BM13: =IF('A1'!$E24="","",'A1'!$E24) -> 3 | BO13: =IF(BM13=""," ",BM13/$Q63) -> 0.008333333333
B14: A2 - Salle des fêtes | E14: =IF('A2'!$E7="","",'A2'!$E7) -> 934 | G14: =IF('A2'!$E8="","",'A2'!$E8) -> 476 | I14: =IF('A2'!$E9="","",'A2'!$E9) -> 476 | K14: =IF(I14=""," ",I14/$E14) -> 0.5096359743 | M14: =IF('A2'!$E10="","",'A2'!$E10) -> 7 | O14: =IF('A2'!$E11="","",'A2'!$E11) -> 10 | Q14: =IF('A2'!$E12="","",'A2'!$E12) -> 459 | S14: =IF(Q14=""," ",Q14/$E14) -> 0.4914346895 | U14: =IF('A2'!$E13="","",'A2'!$E13) -> 160 | W14: 0.348583878 | Y14: =IF('A2'!$E14="","",'A2'!$E14) -> 0 | AA14: 0 | AC14: =IF('A2'!$E15="","",'A2'!$E15) -> 5 | AE14: 0.01089324619 | AG14: =IF('A2'!$E16="","",'A2'!$E16) -> 0 | AI14: 0 | AK14: =IF('A2'!$E17="","",'A2'!$E17) -> 60 | AM14: 0.1307189542 | AO14: =IF('A2'!$E18="","",'A2'!$E18) -> 0 | AQ14: 0 | AS14: =IF('A2'!$E19="","",'A2'!$E19) -> 53 | AU14: 0.1154684096 | AW14: =IF('A2'!$E20="","",'A2'!$E20) -> 10 | AY14: 0.02178649237 | BA14: =IF('A2'!$E21="","",'A2'!$E21) -> 0 | BC14: 0 | BE14: =IF('A2'!E22="","",'A2'!E22) -> 6 | BG14: 0.01307189542 | BI14: =IF('A2'!$E23="","",'A2'!$E23) -> 0 | BK14: 0 | BM14: =IF('A2'!$E24="","",'A2'!$E24) -> 2 | BO14: 0.004357298475
B15: B1 - Victor Hugo | E15: =IF('B1'!$E7="","",'B1'!$E7) -> 1068 | G15: =IF('B1'!$E8="","",'B1'!$E8) -> 434 | I15: =IF('B1'!$E9="","",'B1'!$E9) -> 434 | K15: 0.4063670412 | M15: =IF('B1'!$E10="","",'B1'!$E10) -> 4 | O15: =IF('B1'!$E11="","",'B1'!$E11) -> 3 | Q15: =IF('B1'!$E12="","",'B1'!$E12) -> 427 | S15: 0.3998127341 | U15: =IF('B1'!$E13="","",'B1'!$E13) -> 121 | W15: 0.2833723653 | Y15: =IF('B1'!$E14="","",'B1'!$E14) -> 2 | AA15: 0.004683840749 | AC15: =IF('B1'!$E15="","",'B1'!$E15) -> 4 | AE15: 0.009367681499 | AG15: =IF('B1'!$E16="","",'B1'!$E16) -> 1 | AI15: 0.002341920375 | AK15: =IF('B1'!$E17="","",'B1'!$E17) -> 74 | AM15: 0.1733021077 | AO15: =IF('B1'!$E18="","",'B1'!$E18) -> 0 | AQ15: 0 | AS15: =IF('B1'!$E19="","",'B1'!$E19) -> 61 | AU15: 0.1428571429 | AW15: =IF('B1'!$E20="","",'B1'!$E20) -> 8 | AY15: 0.018735363 | BA15: =IF('B1'!$E21="","",'B1'!$E21) -> 0 | BC15: 0 | BE15: =IF('B1'!E22="","",'B1'!E22) -> 2 | BG15: 0.004683840749 | BI15: =IF('B1'!$E23="","",'B1'!$E23) -> 1 | BK15: 0.002341920375 | BM15: =IF('B1'!$E24="","",'B1'!$E24) -> 1 | BO15: 0.002341920375
B16: B2 - Victor Hugo | E16: =IF('B2'!$E7="","",'B2'!$E7) -> 1149 | G16: =IF('B2'!$E8="","",'B2'!$E8) -> 524 | I16: =IF('B2'!$E9="","",'B2'!$E9) -> 524 | K16: 0.456048738 | M16: =IF('B2'!$E10="","",'B2'!$E10) -> 1 | O16: =IF('B2'!$E11="","",'B2'!$E11) -> 7 | Q16: =IF('B2'!$E12="","",'B2'!$E12) -> 516 | S16: 0.4490861619 | U16: =IF('B2'!$E13="","",'B2'!$E13) -> 145 | W16: 0.2810077519 | Y16: =IF('B2'!$E14="","",'B2'!$E14) -> 0 | AA16: 0 | AC16: =IF('B2'!$E15="","",'B2'!$E15) -> 5 | AE16: 0.009689922481 | AG16: =IF('B2'!$E16="","",'B2'!$E16) -> 1 | AI16: 0.001937984496 | AK16: =IF('B2'!$E17="","",'B2'!$E17) -> 66 | AM16: 0.1279069767 | AO16: =IF('B2'!$E18="","",'B2'!$E18) -> 4 | AQ16: 0.007751937984 | AS16: =IF('B2'!$E19="","",'B2'!$E19) -> 64 | AU16: 0.1240310078 | AW16: =IF('B2'!$E20="","",'B2'!$E20) -> 12 | AY16: 0.02325581395 | BA16: =IF('B2'!$E21="","",'B2'!$E21) -> 1 | BC16: 0.001937984496 | BE16: =IF('B2'!E22="","",'B2'!E22) -> 10 | BG16: 0.01937984496 | BI16: =IF('B2'!$E23="","",'B2'!$E23) -> 1 | BK16: 0.001937984496 | BM16: =IF('B2'!$E24="","",'B2'!$E24) -> 0 | BO16: 0
B17: M1 - Saint-Exupéry | E17: =IF('M1'!$E7="","",'M1'!$E7) -> 1300 | G17: =IF('M1'!$E8="","",'M1'!$E8) -> 274 | I17: =IF('M1'!$E9="","",'M1'!$E9) -> 274 | K17: 0.2107692308 | M17: =IF('M1'!$E10="","",'M1'!$E10) -> 4 | O17: =IF('M1'!$E11="","",'M1'!$E11) -> 14 | Q17: =IF('M1'!$E12="","",'M1'!$E12) -> 256 | S17: 0.1969230769 | U17: =IF('M1'!$E13="","",'M1'!$E13) -> 50 | W17: 0.1953125 | Y17: =IF('M1'!$E14="","",'M1'!$E14) -> 0 | AA17: 0 | AC17: =IF('M1'!$E15="","",'M1'!$E15) -> 4 | AE17: 0.015625 | AG17: =IF('M1'!$E16="","",'M1'!$E16) -> 1 | AI17: 0.00390625 | AK17: =IF('M1'!$E17="","",'M1'!$E17) -> 48 | AM17: 0.1875 | AO17: =IF('M1'!$E18="","",'M1'!$E18) -> 2 | AQ17: 0.0078125 | AS17: =IF('M1'!$E19="","",'M1'!$E19) -> 24 | AU17: 0.09375 | AW17: =IF('M1'!$E20="","",'M1'!$E20) -> 4 | AY17: 0.015625 | BA17: =IF('M1'!$E21="","",'M1'!$E21) -> 0 | BC17: 0 | BE17: =IF('M1'!E22="","",'M1'!E22) -> 1 | BG17: 0.00390625 | BI17: =IF('M1'!$E23="","",'M1'!$E23) -> 1 | BK17: 0.00390625 | BM17: =IF('M1'!$E24="","",'M1'!$E24) -> 2 | BO17: 0.0078125
B18: N1 - Jean Moulin | E18: =IF('N1'!$E7="","",'N1'!$E7) -> 1451 | G18: =IF('N1'!$E8="","",'N1'!$E8) -> 603 | I18: =IF('N1'!$E9="","",'N1'!$E9) -> 603 | K18: 0.4155754652 | M18: =IF('N1'!$E10="","",'N1'!$E10) -> 12 | O18: =IF('N1'!$E11="","",'N1'!$E11) -> 8 | Q18: =IF('N1'!$E12="","",'N1'!$E12) -> 583 | S18: 0.4017918677 | U18: =IF('N1'!$E13="","",'N1'!$E13) -> 141 | W18: 0.2418524871 | Y18: =IF('N1'!$E14="","",'N1'!$E14) -> 0 | AA18: 0 | AC18: =IF('N1'!$E15="","",'N1'!$E15) -> 4 | AE18: 0.006861063465 | AG18: =IF('N1'!$E16="","",'N1'!$E16) -> 1 | AI18: 0.001715265866 | AK18: =IF('N1'!$E17="","",'N1'!$E17) -> 78 | AM18: 0.1337907376 | AO18: =IF('N1'!$E18="","",'N1'!$E18) -> 4 | AQ18: 0.006861063465 | AS18: =IF('N1'!$E19="","",'N1'!$E19) -> 62 | AU18: 0.1063464837 | AW18: =IF('N1'!$E20="","",'N1'!$E20) -> 13 | AY18: 0.02229845626 | BA18: =IF('N1'!$E21="","",'N1'!$E21) -> 2 | BC18: 0.003430531732 | BE18: =IF('N1'!E22="","",'N1'!E22) -> 3 | BG18: 0.005145797599 | BI18: =IF('N1'!$E23="","",'N1'!$E23) -> 0 | BK18: 0 | BM18: =IF('N1'!$E24="","",'N1'!$E24) -> 3 | BO18: 0.005145797599
B19: N2 - Cité des Associations | E19: =IF('N2'!$E7="","",'N2'!$E7) -> 899 | G19: =IF('N2'!$E8="","",'N2'!$E8) -> 409 | I19: =IF('N2'!$E9="","",'N2'!$E9) -> 409 | K19: 0.4549499444 | M19: =IF('N2'!$E10="","",'N2'!$E10) -> 12 | O19: =IF('N2'!$E11="","",'N2'!$E11) -> 7 | Q19: =IF('N2'!$E12="","",'N2'!$E12) -> 390 | S19: 0.4338153504 | U19: =IF('N2'!$E13="","",'N2'!$E13) -> 70 | W19: 0.1794871795 | Y19: =IF('N2'!$E14="","",'N2'!$E14) -> 2 | AA19: 0.005128205128 | AC19: =IF('N2'!$E15="","",'N2'!$E15) -> 6 | AE19: 0.01538461538 | AG19: =IF('N2'!$E16="","",'N2'!$E16) -> 0 | AI19: 0 | AK19: =IF('N2'!$E17="","",'N2'!$E17) -> 83 | AM19: 0.2128205128 | AO19: =IF('N2'!$E18="","",'N2'!$E18) -> 1 | AQ19: 0.002564102564 | AS19: =IF('N2'!$E19="","",'N2'!$E19) -> 47 | AU19: 0.1205128205 | AW19: =IF('N2'!$E20="","",'N2'!$E20) -> 6 | AY19: 0.01538461538 | BA19: =IF('N2'!$E21="","",'N2'!$E21) -> 0 | BC19: 0 | BE19: =IF('N2'!E22="","",'N2'!E22) -> 2 | BG19: 0.005128205128 | BI19: =IF('N2'!$E23="","",'N2'!$E23) -> 2 | BK19: 0.005128205128 | BM19: =IF('N2'!$E24="","",'N2'!$E24) -> 2 | BO19: 0.005128205128
B20: Canton EST | E20: =SUM(E$13:E$19) -> 7657 | G20: =SUM(G13:G19) -> 3088 | I20: =SUM(I13:I19) -> 3088 | K20: 0.4032911062 | M20: =SUM(M13:M19) -> 44 | O20: =SUM(O13:O19) -> 53 | Q20: =SUM(Q13:Q19) -> 2991 | S20: 0.3906229594 | U20: =SUM(U13:U19) -> 774 | W20: =IF(U20=0,0,U20/$Q20) -> 0.258776329 | Y20: =SUM(Y13:Y19) -> 5 | AA20: =IF(Y20=0,0,Y20/$Q20) -> 0.001671681712 | AC20: =SUM(AC13:AC19) -> 33 | AE20: =IF(AC20=0,0,AC20/$Q20) -> 0.0110330993 | AG20: =SUM(AG13:AG19) -> 4 | AI20: =IF(AG20=0,0,AG20/$Q20) -> 0.001337345369 | AK20: =SUM(AK13:AK19) -> 466 | AM20: =IF(AK20=0,0,AK20/$Q20) -> 0.1558007355 | AO20: =SUM(AO13:AO19) -> 12 | AQ20: =IF(AO20=0,0,AO20/$Q20) -> 0.004012036108 | AS20: =SUM(AS13:AS19) -> 353 | AU20: =IF(AS20=0,0,AS20/$Q20) -> 0.1180207289 | AW20: =SUM(AW13:AW19) -> 60 | AY20: =IF(AW20=0,0,AW20/$Q20) -> 0.02006018054 | BA20: =SUM(BA13:BA19) -> 3 | BC20: =IF(BA20=0,0,BA20/$Q20) -> 0.001003009027 | BE20: =SUM(BE13:BE19) -> 30 | BG20: =IF(BE20=0,0,BE20/$Q20) -> 0.01003009027 | BI20: =SUM(BI13:BI19) -> 6 | BK20: =IF(BI20=0,0,BI20/$Q70) -> 0.002006018054 | BM20: =SUM(BM13:BM19) -> 13 | BO20: =IF(BM20=0,0,BM20/$Q70) -> 0.004346372451
B21: C1 - Victor Schoelcher | E21: =IF('C1'!$E7="","",'C1'!$E7) -> 1194 | G21: =IF('C1'!$E8="","",'C1'!$E8) -> 487 | I21: =IF('C1'!$E9="","",'C1'!$E9) -> 487 | K21: 0.4078726968 | M21: =IF('C1'!$E10="","",'C1'!$E10) -> 8 | O21: =IF('C1'!$E11="","",'C1'!$E11) -> 4 | Q21: =IF('C1'!$E12="","",'C1'!$E12) -> 475 | S21: 0.3978224456 | U21: =IF('C1'!$E13="","",'C1'!$E13) -> 127 | W21: =IF(U21=""," ",U21/$Q21) -> 0.2673684211 | Y21: =IF('C1'!$E14="","",'C1'!$E14) -> 2 | AA21: =IF(Y21=""," ",Y21/$Q21) -> 0.004210526316 | AC21: =IF('C1'!$E15="","",'C1'!$E15) -> 4 | AE21: =IF(AC21=""," ",AC21/$Q21) -> 0.008421052632 | AG21: =IF('C1'!$E16="","",'C1'!$E16) -> 1 | AI21: =IF(AG21=""," ",AG21/$Q21) -> 0.002105263158 | AK21: =IF('C1'!$E17="","",'C1'!$E17) -> 86 | AM21: =IF(AK21=""," ",AK21/$Q21) -> 0.1810526316 | AO21: =IF('C1'!$E18="","",'C1'!$E18) -> 2 | AQ21: =IF(AO21=""," ",AO21/$Q21) -> 0.004210526316 | AS21: =IF('C1'!$E19="","",'C1'!$E19) -> 56 | AU21: =IF(AS21=""," ",AS21/$Q21) -> 0.1178947368 | AW21: =IF('C1'!$E20="","",'C1'!$E20) -> 10 | AY21: =IF(AW21=""," ",AW21/$Q21) -> 0.02105263158 | BA21: =IF('C1'!$E21="","",'C1'!$E21) -> 0 | BC21: =IF(BA21=""," ",BA21/$Q21) -> 0 | BE21: =IF('C1'!E22="","",'C1'!E22) -> 4 | BG21: =IF(BE21=""," ",BE21/$Q21) -> 0.008421052632 | BI21: =IF('C1'!$E23="","",'C1'!$E23) -> 0 | BK21: =IF(BI21=""," ",BI21/$Q71) -> 0 | BM21: =IF('C1'!$E24="","",'C1'!$E24) -> 3 | BO21: =IF(BM21=""," ",BM21/$Q71) -> 0.006315789474
B22: C2 - Maison du Peuple | E22: =IF('C2'!$E7="","",'C2'!$E7) -> 749 | G22: =IF('C2'!$E8="","",'C2'!$E8) -> 359 | I22: =IF('C2'!$E9="","",'C2'!$E9) -> 359 | K22: 0.479305741 | M22: =IF('C2'!$E10="","",'C2'!$E10) -> 4 | O22: =IF('C2'!$E11="","",'C2'!$E11) -> 8 | Q22: =IF('C2'!$E12="","",'C2'!$E12) -> 347 | S22: 0.4632843792 | U22: =IF('C2'!$E13="","",'C2'!$E13) -> 108 | W22: 0.3112391931 | Y22: =IF('C2'!$E14="","",'C2'!$E14) -> 0 | AA22: 0 | AC22: =IF('C2'!$E15="","",'C2'!$E15) -> 2 | AE22: 0.005763688761 | AG22: =IF('C2'!$E16="","",'C2'!$E16) -> 0 | AI22: 0 | AK22: =IF('C2'!$E17="","",'C2'!$E17) -> 52 | AM22: 0.1498559078 | AO22: =IF('C2'!$E18="","",'C2'!$E18) -> 2 | AQ22: 0.005763688761 | AS22: =IF('C2'!$E19="","",'C2'!$E19) -> 33 | AU22: 0.09510086455 | AW22: =IF('C2'!$E20="","",'C2'!$E20) -> 7 | AY22: 0.02017291066 | BA22: =IF('C2'!$E21="","",'C2'!$E21) -> 1 | BC22: 0.00288184438 | BE22: =IF('C2'!E22="","",'C2'!E22) -> 1 | BG22: 0.00288184438 | BI22: =IF('C2'!$E23="","",'C2'!$E23) -> 1 | BK22: 0.00288184438 | BM22: =IF('C2'!$E24="","",'C2'!$E24) -> 1 | BO22: 0.00288184438
B23: C3 - Maison du Peuple | E23: =IF('C3'!$E7="","",'C3'!$E7) -> 909 | G23: =IF('C3'!$E8="","",'C3'!$E8) -> 426 | I23: =IF('C3'!$E9="","",'C3'!$E9) -> 426 | K23: 0.4686468647 | M23: =IF('C3'!$E10="","",'C3'!$E10) -> 6 | O23: =IF('C3'!$E11="","",'C3'!$E11) -> 5 | Q23: =IF('C3'!$E12="","",'C3'!$E12) -> 415 | S23: 0.4565456546 | U23: =IF('C3'!$E13="","",'C3'!$E13) -> 148 | W23: 0.356626506 | Y23: =IF('C3'!$E14="","",'C3'!$E14) -> 1 | AA23: 0.002409638554 | AC23: =IF('C3'!$E15="","",'C3'!$E15) -> 2 | AE23: 0.004819277108 | AG23: =IF('C3'!$E16="","",'C3'!$E16) -> 0 | AI23: 0 | AK23: =IF('C3'!$E17="","",'C3'!$E17) -> 65 | AM23: 0.156626506 | AO23: =IF('C3'!$E18="","",'C3'!$E18) -> 2 | AQ23: 0.004819277108 | AS23: =IF('C3'!$E19="","",'C3'!$E19) -> 39 | AU23: 0.09397590361 | AW23: =IF('C3'!$E20="","",'C3'!$E20) -> 7 | AY23: 0.01686746988 | BA23: =IF('C3'!$E21="","",'C3'!$E21) -> 0 | BC23: 0 | BE23: =IF('C3'!E22="","",'C3'!E22) -> 3 | BG23: 0.007228915663 | BI23: =IF('C3'!$E23="","",'C3'!$E23) -> 1 | BK23: 0.002409638554 | BM23: =IF('C3'!$E24="","",'C3'!$E24) -> 3 | BO23: 0.007228915663
B24: D1 - Châteaudun | E24: =IF('D1'!$E7="","",'D1'!$E7) -> 1058 | G24: =IF('D1'!$E8="","",'D1'!$E8) -> 444 | I24: =IF('D1'!$E9="","",'D1'!$E9) -> 444 | K24: 0.4196597353 | M24: =IF('D1'!$E10="","",'D1'!$E10) -> 6 | O24: =IF('D1'!$E11="","",'D1'!$E11) -> 7 | Q24: =IF('D1'!$E12="","",'D1'!$E12) -> 431 | S24: 0.4073724008 | U24: =IF('D1'!$E13="","",'D1'!$E13) -> 140 | W24: 0.3248259861 | Y24: =IF('D1'!$E14="","",'D1'!$E14) -> 0 | AA24: 0 | AC24: =IF('D1'!$E15="","",'D1'!$E15) -> 3 | AE24: 0.006960556845 | AG24: =IF('D1'!$E16="","",'D1'!$E16) -> 0 | AI24: 0 | AK24: =IF('D1'!$E17="","",'D1'!$E17) -> 61 | AM24: 0.1415313225 | AO24: =IF('D1'!$E18="","",'D1'!$E18) -> 1 | AQ24: 0.002320185615 | AS24: =IF('D1'!$E19="","",'D1'!$E19) -> 35 | AU24: 0.08120649652 | AW24: =IF('D1'!$E20="","",'D1'!$E20) -> 10 | AY24: 0.02320185615 | BA24: =IF('D1'!$E21="","",'D1'!$E21) -> 0 | BC24: 0 | BE24: =IF('D1'!E22="","",'D1'!E22) -> 1 | BG24: 0.002320185615 | BI24: =IF('D1'!$E23="","",'D1'!$E23) -> 1 | BK24: 0.002320185615 | BM24: =IF('D1'!$E24="","",'D1'!$E24) -> 0 | BO24: 0
B25: D2 - Châteaudun | E25: =IF('D2'!$E7="","",'D2'!$E7) -> 827 | G25: =IF('D2'!$E8="","",'D2'!$E8) -> 365 | I25: =IF('D2'!$E9="","",'D2'!$E9) -> 365 | K25: 0.4413542926 | M25: =IF('D2'!$E10="","",'D2'!$E10) -> 5 | O25: =IF('D2'!$E11="","",'D2'!$E11) -> 4 | Q25: =IF('D2'!$E12="","",'D2'!$E12) -> 356 | S25: 0.430471584 | U25: =IF('D2'!$E13="","",'D2'!$E13) -> 104 | W25: 0.2921348315 | Y25: =IF('D2'!$E14="","",'D2'!$E14) -> 1 | AA25: 0.002808988764 | AC25: =IF('D2'!$E15="","",'D2'!$E15) -> 0 | AE25: 0 | AG25: =IF('D2'!$E16="","",'D2'!$E16) -> 0 | AI25: 0 | AK25: =IF('D2'!$E17="","",'D2'!$E17) -> 44 | AM25: 0.1235955056 | AO25: =IF('D2'!$E18="","",'D2'!$E18) -> 3 | AQ25: 0.008426966292 | AS25: =IF('D2'!$E19="","",'D2'!$E19) -> 44 | AU25: 0.1235955056 | AW25: =IF('D2'!$E20="","",'D2'!$E20) -> 2 | AY25: 0.005617977528 | BA25: =IF('D2'!$E21="","",'D2'!$E21) -> 0 | BC25: 0 | BE25: =IF('D2'!E22="","",'D2'!E22) -> 0 | BG25: 0 | BI25: =IF('D2'!$E23="","",'D2'!$E23) -> 1 | BK25: 0.002808988764 | BM25: =IF('D2'!$E24="","",'D2'!$E24) -> 2 | BO25: 0.005617977528
B26: D3 - Châteaudun | E26: =IF('D3'!$E7="","",'D3'!$E7) -> 895 | G26: =IF('D3'!$E8="","",'D3'!$E8) -> 365 | I26: =IF('D3'!$E9="","",'D3'!$E9) -> 365 | K26: 0.4078212291 | M26: =IF('D3'!$E10="","",'D3'!$E10) -> 8 | O26: =IF('D3'!$E11="","",'D3'!$E11) -> 7 | Q26: =IF('D3'!$E12="","",'D3'!$E12) -> 350 | S26: 0.3910614525 | U26: =IF('D3'!$E13="","",'D3'!$E13) -> 83 | W26: 0.2371428571 | Y26: =IF('D3'!$E14="","",'D3'!$E14) -> 0 | AA26: 0 | AC26: =IF('D3'!$E15="","",'D3'!$E15) -> 7 | AE26: 0.02 | AG26: =IF('D3'!$E16="","",'D3'!$E16) -> 1 | AI26: 0.002857142857 | AK26: =IF('D3'!$E17="","",'D3'!$E17) -> 42 | AM26: 0.12 | AO26: =IF('D3'!$E18="","",'D3'!$E18) -> 3 | AQ26: 0.008571428571 | AS26: =IF('D3'!$E19="","",'D3'!$E19) -> 32 | AU26: 0.09142857143 | AW26: =IF('D3'!$E20="","",'D3'!$E20) -> 6 | AY26: 0.01714285714 | BA26: =IF('D3'!$E21="","",'D3'!$E21) -> 0 | BC26: 0 | BE26: =IF('D3'!E22="","",'D3'!E22) -> 2 | BG26: 0.005714285714 | BI26: =IF('D3'!$E23="","",'D3'!$E23) -> 1 | BK26: 0.002857142857 | BM26: =IF('D3'!$E24="","",'D3'!$E24) -> 4 | BO26: 0.01142857143
B27: Canton CENTRE | E27: =SUM(E$21:E$26) -> 5632 | G27: =SUM(G21:G26) -> 2446 | I27: =SUM(I21:I26) -> 2446 | K27: 0.4343039773 | M27: =SUM(M21:M26) -> 37 | O27: =SUM(O21:O26) -> 35 | Q27: =SUM(Q21:Q26) -> 2374 | S27: 0.4215198864 | U27: =SUM(U21:U26) -> 710 | W27: =IF(U27=0,0,U27/$Q27) -> 0.299073294 | Y27: =SUM(Y21:Y26) -> 4 | AA27: =IF(Y27=0,0,Y27/$Q27) -> 0.001684919966 | AC27: =SUM(AC21:AC26) -> 18 | AE27: =IF(AC27=0,0,AC27/$Q27) -> 0.007582139848 | AG27: =SUM(AG21:AG26) -> 2 | AI27: =IF(AG27=0,0,AG27/$Q27) -> 0.0008424599832 | AK27: =SUM(AK21:AK26) -> 350 | AM27: =IF(AK27=0,0,AK27/$Q27) -> 0.1474304971 | AO27: =SUM(AO21:AO26) -> 13 | AQ27: =IF(AO27=0,0,AO27/$Q27) -> 0.00547598989 | AS27: =SUM(AS21:AS26) -> 239 | AU27: =IF(AS27=0,0,AS27/$Q27) -> 0.100673968 | AW27: =SUM(AW21:AW26) -> 42 | AY27: =IF(AW27=0,0,AW27/$Q27) -> 0.01769165965 | BA27: =SUM(BA21:BA26) -> 1 | BC27: =IF(BA27=0,0,BA27/$Q27) -> 0.0004212299916 | BE27: =SUM(BE21:BE26) -> 11 | BG27: =IF(BE27=0,0,BE27/$Q27) -> 0.004633529907 | BI27: =SUM(BI21:BI26) -> 5 | BK27: =IF(BI27=0,0,BI27/$Q77) -> 0.002106149958 | BM27: =SUM(BM21:BM26) -> 13 | BO27: =IF(BM27=0,0,BM27/$Q77) -> 0.00547598989
B28: E1 - Raymond Aubert | E28: =IF('E1'!E$7="","",'E1'!E$7) -> 1168 | G28: =IF('E1'!$E8="","",'E1'!$E8) -> 475 | I28: =IF('E1'!$E9="","",'E1'!$E9) -> 475 | K28: 0.4066780822 | M28: =IF('E1'!$E10="","",'E1'!$E10) -> 10 | O28: =IF('E1'!$E11="","",'E1'!$E11) -> 8 | Q28: =IF('E1'!$E12="","",'E1'!$E12) -> 457 | S28: 0.3912671233 | U28: =IF('E1'!$E13="","",'E1'!$E13) -> 117 | W28: =IF(U28=""," ",U28/$Q28) -> 0.2560175055 | Y28: =IF('E1'!$E14="","",'E1'!$E14) -> 0 | AA28: =IF(Y28=""," ",Y28/$Q28) -> 0 | AC28: =IF('E1'!$E15="","",'E1'!$E15) -> 8 | AE28: =IF(AC28=""," ",AC28/$Q28) -> 0.01750547046 | AG28: =IF('E1'!$E16="","",'E1'!$E16) -> 1 | AI28: =IF(AG28=""," ",AG28/$Q28) -> 0.002188183807 | AK28: =IF('E1'!$E17="","",'E1'!$E17) -> 59 | AM28: =IF(AK28=""," ",AK28/$Q28) -> 0.1291028446 | AO28: =IF('E1'!$E18="","",'E1'!$E18) -> 1 | AQ28: =IF(AO28=""," ",AO28/$Q28) -> 0.002188183807 | AS28: =IF('E1'!$E19="","",'E1'!$E19) -> 48 | AU28: =IF(AS28=""," ",AS28/$Q28) -> 0.1050328228 | AW28: =IF('E1'!$E20="","",'E1'!$E20) -> 6 | AY28: =IF(AW28=""," ",AW28/$Q28) -> 0.01312910284 | BA28: =IF('E1'!$E21="","",'E1'!$E21) -> 0 | BC28: =IF(BA28=""," ",BA28/$Q28) -> 0 | BE28: =IF('E1'!E22="","",'E1'!E22) -> 0 | BG28: =IF(BE28=""," ",BE28/$Q28) -> 0 | BI28: =IF('E1'!$E23="","",'E1'!$E23) -> 1 | BK28: =IF(BI28=""," ",BI28/$Q78) -> 0.002188183807 | BM28: =IF('E1'!$E24="","",'E1'!$E24) -> 1 | BO28: =IF(BM28=""," ",BM28/$Q78) -> 0.002188183807
B29: E2 - Raymond Aubert | E29: =IF('E2'!$E7="","",'E2'!$E7) -> 1204 | G29: =IF('E2'!$E8="","",'E2'!$E8) -> 452 | I29: =IF('E2'!$E9="","",'E2'!$E9) -> 452 | K29: 0.3754152824 | M29: =IF('E2'!$E10="","",'E2'!$E10) -> 13 | O29: =IF('E2'!$E11="","",'E2'!$E11) -> 8 | Q29: =IF('E2'!$E12="","",'E2'!$E12) -> 431 | S29: 0.3579734219 | U29: =IF('E2'!$E13="","",'E2'!$E13) -> 120 | W29: =IF(U29=""," ",U29/$Q29) -> 0.2784222738 | Y29: =IF('E2'!$E14="","",'E2'!$E14) -> 0 | AA29: =IF(Y29=""," ",Y29/$Q29) -> 0 | AC29: =IF('E2'!$E15="","",'E2'!$E15) -> 5 | AE29: =IF(AC29=""," ",AC29/$Q29) -> 0.01160092807 | AG29: =IF('E2'!$E16="","",'E2'!$E16) -> 2 | AI29: =IF(AG29=""," ",AG29/$Q29) -> 0.00464037123 | AK29: =IF('E2'!$E17="","",'E2'!$E17) -> 51 | AM29: =IF(AK29=""," ",AK29/$Q29) -> 0.1183294664 | AO29: =IF('E2'!$E18="","",'E2'!$E18) -> 2 | AQ29: =IF(AO29=""," ",AO29/$Q29) -> 0.00464037123 | AS29: =IF('E2'!$E19="","",'E2'!$E19) -> 45 | AU29: =IF(AS29=""," ",AS29/$Q29) -> 0.1044083527 | AW29: =IF('E2'!$E20="","",'E2'!$E20) -> 11 | AY29: =IF(AW29=""," ",AW29/$Q29) -> 0.02552204176 | BA29: =IF('E2'!$E21="","",'E2'!$E21) -> 0 | BC29: =IF(BA29=""," ",BA29/$Q29) -> 0 | BE29: =IF('E2'!E22="","",'E2'!E22) -> 1 | BG29: =IF(BE29=""," ",BE29/$Q29) -> 0.002320185615 | BI29: =IF('E2'!$E23="","",'E2'!$E23) -> 3 | BK29: =IF(BI29=""," ",BI29/$Q79) -> 0.006960556845 | BM29: =IF('E2'!$E24="","",'E2'!$E24) -> 3 | BO29: =IF(BM29=""," ",BM29/$Q79) -> 0.006960556845
B30: E3 - Raymond Aubert | E30: =IF('E3'!$E7="","",'E3'!$E7) -> 1030 | G30: =IF('E3'!$E8="","",'E3'!$E8) -> 389 | I30: =IF('E3'!$E9="","",'E3'!$E9) -> 389 | K30: 0.3776699029 | M30: =IF('E3'!$E10="","",'E3'!$E10) -> 12 | O30: =IF('E3'!$E11="","",'E3'!$E11) -> 11 | Q30: =IF('E3'!$E12="","",'E3'!$E12) -> 366 | S30: 0.3553398058 | U30: =IF('E3'!$E13="","",'E3'!$E13) -> 81 | W30: =IF(U30=""," ",U30/$Q30) -> 0.2213114754 | Y30: =IF('E3'!$E14="","",'E3'!$E14) -> 0 | AA30: =IF(Y30=""," ",Y30/$Q30) -> 0 | AC30: =IF('E3'!$E15="","",'E3'!$E15) -> 10 | AE30: =IF(AC30=""," ",AC30/$Q30) -> 0.02732240437 | AG30: =IF('E3'!$E16="","",'E3'!$E16) -> 1 | AI30: =IF(AG30=""," ",AG30/$Q30) -> 0.002732240437 | AK30: =IF('E3'!$E17="","",'E3'!$E17) -> 58 | AM30: =IF(AK30=""," ",AK30/$Q30) -> 0.1584699454 | AO30: =IF('E3'!$E18="","",'E3'!$E18) -> 0 | AQ30: =IF(AO30=""," ",AO30/$Q30) -> 0 | AS30: =IF('E3'!$E19="","",'E3'!$E19) -> 31 | AU30: =IF(AS30=""," ",AS30/$Q30) -> 0.08469945355 | AW30: =IF('E3'!$E20="","",'E3'!$E20) -> 7 | AY30: =IF(AW30=""," ",AW30/$Q30) -> 0.01912568306 | BA30: =IF('E3'!$E21="","",'E3'!$E21) -> 0 | BC30: =IF(BA30=""," ",BA30/$Q30) -> 0 | BE30: =IF('E3'!E22="","",'E3'!E22) -> 2 | BG30: =IF(BE30=""," ",BE30/$Q30) -> 0.005464480874 | BI30: =IF('E3'!$E23="","",'E3'!$E23) -> 1 | BK30: =IF(BI30=""," ",BI30/$Q80) -> 0.002732240437 | BM30: =IF('E3'!$E24="","",'E3'!$E24) -> 0 | BO30: =IF(BM30=""," ",BM30/$Q80) -> 0
B31: F1 - Maison de l'enfant | E31: =IF('F1'!$E7="","",'F1'!$E7) -> 768 | G31: =IF('F1'!$E8="","",'F1'!$E8) -> 331 | I31: =IF('F1'!$E9="","",'F1'!$E9) -> 331 | K31: 0.4309895833 | M31: =IF('F1'!$E10="","",'F1'!$E10) -> 4 | O31: =IF('F1'!$E11="","",'F1'!$E11) -> 9 | Q31: =IF('F1'!$E12="","",'F1'!$E12) -> 318 | S31: 0.4140625 | U31: =IF('F1'!$E13="","",'F1'!$E13) -> 72 | W31: =IF(U31=""," ",U31/$Q31) -> 0.2264150943 | Y31: =IF('F1'!$E14="","",'F1'!$E14) -> 0 | AA31: =IF(Y31=""," ",Y31/$Q31) -> 0 | AC31: =IF('F1'!$E15="","",'F1'!$E15) -> 9 | AE31: =IF(AC31=""," ",AC31/$Q31) -> 0.02830188679 | AG31: =IF('F1'!$E16="","",'F1'!$E16) -> 0 | AI31: =IF(AG31=""," ",AG31/$Q31) -> 0 | AK31: =IF('F1'!$E17="","",'F1'!$E17) -> 48 | AM31: =IF(AK31=""," ",AK31/$Q31) -> 0.1509433962 | AO31: =IF('F1'!$E18="","",'F1'!$E18) -> 3 | AQ31: =IF(AO31=""," ",AO31/$Q31) -> 0.009433962264 | AS31: =IF('F1'!$E19="","",'F1'!$E19) -> 37 | AU31: =IF(AS31=""," ",AS31/$Q31) -> 0.1163522013 | AW31: =IF('F1'!$E20="","",'F1'!$E20) -> 12 | AY31: =IF(AW31=""," ",AW31/$Q31) -> 0.03773584906 | BA31: =IF('F1'!$E21="","",'F1'!$E21) -> 0 | BC31: =IF(BA31=""," ",BA31/$Q31) -> 0 | BE31: =IF('F1'!E22="","",'F1'!E22) -> 1 | BG31: =IF(BE31=""," ",BE31/$Q31) -> 0.003144654088 | BI31: =IF('F1'!$E23="","",'F1'!$E23) -> 0 | BK31: =IF(BI31=""," ",BI31/$Q81) -> 0 | BM31: =IF('F1'!$E24="","",'F1'!$E24) -> 2 | BO31: =IF(BM31=""," ",BM31/$Q81) -> 0.006289308176
B32: F2 - Émile Géhant | E32: =IF('F2'!$E7="","",'F2'!$E7) -> 516 | G32: =IF('F2'!$E8="","",'F2'!$E8) -> 224 | I32: =IF('F2'!$E9="","",'F2'!$E9) -> 224 | K32: 0.4341085271 | M32: =IF('F2'!$E10="","",'F2'!$E10) -> 6 | O32: =IF('F2'!$E11="","",'F2'!$E11) -> 3 | Q32: =IF('F2'!$E12="","",'F2'!$E12) -> 215 | S32: 0.4166666667 | U32: =IF('F2'!$E13="","",'F2'!$E13) -> 27 | W32: =IF(U32=""," ",U32/$Q32) -> 0.1255813953 | Y32: =IF('F2'!$E14="","",'F2'!$E14) -> 0 | AA32: =IF(Y32=""," ",Y32/$Q32) -> 0 | AC32: =IF('F2'!$E15="","",'F2'!$E15) -> 6 | AE32: =IF(AC32=""," ",AC32/$Q32) -> 0.02790697674 | AG32: =IF('F2'!$E16="","",'F2'!$E16) -> 0 | AI32: =IF(AG32=""," ",AG32/$Q32) -> 0 | AK32: =IF('F2'!$E17="","",'F2'!$E17) -> 25 | AM32: =IF(AK32=""," ",AK32/$Q32) -> 0.1162790698 | AO32: =IF('F2'!$E18="","",'F2'!$E18) -> 0 | AQ32: =IF(AO32=""," ",AO32/$Q32) -> 0 | AS32: =IF('F2'!$E19="","",'F2'!$E19) -> 13 | AU32: =IF(AS32=""," ",AS32/$Q32) -> 0.06046511628 | AW32: =IF('F2'!$E20="","",'F2'!$E20) -> 11 | AY32: =IF(AW32=""," ",AW32/$Q32) -> 0.0511627907 | BA32: =IF('F2'!$E21="","",'F2'!$E21) -> 0 | BC32: =IF(BA32=""," ",BA32/$Q32) -> 0 | BE32: =IF('F2'!E22="","",'F2'!E22) -> 0 | BG32: =IF(BE32=""," ",BE32/$Q32) -> 0 | BI32: =IF('F2'!$E23="","",'F2'!$E23) -> 1 | BK32: =IF(BI32=""," ",BI32/$Q82) -> 0.004651162791 | BM32: =IF('F2'!$E24="","",'F2'!$E24) -> 1 | BO32: =IF(BM32=""," ",BM32/$Q82) -> 0.004651162791
B33: Canton NORD | E33: =SUM(E$28:E$32) -> 4686 | G33: =SUM(G28:G32) -> 1871 | I33: =SUM(I28:I32) -> 1871 | K33: =IF(I33=""," ",I33/$E33) -> 0.3992744345 | M33: =SUM(M28:M32) -> 45 | O33: =SUM(O28:O32) -> 39 | Q33: =SUM(Q28:Q32) -> 1787 | S33: =IF(Q33=""," ",Q33/$E33) -> 0.3813486983 | U33: =SUM(U28:U32) -> 417 | W33: =IF(U33=0,0,U33/$Q33) -> 0.2333519866 | Y33: =SUM(Y28:Y32) -> 0 | AA33: =IF(Y33=0,0,Y33/$Q33) -> 0 | AC33: =SUM(AC28:AC32) -> 38 | AE33: =IF(AC33=0,0,AC33/$Q33) -> 0.02126468942 | AG33: =SUM(AG28:AG32) -> 4 | AI33: =IF(AG33=0,0,AG33/$Q33) -> 0.00223838836 | AK33: =SUM(AK28:AK32) -> 241 | AM33: =IF(AK33=0,0,AK33/$Q33) -> 0.1348628987 | AO33: =SUM(AO28:AO32) -> 6 | AQ33: =IF(AO33=0,0,AO33/$Q33) -> 0.003357582541 | AS33: =SUM(AS28:AS32) -> 174 | AU33: =IF(AS33=0,0,AS33/$Q33) -> 0.09736989368 | AW33: =SUM(AW28:AW32) -> 47 | AY33: =IF(AW33=0,0,AW33/$Q33) -> 0.02630106323 | BA33: =SUM(BA28:BA32) -> 0 | BC33: =IF(BA33=0,0,BA33/$Q33) -> 0 | BE33: =SUM(BE28:BE32) -> 4 | BG33: =IF(BE33=0,0,BE33/$Q33) -> 0.00223838836 | BI33: =SUM(BI28:BI32) -> 6 | BK33: =IF(BI33=0,0,BI33/$Q83) -> 0.003357582541 | BM33: =SUM(BM28:BM32) -> 7 | BO33: =IF(BM33=0,0,BM33/$Q83) -> 0.003917179631
B34: G1 - Hubert Metzger | E34: =IF('G1'!$E7="","",'G1'!$E7) -> 650 | G34: =IF('G1'!$E8="","",'G1'!$E8) -> 266 | I34: =IF('G1'!$E9="","",'G1'!$E9) -> 266 | K34: 0.4092307692 | M34: =IF('G1'!$E10="","",'G1'!$E10) -> 7 | O34: =IF('G1'!$E11="","",'G1'!$E11) -> 7 | Q34: =IF('G1'!$E12="","",'G1'!$E12) -> 252 | S34: 0.3876923077 | U34: =IF('G1'!$E13="","",'G1'!$E13) -> 31 | W34: =IF(U34=""," ",U34/$Q34) -> 0.123015873 | Y34: =IF('G1'!$E14="","",'G1'!$E14) -> 1 | AA34: =IF(Y34=""," ",Y34/$Q34) -> 0.003968253968 | AC34: =IF('G1'!$E15="","",'G1'!$E15) -> 5 | AE34: =IF(AC34=""," ",AC34/$Q34) -> 0.01984126984 | AG34: =IF('G1'!$E16="","",'G1'!$E16) -> 0 | AI34: =IF(AG34=""," ",AG34/$Q34) -> 0 | AK34: =IF('G1'!$E17="","",'G1'!$E17) -> 29 | AM34: =IF(AK34=""," ",AK34/$Q34) -> 0.1150793651 | AO34: =IF('G1'!$E18="","",'G1'!$E18) -> 1 | AQ34: =IF(AO34=""," ",AO34/$Q34) -> 0.003968253968 | AS34: =IF('G1'!$E19="","",'G1'!$E19) -> 31 | AU34: =IF(AS34=""," ",AS34/$Q34) -> 0.123015873 | AW34: =IF('G1'!$E20="","",'G1'!$E20) -> 7 | AY34: =IF(AW34=""," ",AW34/$Q34) -> 0.02777777778 | BA34: =IF('G1'!$E21="","",'G1'!$E21) -> 0 | BC34: =IF(BA34=""," ",BA34/$Q34) -> 0 | BE34: =IF('G1'!E22="","",'G1'!E22) -> 3 | BG34: =IF(BE34=""," ",BE34/$Q34) -> 0.0119047619 | BI34: =IF('G1'!$E23="","",'G1'!$E23) -> 0 | BK34: =IF(BI34=""," ",BI34/$Q84) -> 0 | BM34: =IF('G1'!$E24="","",'G1'!$E24) -> 0 | BO34: =IF(BM34=""," ",BM34/$Q84) -> 0
B35: G2 - Hubert Metzger | E35: =IF('G2'!$E7="","",'G2'!$E7) -> 753 | G35: =IF('G2'!$E8="","",'G2'!$E8) -> 250 | I35: =IF('G2'!$E9="","",'G2'!$E9) -> 250 | K35: 0.3320053121 | M35: =IF('G2'!$E10="","",'G2'!$E10) -> 7 | O35: =IF('G2'!$E11="","",'G2'!$E11) -> 6 | Q35: =IF('G2'!$E12="","",'G2'!$E12) -> 237 | S35: 0.3147410359 | U35: =IF('G2'!$E13="","",'G2'!$E13) -> 41 | W35: 0.1729957806 | Y35: =IF('G2'!$E14="","",'G2'!$E14) -> 0 | AA35: 0 | AC35: =IF('G2'!$E15="","",'G2'!$E15) -> 2 | AE35: 0.008438818565 | AG35: =IF('G2'!$E16="","",'G2'!$E16) -> 2 | AI35: 0.008438818565 | AK35: =IF('G2'!$E17="","",'G2'!$E17) -> 49 | AM35: 0.2067510549 | AO35: =IF('G2'!$E18="","",'G2'!$E18) -> 0 | AQ35: 0 | AS35: =IF('G2'!$E19="","",'G2'!$E19) -> 14 | AU35: 0.05907172996 | AW35: =IF('G2'!$E20="","",'G2'!$E20) -> 4 | AY35: 0.01687763713 | BA35: =IF('G2'!$E21="","",'G2'!$E21) -> 0 | BC35: 0 | BE35: =IF('G2'!E22="","",'G2'!E22) -> 1 | BG35: 0.004219409283 | BI35: =IF('G2'!$E23="","",'G2'!$E23) -> 0 | BK35: 0 | BM35: =IF('G2'!$E24="","",'G2'!$E24) -> 2 | BO35: 0.008438818565
B36: H1 - Léonard de Vinci | E36: =IF('H1'!$E7="","",'H1'!$E7) -> 1037 | G36: =IF('H1'!$E8="","",'H1'!$E8) -> 377 | I36: =IF('H1'!$E9="","",'H1'!$E9) -> 377 | K36: 0.3635486982 | M36: =IF('H1'!$E10="","",'H1'!$E10) -> 7 | O36: =IF('H1'!$E11="","",'H1'!$E11) -> 5 | Q36: =IF('H1'!$E12="","",'H1'!$E12) -> 365 | S36: 0.3519768563 | U36: =IF('H1'!$E13="","",'H1'!$E13) -> 87 | W36: 0.2383561644 | Y36: =IF('H1'!$E14="","",'H1'!$E14) -> 0 | AA36: 0 | AC36: =IF('H1'!$E15="","",'H1'!$E15) -> 9 | AE36: 0.02465753425 | AG36: =IF('H1'!$E16="","",'H1'!$E16) -> 1 | AI36: 0.002739726027 | AK36: =IF('H1'!$E17="","",'H1'!$E17) -> 54 | AM36: 0.1479452055 | AO36: =IF('H1'!$E18="","",'H1'!$E18) -> 4 | AQ36: 0.01095890411 | AS36: =IF('H1'!$E19="","",'H1'!$E19) -> 29 | AU36: 0.07945205479 | AW36: =IF('H1'!$E20="","",'H1'!$E20) -> 3 | AY36: 0.008219178082 | BA36: =IF('H1'!$E21="","",'H1'!$E21) -> 0 | BC36: 0 | BE36: =IF('H1'!E22="","",'H1'!E22) -> 1 | BG36: 0.002739726027 | BI36: =IF('H1'!$E23="","",'H1'!$E23) -> 0 | BK36: 0 | BM36: =IF('H1'!$E24="","",'H1'!$E24) -> 0 | BO36: 0
B37: J1 - René Rücklin | E37: =IF('J1'!$E7="","",'J1'!$E7) -> 591 | G37: =IF('J1'!$E8="","",'J1'!$E8) -> 179 | I37: =IF('J1'!$E9="","",'J1'!$E9) -> 179 | K37: 0.3028764805 | M37: =IF('J1'!$E10="","",'J1'!$E10) -> 8 | O37: =IF('J1'!$E11="","",'J1'!$E11) -> 7 | Q37: =IF('J1'!$E12="","",'J1'!$E12) -> 164 | S37: 0.2774957699 | U37: =IF('J1'!$E13="","",'J1'!$E13) -> 23 | W37: 0.1402439024 | Y37: =IF('J1'!$E14="","",'J1'!$E14) -> 0 | AA37: 0 | AC37: =IF('J1'!$E15="","",'J1'!$E15) -> 7 | AE37: 0.04268292683 | AG37: =IF('J1'!$E16="","",'J1'!$E16) -> 1 | AI37: 0.006097560976 | AK37: =IF('J1'!$E17="","",'J1'!$E17) -> 21 | AM37: 0.1280487805 | AO37: =IF('J1'!$E18="","",'J1'!$E18) -> 0 | AQ37: 0 | AS37: =IF('J1'!$E19="","",'J1'!$E19) -> 10 | AU37: 0.06097560976 | AW37: =IF('J1'!$E20="","",'J1'!$E20) -> 1 | AY37: 0.006097560976 | BA37: =IF('J1'!$E21="","",'J1'!$E21) -> 0 | BC37: 0 | BE37: =IF('J1'!E22="","",'J1'!E22) -> 1 | BG37: 0.006097560976 | BI37: =IF('J1'!$E23="","",'J1'!$E23) -> 1 | BK37: 0.006097560976 | BM37: =IF('J1'!$E24="","",'J1'!$E24) -> 1 | BO37: 0.006097560976
B38: J2 - René Rücklin | E38: =IF('J2'!$E7="","",'J2'!$E7) -> 813 | G38: =IF('J2'!$E8="","",'J2'!$E8) -> 244 | I38: =IF('J2'!$E9="","",'J2'!$E9) -> 244 | K38: 0.3001230012 | M38: =IF('J2'!$E10="","",'J2'!$E10) -> 6 | O38: =IF('J2'!$E11="","",'J2'!$E11) -> 1 | Q38: =IF('J2'!$E12="","",'J2'!$E12) -> 237 | S38: 0.2915129151 | U38: =IF('J2'!$E13="","",'J2'!$E13) -> 54 | W38: 0.2278481013 | Y38: =IF('J2'!$E14="","",'J2'!$E14) -> 0 | AA38: 0 | AC38: =IF('J2'!$E15="","",'J2'!$E15) -> 10 | AE38: 0.04219409283 | AG38: =IF('J2'!$E16="","",'J2'!$E16) -> 0 | AI38: 0 | AK38: =IF('J2'!$E17="","",'J2'!$E17) -> 34 | AM38: 0.1434599156 | AO38: =IF('J2'!$E18="","",'J2'!$E18) -> 0 | AQ38: 0 | AS38: =IF('J2'!$E19="","",'J2'!$E19) -> 23 | AU38: 0.0970464135 | AW38: =IF('J2'!$E20="","",'J2'!$E20) -> 3 | AY38: 0.01265822785 | BA38: =IF('J2'!$E21="","",'J2'!$E21) -> 0 | BC38: 0 | BE38: =IF('J2'!E22="","",'J2'!E22) -> 1 | BG38: 0.004219409283 | BI38: =IF('J2'!$E23="","",'J2'!$E23) -> 1 | BK38: 0.004219409283 | BM38: =IF('J2'!$E24="","",'J2'!$E24) -> 0 | BO38: 0
B39: J3 - René Rücklin | E39: =IF('J3'!$E7="","",'J3'!$E7) -> 556 | G39: =IF('J3'!$E8="","",'J3'!$E8) -> 142 | I39: =IF('J3'!$E9="","",'J3'!$E9) -> 142 | K39: 0.2553956835 | M39: =IF('J3'!$E10="","",'J3'!$E10) -> 4 | O39: =IF('J3'!$E11="","",'J3'!$E11) -> 5 | Q39: =IF('J3'!$E12="","",'J3'!$E12) -> 133 | S39: 0.2392086331 | U39: =IF('J3'!$E13="","",'J3'!$E13) -> 19 | W39: 0.1428571429 | Y39: =IF('J3'!$E14="","",'J3'!$E14) -> 0 | AA39: 0 | AC39: =IF('J3'!$E15="","",'J3'!$E15) -> 2 | AE39: 0.01503759398 | AG39: =IF('J3'!$E16="","",'J3'!$E16) -> 1 | AI39: 0.007518796992 | AK39: =IF('J3'!$E17="","",'J3'!$E17) -> 18 | AM39: 0.1353383459 | AO39: =IF('J3'!$E18="","",'J3'!$E18) -> 1 | AQ39: 0.007518796992 | AS39: =IF('J3'!$E19="","",'J3'!$E19) -> 14 | AU39: 0.1052631579 | AW39: =IF('J3'!$E20="","",'J3'!$E20) -> 5 | AY39: 0.03759398496 | BA39: =IF('J3'!$E21="","",'J3'!$E21) -> 0 | BC39: 0 | BE39: =IF('J3'!E22="","",'J3'!E22) -> 1 | BG39: 0.007518796992 | BI39: =IF('J3'!$E23="","",'J3'!$E23) -> 0 | BK39: 0 | BM39: =IF('J3'!$E24="","",'J3'!$E24) -> 0 | BO39: 0
B40: Canton SUD | E40: =SUM(E$34:E$39) -> 4400 | G40: =SUM(G34:G39) -> 1458 | I40: =SUM(I34:I39) -> 1458 | K40: 0.3313636364 | M40: =SUM(M34:M39) -> 39 | O40: =SUM(O34:O39) -> 31 | Q40: =SUM(Q34:Q39) -> 1388 | S40: 0.3154545455 | U40: =SUM(U34:U39) -> 255 | W40: =IF(U40=0,0,U40/$Q40) -> 0.1837175793 | Y40: =SUM(Y34:Y39) -> 1 | AA40: =IF(Y40=0,0,Y40/$Q40) -> 0.0007204610951 | AC40: =SUM(AC34:AC39) -> 35 | AE40: =IF(AC40=0,0,AC40/$Q40) -> 0.02521613833 | AG40: =SUM(AG34:AG39) -> 5 | AI40: =IF(AG40=0,0,AG40/$Q40) -> 0.003602305476 | AK40: =SUM(AK34:AK39) -> 205 | AM40: =IF(AK40=0,0,AK40/$Q40) -> 0.1476945245 | AO40: =SUM(AO34:AO39) -> 6 | AQ40: =IF(AO40=0,0,AO40/$Q40) -> 0.004322766571 | AS40: =SUM(AS34:AS39) -> 121 | AU40: =IF(AS40=0,0,AS40/$Q40) -> 0.08717579251 | AW40: =SUM(AW34:AW39) -> 23 | AY40: =IF(AW40=0,0,AW40/$Q40) -> 0.01657060519 | BA40: =SUM(BA34:BA39) -> 0 | BC40: =IF(BA40=0,0,BA40/$Q40) -> 0 | BE40: =SUM(BE34:BE39) -> 8 | BG40: =IF(BE40=0,0,BE40/$Q40) -> 0.005763688761 | BI40: =SUM(BI34:BI39) -> 2 | BK40: =IF(BI40=0,0,BI40/$Q90) -> 0.00144092219 | BM40: =SUM(BM34:BM39) -> 3 | BO40: =IF(BM40=0,0,BM40/$Q90) -> 0.002161383285
B41: K1 - Louis Pergaud | E41: =IF('K1'!$E7="","",'K1'!$E7) -> 944 | G41: =IF('K1'!$E8="","",'K1'!$E8) -> 193 | I41: =IF('K1'!$E9="","",'K1'!$E9) -> 193 | K41: 0.2044491525 | M41: =IF('K1'!$E10="","",'K1'!$E10) -> 4 | O41: =IF('K1'!$E11="","",'K1'!$E11) -> 8 | Q41: =IF('K1'!$E12="","",'K1'!$E12) -> 181 | S41: 0.1917372881 | U41: =IF('K1'!$E13="","",'K1'!$E13) -> 45 | W41: =IF(U41=""," ",U41/$Q41) -> 0.2486187845 | Y41: =IF('K1'!$E14="","",'K1'!$E14) -> 0 | AA41: =IF(Y41=""," ",Y41/$Q41) -> 0 | AC41: =IF('K1'!$E15="","",'K1'!$E15) -> 8 | AE41: =IF(AC41=""," ",AC41/$Q41) -> 0.04419889503 | AG41: =IF('K1'!$E16="","",'K1'!$E16) -> 0 | AI41: =IF(AG41=""," ",AG41/$Q41) -> 0 | AK41: =IF('K1'!$E17="","",'K1'!$E17) -> 30 | AM41: =IF(AK41=""," ",AK41/$Q41) -> 0.1657458564 | AO41: =IF('K1'!$E18="","",'K1'!$E18) -> 0 | AQ41: =IF(AO41=""," ",AO41/$Q41) -> 0 | AS41: =IF('K1'!$E19="","",'K1'!$E19) -> 11 | AU41: =IF(AS41=""," ",AS41/$Q41) -> 0.06077348066 | AW41: =IF('K1'!$E20="","",'K1'!$E20) -> 1 | AY41: =IF(AW41=""," ",AW41/$Q41) -> 0.005524861878 | BA41: =IF('K1'!$E21="","",'K1'!$E21) -> 0 | BC41: =IF(BA41=""," ",BA41/$Q41) -> 0 | BE41: =IF('K1'!E22="","",'K1'!E22) -> 1 | BG41: =IF(BE41=""," ",BE41/$Q41) -> 0.005524861878 | BI41: =IF('K1'!$E23="","",'K1'!$E23) -> 0 | BK41: =IF(BI41=""," ",BI41/$Q91) -> 0 | BM41: =IF('K1'!$E24="","",'K1'!$E24) -> 1 | BO41: =IF(BM41=""," ",BM41/$Q91) -> 0.005524861878
B42: K2 - Louis Pergaud | E42: =IF('K2'!$E7="","",'K2'!$E7) -> 784 | G42: =IF('K2'!$E8="","",'K2'!$E8) -> 187 | I42: =IF('K2'!$E9="","",'K2'!$E9) -> 187 | K42: 0.2385204082 | M42: =IF('K2'!$E10="","",'K2'!$E10) -> 0 | O42: =IF('K2'!$E11="","",'K2'!$E11) -> 6 | Q42: =IF('K2'!$E12="","",'K2'!$E12) -> 181 | S42: 0.2308673469 | U42: =IF('K2'!$E13="","",'K2'!$E13) -> 36 | W42: =IF(U42=""," ",U42/$Q42) -> 0.1988950276 | Y42: =IF('K2'!$E14="","",'K2'!$E14) -> 0 | AA42: =IF(Y42=""," ",Y42/$Q42) -> 0 | AC42: =IF('K2'!$E15="","",'K2'!$E15) -> 6 | AE42: =IF(AC42=""," ",AC42/$Q42) -> 0.03314917127 | AG42: =IF('K2'!$E16="","",'K2'!$E16) -> 0 | AI42: =IF(AG42=""," ",AG42/$Q42) -> 0 | AK42: =IF('K2'!$E17="","",'K2'!$E17) -> 33 | AM42: =IF(AK42=""," ",AK42/$Q42) -> 0.182320442 | AO42: =IF('K2'!$E18="","",'K2'!$E18) -> 0 | AQ42: =IF(AO42=""," ",AO42/$Q42) -> 0 | AS42: =IF('K2'!$E19="","",'K2'!$E19) -> 11 | AU42: =IF(AS42=""," ",AS42/$Q42) -> 0.06077348066 | AW42: =IF('K2'!$E20="","",'K2'!$E20) -> 3 | AY42: =IF(AW42=""," ",AW42/$Q42) -> 0.01657458564 | BA42: =IF('K2'!$E21="","",'K2'!$E21) -> 0 | BC42: =IF(BA42=""," ",BA42/$Q42) -> 0 | BE42: =IF('K2'!E22="","",'K2'!E22) -> 0 | BG42: =IF(BE42=""," ",BE42/$Q42) -> 0 | BI42: =IF('K2'!$E23="","",'K2'!$E23) -> 2 | BK42: =IF(BI42=""," ",BI42/$Q92) -> 0.01104972376 | BM42: =IF('K2'!$E24="","",'K2'!$E24) -> 0 | BO42: =IF(BM42=""," ",BM42/$Q92) -> 0
B43: L1 - Les Barres | E43: =IF('L1'!$E7="","",'L1'!$E7) -> 1314 | G43: =IF('L1'!$E8="","",'L1'!$E8) -> 500 | I43: =IF('L1'!$E9="","",'L1'!$E9) -> 500 | K43: 0.3805175038 | M43: =IF('L1'!$E10="","",'L1'!$E10) -> 11 | O43: =IF('L1'!$E11="","",'L1'!$E11) -> 5 | Q43: =IF('L1'!$E12="","",'L1'!$E12) -> 484 | S43: 0.3683409437 | U43: =IF('L1'!$E13="","",'L1'!$E13) -> 99 | W43: =IF(U43=""," ",U43/$Q43) -> 0.2045454545 | Y43: =IF('L1'!$E14="","",'L1'!$E14) -> 2 | AA43: =IF(Y43=""," ",Y43/$Q43) -> 0.004132231405 | AC43: =IF('L1'!$E15="","",'L1'!$E15) -> 12 | AE43: =IF(AC43=""," ",AC43/$Q43) -> 0.02479338843 | AG43: =IF('L1'!$E16="","",'L1'!$E16) -> 1 | AI43: =IF(AG43=""," ",AG43/$Q43) -> 0.002066115702 | AK43: =IF('L1'!$E17="","",'L1'!$E17) -> 87 | AM43: =IF(AK43=""," ",AK43/$Q43) -> 0.1797520661 | AO43: =IF('L1'!$E18="","",'L1'!$E18) -> 4 | AQ43: =IF(AO43=""," ",AO43/$Q43) -> 0.00826446281 | AS43: =IF('L1'!$E19="","",'L1'!$E19) -> 29 | AU43: =IF(AS43=""," ",AS43/$Q43) -> 0.05991735537 | AW43: =IF('L1'!$E20="","",'L1'!$E20) -> 19 | AY43: =IF(AW43=""," ",AW43/$Q43) -> 0.03925619835 | BA43: =IF('L1'!$E21="","",'L1'!$E21) -> 1 | BC43: =IF(BA43=""," ",BA43/$Q43) -> 0.002066115702 | BE43: =IF('L1'!E22="","",'L1'!E22) -> 2 | BG43: =IF(BE43=""," ",BE43/$Q43) -> 0.004132231405 | BI43: =IF('L1'!$E23="","",'L1'!$E23) -> 1 | BK43: =IF(BI43=""," ",BI43/$Q93) -> 0.002066115702 | BM43: =IF('L1'!$E24="","",'L1'!$E24) -> 2 | BO43: =IF(BM43=""," ",BM43/$Q93) -> 0.004132231405
B44: L2 - Les Barres | E44: =IF('L2'!$E7="","",'L2'!$E7) -> 1146 | G44: =IF('L2'!$E8="","",'L2'!$E8) -> 507 | I44: =IF('L2'!$E9="","",'L2'!$E9) -> 507 | K44: 0.442408377 | M44: =IF('L2'!$E10="","",'L2'!$E10) -> 5 | O44: =IF('L2'!$E11="","",'L2'!$E11) -> 15 | Q44: =IF('L2'!$E12="","",'L2'!$E12) -> 487 | S44: 0.42495637 | U44: =IF('L2'!$E13="","",'L2'!$E13) -> 91 | W44: =IF(U44=""," ",U44/$Q44) -> 0.1868583162 | Y44: =IF('L2'!$E14="","",'L2'!$E14) -> 0 | AA44: =IF(Y44=""," ",Y44/$Q44) -> 0 | AC44: =IF('L2'!$E15="","",'L2'!$E15) -> 8 | AE44: =IF(AC44=""," ",AC44/$Q44) -> 0.01642710472 | AG44: =IF('L2'!$E16="","",'L2'!$E16) -> 0 | AI44: =IF(AG44=""," ",AG44/$Q44) -> 0 | AK44: =IF('L2'!$E17="","",'L2'!$E17) -> 74 | AM44: =IF(AK44=""," ",AK44/$Q44) -> 0.1519507187 | AO44: =IF('L2'!$E18="","",'L2'!$E18) -> 3 | AQ44: =IF(AO44=""," ",AO44/$Q44) -> 0.006160164271 | AS44: =IF('L2'!$E19="","",'L2'!$E19) -> 36 | AU44: =IF(AS44=""," ",AS44/$Q44) -> 0.07392197125 | AW44: =IF('L2'!$E20="","",'L2'!$E20) -> 14 | AY44: =IF(AW44=""," ",AW44/$Q44) -> 0.02874743326 | BA44: =IF('L2'!$E21="","",'L2'!$E21) -> 0 | BC44: =IF(BA44=""," ",BA44/$Q44) -> 0 | BE44: =IF('L2'!E22="","",'L2'!E22) -> 3 | BG44: =IF(BE44=""," ",BE44/$Q44) -> 0.006160164271 | BI44: =IF('L2'!$E23="","",'L2'!$E23) -> 0 | BK44: =IF(BI44=""," ",BI44/$Q94) -> 0 | BM44: =IF('L2'!$E24="","",'L2'!$E24) -> 4 | BO44: =IF(BM44=""," ",BM44/$Q94) -> 0.008213552361
B45: Canton OUEST | E45: =SUM(E$41:E$44) -> 4188 | G45: =SUM(G41:G44) -> 1387 | I45: =SUM(I41:I44) -> 1387 | K45: 0.3311843362 | M45: =SUM(M41:M44) -> 20 | O45: =SUM(O41:O44) -> 34 | Q45: =SUM(Q41:Q44) -> 1333 | S45: 0.3182903534 | U45: =SUM(U41:U44) -> 271 | W45: =IF(U45=0,0,U45/$Q45) -> 0.2033008252 | Y45: =SUM(Y41:Y44) -> 2 | AA45: =IF(Y45=0,0,Y45/$Q45) -> 0.001500375094 | AC45: =SUM(AC41:AC44) -> 34 | AE45: =IF(AC45=0,0,AC45/$Q45) -> 0.02550637659 | AG45: =SUM(AG41:AG44) -> 1 | AI45: =IF(AG45=0,0,AG45/$Q45) -> 0.0007501875469 | AK45: =SUM(AK41:AK44) -> 224 | AM45: =IF(AK45=0,0,AK45/$Q45) -> 0.1680420105 | AO45: =SUM(AO41:AO44) -> 7 | AQ45: =IF(AO45=0,0,AO45/$Q45) -> 0.005251312828 | AS45: =SUM(AS41:AS44) -> 87 | AU45: =IF(AS45=0,0,AS45/$Q45) -> 0.06526631658 | AW45: =SUM(AW41:AW44) -> 37 | AY45: =IF(AW45=0,0,AW45/$Q45) -> 0.02775693923 | BA45: =SUM(BA41:BA44) -> 1 | BC45: =IF(BA45=0,0,BA45/$Q45) -> 0.0007501875469 | BE45: =SUM(BE41:BE44) -> 6 | BG45: =IF(BE45=0,0,BE45/$Q45) -> 0.004501125281 | BI45: =SUM(BI41:BI44) -> 3 | BK45: =IF(BI45=0,0,BI45/$Q95) -> 0.002250562641 | BM45: =SUM(BM41:BM44) -> 7 | BO45: =IF(BM45=0,0,BM45/$Q95) -> 0.005251312828
B48: TOTAUX | E48: =E$20+E$27+E$33+E$40+E$45 -> 26563 | G48: =G$20+G$27+G$33+G$40+G$45 -> 10250 | I48: =I$20+I$27+I$33+I$40+I$45 -> 10250 | K48: =IF(I48=""," ",I48/$E48) -> 0.3858750894 | M48: =M$20+M$27+M$33+M$40+M$45 -> 185 | O48: =O$20+O$27+O$33+O$40+O$45 -> 192 | Q48: =Q$20+Q$27+Q$33+Q$40+Q$45 -> 9873 | U48: =U$20+U$27+U$33+U$40+U$45 -> 2427 | W48: =IF($Q$48=0,0,U48/$Q$48) -> 0.2458219386 | Y48: =Y$20+Y$27+Y$33+Y$40+Y$45 -> 12 | AA48: =IF($Q$48=0,0,Y48/$Q$48) -> 0.001215436038 | AC48: =AC$20+AC$27+AC$33+AC$40+AC$45 -> 158 | AE48: =IF($Q$48=0,0,AC48/$Q$48) -> 0.01600324116 | AG48: =AG$20+AG$27+AG$33+AG$40+AG$45 -> 16 | AI48: =IF($Q$48=0,0,AG48/$Q$48) -> 0.001620581384 | AK48: =AK$20+AK$27+AK$33+AK$40+AK$45 -> 1486 | AM48: =IF($Q$48=0,0,AK48/$Q$48) -> 0.150511496 | AO48: =AO$20+AO$27+AO$33+AO$40+AO$45 -> 44 | AQ48: =IF($Q$48=0,0,AO48/$Q$48) -> 0.004456598805 | AS48: =AS$20+AS$27+AS$33+AS$40+AS$45 -> 974 | AU48: =IF($Q$48=0,0,AS48/$Q$48) -> 0.09865289172 | AW48: =AW$20+AW$27+AW$33+AW$40+AW$45 -> 209 | AY48: =IF($Q$48=0,0,AW48/$Q$48) -> 0.02116884432 | BA48: =BA$20+BA$27+BA$33+BA$40+BA$45 -> 5 | BC48: =IF($Q$48=0,0,BA48/$Q$48) -> 0.0005064316824 | BE48: =BE$20+BE$27+BE$33+BE$40+BE$45 -> 59 | BG48: =IF($Q$48=0,0,BE48/$Q$48) -> 0.005975893852 | BI48: =BI$20+BI$27+BI$33+BI$40+BI$45 -> 22 | BK48: =IF($Q$48=0,0,BI48/$Q$48) -> 0.002228299402 | BM48: =BM$20+BM$27+BM$33+BM$40+BM$45 -> 43 | BO48: =IF($Q$48=0,0,BM48/$Q$48) -> 0.004355312468
B49: % / exprimés
B50: % / Inscrits | M50: =IF(I48=0,0,M48/E48) -> 0.006964574784 | O50: =IF(I48=0,0,O48/E48) -> 0.007228099236 | Q50: =IF(I48=0,0,Q48/E48) -> 0.3716824154 | U50: =IF($Q$48=0,0,U48/$E$48) -> 0.0913676919 | Y50: =IF($Q$48=0,0,Y48/$E$48) -> 0.0004517562022 | AC50: =IF($Q$48=0,0,AC48/$E$48) -> 0.005948123329 | AG50: =IF($Q$48=0,0,AG48/$E$48) -> 0.000602341603 | AK50: =IF($Q$48=0,0,AK48/$E$48) -> 0.05594247638 | AO50: =IF($Q$48=0,0,AO48/$E$48) -> 0.001656439408 | AS50: =IF($Q$48=0,0,AS48/$E$48) -> 0.03666754508 | AW50: =IF($Q$48=0,0,AW48/$E$48) -> 0.007868087189 | BA50: =IF($Q$48=0,0,BA48/$E$48) -> 0.0001882317509 | BE50: =IF($Q$48=0,0,BE48/$E$48) -> 0.002221134661 | BI50: =IF($Q$48=0,0,BI48/$E$48) -> 0.0008282197041 | BM50: =IF($Q$48=0,0,BM48/$E$48) -> 0.001618793058
U51: ÉLECTIONS EUROPÉENNES
A52: RÉSULTATS
BK53: 25 mai 2014
Z54: =COUNTIF($I$13:$I$19,">0")+COUNTIF($I$21:$I$26,">0")+COUNTIF($I$28:$I$32,">0")+COUNTIF($I$34:$I$39,">0")+COUNTIF($I$41:$I$44,">0") -> 28 | AC54: Bureaux sur | AE54: 28
E56: Listes 13 à 23 | Z56: =SUMIF($I$13:$I$19,">0",$E$13:$E$19)+SUMIF($I$21:$I$26,">0",$E$21:$E$26)+SUMIF($I$28:$I$32,">0",$E$28:$E$32)+SUMIF($I$34:$I$39,">0",$E$34:$E$39)+SUMIF($I$41:$I$44,">0",$E$41:$E$44) -> 26563 | AC56: Inscrits sur | AE56: =$E$48 -> 26563 | AG56: soit | AH56: : | AI56: =Z56/AE56 -> 1
S59: % / | U59: =Candidats!A14 -> Xavier | Y59: =Candidats!A15 -> Sandrine | AC59: =Candidats!A16 -> Florian | AG59: =Candidats!A17 -> Sandrine | AK59: =Candidats!A18 -> Ismaël | AO59: =Candidats!A19 -> Laure | AS59: =Candidats!A20 -> Antonio | AW59: =Candidats!A21 -> Isabelle | BA59: =Candidats!A22 -> Yannick | BE59: =Candidats!A23 -> Gabriel | BI59: =Candidats!A24 -> Florence
D60: BUREAUX | E60: Inscrits | G60: Émarg. | I60: Votants | K60: Particip. | M60: Blancs | O60: Nuls | Q60: Exprimés | S60: Inscrits | U60: =Candidats!B14 -> DESSAIGNE | W60: % | Y60: =Candidats!B15 -> PICO | AA60: % | AC60: =Candidats!B16 -> PHILIPPOT | AE60: % | AG60: =Candidats!B17 -> BELIER | AI60: % | AK60: =Candidats!B18 -> BOUDJEKADA | AM60: % | AO60: =Candidats!B19 -> FERRARI | AQ60: % | AS60: =Candidats!B20 -> SANCHEZ | AU60: % | AW60: =Candidats!B21 -> MAURER | AY60: % | BA60: =Candidats!B22 -> HERVE | BC60: % | BE60: =Candidats!B23 -> AMARD | BG60: % | BI60: =Candidats!B24 -> LHOTE | BK60: %
B63: A1 - Hôtel de Ville | E63: =IF('A1'!$E7="","",'A1'!$E7) -> 856 | G63: =IF('A1'!$E8="","",'A1'!$E8) -> 368 | I63: =IF('A1'!$E9="","",'A1'!$E9) -> 368 | K63: =IF(I63=""," ",I63/$E63) -> 0.4299065421 | M63: =IF('A1'!$E10="","",'A1'!$E10) -> 4 | O63: =IF('A1'!$E11="","",'A1'!$E11) -> 4 | Q63: =IF('A1'!$E12="","",'A1'!$E12) -> 360 | S63: =IF(Q63=""," ",Q63/$E63) -> 0.4205607477 | U63: =IF('A1'!$E25="","",'A1'!$E25) -> 3 | W63: =IF(U63=""," ",U63/$Q63) -> 0.008333333333 | Y63: =IF('A1'!$E26="","",'A1'!$E26) -> 0 | AA63: =IF(Y63=""," ",Y63/$Q63) -> 0 | AC63: =IF('A1'!$E27="","",'A1'!$E27) -> 58 | AE63: =IF(AC63=""," ",AC63/$Q63) -> 0.1611111111 | AG63: =IF('A1'!$E28="","",'A1'!$E28) -> 31 | AI63: =IF(AG63=""," ",AG63/$Q63) -> 0.08611111111 | AK63: =IF('A1'!$E29="","",'A1'!$E29) -> 0 | AM63: =IF(AK63=""," ",AK63/$Q63) -> 0 | AO63: =IF('A1'!$E30="","",'A1'!$E30) -> 18 | AQ63: =IF(AO63=""," ",AO63/$Q63) -> 0.05 | AS63: =IF('A1'!$E31="","",'A1'!$E31) -> 0 | AU63: =IF(AS63=""," ",AS63/$Q63) -> 0 | AW63: =IF('A1'!$E32="","",'A1'!$E32) -> 21 | AY63: =IF(AW63=""," ",AW63/$Q63) -> 0.05833333333 | BA63: =IF('A1'!$E33="","",'A1'!$E33) -> 3 | BC63: =IF(BA63=""," ",BA63/$Q63) -> 0.008333333333 | BE63: =IF('A1'!$E36="","",'A1'!$E34) ->  | BG63: =IF(BE63=""," ",BE63/$Q63) ->  | BI63: =IF('A1'!$E35="","",'A1'!$E35) -> 2 | BK63: =IF(BI63=""," ",BI63/$Q63) -> 0.005555555556
B64: A2 - Salle des fêtes | E64: =IF('A2'!$E7="","",'A2'!$E7) -> 934 | G64: =IF('A2'!$E8="","",'A2'!$E8) -> 476 | I64: =IF('A2'!$E9="","",'A2'!$E9) -> 476 | K64: =IF(I64=""," ",I64/$E64) -> 0.5096359743 | M64: =IF('A2'!$E10="","",'A2'!$E10) -> 7 | O64: =IF('A2'!$E11="","",'A2'!$E11) -> 10 | Q64: =IF('A2'!$E12="","",'A2'!$E12) -> 459 | S64: =IF(Q64=""," ",Q64/$E64) -> 0.4914346895 | U64: =IF('A2'!$E25="","",'A2'!$E25) -> 7 | W64: 0.01525054466 | Y64: =IF('A2'!$E26="","",'A2'!$E26) -> 1 | AA64: 0.002178649237 | AC64: =IF('A2'!$E27="","",'A2'!$E27) -> 66 | AE64: 0.1437908497 | AG64: =IF('A2'!$E28="","",'A2'!$E28) -> 32 | AI64: 0.0697167756 | AK64: =IF('A2'!$E29="","",'A2'!$E29) -> 0 | AM64: 0 | AO64: =IF('A2'!$E30="","",'A2'!$E30) -> 16 | AQ64: 0.0348583878 | AS64: =IF('A2'!$E31="","",'A2'!$E31) -> 0 | AU64: 0 | AW64: =IF('A2'!$E32="","",'A2'!$E32) -> 7 | AY64: 0.01525054466 | BA64: =IF('A2'!$E33="","",'A2'!$E33) -> 2 | BC64: 0.004357298475 | BE64: =IF('A2'!$E34="","",'A2'!$E34) -> 30 | BG64: 0.06535947712 | BI64: =IF('A2'!$E35="","",'A2'!$E35) -> 2 | BK64: 0.004357298475
B65: B1 - Victor Hugo | E65: =IF('B1'!$E7="","",'B1'!$E7) -> 1068 | G65: =IF('B1'!$E8="","",'B1'!$E8) -> 434 | I65: =IF('B1'!$E9="","",'B1'!$E9) -> 434 | K65: 0.4063670412 | M65: =IF('B1'!$E10="","",'B1'!$E10) -> 4 | O65: =IF('B1'!$E11="","",'B1'!$E11) -> 3 | Q65: =IF('B1'!$E12="","",'B1'!$E12) -> 427 | S65: 0.3998127341 | U65: =IF('B1'!$E25="","",'B1'!$E25) -> 4 | W65: 0.009367681499 | Y65: =IF('B1'!$E26="","",'B1'!$E26) -> 0 | AA65: 0 | AC65: =IF('B1'!$E27="","",'B1'!$E27) -> 57 | AE65: 0.1334894614 | AG65: =IF('B1'!$E28="","",'B1'!$E28) -> 33 | AI65: 0.07728337237 | AK65: =IF('B1'!$E29="","",'B1'!$E29) -> 0 | AM65: 0 | AO65: =IF('B1'!$E30="","",'B1'!$E30) -> 16 | AQ65: 0.037470726 | AS65: =IF('B1'!$E31="","",'B1'!$E31) -> 0 | AU65: 0 | AW65: =IF('B1'!$E32="","",'B1'!$E32) -> 9 | AY65: 0.02107728337 | BA65: =IF('B1'!$E33="","",'B1'!$E33) -> 6 | BC65: 0.01405152225 | BE65: =IF('B1'!$E34="","",'B1'!$E34) -> 25 | BG65: 0.05854800937 | BI65: =IF('B1'!$E35="","",'B1'!$E35) -> 2 | BK65: 0.004683840749
B66: B2 - Victor Hugo | E66: =IF('B2'!$E7="","",'B2'!$E7) -> 1149 | G66: =IF('B2'!$E8="","",'B2'!$E8) -> 524 | I66: =IF('B2'!$E9="","",'B2'!$E9) -> 524 | K66: 0.456048738 | M66: =IF('B2'!$E10="","",'B2'!$E10) -> 1 | O66: =IF('B2'!$E11="","",'B2'!$E11) -> 7 | Q66: =IF('B2'!$E12="","",'B2'!$E12) -> 516 | S66: 0.4490861619 | U66: =IF('B2'!$E25="","",'B2'!$E25) -> 4 | W66: 0.007751937984 | Y66: =IF('B2'!$E26="","",'B2'!$E26) -> 0 | AA66: 0 | AC66: =IF('B2'!$E27="","",'B2'!$E27) -> 86 | AE66: 0.1666666667 | AG66: =IF('B2'!$E28="","",'B2'!$E28) -> 59 | AI66: 0.1143410853 | AK66: =IF('B2'!$E29="","",'B2'!$E29) -> 0 | AM66: 0 | AO66: =IF('B2'!$E30="","",'B2'!$E30) -> 19 | AQ66: 0.03682170543 | AS66: =IF('B2'!$E31="","",'B2'!$E31) -> 0 | AU66: 0 | AW66: =IF('B2'!$E32="","",'B2'!$E32) -> 17 | AY66: 0.03294573643 | BA66: =IF('B2'!$E33="","",'B2'!$E33) -> 1 | BC66: 0.001937984496 | BE66: =IF('B2'!$E34="","",'B2'!$E34) -> 20 | BG66: 0.03875968992 | BI66: =IF('B2'!$E35="","",'B2'!$E35) -> 1 | BK66: 0.001937984496
B67: M1 - Saint-Exupéry | E67: =IF('M1'!$E7="","",'M1'!$E7) -> 1300 | G67: =IF('M1'!$E8="","",'M1'!$E8) -> 274 | I67: =IF('M1'!$E9="","",'M1'!$E9) -> 274 | K67: 0.2107692308 | M67: =IF('M1'!$E10="","",'M1'!$E10) -> 4 | O67: =IF('M1'!$E11="","",'M1'!$E11) -> 14 | Q67: =IF('M1'!$E12="","",'M1'!$E12) -> 256 | S67: 0.1969230769 | U67: =IF('M1'!$E25="","",'M1'!$E25) -> 1 | W67: 0.00390625 | Y67: =IF('M1'!$E26="","",'M1'!$E26) -> 0 | AA67: 0 | AC67: =IF('M1'!$E27="","",'M1'!$E27) -> 63 | AE67: 0.24609375 | AG67: =IF('M1'!$E28="","",'M1'!$E28) -> 11 | AI67: 0.04296875 | AK67: =IF('M1'!$E29="","",'M1'!$E29) -> 0 | AM67: 0 | AO67: =IF('M1'!$E30="","",'M1'!$E30) -> 5 | AQ67: 0.01953125 | AS67: =IF('M1'!$E31="","",'M1'!$E31) -> 0 | AU67: 0 | AW67: =IF('M1'!$E32="","",'M1'!$E32) -> 3 | AY67: 0.01171875 | BA67: =IF('M1'!$E33="","",'M1'!$E33) -> 1 | BC67: 0.00390625 | BE67: =IF('M1'!$E34="","",'M1'!$E34) -> 33 | BG67: 0.12890625 | BI67: =IF('M1'!$E35="","",'M1'!$E35) -> 2 | BK67: 0.0078125
B68: N1 - Jean Moulin | E68: =IF('N1'!$E7="","",'N1'!$E7) -> 1451 | G68: =IF('N1'!$E8="","",'N1'!$E8) -> 603 | I68: =IF('N1'!$E9="","",'N1'!$E9) -> 603 | K68: 0.4155754652 | M68: =IF('N1'!$E10="","",'N1'!$E10) -> 12 | O68: =IF('N1'!$E11="","",'N1'!$E11) -> 8 | Q68: =IF('N1'!$E12="","",'N1'!$E12) -> 583 | S68: 0.4017918677 | U68: =IF('N1'!$E25="","",'N1'!$E25) -> 6 | W68: 0.0102915952 | Y68: =IF('N1'!$E26="","",'N1'!$E26) -> 0 | AA68: 0 | AC68: =IF('N1'!$E27="","",'N1'!$E27) -> 149 | AE68: 0.2555746141 | AG68: =IF('N1'!$E28="","",'N1'!$E28) -> 46 | AI68: 0.07890222985 | AK68: =IF('N1'!$E29="","",'N1'!$E29) -> 0 | AM68: 0 | AO68: =IF('N1'!$E30="","",'N1'!$E30) -> 19 | AQ68: 0.03259005146 | AS68: =IF('N1'!$E31="","",'N1'!$E31) -> 0 | AU68: 0 | AW68: =IF('N1'!$E32="","",'N1'!$E32) -> 13 | AY68: 0.02229845626 | BA68: =IF('N1'!$E33="","",'N1'!$E33) -> 2 | BC68: 0.003430531732 | BE68: =IF('N1'!$E34="","",'N1'!$E34) -> 34 | BG68: 0.05831903945 | BI68: =IF('N1'!$E35="","",'N1'!$E35) -> 3 | BK68: 0.005145797599
B69: N2 - Cité des Associations | E69: =IF('N2'!$E7="","",'N2'!$E7) -> 899 | G69: =IF('N2'!$E8="","",'N2'!$E8) -> 409 | I69: =IF('N2'!$E9="","",'N2'!$E9) -> 409 | K69: 0.4549499444 | M69: =IF('N2'!$E10="","",'N2'!$E10) -> 12 | O69: =IF('N2'!$E11="","",'N2'!$E11) -> 7 | Q69: =IF('N2'!$E12="","",'N2'!$E12) -> 390 | S69: 0.4338153504 | U69: =IF('N2'!$E25="","",'N2'!$E25) -> 6 | W69: 0.01538461538 | Y69: =IF('N2'!$E26="","",'N2'!$E26) -> 0 | AA69: 0 | AC69: =IF('N2'!$E27="","",'N2'!$E27) -> 83 | AE69: 0.2128205128 | AG69: =IF('N2'!$E28="","",'N2'!$E28) -> 38 | AI69: 0.09743589744 | AK69: =IF('N2'!$E29="","",'N2'!$E29) -> 0 | AM69: 0 | AO69: =IF('N2'!$E30="","",'N2'!$E30) -> 8 | AQ69: 0.02051282051 | AS69: =IF('N2'!$E31="","",'N2'!$E31) -> 0 | AU69: 0 | AW69: =IF('N2'!$E32="","",'N2'!$E32) -> 8 | AY69: 0.02051282051 | BA69: =IF('N2'!$E33="","",'N2'!$E33) -> 3 | BC69: 0.007692307692 | BE69: =IF('N2'!$E34="","",'N2'!$E34) -> 23 | BG69: 0.05897435897 | BI69: =IF('N2'!$E35="","",'N2'!$E35) -> 0 | BK69: 0
B70: Canton EST | E70: =SUM(E$13:E$19) -> 7657 | G70: =SUM(G63:G69) -> 3088 | I70: =SUM(I63:I69) -> 3088 | K70: =IF(I70=""," ",I70/$E70) -> 0.4032911062 | M70: =SUM(M63:M69) -> 44 | O70: =SUM(O63:O69) -> 53 | Q70: =SUM(Q63:Q69) -> 2991 | S70: =IF(Q70=""," ",Q70/$E70) -> 0.3906229594 | U70: =SUM(U63:U69) -> 31 | W70: =IF(U70=0,0,U70/$Q70) -> 0.01036442661 | Y70: =SUM(Y63:Y69) -> 1 | AA70: =IF(Y70=0,0,Y70/$Q70) -> 0.0003343363424 | AC70: =SUM(AC63:AC69) -> 562 | AE70: =IF(AC70=0,0,AC70/$Q70) -> 0.1878970244 | AG70: =SUM(AG63:AG69) -> 250 | AI70: =IF(AG70=0,0,AG70/$Q70) -> 0.08358408559 | AK70: =SUM(AK63:AK69) -> 0 | AM70: =IF(AK70=0,0,AK70/$Q70) -> 0 | AO70: =SUM(AO63:AO69) -> 101 | AQ70: =IF(AO70=0,0,AO70/$Q70) -> 0.03376797058 | AS70: =SUM(AS63:AS69) -> 0 | AU70: =IF(AS70=0,0,AS70/$Q70) -> 0 | AW70: =SUM(AW63:AW69) -> 78 | AY70: =IF(AW70=0,0,AW70/$Q70) -> 0.0260782347 | BA70: =SUM(BA63:BA69) -> 18 | BC70: =IF(BA70=0,0,BA70/$Q70) -> 0.006018054162 | BE70: =SUM(BE63:BE69) -> 165 | BG70: =IF(BE70=0,0,BE70/$Q70) -> 0.05516549649 | BI70: =SUM(BI63:BI69) -> 12 | BK70: =IF(BI70=0,0,BI70/$Q70) -> 0.004012036108
B71: C1 - Victor Schoelcher | E71: =IF('C1'!$E7="","",'C1'!$E7) -> 1194 | G71: =IF('C1'!$E8="","",'C1'!$E8) -> 487 | I71: =IF('C1'!$E9="","",'C1'!$E9) -> 487 | K71: 0.4078726968 | M71: =IF('C1'!$E10="","",'C1'!$E10) -> 8 | O71: =IF('C1'!$E11="","",'C1'!$E11) -> 4 | Q71: =IF('C1'!$E12="","",'C1'!$E12) -> 475 | S71: 0.3978224456 | U71: =IF('C1'!$E25="","",'C1'!$E25) -> 1 | W71: =IF(U71=""," ",U71/$Q71) -> 0.002105263158 | Y71: =IF('C1'!$E26="","",'C1'!$E26) -> 0 | AA71: =IF(Y71=""," ",Y71/$Q71) -> 0 | AC71: =IF('C1'!$E27="","",'C1'!$E27) -> 89 | AE71: =IF(AC71=""," ",AC71/$Q71) -> 0.1873684211 | AG71: =IF('C1'!$E28="","",'C1'!$E28) -> 37 | AI71: =IF(AG71=""," ",AG71/$Q71) -> 0.07789473684 | AK71: =IF('C1'!$E29="","",'C1'!$E29) -> 0 | AM71: =IF(AK71=""," ",AK71/$Q71) -> 0 | AO71: =IF('C1'!$E30="","",'C1'!$E30) -> 19 | AQ71: =IF(AO71=""," ",AO71/$Q71) -> 0.04 | AS71: =IF('C1'!$E31="","",'C1'!$E31) -> 0 | AU71: =IF(AS71=""," ",AS71/$Q71) -> 0 | AW71: =IF('C1'!$E32="","",'C1'!$E32) -> 11 | AY71: =IF(AW71=""," ",AW71/$Q71) -> 0.02315789474 | BA71: =IF('C1'!$E33="","",'C1'!$E33) -> 4 | BC71: =IF(BA71=""," ",BA71/$Q71) -> 0.008421052632 | BE71: =IF('C1'!$E34="","",'C1'!$E34) -> 18 | BG71: =IF(BE71=""," ",BE71/$Q71) -> 0.03789473684 | BI71: =IF('C1'!$E35="","",'C1'!$E35) -> 1 | BK71: =IF(BI71=""," ",BI71/$Q71) -> 0.002105263158
B72: C2 - Maison du Peuple | E72: =IF('C2'!$E7="","",'C2'!$E7) -> 749 | G72: =IF('C2'!$E8="","",'C2'!$E8) -> 359 | I72: =IF('C2'!$E9="","",'C2'!$E9) -> 359 | K72: 0.479305741 | M72: =IF('C2'!$E10="","",'C2'!$E10) -> 4 | O72: =IF('C2'!$E11="","",'C2'!$E11) -> 8 | Q72: =IF('C2'!$E12="","",'C2'!$E12) -> 347 | S72: 0.4632843792 | U72: =IF('C2'!$E25="","",'C2'!$E25) -> 6 | W72: 0.01729106628 | Y72: =IF('C2'!$E26="","",'C2'!$E26) -> 0 | AA72: 0 | AC72: =IF('C2'!$E27="","",'C2'!$E27) -> 57 | AE72: 0.1642651297 | AG72: =IF('C2'!$E28="","",'C2'!$E28) -> 23 | AI72: 0.06628242075 | AK72: =IF('C2'!$E29="","",'C2'!$E29) -> 0 | AM72: 0 | AO72: =IF('C2'!$E30="","",'C2'!$E30) -> 17 | AQ72: 0.04899135447 | AS72: =IF('C2'!$E31="","",'C2'!$E31) -> 0 | AU72: 0 | AW72: =IF('C2'!$E32="","",'C2'!$E32) -> 12 | AY72: 0.03458213256 | BA72: =IF('C2'!$E33="","",'C2'!$E33) -> 0 | BC72: 0 | BE72: =IF('C2'!$E34="","",'C2'!$E34) -> 20 | BG72: 0.05763688761 | BI72: =IF('C2'!$E35="","",'C2'!$E35) -> 4 | BK72: 0.01152737752
B73: C3 - Maison du Peuple | E73: =IF('C3'!$E7="","",'C3'!$E7) -> 909 | G73: =IF('C3'!$E8="","",'C3'!$E8) -> 426 | I73: =IF('C3'!$E9="","",'C3'!$E9) -> 426 | K73: 0.4686468647 | M73: =IF('C3'!$E10="","",'C3'!$E10) -> 6 | O73: =IF('C3'!$E11="","",'C3'!$E11) -> 5 | Q73: =IF('C3'!$E12="","",'C3'!$E12) -> 415 | S73: 0.4565456546 | U73: =IF('C3'!$E25="","",'C3'!$E25) -> 6 | W73: 0.01445783133 | Y73: =IF('C3'!$E26="","",'C3'!$E26) -> 0 | AA73: 0 | AC73: =IF('C3'!$E27="","",'C3'!$E27) -> 66 | AE73: 0.1590361446 | AG73: =IF('C3'!$E28="","",'C3'!$E28) -> 36 | AI73: 0.08674698795 | AK73: =IF('C3'!$E29="","",'C3'!$E29) -> 0 | AM73: 0 | AO73: =IF('C3'!$E30="","",'C3'!$E30) -> 9 | AQ73: 0.02168674699 | AS73: =IF('C3'!$E31="","",'C3'!$E31) -> 0 | AU73: 0 | AW73: =IF('C3'!$E32="","",'C3'!$E32) -> 10 | AY73: 0.02409638554 | BA73: =IF('C3'!$E33="","",'C3'!$E33) -> 0 | BC73: 0 | BE73: =IF('C3'!$E34="","",'C3'!$E34) -> 16 | BG73: 0.03855421687 | BI73: =IF('C3'!$E35="","",'C3'!$E35) -> 1 | BK73: 0.002409638554
B74: D1 - Châteaudun | E74: =IF('D1'!$E7="","",'D1'!$E7) -> 1058 | G74: =IF('D1'!$E8="","",'D1'!$E8) -> 444 | I74: =IF('D1'!$E9="","",'D1'!$E9) -> 444 | K74: 0.4196597353 | M74: =IF('D1'!$E10="","",'D1'!$E10) -> 6 | O74: =IF('D1'!$E11="","",'D1'!$E11) -> 7 | Q74: =IF('D1'!$E12="","",'D1'!$E12) -> 431 | S74: 0.4073724008 | U74: =IF('D1'!$E25="","",'D1'!$E25) -> 4 | W74: 0.009280742459 | Y74: =IF('D1'!$E26="","",'D1'!$E26) -> 0 | AA74: 0 | AC74: =IF('D1'!$E27="","",'D1'!$E27) -> 84 | AE74: 0.1948955916 | AG74: =IF('D1'!$E28="","",'D1'!$E28) -> 32 | AI74: 0.07424593968 | AK74: =IF('D1'!$E29="","",'D1'!$E29) -> 0 | AM74: 0 | AO74: =IF('D1'!$E30="","",'D1'!$E30) -> 20 | AQ74: 0.0464037123 | AS74: =IF('D1'!$E31="","",'D1'!$E31) -> 0 | AU74: 0 | AW74: =IF('D1'!$E32="","",'D1'!$E32) -> 10 | AY74: 0.02320185615 | BA74: =IF('D1'!$E33="","",'D1'!$E33) -> 3 | BC74: 0.006960556845 | BE74: =IF('D1'!$E34="","",'D1'!$E34) -> 24 | BG74: 0.05568445476 | BI74: =IF('D1'!$E35="","",'D1'!$E35) -> 2 | BK74: 0.00464037123
B75: D2 - Châteaudun | E75: =IF('D2'!$E7="","",'D2'!$E7) -> 827 | G75: =IF('D2'!$E8="","",'D2'!$E8) -> 365 | I75: =IF('D2'!$E9="","",'D2'!$E9) -> 365 | K75: 0.4413542926 | M75: =IF('D2'!$E10="","",'D2'!$E10) -> 5 | O75: =IF('D2'!$E11="","",'D2'!$E11) -> 4 | Q75: =IF('D2'!$E12="","",'D2'!$E12) -> 356 | S75: 0.430471584 | U75: =IF('D2'!$E25="","",'D2'!$E25) -> 6 | W75: 0.01685393258 | Y75: =IF('D2'!$E26="","",'D2'!$E26) -> 0 | AA75: 0 | AC75: =IF('D2'!$E27="","",'D2'!$E27) -> 84 | AE75: 0.2359550562 | AG75: =IF('D2'!$E28="","",'D2'!$E28) -> 32 | AI75: 0.08988764045 | AK75: =IF('D2'!$E29="","",'D2'!$E29) -> 0 | AM75: 0 | AO75: =IF('D2'!$E30="","",'D2'!$E30) -> 10 | AQ75: 0.02808988764 | AS75: =IF('D2'!$E31="","",'D2'!$E31) -> 0 | AU75: 0 | AW75: =IF('D2'!$E32="","",'D2'!$E32) -> 5 | AY75: 0.01404494382 | BA75: =IF('D2'!$E33="","",'D2'!$E33) -> 0 | BC75: 0 | BE75: =IF('D2'!$E34="","",'D2'!$E34) -> 18 | BG75: 0.05056179775 | BI75: =IF('D2'!$E35="","",'D2'!$E35) -> 0 | BK75: 0
B76: D3 - Châteaudun | E76: =IF('D3'!$E7="","",'D3'!$E7) -> 895 | G76: =IF('D3'!$E8="","",'D3'!$E8) -> 365 | I76: =IF('D3'!$E9="","",'D3'!$E9) -> 365 | K76: 0.4078212291 | M76: =IF('D3'!$E10="","",'D3'!$E10) -> 8 | O76: =IF('D3'!$E11="","",'D3'!$E11) -> 7 | Q76: =IF('D3'!$E12="","",'D3'!$E12) -> 350 | S76: 0.3910614525 | U76: =IF('D3'!$E25="","",'D3'!$E25) -> 4 | W76: 0.01142857143 | Y76: =IF('D3'!$E26="","",'D3'!$E26) -> 0 | AA76: 0 | AC76: =IF('D3'!$E27="","",'D3'!$E27) -> 103 | AE76: 0.2942857143 | AG76: =IF('D3'!$E28="","",'D3'!$E28) -> 21 | AI76: 0.06 | AK76: =IF('D3'!$E29="","",'D3'!$E29) -> 0 | AM76: 0 | AO76: =IF('D3'!$E30="","",'D3'!$E30) -> 9 | AQ76: 0.02571428571 | AS76: =IF('D3'!$E31="","",'D3'!$E31) -> 0 | AU76: 0 | AW76: =IF('D3'!$E32="","",'D3'!$E32) -> 5 | AY76: 0.01428571429 | BA76: =IF('D3'!$E33="","",'D3'!$E33) -> 2 | BC76: 0.005714285714 | BE76: =IF('D3'!$E34="","",'D3'!$E34) -> 25 | BG76: 0.07142857143 | BI76: =IF('D3'!$E35="","",'D3'!$E35) -> 0 | BK76: 0
B77: Canton CENTRE | E77: =SUM(E$21:E$26) -> 5632 | G77: =SUM(G71:G76) -> 2446 | I77: =SUM(I71:I76) -> 2446 | K77: =IF(I77=""," ",I77/$E77) -> 0.4343039773 | M77: =SUM(M71:M76) -> 37 | O77: =SUM(O71:O76) -> 35 | Q77: =SUM(Q71:Q76) -> 2374 | S77: =IF(Q77=""," ",Q77/$E77) -> 0.4215198864 | U77: =SUM(U71:U76) -> 27 | W77: =IF(U77=0,0,U77/$Q77) -> 0.01137320977 | Y77: =SUM(Y71:Y76) -> 0 | AA77: =IF(Y77=0,0,Y77/$Q77) -> 0 | AC77: =SUM(AC71:AC76) -> 483 | AE77: =IF(AC77=0,0,AC77/$Q77) -> 0.2034540859 | AG77: =SUM(AG71:AG76) -> 181 | AI77: =IF(AG77=0,0,AG77/$Q77) -> 0.07624262848 | AK77: =SUM(AK71:AK76) -> 0 | AM77: =IF(AK77=0,0,AK77/$Q77) -> 0 | AO77: =SUM(AO71:AO76) -> 84 | AQ77: =IF(AO77=0,0,AO77/$Q77) -> 0.03538331929 | AS77: =SUM(AS71:AS76) -> 0 | AU77: =IF(AS77=0,0,AS77/$Q77) -> 0 | AW77: =SUM(AW71:AW76) -> 53 | AY77: =IF(AW77=0,0,AW77/$Q77) -> 0.02232518955 | BA77: =SUM(BA71:BA76) -> 9 | BC77: =IF(BA77=0,0,BA77/$Q77) -> 0.003791069924 | BE77: =SUM(BE71:BE76) -> 121 | BG77: =IF(BE77=0,0,BE77/$Q77) -> 0.05096882898 | BI77: =SUM(BI71:BI76) -> 8 | BK77: =IF(BI77=0,0,BI77/$Q77) -> 0.003369839933
B78: E1 - Raymond Aubert | E78: =IF('E1'!E$7="","",'E1'!E$7) -> 1168 | G78: =IF('E1'!$E8="","",'E1'!$E8) -> 475 | I78: =IF('E1'!$E9="","",'E1'!$E9) -> 475 | K78: 0.4066780822 | M78: =IF('E1'!$E10="","",'E1'!$E10) -> 10 | O78: =IF('E1'!$E11="","",'E1'!$E11) -> 8 | Q78: =IF('E1'!$E12="","",'E1'!$E12) -> 457 | S78: 0.3912671233 | U78: =IF('E1'!$E25="","",'E1'!$E25) -> 3 | W78: =IF(U78=""," ",U78/$Q78) -> 0.006564551422 | Y78: =IF('E1'!$E26="","",'E1'!$E26) -> 0 | AA78: =IF(Y78=""," ",Y78/$Q78) -> 0 | AC78: =IF('E1'!$E27="","",'E1'!$E27) -> 131 | AE78: =IF(AC78=""," ",AC78/$Q78) -> 0.2866520788 | AG78: =IF('E1'!$E28="","",'E1'!$E28) -> 30 | AI78: =IF(AG78=""," ",AG78/$Q78) -> 0.06564551422 | AK78: =IF('E1'!$E29="","",'E1'!$E29) -> 0 | AM78: =IF(AK78=""," ",AK78/$Q78) -> 0 | AO78: =IF('E1'!$E30="","",'E1'!$E30) -> 16 | AQ78: =IF(AO78=""," ",AO78/$Q78) -> 0.03501094092 | AS78: =IF('E1'!$E31="","",'E1'!$E31) -> 0 | AU78: =IF(AS78=""," ",AS78/$Q78) -> 0 | AW78: =IF('E1'!$E32="","",'E1'!$E32) -> 12 | AY78: =IF(AW78=""," ",AW78/$Q78) -> 0.02625820569 | BA78: =IF('E1'!$E33="","",'E1'!$E33) -> 0 | BC78: =IF(BA78=""," ",BA78/$Q78) -> 0 | BE78: =IF('E1'!$E34="","",'E1'!$E34) -> 23 | BG78: =IF(BE78=""," ",BE78/$Q78) -> 0.05032822757 | BI78: =IF('E1'!$E35="","",'E1'!$E35) -> 0 | BK78: =IF(BI78=""," ",BI78/$Q78) -> 0
B79: E2 - Raymond Aubert | E79: =IF('E2'!$E7="","",'E2'!$E7) -> 1204 | G79: =IF('E2'!$E8="","",'E2'!$E8) -> 452 | I79: =IF('E2'!$E9="","",'E2'!$E9) -> 452 | K79: 0.3754152824 | M79: =IF('E2'!$E10="","",'E2'!$E10) -> 13 | O79: =IF('E2'!$E11="","",'E2'!$E11) -> 8 | Q79: =IF('E2'!$E12="","",'E2'!$E12) -> 431 | S79: 0.3579734219 | U79: =IF('E2'!$E25="","",'E2'!$E25) -> 4 | W79: =IF(U79=""," ",U79/$Q79) -> 0.009280742459 | Y79: =IF('E2'!$E26="","",'E2'!$E26) -> 0 | AA79: =IF(Y79=""," ",Y79/$Q79) -> 0 | AC79: =IF('E2'!$E27="","",'E2'!$E27) -> 122 | AE79: =IF(AC79=""," ",AC79/$Q79) -> 0.283062645 | AG79: =IF('E2'!$E28="","",'E2'!$E28) -> 31 | AI79: =IF(AG79=""," ",AG79/$Q79) -> 0.07192575406 | AK79: =IF('E2'!$E29="","",'E2'!$E29) -> 0 | AM79: 0 | AO79: =IF('E2'!$E30="","",'E2'!$E30) -> 9 | AQ79: =IF(AO79=""," ",AO79/$Q79) -> 0.02088167053 | AS79: =IF('E2'!$E31="","",'E2'!$E31) -> 0 | AU79: =IF(AS79=""," ",AS79/$Q79) -> 0 | AW79: =IF('E2'!$E32="","",'E2'!$E32) -> 5 | AY79: =IF(AW79=""," ",AW79/$Q79) -> 0.01160092807 | BA79: =IF('E2'!$E33="","",'E2'!$E33) -> 2 | BC79: =IF(BA79=""," ",BA79/$Q79) -> 0.00464037123 | BE79: =IF('E2'!$E34="","",'E2'!$E34) -> 14 | BG79: =IF(BE79=""," ",BE79/$Q79) -> 0.03248259861 | BI79: =IF('E2'!$E35="","",'E2'!$E35) -> 1 | BK79: =IF(BI79=""," ",BI79/$Q79) -> 0.002320185615
B80: E3 - Raymond Aubert | E80: =IF('E3'!$E7="","",'E3'!$E7) -> 1030 | G80: =IF('E3'!$E8="","",'E3'!$E8) -> 389 | I80: =IF('E3'!$E9="","",'E3'!$E9) -> 389 | K80: 0.3776699029 | M80: =IF('E3'!$E10="","",'E3'!$E10) -> 12 | O80: =IF('E3'!$E11="","",'E3'!$E11) -> 11 | Q80: =IF('E3'!$E12="","",'E3'!$E12) -> 366 | S80: 0.3553398058 | U80: =IF('E3'!$E25="","",'E3'!$E25) -> 1 | W80: =IF(U80=""," ",U80/$Q80) -> 0.002732240437 | Y80: =IF('E3'!$E26="","",'E3'!$E26) -> 0 | AA80: =IF(Y80=""," ",Y80/$Q80) -> 0 | AC80: =IF('E3'!$E27="","",'E3'!$E27) -> 103 | AE80: =IF(AC80=""," ",AC80/$Q80) -> 0.281420765 | AG80: =IF('E3'!$E28="","",'E3'!$E28) -> 25 | AI80: =IF(AG80=""," ",AG80/$Q80) -> 0.06830601093 | AK80: =IF('E3'!$E29="","",'E3'!$E29) -> 0 | AM80: 0 | AO80: =IF('E3'!$E30="","",'E3'!$E30) -> 12 | AQ80: =IF(AO80=""," ",AO80/$Q80) -> 0.03278688525 | AS80: =IF('E3'!$E31="","",'E3'!$E31) -> 0 | AU80: =IF(AS80=""," ",AS80/$Q80) -> 0 | AW80: =IF('E3'!$E32="","",'E3'!$E32) -> 11 | AY80: =IF(AW80=""," ",AW80/$Q80) -> 0.03005464481 | BA80: =IF('E3'!$E33="","",'E3'!$E33) -> 1 | BC80: =IF(BA80=""," ",BA80/$Q80) -> 0.002732240437 | BE80: =IF('E3'!$E34="","",'E3'!$E34) -> 22 | BG80: =IF(BE80=""," ",BE80/$Q80) -> 0.06010928962 | BI80: =IF('E3'!$E35="","",'E3'!$E35) -> 0 | BK80: =IF(BI80=""," ",BI80/$Q80) -> 0
B81: F1 - Maison de l'enfant | E81: =IF('F1'!$E7="","",'F1'!$E7) -> 768 | G81: =IF('F1'!$E8="","",'F1'!$E8) -> 331 | I81: =IF('F1'!$E9="","",'F1'!$E9) -> 331 | K81: 0.4309895833 | M81: =IF('F1'!$E10="","",'F1'!$E10) -> 4 | O81: =IF('F1'!$E11="","",'F1'!$E11) -> 9 | Q81: =IF('F1'!$E12="","",'F1'!$E12) -> 318 | S81: 0.4140625 | U81: =IF('F1'!$E25="","",'F1'!$E25) -> 2 | W81: =IF(U81=""," ",U81/$Q81) -> 0.006289308176 | Y81: =IF('F1'!$E26="","",'F1'!$E26) -> 0 | AA81: =IF(Y81=""," ",Y81/$Q81) -> 0 | AC81: =IF('F1'!$E27="","",'F1'!$E27) -> 66 | AE81: =IF(AC81=""," ",AC81/$Q81) -> 0.2075471698 | AG81: =IF('F1'!$E28="","",'F1'!$E28) -> 21 | AI81: =IF(AG81=""," ",AG81/$Q81) -> 0.06603773585 | AK81: =IF('F1'!$E29="","",'F1'!$E29) -> 0 | AM81: 0 | AO81: =IF('F1'!$E30="","",'F1'!$E30) -> 8 | AQ81: =IF(AO81=""," ",AO81/$Q81) -> 0.0251572327 | AS81: =IF('F1'!$E31="","",'F1'!$E31) -> 0 | AU81: =IF(AS81=""," ",AS81/$Q81) -> 0 | AW81: =IF('F1'!$E32="","",'F1'!$E32) -> 10 | AY81: =IF(AW81=""," ",AW81/$Q81) -> 0.03144654088 | BA81: =IF('F1'!$E33="","",'F1'!$E33) -> 2 | BC81: =IF(BA81=""," ",BA81/$Q81) -> 0.006289308176 | BE81: =IF('F1'!$E34="","",'F1'!$E34) -> 25 | BG81: =IF(BE81=""," ",BE81/$Q81) -> 0.0786163522 | BI81: =IF('F1'!$E35="","",'F1'!$E35) -> 0 | BK81: =IF(BI81=""," ",BI81/$Q81) -> 0
B82: F2 - Émile Géhant | E82: =IF('F2'!$E7="","",'F2'!$E7) -> 516 | G82: =IF('F2'!$E8="","",'F2'!$E8) -> 224 | I82: =IF('F2'!$E9="","",'F2'!$E9) -> 224 | K82: 0.4341085271 | M82: =IF('F2'!$E10="","",'F2'!$E10) -> 6 | O82: =IF('F2'!$E11="","",'F2'!$E11) -> 3 | Q82: =IF('F2'!$E12="","",'F2'!$E12) -> 215 | S82: 0.4166666667 | U82: =IF('F2'!$E25="","",'F2'!$E25) -> 1 | W82: =IF(U82=""," ",U82/$Q82) -> 0.004651162791 | Y82: =IF('F2'!$E26="","",'F2'!$E26) -> 0 | AA82: =IF(Y82=""," ",Y82/$Q82) -> 0 | AC82: =IF('F2'!$E27="","",'F2'!$E27) -> 71 | AE82: =IF(AC82=""," ",AC82/$Q82) -> 0.3302325581 | AG82: =IF('F2'!$E28="","",'F2'!$E28) -> 22 | AI82: =IF(AG82=""," ",AG82/$Q82) -> 0.1023255814 | AK82: =IF('F2'!$E29="","",'F2'!$E29) -> 0 | AM82: 0 | AO82: =IF('F2'!$E30="","",'F2'!$E30) -> 4 | AQ82: =IF(AO82=""," ",AO82/$Q82) -> 0.01860465116 | AS82: =IF('F2'!$E31="","",'F2'!$E31) -> 0 | AU82: =IF(AS82=""," ",AS82/$Q82) -> 0 | AW82: =IF('F2'!$E32="","",'F2'!$E32) -> 2 | AY82: =IF(AW82=""," ",AW82/$Q82) -> 0.009302325581 | BA82: =IF('F2'!$E33="","",'F2'!$E33) -> 3 | BC82: =IF(BA82=""," ",BA82/$Q82) -> 0.01395348837 | BE82: =IF('F2'!$E34="","",'F2'!$E34) -> 27 | BG82: =IF(BE82=""," ",BE82/$Q82) -> 0.1255813953 | BI82: =IF('F2'!$E35="","",'F2'!$E35) -> 1 | BK82: =IF(BI82=""," ",BI82/$Q82) -> 0.004651162791
B83: Canton NORD | E83: =SUM(E$28:E$32) -> 4686 | G83: =SUM(G78:G82) -> 1871 | I83: =SUM(I78:I82) -> 1871 | K83: 0.3992744345 | M83: =SUM(M78:M82) -> 45 | O83: =SUM(O78:O82) -> 39 | Q83: =SUM(Q78:Q82) -> 1787 | S83: =IF(Q83=""," ",Q83/$E83) -> 0.3813486983 | U83: =SUM(U78:U82) -> 11 | W83: =IF(U83=0,0,U83/$Q83) -> 0.006155567991 | Y83: =SUM(Y78:Y82) -> 0 | AA83: =IF(Y83=0,0,Y83/$Q83) -> 0 | AC83: =SUM(AC78:AC82) -> 493 | AE83: =IF(AC83=0,0,AC83/$Q83) -> 0.2758813654 | AG83: =SUM(AG78:AG82) -> 129 | AI83: =IF(AG83=0,0,AG83/$Q83) -> 0.07218802462 | AK83: =SUM(AK78:AK82) -> 0 | AM83: 0 | AO83: =SUM(AO78:AO82) -> 49 | AQ83: =IF(AO83=0,0,AO83/$Q83) -> 0.02742025741 | AS83: =SUM(AS78:AS82) -> 0 | AU83: =IF(AS83=0,0,AS83/$Q83) -> 0 | AW83: =SUM(AW78:AW82) -> 40 | AY83: =IF(AW83=0,0,AW83/$Q83) -> 0.0223838836 | BA83: =SUM(BA78:BA82) -> 8 | BC83: =IF(BA83=0,0,BA83/$Q83) -> 0.004476776721 | BE83: =SUM(BE78:BE82) -> 111 | BG83: =IF(BE83=0,0,BE83/$Q83) -> 0.062115277 | BI83: =SUM(BI78:BI82) -> 2 | BK83: =IF(BI83=0,0,BI83/$Q83) -> 0.00111919418
B84: G1 - Hubert Metzger | E84: =IF('G1'!$E7="","",'G1'!$E7) -> 650 | G84: =IF('G1'!$E8="","",'G1'!$E8) -> 266 | I84: =IF('G1'!$E9="","",'G1'!$E9) -> 266 | K84: 0.4092307692 | M84: =IF('G1'!$E10="","",'G1'!$E10) -> 7 | O84: =IF('G1'!$E11="","",'G1'!$E11) -> 7 | Q84: =IF('G1'!$E12="","",'G1'!$E12) -> 252 | S84: 0.3876923077 | U84: =IF('G1'!$E25="","",'G1'!$E25) -> 1 | W84: =IF(U84=""," ",U84/$Q84) -> 0.003968253968 | Y84: =IF('G1'!$E26="","",'G1'!$E26) -> 0 | AA84: =IF(Y84=""," ",Y84/$Q84) -> 0 | AC84: =IF('G1'!$E27="","",'G1'!$E27) -> 67 | AE84: =IF(AC84=""," ",AC84/$Q84) -> 0.2658730159 | AG84: =IF('G1'!$E28="","",'G1'!$E28) -> 29 | AI84: =IF(AG84=""," ",AG84/$Q84) -> 0.1150793651 | AK84: =IF('G1'!$E29="","",'G1'!$E29) -> 0 | AM84: =IF(AK84=""," ",AK84/$Q84) -> 0 | AO84: =IF('G1'!$E30="","",'G1'!$E30) -> 7 | AQ84: =IF(AO84=""," ",AO84/$Q84) -> 0.02777777778 | AS84: =IF('G1'!$E31="","",'G1'!$E31) -> 0 | AU84: =IF(AS84=""," ",AS84/$Q84) -> 0 | AW84: =IF('G1'!$E32="","",'G1'!$E32) -> 4 | AY84: =IF(AW84=""," ",AW84/$Q84) -> 0.01587301587 | BA84: =IF('G1'!$E33="","",'G1'!$E33) -> 4 | BC84: =IF(BA84=""," ",BA84/$Q84) -> 0.01587301587 | BE84: =IF('G1'!$E34="","",'G1'!$E34) -> 31 | BG84: =IF(BE84=""," ",BE84/$Q84) -> 0.123015873 | BI84: =IF('G1'!$E35="","",'G1'!$E35) -> 1 | BK84: =IF(BI84=""," ",BI84/$Q84) -> 0.003968253968
B85: G2 - Hubert Metzger | E85: =IF('G2'!$E7="","",'G2'!$E7) -> 753 | G85: =IF('G2'!$E8="","",'G2'!$E8) -> 250 | I85: =IF('G2'!$E9="","",'G2'!$E9) -> 250 | K85: 0.3320053121 | M85: =IF('G2'!$E10="","",'G2'!$E10) -> 7 | O85: =IF('G2'!$E11="","",'G2'!$E11) -> 6 | Q85: =IF('G2'!$E12="","",'G2'!$E12) -> 237 | S85: 0.3147410359 | U85: =IF('G2'!$E25="","",'G2'!$E25) -> 0 | W85: 0 | Y85: =IF('G2'!$E26="","",'G2'!$E26) -> 0 | AA85: 0 | AC85: =IF('G2'!$E27="","",'G2'!$E27) -> 75 | AE85: 0.3164556962 | AG85: =IF('G2'!$E28="","",'G2'!$E28) -> 11 | AI85: 0.04641350211 | AK85: =IF('G2'!$E29="","",'G2'!$E29) -> 0 | AM85: 0 | AO85: =IF('G2'!$E30="","",'G2'!$E30) -> 4 | AQ85: 0.01687763713 | AS85: =IF('G2'!$E31="","",'G2'!$E31) -> 0 | AU85: 0 | AW85: =IF('G2'!$E32="","",'G2'!$E32) -> 9 | AY85: 0.03797468354 | BA85: =IF('G2'!$E33="","",'G2'!$E33) -> 1 | BC85: 0.004219409283 | BE85: =IF('G2'!$E34="","",'G2'!$E34) -> 22 | BG85: 0.09282700422 | BI85: =IF('G2'!$E35="","",'G2'!$E35) -> 0 | BK85: 0
B86: H1 - Léonard de Vinci | E86: =IF('H1'!$E7="","",'H1'!$E7) -> 1037 | G86: =IF('H1'!$E8="","",'H1'!$E8) -> 377 | I86: =IF('H1'!$E9="","",'H1'!$E9) -> 377 | K86: 0.3635486982 | M86: =IF('H1'!$E10="","",'H1'!$E10) -> 7 | O86: =IF('H1'!$E11="","",'H1'!$E11) -> 5 | Q86: =IF('H1'!$E12="","",'H1'!$E12) -> 365 | S86: 0.3519768563 | U86: =IF('H1'!$E25="","",'H1'!$E25) -> 5 | W86: 0.01369863014 | Y86: =IF('H1'!$E26="","",'H1'!$E26) -> 0 | AA86: 0 | AC86: =IF('H1'!$E27="","",'H1'!$E27) -> 96 | AE86: 0.2630136986 | AG86: =IF('H1'!$E28="","",'H1'!$E28) -> 30 | AI86: 0.08219178082 | AK86: =IF('H1'!$E29="","",'H1'!$E29) -> 0 | AM86: 0 | AO86: =IF('H1'!$E30="","",'H1'!$E30) -> 11 | AQ86: 0.0301369863 | AS86: =IF('H1'!$E31="","",'H1'!$E31) -> 0 | AU86: 0 | AW86: =IF('H1'!$E32="","",'H1'!$E32) -> 8 | AY86: 0.02191780822 | BA86: =IF('H1'!$E33="","",'H1'!$E33) -> 1 | BC86: 0.002739726027 | BE86: =IF('H1'!$E34="","",'H1'!$E34) -> 26 | BG86: 0.07123287671 | BI86: =IF('H1'!$E35="","",'H1'!$E35) -> 0 | BK86: 0
B87: J1 - René Rücklin | E87: =IF('J1'!$E7="","",'J1'!$E7) -> 591 | G87: =IF('J1'!$E8="","",'J1'!$E8) -> 179 | I87: =IF('J1'!$E9="","",'J1'!$E9) -> 179 | K87: 0.3028764805 | M87: =IF('J1'!$E10="","",'J1'!$E10) -> 8 | O87: =IF('J1'!$E11="","",'J1'!$E11) -> 7 | Q87: =IF('J1'!$E12="","",'J1'!$E12) -> 164 | S87: 0.2774957699 | U87: =IF('J1'!$E25="","",'J1'!$E25) -> 1 | W87: 0.006097560976 | Y87: =IF('J1'!$E26="","",'J1'!$E26) -> 0 | AA87: 0 | AC87: =IF('J1'!$E27="","",'J1'!$E27) -> 66 | AE87: 0.4024390244 | AG87: =IF('J1'!$E28="","",'J1'!$E28) -> 8 | AI87: 0.0487804878 | AK87: =IF('J1'!$E29="","",'J1'!$E29) -> 0 | AM87: 0 | AO87: =IF('J1'!$E30="","",'J1'!$E30) -> 5 | AQ87: 0.03048780488 | AS87: =IF('J1'!$E31="","",'J1'!$E31) -> 0 | AU87: 0 | AW87: =IF('J1'!$E32="","",'J1'!$E32) -> 2 | AY87: 0.01219512195 | BA87: =IF('J1'!$E33="","",'J1'!$E33) -> 4 | BC87: 0.0243902439 | BE87: =IF('J1'!$E34="","",'J1'!$E34) -> 12 | BG87: 0.07317073171 | BI87: =IF('J1'!$E35="","",'J1'!$E35) -> 0 | BK87: 0
B88: J2 - René Rücklin | E88: =IF('J2'!$E7="","",'J2'!$E7) -> 813 | G88: =IF('J2'!$E8="","",'J2'!$E8) -> 244 | I88: =IF('J2'!$E9="","",'J2'!$E9) -> 244 | K88: 0.3001230012 | M88: =IF('J2'!$E10="","",'J2'!$E10) -> 6 | O88: =IF('J2'!$E11="","",'J2'!$E11) -> 1 | Q88: =IF('J2'!$E12="","",'J2'!$E12) -> 237 | S88: 0.2915129151 | U88: =IF('J2'!$E25="","",'J2'!$E25) -> 1 | W88: 0.004219409283 | Y88: =IF('J2'!$E26="","",'J2'!$E26) -> 0 | AA88: 0 | AC88: =IF('J2'!$E27="","",'J2'!$E27) -> 69 | AE88: 0.2911392405 | AG88: =IF('J2'!$E28="","",'J2'!$E28) -> 11 | AI88: 0.04641350211 | AK88: =IF('J2'!$E29="","",'J2'!$E29) -> 0 | AM88: 0 | AO88: =IF('J2'!$E30="","",'J2'!$E30) -> 6 | AQ88: 0.0253164557 | AS88: =IF('J2'!$E31="","",'J2'!$E31) -> 0 | AU88: 0 | AW88: =IF('J2'!$E32="","",'J2'!$E32) -> 2 | AY88: 0.008438818565 | BA88: =IF('J2'!$E33="","",'J2'!$E33) -> 1 | BC88: 0.004219409283 | BE88: =IF('J2'!$E34="","",'J2'!$E34) -> 20 | BG88: 0.08438818565 | BI88: =IF('J2'!$E35="","",'J2'!$E35) -> 1 | BK88: 0.004219409283
B89: J3 - René Rücklin | E89: =IF('J3'!$E7="","",'J3'!$E7) -> 556 | G89: =IF('J3'!$E8="","",'J3'!$E8) -> 142 | I89: =IF('J3'!$E9="","",'J3'!$E9) -> 142 | K89: 0.2553956835 | M89: =IF('J3'!$E10="","",'J3'!$E10) -> 4 | O89: =IF('J3'!$E11="","",'J3'!$E11) -> 5 | Q89: =IF('J3'!$E12="","",'J3'!$E12) -> 133 | S89: 0.2392086331 | U89: =IF('J3'!$E25="","",'J3'!$E25) -> 2 | W89: 0.01503759398 | Y89: =IF('J3'!$E26="","",'J3'!$E26) -> 0 | AA89: 0 | AC89: =IF('J3'!$E27="","",'J3'!$E27) -> 32 | AE89: 0.2406015038 | AG89: =IF('J3'!$E28="","",'J3'!$E28) -> 10 | AI89: 0.07518796992 | AK89: =IF('J3'!$E29="","",'J3'!$E29) -> 0 | AM89: 0 | AO89: =IF('J3'!$E30="","",'J3'!$E30) -> 2 | AQ89: 0.01503759398 | AS89: =IF('J3'!$E31="","",'J3'!$E31) -> 0 | AU89: 0 | AW89: =IF('J3'!$E32="","",'J3'!$E32) -> 3 | AY89: 0.02255639098 | BA89: =IF('J3'!$E33="","",'J3'!$E33) -> 0 | BC89: 0 | BE89: =IF('J3'!$E34="","",'J3'!$E34) -> 23 | BG89: 0.1729323308 | BI89: =IF('J3'!$E35="","",'J3'!$E35) -> 0 | BK89: 0
B90: Canton SUD | E90: =SUM(E$34:E$39) -> 4400 | G90: =SUM(G84:G89) -> 1458 | I90: =SUM(I84:I89) -> 1458 | K90: 0.3313636364 | M90: =SUM(M84:M89) -> 39 | O90: =SUM(O84:O89) -> 31 | Q90: =SUM(Q84:Q89) -> 1388 | S90: =IF(Q90=""," ",Q90/$E90) -> 0.3154545455 | U90: =SUM(U84:U89) -> 10 | W90: =IF(U90=0,0,U90/$Q90) -> 0.007204610951 | Y90: =SUM(Y84:Y89) -> 0 | AA90: =IF(Y90=0,0,Y90/$Q90) -> 0 | AC90: =SUM(AC84:AC89) -> 405 | AE90: =IF(AC90=0,0,AC90/$Q90) -> 0.2917867435 | AG90: =SUM(AG84:AG89) -> 99 | AI90: =IF(AG90=0,0,AG90/$Q90) -> 0.07132564841 | AK90: =SUM(AK84:AK89) -> 0 | AM90: =IF(AK90=0,0,AK90/$Q90) -> 0 | AO90: =SUM(AO84:AO89) -> 35 | AQ90: =IF(AO90=0,0,AO90/$Q90) -> 0.02521613833 | AS90: =SUM(AS84:AS89) -> 0 | AU90: =IF(AS90=0,0,AS90/$Q90) -> 0 | AW90: =SUM(AW84:AW89) -> 28 | AY90: =IF(AW90=0,0,AW90/$Q90) -> 0.02017291066 | BA90: =SUM(BA84:BA89) -> 11 | BC90: =IF(BA90=0,0,BA90/$Q90) -> 0.007925072046 | BE90: =SUM(BE84:BE89) -> 134 | BG90: =IF(BE90=0,0,BE90/$Q90) -> 0.09654178674 | BI90: =SUM(BI84:BI89) -> 2 | BK90: =IF(BI90=0,0,BI90/$Q90) -> 0.00144092219
B91: K1 - Louis Pergaud | E91: =IF('K1'!$E7="","",'K1'!$E7) -> 944 | G91: =IF('K1'!$E8="","",'K1'!$E8) -> 193 | I91: =IF('K1'!$E9="","",'K1'!$E9) -> 193 | K91: 0.2044491525 | M91: =IF('K1'!$E10="","",'K1'!$E10) -> 4 | O91: =IF('K1'!$E11="","",'K1'!$E11) -> 8 | Q91: =IF('K1'!$E12="","",'K1'!$E12) -> 181 | S91: 0.1917372881 | U91: =IF('K1'!$E25="","",'K1'!$E25) -> 0 | W91: =IF(U91=""," ",U91/$Q91) -> 0 | Y91: =IF('K1'!$E26="","",'K1'!$E26) -> 0 | AA91: =IF(Y91=""," ",Y91/$Q91) -> 0 | AC91: =IF('K1'!$E27="","",'K1'!$E27) -> 46 | AE91: =IF(AC91=""," ",AC91/$Q91) -> 0.2541436464 | AG91: =IF('K1'!$E28="","",'K1'!$E28) -> 8 | AI91: =IF(AG91=""," ",AG91/$Q91) -> 0.04419889503 | AK91: =IF('K1'!$E29="","",'K1'!$E29) -> 0 | AM91: =IF(AK91=""," ",AK91/$Q91) -> 0 | AO91: =IF('K1'!$E30="","",'K1'!$E30) -> 8 | AQ91: =IF(AO91=""," ",AO91/$Q91) -> 0.04419889503 | AS91: =IF('K1'!$E31="","",'K1'!$E31) -> 0 | AU91: =IF(AS91=""," ",AS91/$Q91) -> 0 | AW91: =IF('K1'!$E32="","",'K1'!$E32) -> 3 | AY91: =IF(AW91=""," ",AW91/$Q91) -> 0.01657458564 | BA91: =IF('K1'!$E33="","",'K1'!$E33) -> 2 | BC91: =IF(BA91=""," ",BA91/$Q91) -> 0.01104972376 | BE91: =IF('K1'!$E34="","",'K1'!$E34) -> 17 | BG91: =IF(BE91=""," ",BE91/$Q91) -> 0.09392265193 | BI91: =IF('K1'!$E35="","",'K1'!$E35) -> 0 | BK91: =IF(BI91=""," ",BI91/$Q91) -> 0
B92: K2 - Louis Pergaud | E92: =IF('K2'!$E7="","",'K2'!$E7) -> 784 | G92: =IF('K2'!$E8="","",'K2'!$E8) -> 187 | I92: =IF('K2'!$E9="","",'K2'!$E9) -> 187 | K92: 0.2385204082 | M92: =IF('K2'!$E10="","",'K2'!$E10) -> 0 | O92: =IF('K2'!$E11="","",'K2'!$E11) -> 6 | Q92: =IF('K2'!$E12="","",'K2'!$E12) -> 181 | S92: 0.2308673469 | U92: =IF('K2'!$E25="","",'K2'!$E25) -> 1 | W92: =IF(U92=""," ",U92/$Q92) -> 0.005524861878 | Y92: =IF('K2'!$E26="","",'K2'!$E26) -> 0 | AA92: =IF(Y92=""," ",Y92/$Q92) -> 0 | AC92: =IF('K2'!$E27="","",'K2'!$E27) -> 48 | AE92: =IF(AC92=""," ",AC92/$Q92) -> 0.2651933702 | AG92: =IF('K2'!$E28="","",'K2'!$E28) -> 15 | AI92: =IF(AG92=""," ",AG92/$Q92) -> 0.08287292818 | AK92: =IF('K2'!$E29="","",'K2'!$E29) -> 0 | AM92: =IF(AK92=""," ",AK92/$Q92) -> 0 | AO92: =IF('K2'!$E30="","",'K2'!$E30) -> 4 | AQ92: =IF(AO92=""," ",AO92/$Q92) -> 0.02209944751 | AS92: =IF('K2'!$E31="","",'K2'!$E31) -> 0 | AU92: =IF(AS92=""," ",AS92/$Q92) -> 0 | AW92: =IF('K2'!$E32="","",'K2'!$E32) -> 8 | AY92: =IF(AW92=""," ",AW92/$Q92) -> 0.04419889503 | BA92: =IF('K2'!$E33="","",'K2'!$E33) -> 1 | BC92: =IF(BA92=""," ",BA92/$Q92) -> 0.005524861878 | BE92: =IF('K2'!$E34="","",'K2'!$E34) -> 13 | BG92: =IF(BE92=""," ",BE92/$Q92) -> 0.07182320442 | BI92: =IF('K2'!$E35="","",'K2'!$E35) -> 0 | BK92: =IF(BI92=""," ",BI92/$Q92) -> 0
B93: L1 - Les Barres | E93: =IF('L1'!$E7="","",'L1'!$E7) -> 1314 | G93: =IF('L1'!$E8="","",'L1'!$E8) -> 500 | I93: =IF('L1'!$E9="","",'L1'!$E9) -> 500 | K93: 0.3805175038 | M93: =IF('L1'!$E10="","",'L1'!$E10) -> 11 | O93: =IF('L1'!$E11="","",'L1'!$E11) -> 5 | Q93: =IF('L1'!$E12="","",'L1'!$E12) -> 484 | S93: 0.3683409437 | U93: =IF('L1'!$E25="","",'L1'!$E25) -> 2 | W93: =IF(U93=""," ",U93/$Q93) -> 0.004132231405 | Y93: =IF('L1'!$E26="","",'L1'!$E26) -> 0 | AA93: =IF(Y93=""," ",Y93/$Q93) -> 0 | AC93: =IF('L1'!$E27="","",'L1'!$E27) -> 111 | AE93: =IF(AC93=""," ",AC93/$Q93) -> 0.229338843 | AG93: =IF('L1'!$E28="","",'L1'!$E28) -> 37 | AI93: =IF(AG93=""," ",AG93/$Q93) -> 0.07644628099 | AK93: =IF('L1'!$E29="","",'L1'!$E29) -> 0 | AM93: =IF(AK93=""," ",AK93/$Q93) -> 0 | AO93: =IF('L1'!$E30="","",'L1'!$E30) -> 7 | AQ93: =IF(AO93=""," ",AO93/$Q93) -> 0.01446280992 | AS93: =IF('L1'!$E31="","",'L1'!$E31) -> 0 | AU93: =IF(AS93=""," ",AS93/$Q93) -> 0 | AW93: =IF('L1'!$E32="","",'L1'!$E32) -> 22 | AY93: =IF(AW93=""," ",AW93/$Q93) -> 0.04545454545 | BA93: =IF('L1'!$E33="","",'L1'!$E33) -> 3 | BC93: =IF(BA93=""," ",BA93/$Q93) -> 0.006198347107 | BE93: =IF('L1'!$E34="","",'L1'!$E34) -> 40 | BG93: =IF(BE93=""," ",BE93/$Q93) -> 0.0826446281 | BI93: =IF('L1'!$E35="","",'L1'!$E35) -> 3 | BK93: =IF(BI93=""," ",BI93/$Q93) -> 0.006198347107
B94: L2 - Les Barres | E94: =IF('L2'!$E7="","",'L2'!$E7) -> 1146 | G94: =IF('L2'!$E8="","",'L2'!$E8) -> 507 | I94: =IF('L2'!$E9="","",'L2'!$E9) -> 507 | K94: 0.442408377 | M94: =IF('L2'!$E10="","",'L2'!$E10) -> 5 | O94: =IF('L2'!$E11="","",'L2'!$E11) -> 15 | Q94: =IF('L2'!$E12="","",'L2'!$E12) -> 487 | S94: 0.42495637 | U94: =IF('L2'!$E25="","",'L2'!$E25) -> 12 | W94: =IF(U94=""," ",U94/$Q94) -> 0.02464065708 | Y94: =IF('L2'!$E26="","",'L2'!$E26) -> 0 | AA94: =IF(Y94=""," ",Y94/$Q94) -> 0 | AC94: =IF('L2'!$E27="","",'L2'!$E27) -> 122 | AE94: =IF(AC94=""," ",AC94/$Q94) -> 0.250513347 | AG94: =IF('L2'!$E28="","",'L2'!$E28) -> 44 | AI94: =IF(AG94=""," ",AG94/$Q94) -> 0.09034907598 | AK94: =IF('L2'!$E29="","",'L2'!$E29) -> 0 | AM94: =IF(AK94=""," ",AK94/$Q94) -> 0 | AO94: =IF('L2'!$E30="","",'L2'!$E30) -> 17 | AQ94: =IF(AO94=""," ",AO94/$Q94) -> 0.03490759754 | AS94: =IF('L2'!$E31="","",'L2'!$E31) -> 0 | AU94: =IF(AS94=""," ",AS94/$Q94) -> 0 | AW94: =IF('L2'!$E32="","",'L2'!$E32) -> 17 | AY94: =IF(AW94=""," ",AW94/$Q94) -> 0.03490759754 | BA94: =IF('L2'!$E33="","",'L2'!$E33) -> 2 | BC94: =IF(BA94=""," ",BA94/$Q94) -> 0.004106776181 | BE94: =IF('L2'!$E34="","",'L2'!$E34) -> 39 | BG94: =IF(BE94=""," ",BE94/$Q94) -> 0.08008213552 | BI94: =IF('L2'!$E35="","",'L2'!$E35) -> 1 | BK94: =IF(BI94=""," ",BI94/$Q94) -> 0.00205338809
B95: Canton OUEST | E95: =SUM(E$41:E$44) -> 4188 | G95: =SUM(G91:G94) -> 1387 | I95: =SUM(I91:I94) -> 1387 | K95: 0.3311843362 | M95: =SUM(M91:M94) -> 20 | O95: =SUM(O91:O94) -> 34 | Q95: =SUM(Q91:Q94) -> 1333 | S95: =IF(Q95=""," ",Q95/$E95) -> 0.3182903534 | U95: =SUM(U91:U94) -> 15 | W95: =IF(U95=0,0,U95/$Q95) -> 0.0112528132 | Y95: =SUM(Y91:Y94) -> 0 | AA95: =IF(Y95=0,0,Y95/$Q95) -> 0 | AC95: =SUM(AC91:AC94) -> 327 | AE95: =IF(AC95=0,0,AC95/$Q95) -> 0.2453113278 | AG95: =SUM(AG91:AG94) -> 104 | AI95: =IF(AG95=0,0,AG95/$Q95) -> 0.07801950488 | AK95: =SUM(AK91:AK94) -> 0 | AM95: =IF(AK95=0,0,AK95/$Q95) -> 0 | AO95: =SUM(AO91:AO94) -> 36 | AQ95: =IF(AO95=0,0,AO95/$Q95) -> 0.02700675169 | AS95: =SUM(AS91:AS94) -> 0 | AU95: =IF(AS95=0,0,AS95/$Q95) -> 0 | AW95: =SUM(AW91:AW94) -> 50 | AY95: =IF(AW95=0,0,AW95/$Q95) -> 0.03750937734 | BA95: =SUM(BA91:BA94) -> 8 | BC95: =IF(BA95=0,0,BA95/$Q95) -> 0.006001500375 | BE95: =SUM(BE91:BE94) -> 109 | BG95: =IF(BE95=0,0,BE95/$Q95) -> 0.08177044261 | BI95: =SUM(BI91:BI94) -> 4 | BK95: =IF(BI95=0,0,BI95/$Q95) -> 0.003000750188
B98: TOTAUX | E98: =E$20+E$27+E$33+E$40+E$45 -> 26563 | G98: =G$20+G$27+G$33+G$40+G$45 -> 10250 | I98: =I$20+I$27+I$33+I$40+I$45 -> 10250 | K98: =IF(I98=""," ",I98/$E98) -> 0.3858750894 | M98: =M$20+M$27+M$33+M$40+M$45 -> 185 | O98: =O$20+O$27+O$33+O$40+O$45 -> 192 | Q98: =Q$20+Q$27+Q$33+Q$40+Q$45 -> 9873 | U98: =U$70+U$77+U$83+U$90+U$95 -> 94 | W98: =IF($Q$48=0,0,U98/$Q$48) -> 0.009520915628 | Y98: =Y$70+Y$77+Y$83+Y$90+Y$95 -> 1 | AA98: =IF($Q$48=0,0,Y98/$Q$48) -> 0.0001012863365 | AC98: =AC$70+AC$77+AC$83+AC$90+AC$95 -> 2270 | AE98: =IF($Q$48=0,0,AC98/$Q$48) -> 0.2299199838 | AG98: =AG$70+AG$77+AG$83+AG$90+AG$95 -> 763 | AI98: =IF($Q$48=0,0,AG98/$Q$48) -> 0.07728147473 | AK98: =AK$70+AK$77+AK$83+AK$90+AK$95 -> 0 | AM98: =IF($Q$48=0,0,AK98/$Q$48) -> 0 | AO98: =AO$70+AO$77+AO$83+AO$90+AO$95 -> 305 | AQ98: =IF($Q$48=0,0,AO98/$Q$48) -> 0.03089233262 | AS98: =AS$70+AS$77+AS$83+AS$90+AS$95 -> 0 | AU98: =IF($Q$48=0,0,AS98/$Q$48) -> 0 | AW98: =AW$70+AW$77+AW$83+AW$90+AW$95 -> 249 | AY98: =IF($Q$48=0,0,AW98/$Q$48) -> 0.02522029778 | BA98: =BA$70+BA$77+BA$83+BA$90+BA$95 -> 54 | BC98: =IF($Q$48=0,0,BA98/$Q$48) -> 0.00546946217 | BE98: =BE$70+BE$77+BE$83+BE$90+BE$95 -> 640 | BG98: =IF($Q$48=0,0,BE98/$Q$48) -> 0.06482325534 | BI98: =BI$70+BI$77+BI$83+BI$90+BI$95 -> 28 | BK98: =IF($Q$48=0,0,BI98/$Q$48) -> 0.002836017421
B99: % / exprimés
B100: % / Inscrits | M100: =IF(I98=0,0,M98/E98) -> 0.006964574784 | O100: =IF(I98=0,0,O98/E98) -> 0.007228099236 | Q100: =IF(I98=0,0,Q98/E98) -> 0.3716824154 | U100: =IF($Q$48=0,0,U98/$E$48) -> 0.003538756918 | Y100: =IF($Q$48=0,0,Y98/$E$48) -> 3.764635019e-05 | AC100: =IF($Q$48=0,0,AC98/$E$48) -> 0.08545721492 | AG100: =IF($Q$48=0,0,AG98/$E$48) -> 0.02872416519 | AK100: =IF($Q$48=0,0,AK98/$E$48) -> 0 | AO100: =IF($Q$48=0,0,AO98/$E$48) -> 0.01148213681 | AS100: =IF($Q$48=0,0,AS98/$E$48) -> 0 | AW100: =IF($Q$48=0,0,AW98/$E$48) -> 0.009373941196 | BA100: =IF($Q$48=0,0,BA98/$E$48) -> 0.00203290291 | BE100: =IF($Q$48=0,0,BE98/$E$48) -> 0.02409366412 | BI100: =IF($Q$48=0,0,BI98/$E$48) -> 0.001054097805

Sheet RESULTATS A3
AW1: ÉLECTIONS EUROPÉENNES
A2: RÉSULTATS
DG3: 25 mai 2014
BB4: =COUNTIF($I$13:$I$19,">0")+COUNTIF($I$21:$I$26,">0")+COUNTIF($I$28:$I$32,">0")+COUNTIF($I$34:$I$39,">0")+COUNTIF($I$41:$I$44,">0") -> 28 | BE4: Bureaux sur | BG4: 28
E6: Listes 1 à 23 | BB6: =SUMIF($I$13:$I$19,">0",$E$13:$E$19)+SUMIF($I$21:$I$26,">0",$E$21:$E$26)+SUMIF($I$28:$I$32,">0",$E$28:$E$32)+SUMIF($I$34:$I$39,">0",$E$34:$E$39)+SUMIF($I$41:$I$44,">0",$E$41:$E$44) -> 26563 | BE6: Inscrits sur | BG6: =$E$48 -> 26563 | BI6: soit | BJ6: : | BK6: =BB6/BG6 -> 1
S9: % / | U9: =Candidats!A2 -> Nadine | Y9: =Candidats!A3 -> Joe | AC9: =Candidats!A4 -> Claire | AG9: =Candidats!A5 -> Christian | AK9: =Candidats!A6 -> Edouard | AO9: =Candidats!A7 -> Gaël | AS9: =Candidats!A8 -> Nathalie | AW9: =Candidats!A9 -> Julien | BA9: =Candidats!A10 -> Philippe | BE9: =Candidats!A11 -> Antoine | BI9: =Candidats!A12 -> Geneviève | BM9: =Candidats!A13 -> Isabelle | BQ9: =Candidats!A14 -> Xavier | BU9: =Candidats!A15 -> Sandrine | BY9: =Candidats!A16 -> Florian | CC9: =Candidats!A17 -> Sandrine | CG9: =Candidats!A18 -> Ismaël | CK9: =Candidats!A19 -> Laure | CO9: =Candidats!A20 -> Antonio | CS9: =Candidats!A21 -> Isabelle | CW9: =Candidats!A22 -> Yannick | DA9: =Candidats!A23 -> Gabriel | DE9: =Candidats!A24 -> Florence
D10: BUREAUX | E10: Inscrits | G10: Émarg. | I10: Votants | K10: Particip. | M10: Blancs | O10: Nuls | Q10: Exprimés | S10: Inscrits | U10: =Candidats!B2 -> MORANO | W10: % | Y10: =Candidats!B3 -> LABAT | AA10: % | AC10: =Candidats!B4 -> ROCHER | AE10: % | AG10: =Candidats!B5 -> D'ANDLAU-HOMBOURG | AI10: % | AK10: =Candidats!B6 -> MARTIN | AM10: % | AO10: =Candidats!B7 -> DIAFERIA | AQ10: % | AS10: =Candidats!B8 -> GRIESBECK | AU10: % | AW10: =Candidats!B9 -> GONZALEZ | AY10: % | BA10: =Candidats!B10 -> COUKA | BC10: % | BE10: =Candidats!B11 -> RENARD | BG10: % | BI10: =Candidats!B12 -> MARTIN | BK10: % | BM10: =Candidats!B13 -> VÉRIN | BO10: % | BQ10: =Candidats!B14 -> DESSAIGNE | BS10: % | BU10: =Candidats!B15 -> PICO | BW10: % | BY10: =Candidats!B16 -> PHILIPPOT | CA10: % | CC10: =Candidats!B17 -> BELIER | CE10: % | CG10: =Candidats!B18 -> BOUDJEKADA | CI10: % | CK10: =Candidats!B19 -> FERRARI | CM10: % | CO10: =Candidats!B20 -> SANCHEZ | CQ10: % | CS10: =Candidats!B21 -> MAURER | CU10: % | CW10: =Candidats!B22 -> HERVE | CY10: % | DA10: =Candidats!B23 -> AMARD | DC10: % | DE10: =Candidats!B24 -> LHOTE | DG10: %
B13: A1 - Hôtel de Ville | E13: =IF('A1'!$E7="","",'A1'!$E7) -> 856 | G13: =IF('A1'!$E8="","",'A1'!$E8) -> 368 | I13: =IF('A1'!$E9="","",'A1'!$E9) -> 368 | K13: =IF(I13=""," ",I13/$E13) -> 0.4299065421 | M13: =IF('A1'!$E10="","",'A1'!$E10) -> 4 | O13: =IF('A1'!$E11="","",'A1'!$E11) -> 4 | Q13: =IF('A1'!$E12="","",'A1'!$E12) -> 360 | S13: =IF(Q13=""," ",Q13/$E13) -> 0.4205607477 | U13: =IF('A1'!$E13="","",'A1'!$E13) -> 87 | W13: =IF(U13=""," ",U13/$Q13) -> 0.2416666667 | Y13: =IF('A1'!$E14="","",'A1'!$E14) -> 1 | AA13: =IF(Y13=""," ",Y13/$Q13) -> 0.002777777778 | AC13: =IF('A1'!$E15="","",'A1'!$E15) -> 5 | AE13: =IF(AC13=""," ",AC13/$Q13) -> 0.01388888889 | AG13: =IF('A1'!$E16="","",'A1'!$E16) -> 0 | AI13: =IF(AG13=""," ",AG13/$Q13) -> 0 | AK13: =IF('A1'!$E17="","",'A1'!$E17) -> 57 | AM13: =IF(AK13=""," ",AK13/$Q13) -> 0.1583333333 | AO13: =IF('A1'!$E18="","",'A1'!$E18) -> 1 | AQ13: =IF(AO13=""," ",AO13/$Q13) -> 0.002777777778 | AS13: =IF('A1'!$E19="","",'A1'!$E19) -> 42 | AU13: =IF(AS13=""," ",AS13/$Q13) -> 0.1166666667 | AW13: =IF('A1'!$E20="","",'A1'!$E20) -> 7 | AY13: =IF(AW13=""," ",AW13/$Q13) -> 0.01944444444 | BA13: =IF('A1'!$E21="","",'A1'!$E21) -> 0 | BC13: =IF(BA13=""," ",BA13/$Q13) -> 0 | BE13: =IF('A1'!$E22="","",'A1'!$E22) -> 6 | BG13: =IF(BE13=""," ",BE13/$Q13) -> 0.01666666667 | BI13: =IF('A1'!$E23="","",'A1'!$E23) -> 1 | BK13: =IF(BI13=""," ",BI13/$Q13) -> 0.002777777778 | BM13: =IF('A1'!$E24="","",'A1'!$E24) -> 3 | BO13: =IF(BM13=""," ",BM13/$Q13) -> 0.008333333333 | BQ13: =IF('A1'!$E25="","",'A1'!$E25) -> 3 | BS13: =IF(BQ13=""," ",BQ13/$Q13) -> 0.008333333333 | BU13: =IF('A1'!$E26="","",'A1'!$E26) -> 0 | BW13: =IF(BU13=""," ",BU13/$Q13) -> 0 | BY13: =IF('A1'!$E27="","",'A1'!$E27) -> 58 | CA13: =IF(BY13=""," ",BY13/$Q13) -> 0.1611111111 | CC13: =IF('A1'!$E28="","",'A1'!$E28) -> 31 | CE13: =IF(CC13=""," ",CC13/$Q13) -> 0.08611111111 | CG13: =IF('A1'!$E29="","",'A1'!$E29) -> 0 | CI13: =IF(CG13=""," ",CG13/$Q13) -> 0 | CK13: =IF('A1'!$E30="","",'A1'!$E30) -> 18 | CM13: =IF(CK13=""," ",CK13/$Q13) -> 0.05 | CO13: =IF('A1'!$E31="","",'A1'!$E31) -> 0 | CQ13: =IF(CO13=""," ",CO13/$Q13) -> 0 | CS13: =IF('A1'!$E32="","",'A1'!$E32) -> 21 | CU13: =IF(CS13=""," ",CS13/$Q13) -> 0.05833333333 | CW13: =IF('A1'!$E33="","",'A1'!$E33) -> 3 | CY13: =IF(CW13=""," ",CW13/$Q13) -> 0.008333333333 | DA13: =IF('A1'!$E36="","",'A1'!$E34) ->  | DC13: =IF(DA13=""," ",DA13/$Q13) ->  | DE13: =IF('A1'!$E35="","",'A1'!$E35) -> 2 | DG13: =IF(DE13=""," ",DE13/$Q13) -> 0.005555555556
B14: A2 - Salle des fêtes | E14: =IF('A2'!$E7="","",'A2'!$E7) -> 934 | G14: =IF('A2'!$E8="","",'A2'!$E8) -> 476 | I14: =IF('A2'!$E9="","",'A2'!$E9) -> 476 | K14: =IF(I14=""," ",I14/$E14) -> 0.5096359743 | M14: =IF('A2'!$E10="","",'A2'!$E10) -> 7 | O14: =IF('A2'!$E11="","",'A2'!$E11) -> 10 | Q14: =IF('A2'!$E12="","",'A2'!$E12) -> 459 | S14: =IF(Q14=""," ",Q14/$E14) -> 0.4914346895 | U14: =IF('A2'!$E13="","",'A2'!$E13) -> 160 | W14: 0.348583878 | Y14: =IF('A2'!$E14="","",'A2'!$E14) -> 0 | AA14: 0 | AC14: =IF('A2'!$E15="","",'A2'!$E15) -> 5 | AE14: 0.01089324619 | AG14: =IF('A2'!$E16="","",'A2'!$E16) -> 0 | AI14: 0 | AK14: =IF('A2'!$E17="","",'A2'!$E17) -> 60 | AM14: 0.1307189542 | AO14: =IF('A2'!$E18="","",'A2'!$E18) -> 0 | AQ14: 0 | AS14: =IF('A2'!$E19="","",'A2'!$E19) -> 53 | AU14: 0.1154684096 | AW14: =IF('A2'!$E20="","",'A2'!$E20) -> 10 | AY14: 0.02178649237 | BA14: =IF('A2'!$E21="","",'A2'!$E21) -> 0 | BC14: 0 | BE14: =IF('A2'!E22="","",'A2'!E22) -> 6 | BG14: 0.01307189542 | BI14: =IF('A2'!$E23="","",'A2'!$E23) -> 0 | BK14: =IF(BI14=""," ",BI14/$Q14) -> 0 | BM14: =IF('A2'!$E24="","",'A2'!$E24) -> 2 | BO14: =IF(BM14=""," ",BM14/$Q14) -> 0.004357298475 | BQ14: =IF('A2'!$E25="","",'A2'!$E25) -> 7 | BS14: =IF(BQ14=""," ",BQ14/$Q14) -> 0.01525054466 | BU14: =IF('A2'!$E26="","",'A2'!$E26) -> 1 | BW14: =IF(BU14=""," ",BU14/$Q14) -> 0.002178649237 | BY14: =IF('A2'!$E27="","",'A2'!$E27) -> 66 | CA14: =IF(BY14=""," ",BY14/$Q14) -> 0.1437908497 | CC14: =IF('A2'!$E28="","",'A2'!$E28) -> 32 | CE14: =IF(CC14=""," ",CC14/$Q14) -> 0.0697167756 | CG14: =IF('A2'!$E29="","",'A2'!$E29) -> 0 | CI14: =IF(CG14=""," ",CG14/$Q14) -> 0 | CK14: =IF('A2'!$E30="","",'A2'!$E30) -> 16 | CM14: =IF(CK14=""," ",CK14/$Q14) -> 0.0348583878 | CO14: =IF('A2'!$E31="","",'A2'!$E31) -> 0 | CQ14: =IF(CO14=""," ",CO14/$Q14) -> 0 | CS14: =IF('A2'!$E32="","",'A2'!$E32) -> 7 | CU14: =IF(CS14=""," ",CS14/$Q14) -> 0.01525054466 | CW14: =IF('A2'!$E33="","",'A2'!$E33) -> 2 | CY14: =IF(CW14=""," ",CW14/$Q14) -> 0.004357298475 | DA14: =IF('A2'!$E34="","",'A2'!$E34) -> 30 | DC14: =IF(DA14=""," ",DA14/$Q14) -> 0.06535947712 | DE14: =IF('A2'!$E35="","",'A2'!$E35) -> 2 | DG14: =IF(DE14=""," ",DE14/$Q14) -> 0.004357298475
B15: B1 - Victor Hugo | E15: =IF('B1'!$E7="","",'B1'!$E7) -> 1068 | G15: =IF('B1'!$E8="","",'B1'!$E8) -> 434 | I15: =IF('B1'!$E9="","",'B1'!$E9) -> 434 | K15: 0.4063670412 | M15: =IF('B1'!$E10="","",'B1'!$E10) -> 4 | O15: =IF('B1'!$E11="","",'B1'!$E11) -> 3 | Q15: =IF('B1'!$E12="","",'B1'!$E12) -> 427 | S15: 0.3998127341 | U15: =IF('B1'!$E13="","",'B1'!$E13) -> 121 | W15: 0.2833723653 | Y15: =IF('B1'!$E14="","",'B1'!$E14) -> 2 | AA15: 0.004683840749 | AC15: =IF('B1'!$E15="","",'B1'!$E15) -> 4 | AE15: 0.009367681499 | AG15: =IF('B1'!$E16="","",'B1'!$E16) -> 1 | AI15: 0.002341920375 | AK15: =IF('B1'!$E17="","",'B1'!$E17) -> 74 | AM15: 0.1733021077 | AO15: =IF('B1'!$E18="","",'B1'!$E18) -> 0 | AQ15: 0 | AS15: =IF('B1'!$E19="","",'B1'!$E19) -> 61 | AU15: 0.1428571429 | AW15: =IF('B1'!$E20="","",'B1'!$E20) -> 8 | AY15: 0.018735363 | BA15: =IF('B1'!$E21="","",'B1'!$E21) -> 0 | BC15: 0 | BE15: =IF('B1'!E22="","",'B1'!E22) -> 2 | BG15: 0.004683840749 | BI15: =IF('B1'!$E23="","",'B1'!$E23) -> 1 | BK15: 0.002341920375 | BM15: =IF('B1'!$E24="","",'B1'!$E24) -> 1 | BO15: 0.002341920375 | BQ15: =IF('B1'!$E25="","",'B1'!$E25) -> 4 | BS15: 0.009367681499 | BU15: =IF('B1'!$E26="","",'B1'!$E26) -> 0 | BW15: 0 | BY15: =IF('B1'!$E27="","",'B1'!$E27) -> 57 | CA15: 0.1334894614 | CC15: =IF('B1'!$E28="","",'B1'!$E28) -> 33 | CE15: 0.07728337237 | CG15: =IF('B1'!$E29="","",'B1'!$E29) -> 0 | CI15: 0 | CK15: =IF('B1'!$E30="","",'B1'!$E30) -> 16 | CM15: 0.037470726 | CO15: =IF('B1'!$E31="","",'B1'!$E31) -> 0 | CQ15: 0 | CS15: =IF('B1'!$E32="","",'B1'!$E32) -> 9 | CU15: 0.02107728337 | CW15: =IF('B1'!$E33="","",'B1'!$E33) -> 6 | CY15: 0.01405152225 | DA15: =IF('B1'!$E34="","",'B1'!$E34) -> 25 | DC15: 0.05854800937 | DE15: =IF('B1'!$E35="","",'B1'!$E35) -> 2 | DG15: 0.004683840749
B16: B2 - Victor Hugo | E16: =IF('B2'!$E7="","",'B2'!$E7) -> 1149 | G16: =IF('B2'!$E8="","",'B2'!$E8) -> 524 | I16: =IF('B2'!$E9="","",'B2'!$E9) -> 524 | K16: 0.456048738 | M16: =IF('B2'!$E10="","",'B2'!$E10) -> 1 | O16: =IF('B2'!$E11="","",'B2'!$E11) -> 7 | Q16: =IF('B2'!$E12="","",'B2'!$E12) -> 516 | S16: 0.4490861619 | U16: =IF('B2'!$E13="","",'B2'!$E13) -> 145 | W16: 0.2810077519 | Y16: =IF('B2'!$E14="","",'B2'!$E14) -> 0 | AA16: 0 | AC16: =IF('B2'!$E15="","",'B2'!$E15) -> 5 | AE16: 0.009689922481 | AG16: =IF('B2'!$E16="","",'B2'!$E16) -> 1 | AI16: 0.001937984496 | AK16: =IF('B2'!$E17="","",'B2'!$E17) -> 66 | AM16: 0.1279069767 | AO16: =IF('B2'!$E18="","",'B2'!$E18) -> 4 | AQ16: 0.007751937984 | AS16: =IF('B2'!$E19="","",'B2'!$E19) -> 64 | AU16: 0.1240310078 | AW16: =IF('B2'!$E20="","",'B2'!$E20) -> 12 | AY16: 0.02325581395 | BA16: =IF('B2'!$E21="","",'B2'!$E21) -> 1 | BC16: 0.001937984496 | BE16: =IF('B2'!E22="","",'B2'!E22) -> 10 | BG16: 0.01937984496 | BI16: =IF('B2'!$E23="","",'B2'!$E23) -> 1 | BK16: 0.001937984496 | BM16: =IF('B2'!$E24="","",'B2'!$E24) -> 0 | BO16: 0 | BQ16: =IF('B2'!$E25="","",'B2'!$E25) -> 4 | BS16: 0.007751937984 | BU16: =IF('B2'!$E26="","",'B2'!$E26) -> 0 | BW16: 0 | BY16: =IF('B2'!$E27="","",'B2'!$E27) -> 86 | CA16: 0.1666666667 | CC16: =IF('B2'!$E28="","",'B2'!$E28) -> 59 | CE16: 0.1143410853 | CG16: =IF('B2'!$E29="","",'B2'!$E29) -> 0 | CI16: 0 | CK16: =IF('B2'!$E30="","",'B2'!$E30) -> 19 | CM16: 0.03682170543 | CO16: =IF('B2'!$E31="","",'B2'!$E31) -> 0 | CQ16: 0 | CS16: =IF('B2'!$E32="","",'B2'!$E32) -> 17 | CU16: 0.03294573643 | CW16: =IF('B2'!$E33="","",'B2'!$E33) -> 1 | CY16: 0.001937984496 | DA16: =IF('B2'!$E34="","",'B2'!$E34) -> 20 | DC16: 0.03875968992 | DE16: =IF('B2'!$E35="","",'B2'!$E35) -> 1 | DG16: 0.001937984496
B17: M1 - Saint-Exupéry | E17: =IF('M1'!$E7="","",'M1'!$E7) -> 1300 | G17: =IF('M1'!$E8="","",'M1'!$E8) -> 274 | I17: =IF('M1'!$E9="","",'M1'!$E9) -> 274 | K17: 0.2107692308 | M17: =IF('M1'!$E10="","",'M1'!$E10) -> 4 | O17: =IF('M1'!$E11="","",'M1'!$E11) -> 14 | Q17: =IF('M1'!$E12="","",'M1'!$E12) -> 256 | S17: 0.1969230769 | U17: =IF('M1'!$E13="","",'M1'!$E13) -> 50 | W17: 0.1953125 | Y17: =IF('M1'!$E14="","",'M1'!$E14) -> 0 | AA17: 0 | AC17: =IF('M1'!$E15="","",'M1'!$E15) -> 4 | AE17: 0.015625 | AG17: =IF('M1'!$E16="","",'M1'!$E16) -> 1 | AI17: 0.00390625 | AK17: =IF('M1'!$E17="","",'M1'!$E17) -> 48 | AM17: 0.1875 | AO17: =IF('M1'!$E18="","",'M1'!$E18) -> 2 | AQ17: 0.0078125 | AS17: =IF('M1'!$E19="","",'M1'!$E19) -> 24 | AU17: 0.09375 | AW17: =IF('M1'!$E20="","",'M1'!$E20) -> 4 | AY17: 0.015625 | BA17: =IF('M1'!$E21="","",'M1'!$E21) -> 0 | BC17: 0 | BE17: =IF('M1'!E22="","",'M1'!E22) -> 1 | BG17: 0.00390625 | BI17: =IF('M1'!$E23="","",'M1'!$E23) -> 1 | BK17: 0.00390625 | BM17: =IF('M1'!$E24="","",'M1'!$E24) -> 2 | BO17: 0.0078125 | BQ17: =IF('M1'!$E25="","",'M1'!$E25) -> 1 | BS17: 0.00390625 | BU17: =IF('M1'!$E26="","",'M1'!$E26) -> 0 | BW17: 0 | BY17: =IF('M1'!$E27="","",'M1'!$E27) -> 63 | CA17: 0.24609375 | CC17: =IF('M1'!$E28="","",'M1'!$E28) -> 11 | CE17: 0.04296875 | CG17: =IF('M1'!$E29="","",'M1'!$E29) -> 0 | CI17: 0 | CK17: =IF('M1'!$E30="","",'M1'!$E30) -> 5 | CM17: 0.01953125 | CO17: =IF('M1'!$E31="","",'M1'!$E31) -> 0 | CQ17: 0 | CS17: =IF('M1'!$E32="","",'M1'!$E32) -> 3 | CU17: 0.01171875 | CW17: =IF('M1'!$E33="","",'M1'!$E33) -> 1 | CY17: 0.00390625 | DA17: =IF('M1'!$E34="","",'M1'!$E34) -> 33 | DC17: 0.12890625 | DE17: =IF('M1'!$E35="","",'M1'!$E35) -> 2 | DG17: 0.0078125
B18: N1 - Jean Moulin | E18: =IF('N1'!$E7="","",'N1'!$E7) -> 1451 | G18: =IF('N1'!$E8="","",'N1'!$E8) -> 603 | I18: =IF('N1'!$E9="","",'N1'!$E9) -> 603 | K18: 0.4155754652 | M18: =IF('N1'!$E10="","",'N1'!$E10) -> 12 | O18: =IF('N1'!$E11="","",'N1'!$E11) -> 8 | Q18: =IF('N1'!$E12="","",'N1'!$E12) -> 583 | S18: 0.4017918677 | U18: =IF('N1'!$E13="","",'N1'!$E13) -> 141 | W18: 0.2418524871 | Y18: =IF('N1'!$E14="","",'N1'!$E14) -> 0 | AA18: 0 | AC18: =IF('N1'!$E15="","",'N1'!$E15) -> 4 | AE18: 0.006861063465 | AG18: =IF('N1'!$E16="","",'N1'!$E16) -> 1 | AI18: 0.001715265866 | AK18: =IF('N1'!$E17="","",'N1'!$E17) -> 78 | AM18: 0.1337907376 | AO18: =IF('N1'!$E18="","",'N1'!$E18) -> 4 | AQ18: 0.006861063465 | AS18: =IF('N1'!$E19="","",'N1'!$E19) -> 62 | AU18: 0.1063464837 | AW18: =IF('N1'!$E20="","",'N1'!$E20) -> 13 | AY18: 0.02229845626 | BA18: =IF('N1'!$E21="","",'N1'!$E21) -> 2 | BC18: 0.003430531732 | BE18: =IF('N1'!E22="","",'N1'!E22) -> 3 | BG18: 0.005145797599 | BI18: =IF('N1'!$E23="","",'N1'!$E23) -> 0 | BK18: 0 | BM18: =IF('N1'!$E24="","",'N1'!$E24) -> 3 | BO18: 0.005145797599 | BQ18: =IF('N1'!$E25="","",'N1'!$E25) -> 6 | BS18: 0.0102915952 | BU18: =IF('N1'!$E26="","",'N1'!$E26) -> 0 | BW18: 0 | BY18: =IF('N1'!$E27="","",'N1'!$E27) -> 149 | CA18: 0.2555746141 | CC18: =IF('N1'!$E28="","",'N1'!$E28) -> 46 | CE18: 0.07890222985 | CG18: =IF('N1'!$E29="","",'N1'!$E29) -> 0 | CI18: 0 | CK18: =IF('N1'!$E30="","",'N1'!$E30) -> 19 | CM18: 0.03259005146 | CO18: =IF('N1'!$E31="","",'N1'!$E31) -> 0 | CQ18: 0 | CS18: =IF('N1'!$E32="","",'N1'!$E32) -> 13 | CU18: 0.02229845626 | CW18: =IF('N1'!$E33="","",'N1'!$E33) -> 2 | CY18: 0.003430531732 | DA18: =IF('N1'!$E34="","",'N1'!$E34) -> 34 | DC18: 0.05831903945 | DE18: =IF('N1'!$E35="","",'N1'!$E35) -> 3 | DG18: 0.005145797599
B19: N2 - Cité des Associations | E19: =IF('N2'!$E7="","",'N2'!$E7) -> 899 | G19: =IF('N2'!$E8="","",'N2'!$E8) -> 409 | I19: =IF('N2'!$E9="","",'N2'!$E9) -> 409 | K19: 0.4549499444 | M19: =IF('N2'!$E10="","",'N2'!$E10) -> 12 | O19: =IF('N2'!$E11="","",'N2'!$E11) -> 7 | Q19: =IF('N2'!$E12="","",'N2'!$E12) -> 390 | S19: 0.4338153504 | U19: =IF('N2'!$E13="","",'N2'!$E13) -> 70 | W19: 0.1794871795 | Y19: =IF('N2'!$E14="","",'N2'!$E14) -> 2 | AA19: 0.005128205128 | AC19: =IF('N2'!$E15="","",'N2'!$E15) -> 6 | AE19: 0.01538461538 | AG19: =IF('N2'!$E16="","",'N2'!$E16) -> 0 | AI19: 0 | AK19: =IF('N2'!$E17="","",'N2'!$E17) -> 83 | AM19: 0.2128205128 | AO19: =IF('N2'!$E18="","",'N2'!$E18) -> 1 | AQ19: 0.002564102564 | AS19: =IF('N2'!$E19="","",'N2'!$E19) -> 47 | AU19: 0.1205128205 | AW19: =IF('N2'!$E20="","",'N2'!$E20) -> 6 | AY19: 0.01538461538 | BA19: =IF('N2'!$E21="","",'N2'!$E21) -> 0 | BC19: 0 | BE19: =IF('N2'!E22="","",'N2'!E22) -> 2 | BG19: 0.005128205128 | BI19: =IF('N2'!$E23="","",'N2'!$E23) -> 2 | BK19: 0.005128205128 | BM19: =IF('N2'!$E24="","",'N2'!$E24) -> 2 | BO19: 0.005128205128 | BQ19: =IF('N2'!$E25="","",'N2'!$E25) -> 6 | BS19: 0.01538461538 | BU19: =IF('N2'!$E26="","",'N2'!$E26) -> 0 | BW19: 0 | BY19: =IF('N2'!$E27="","",'N2'!$E27) -> 83 | CA19: 0.2128205128 | CC19: =IF('N2'!$E28="","",'N2'!$E28) -> 38 | CE19: 0.09743589744 | CG19: =IF('N2'!$E29="","",'N2'!$E29) -> 0 | CI19: 0 | CK19: =IF('N2'!$E30="","",'N2'!$E30) -> 8 | CM19: 0.02051282051 | CO19: =IF('N2'!$E31="","",'N2'!$E31) -> 0 | CQ19: 0 | CS19: =IF('N2'!$E32="","",'N2'!$E32) -> 8 | CU19: 0.02051282051 | CW19: =IF('N2'!$E33="","",'N2'!$E33) -> 3 | CY19: 0.007692307692 | DA19: =IF('N2'!$E34="","",'N2'!$E34) -> 23 | DC19: 0.05897435897 | DE19: =IF('N2'!$E35="","",'N2'!$E35) -> 0 | DG19: 0
B20: Canton EST | E20: =SUM(E$13:E$19) -> 7657 | G20: =SUM(G13:G19) -> 3088 | I20: =SUM(I13:I19) -> 3088 | K20: 0.4032911062 | M20: =SUM(M13:M19) -> 44 | O20: =SUM(O13:O19) -> 53 | Q20: =SUM(Q13:Q19) -> 2991 | S20: 0.3906229594 | U20: =SUM(U13:U19) -> 774 | W20: =IF(U20=0,0,U20/$Q20) -> 0.258776329 | Y20: =SUM(Y13:Y19) -> 5 | AA20: =IF(Y20=0,0,Y20/$Q20) -> 0.001671681712 | AC20: =SUM(AC13:AC19) -> 33 | AE20: =IF(AC20=0,0,AC20/$Q20) -> 0.0110330993 | AG20: =SUM(AG13:AG19) -> 4 | AI20: =IF(AG20=0,0,AG20/$Q20) -> 0.001337345369 | AK20: =SUM(AK13:AK19) -> 466 | AM20: =IF(AK20=0,0,AK20/$Q20) -> 0.1558007355 | AO20: =SUM(AO13:AO19) -> 12 | AQ20: =IF(AO20=0,0,AO20/$Q20) -> 0.004012036108 | AS20: =SUM(AS13:AS19) -> 353 | AU20: =IF(AS20=0,0,AS20/$Q20) -> 0.1180207289 | AW20: =SUM(AW13:AW19) -> 60 | AY20: =IF(AW20=0,0,AW20/$Q20) -> 0.02006018054 | BA20: =SUM(BA13:BA19) -> 3 | BC20: =IF(BA20=0,0,BA20/$Q20) -> 0.001003009027 | BE20: =SUM(BE13:BE19) -> 30 | BG20: =IF(BE20=0,0,BE20/$Q20) -> 0.01003009027 | BI20: =SUM(BI13:BI19) -> 6 | BK20: =IF(BI20=0,0,BI20/$Q20) -> 0.002006018054 | BM20: =SUM(BM13:BM19) -> 13 | BO20: =IF(BM20=0,0,BM20/$Q20) -> 0.004346372451 | BQ20: =SUM(BQ13:BQ19) -> 31 | BS20: =IF(BQ20=0,0,BQ20/$Q20) -> 0.01036442661 | BU20: =SUM(BU13:BU19) -> 1 | BW20: =IF(BU20=0,0,BU20/$Q20) -> 0.0003343363424 | BY20: =SUM(BY13:BY19) -> 562 | CA20: =IF(BY20=0,0,BY20/$Q20) -> 0.1878970244 | CC20: =SUM(CC13:CC19) -> 250 | CE20: =IF(CC20=0,0,CC20/$Q20) -> 0.08358408559 | CG20: =SUM(CG13:CG19) -> 0 | CI20: =IF(CG20=0,0,CG20/$Q20) -> 0 | CK20: =SUM(CK13:CK19) -> 101 | CM20: =IF(CK20=0,0,CK20/$Q20) -> 0.03376797058 | CO20: =SUM(CO13:CO19) -> 0 | CQ20: =IF(CO20=0,0,CO20/$Q20) -> 0 | CS20: =SUM(CS13:CS19) -> 78 | CU20: =IF(CS20=0,0,CS20/$Q20) -> 0.0260782347 | CW20: =SUM(CW13:CW19) -> 18 | CY20: =IF(CW20=0,0,CW20/$Q20) -> 0.006018054162 | DA20: =SUM(DA13:DA19) -> 165 | DC20: =IF(DA20=0,0,DA20/$Q20) -> 0.05516549649 | DE20: =SUM(DE13:DE19) -> 12 | DG20: =IF(DE20=0,0,DE20/$Q20) -> 0.004012036108
B21: C1 - Victor Schoelcher | E21: =IF('C1'!$E7="","",'C1'!$E7) -> 1194 | G21: =IF('C1'!$E8="","",'C1'!$E8) -> 487 | I21: =IF('C1'!$E9="","",'C1'!$E9) -> 487 | K21: 0.4078726968 | M21: =IF('C1'!$E10="","",'C1'!$E10) -> 8 | O21: =IF('C1'!$E11="","",'C1'!$E11) -> 4 | Q21: =IF('C1'!$E12="","",'C1'!$E12) -> 475 | S21: 0.3978224456 | U21: =IF('C1'!$E13="","",'C1'!$E13) -> 127 | W21: =IF(U21=""," ",U21/$Q21) -> 0.2673684211 | Y21: =IF('C1'!$E14="","",'C1'!$E14) -> 2 | AA21: =IF(Y21=""," ",Y21/$Q21) -> 0.004210526316 | AC21: =IF('C1'!$E15="","",'C1'!$E15) -> 4 | AE21: =IF(AC21=""," ",AC21/$Q21) -> 0.008421052632 | AG21: =IF('C1'!$E16="","",'C1'!$E16) -> 1 | AI21: =IF(AG21=""," ",AG21/$Q21) -> 0.002105263158 | AK21: =IF('C1'!$E17="","",'C1'!$E17) -> 86 | AM21: =IF(AK21=""," ",AK21/$Q21) -> 0.1810526316 | AO21: =IF('C1'!$E18="","",'C1'!$E18) -> 2 | AQ21: =IF(AO21=""," ",AO21/$Q21) -> 0.004210526316 | AS21: =IF('C1'!$E19="","",'C1'!$E19) -> 56 | AU21: =IF(AS21=""," ",AS21/$Q21) -> 0.1178947368 | AW21: =IF('C1'!$E20="","",'C1'!$E20) -> 10 | AY21: =IF(AW21=""," ",AW21/$Q21) -> 0.02105263158 | BA21: =IF('C1'!$E21="","",'C1'!$E21) -> 0 | BC21: =IF(BA21=""," ",BA21/$Q21) -> 0 | BE21: =IF('C1'!E22="","",'C1'!E22) -> 4 | BG21: =IF(BE21=""," ",BE21/$Q21) -> 0.008421052632 | BI21: =IF('C1'!$E23="","",'C1'!$E23) -> 0 | BK21: =IF(BI21=""," ",BI21/$Q21) -> 0 | BM21: =IF('C1'!$E24="","",'C1'!$E24) -> 3 | BO21: =IF(BM21=""," ",BM21/$Q21) -> 0.006315789474 | BQ21: =IF('C1'!$E25="","",'C1'!$E25) -> 1 | BS21: =IF(BQ21=""," ",BQ21/$Q21) -> 0.002105263158 | BU21: =IF('C1'!$E26="","",'C1'!$E26) -> 0 | BW21: =IF(BU21=""," ",BU21/$Q21) -> 0 | BY21: =IF('C1'!$E27="","",'C1'!$E27) -> 89 | CA21: =IF(BY21=""," ",BY21/$Q21) -> 0.1873684211 | CC21: =IF('C1'!$E28="","",'C1'!$E28) -> 37 | CE21: =IF(CC21=""," ",CC21/$Q21) -> 0.07789473684 | CG21: =IF('C1'!$E29="","",'C1'!$E29) -> 0 | CI21: =IF(CG21=""," ",CG21/$Q21) -> 0 | CK21: =IF('C1'!$E30="","",'C1'!$E30) -> 19 | CM21: =IF(CK21=""," ",CK21/$Q21) -> 0.04 | CO21: =IF('C1'!$E31="","",'C1'!$E31) -> 0 | CQ21: =IF(CO21=""," ",CO21/$Q21) -> 0 | CS21: =IF('C1'!$E32="","",'C1'!$E32) -> 11 | CU21: =IF(CS21=""," ",CS21/$Q21) -> 0.02315789474 | CW21: =IF('C1'!$E33="","",'C1'!$E33) -> 4 | CY21: =IF(CW21=""," ",CW21/$Q21) -> 0.008421052632 | DA21: =IF('C1'!$E34="","",'C1'!$E34) -> 18 | DC21: =IF(DA21=""," ",DA21/$Q21) -> 0.03789473684 | DE21: =IF('C1'!$E35="","",'C1'!$E35) -> 1 | DG21: =IF(DE21=""," ",DE21/$Q21) -> 0.002105263158
B22: C2 - Maison du Peuple | E22: =IF('C2'!$E7="","",'C2'!$E7) -> 749 | G22: =IF('C2'!$E8="","",'C2'!$E8) -> 359 | I22: =IF('C2'!$E9="","",'C2'!$E9) -> 359 | K22: 0.479305741 | M22: =IF('C2'!$E10="","",'C2'!$E10) -> 4 | O22: =IF('C2'!$E11="","",'C2'!$E11) -> 8 | Q22: =IF('C2'!$E12="","",'C2'!$E12) -> 347 | S22: 0.4632843792 | U22: =IF('C2'!$E13="","",'C2'!$E13) -> 108 | W22: 0.3112391931 | Y22: =IF('C2'!$E14="","",'C2'!$E14) -> 0 | AA22: 0 | AC22: =IF('C2'!$E15="","",'C2'!$E15) -> 2 | AE22: 0.005763688761 | AG22: =IF('C2'!$E16="","",'C2'!$E16) -> 0 | AI22: 0 | AK22: =IF('C2'!$E17="","",'C2'!$E17) -> 52 | AM22: 0.1498559078 | AO22: =IF('C2'!$E18="","",'C2'!$E18) -> 2 | AQ22: 0.005763688761 | AS22: =IF('C2'!$E19="","",'C2'!$E19) -> 33 | AU22: 0.09510086455 | AW22: =IF('C2'!$E20="","",'C2'!$E20) -> 7 | AY22: 0.02017291066 | BA22: =IF('C2'!$E21="","",'C2'!$E21) -> 1 | BC22: 0.00288184438 | BE22: =IF('C2'!E22="","",'C2'!E22) -> 1 | BG22: 0.00288184438 | BI22: =IF('C2'!$E23="","",'C2'!$E23) -> 1 | BK22: =IF(BI22=""," ",BI22/$Q22) -> 0.00288184438 | BM22: =IF('C2'!$E24="","",'C2'!$E24) -> 1 | BO22: =IF(BM22=""," ",BM22/$Q22) -> 0.00288184438 | BQ22: =IF('C2'!$E25="","",'C2'!$E25) -> 6 | BS22: =IF(BQ22=""," ",BQ22/$Q22) -> 0.01729106628 | BU22: =IF('C2'!$E26="","",'C2'!$E26) -> 0 | BW22: =IF(BU22=""," ",BU22/$Q22) -> 0 | BY22: =IF('C2'!$E27="","",'C2'!$E27) -> 57 | CA22: =IF(BY22=""," ",BY22/$Q22) -> 0.1642651297 | CC22: =IF('C2'!$E28="","",'C2'!$E28) -> 23 | CE22: =IF(CC22=""," ",CC22/$Q22) -> 0.06628242075 | CG22: =IF('C2'!$E29="","",'C2'!$E29) -> 0 | CI22: =IF(CG22=""," ",CG22/$Q22) -> 0 | CK22: =IF('C2'!$E30="","",'C2'!$E30) -> 17 | CM22: =IF(CK22=""," ",CK22/$Q22) -> 0.04899135447 | CO22: =IF('C2'!$E31="","",'C2'!$E31) -> 0 | CQ22: =IF(CO22=""," ",CO22/$Q22) -> 0 | CS22: =IF('C2'!$E32="","",'C2'!$E32) -> 12 | CU22: =IF(CS22=""," ",CS22/$Q22) -> 0.03458213256 | CW22: =IF('C2'!$E33="","",'C2'!$E33) -> 0 | CY22: =IF(CW22=""," ",CW22/$Q22) -> 0 | DA22: =IF('C2'!$E34="","",'C2'!$E34) -> 20 | DC22: =IF(DA22=""," ",DA22/$Q22) -> 0.05763688761 | DE22: =IF('C2'!$E35="","",'C2'!$E35) -> 4 | DG22: =IF(DE22=""," ",DE22/$Q22) -> 0.01152737752
B23: C3 - Maison du Peuple | E23: =IF('C3'!$E7="","",'C3'!$E7) -> 909 | G23: =IF('C3'!$E8="","",'C3'!$E8) -> 426 | I23: =IF('C3'!$E9="","",'C3'!$E9) -> 426 | K23: 0.4686468647 | M23: =IF('C3'!$E10="","",'C3'!$E10) -> 6 | O23: =IF('C3'!$E11="","",'C3'!$E11) -> 5 | Q23: =IF('C3'!$E12="","",'C3'!$E12) -> 415 | S23: 0.4565456546 | U23: =IF('C3'!$E13="","",'C3'!$E13) -> 148 | W23: 0.356626506 | Y23: =IF('C3'!$E14="","",'C3'!$E14) -> 1 | AA23: 0.002409638554 | AC23: =IF('C3'!$E15="","",'C3'!$E15) -> 2 | AE23: 0.004819277108 | AG23: =IF('C3'!$E16="","",'C3'!$E16) -> 0 | AI23: 0 | AK23: =IF('C3'!$E17="","",'C3'!$E17) -> 65 | AM23: 0.156626506 | AO23: =IF('C3'!$E18="","",'C3'!$E18) -> 2 | AQ23: 0.004819277108 | AS23: =IF('C3'!$E19="","",'C3'!$E19) -> 39 | AU23: 0.09397590361 | AW23: =IF('C3'!$E20="","",'C3'!$E20) -> 7 | AY23: 0.01686746988 | BA23: =IF('C3'!$E21="","",'C3'!$E21) -> 0 | BC23: 0 | BE23: =IF('C3'!E22="","",'C3'!E22) -> 3 | BG23: 0.007228915663 | BI23: =IF('C3'!$E23="","",'C3'!$E23) -> 1 | BK23: 0.002409638554 | BM23: =IF('C3'!$E24="","",'C3'!$E24) -> 3 | BO23: 0.007228915663 | BQ23: =IF('C3'!$E25="","",'C3'!$E25) -> 6 | BS23: 0.01445783133 | BU23: =IF('C3'!$E26="","",'C3'!$E26) -> 0 | BW23: 0 | BY23: =IF('C3'!$E27="","",'C3'!$E27) -> 66 | CA23: 0.1590361446 | CC23: =IF('C3'!$E28="","",'C3'!$E28) -> 36 | CE23: 0.08674698795 | CG23: =IF('C3'!$E29="","",'C3'!$E29) -> 0 | CI23: 0 | CK23: =IF('C3'!$E30="","",'C3'!$E30) -> 9 | CM23: 0.02168674699 | CO23: =IF('C3'!$E31="","",'C3'!$E31) -> 0 | CQ23: 0 | CS23: =IF('C3'!$E32="","",'C3'!$E32) -> 10 | CU23: 0.02409638554 | CW23: =IF('C3'!$E33="","",'C3'!$E33) -> 0 | CY23: 0 | DA23: =IF('C3'!$E34="","",'C3'!$E34) -> 16 | DC23: 0.03855421687 | DE23: =IF('C3'!$E35="","",'C3'!$E35) -> 1 | DG23: 0.002409638554
B24: D1 - Châteaudun | E24: =IF('D1'!$E7="","",'D1'!$E7) -> 1058 | G24: =IF('D1'!$E8="","",'D1'!$E8) -> 444 | I24: =IF('D1'!$E9="","",'D1'!$E9) -> 444 | K24: 0.4196597353 | M24: =IF('D1'!$E10="","",'D1'!$E10) -> 6 | O24: =IF('D1'!$E11="","",'D1'!$E11) -> 7 | Q24: =IF('D1'!$E12="","",'D1'!$E12) -> 431 | S24: 0.4073724008 | U24: =IF('D1'!$E13="","",'D1'!$E13) -> 140 | W24: 0.3248259861 | Y24: =IF('D1'!$E14="","",'D1'!$E14) -> 0 | AA24: 0 | AC24: =IF('D1'!$E15="","",'D1'!$E15) -> 3 | AE24: 0.006960556845 | AG24: =IF('D1'!$E16="","",'D1'!$E16) -> 0 | AI24: 0 | AK24: =IF('D1'!$E17="","",'D1'!$E17) -> 61 | AM24: 0.1415313225 | AO24: =IF('D1'!$E18="","",'D1'!$E18) -> 1 | AQ24: 0.002320185615 | AS24: =IF('D1'!$E19="","",'D1'!$E19) -> 35 | AU24: 0.08120649652 | AW24: =IF('D1'!$E20="","",'D1'!$E20) -> 10 | AY24: 0.02320185615 | BA24: =IF('D1'!$E21="","",'D1'!$E21) -> 0 | BC24: 0 | BE24: =IF('D1'!E22="","",'D1'!E22) -> 1 | BG24: 0.002320185615 | BI24: =IF('D1'!$E23="","",'D1'!$E23) -> 1 | BK24: 0.002320185615 | BM24: =IF('D1'!$E24="","",'D1'!$E24) -> 0 | BO24: 0 | BQ24: =IF('D1'!$E25="","",'D1'!$E25) -> 4 | BS24: 0.009280742459 | BU24: =IF('D1'!$E26="","",'D1'!$E26) -> 0 | BW24: 0 | BY24: =IF('D1'!$E27="","",'D1'!$E27) -> 84 | CA24: 0.1948955916 | CC24: =IF('D1'!$E28="","",'D1'!$E28) -> 32 | CE24: 0.07424593968 | CG24: =IF('D1'!$E29="","",'D1'!$E29) -> 0 | CI24: 0 | CK24: =IF('D1'!$E30="","",'D1'!$E30) -> 20 | CM24: 0.0464037123 | CO24: =IF('D1'!$E31="","",'D1'!$E31) -> 0 | CQ24: 0 | CS24: =IF('D1'!$E32="","",'D1'!$E32) -> 10 | CU24: 0.02320185615 | CW24: =IF('D1'!$E33="","",'D1'!$E33) -> 3 | CY24: 0.006960556845 | DA24: =IF('D1'!$E34="","",'D1'!$E34) -> 24 | DC24: 0.05568445476 | DE24: =IF('D1'!$E35="","",'D1'!$E35) -> 2 | DG24: 0.00464037123
B25: D2 - Châteaudun | E25: =IF('D2'!$E7="","",'D2'!$E7) -> 827 | G25: =IF('D2'!$E8="","",'D2'!$E8) -> 365 | I25: =IF('D2'!$E9="","",'D2'!$E9) -> 365 | K25: 0.4413542926 | M25: =IF('D2'!$E10="","",'D2'!$E10) -> 5 | O25: =IF('D2'!$E11="","",'D2'!$E11) -> 4 | Q25: =IF('D2'!$E12="","",'D2'!$E12) -> 356 | S25: 0.430471584 | U25: =IF('D2'!$E13="","",'D2'!$E13) -> 104 | W25: 0.2921348315 | Y25: =IF('D2'!$E14="","",'D2'!$E14) -> 1 | AA25: 0.002808988764 | AC25: =IF('D2'!$E15="","",'D2'!$E15) -> 0 | AE25: 0 | AG25: =IF('D2'!$E16="","",'D2'!$E16) -> 0 | AI25: 0 | AK25: =IF('D2'!$E17="","",'D2'!$E17) -> 44 | AM25: 0.1235955056 | AO25: =IF('D2'!$E18="","",'D2'!$E18) -> 3 | AQ25: 0.008426966292 | AS25: =IF('D2'!$E19="","",'D2'!$E19) -> 44 | AU25: 0.1235955056 | AW25: =IF('D2'!$E20="","",'D2'!$E20) -> 2 | AY25: 0.005617977528 | BA25: =IF('D2'!$E21="","",'D2'!$E21) -> 0 | BC25: 0 | BE25: =IF('D2'!E22="","",'D2'!E22) -> 0 | BG25: 0 | BI25: =IF('D2'!$E23="","",'D2'!$E23) -> 1 | BK25: 0.002808988764 | BM25: =IF('D2'!$E24="","",'D2'!$E24) -> 2 | BO25: 0.005617977528 | BQ25: =IF('D2'!$E25="","",'D2'!$E25) -> 6 | BS25: 0.01685393258 | BU25: =IF('D2'!$E26="","",'D2'!$E26) -> 0 | BW25: 0 | BY25: =IF('D2'!$E27="","",'D2'!$E27) -> 84 | CA25: 0.2359550562 | CC25: =IF('D2'!$E28="","",'D2'!$E28) -> 32 | CE25: 0.08988764045 | CG25: =IF('D2'!$E29="","",'D2'!$E29) -> 0 | CI25: 0 | CK25: =IF('D2'!$E30="","",'D2'!$E30) -> 10 | CM25: 0.02808988764 | CO25: =IF('D2'!$E31="","",'D2'!$E31) -> 0 | CQ25: 0 | CS25: =IF('D2'!$E32="","",'D2'!$E32) -> 5 | CU25: 0.01404494382 | CW25: =IF('D2'!$E33="","",'D2'!$E33) -> 0 | CY25: 0 | DA25: =IF('D2'!$E34="","",'D2'!$E34) -> 18 | DC25: 0.05056179775 | DE25: =IF('D2'!$E35="","",'D2'!$E35) -> 0 | DG25: 0
B26: D3 - Châteaudun | E26: =IF('D3'!$E7="","",'D3'!$E7) -> 895 | G26: =IF('D3'!$E8="","",'D3'!$E8) -> 365 | I26: =IF('D3'!$E9="","",'D3'!$E9) -> 365 | K26: 0.4078212291 | M26: =IF('D3'!$E10="","",'D3'!$E10) -> 8 | O26: =IF('D3'!$E11="","",'D3'!$E11) -> 7 | Q26: =IF('D3'!$E12="","",'D3'!$E12) -> 350 | S26: 0.3910614525 | U26: =IF('D3'!$E13="","",'D3'!$E13) -> 83 | W26: 0.2371428571 | Y26: =IF('D3'!$E14="","",'D3'!$E14) -> 0 | AA26: 0 | AC26: =IF('D3'!$E15="","",'D3'!$E15) -> 7 | AE26: 0.02 | AG26: =IF('D3'!$E16="","",'D3'!$E16) -> 1 | AI26: 0.002857142857 | AK26: =IF('D3'!$E17="","",'D3'!$E17) -> 42 | AM26: 0.12 | AO26: =IF('D3'!$E18="","",'D3'!$E18) -> 3 | AQ26: 0.008571428571 | AS26: =IF('D3'!$E19="","",'D3'!$E19) -> 32 | AU26: 0.09142857143 | AW26: =IF('D3'!$E20="","",'D3'!$E20) -> 6 | AY26: 0.01714285714 | BA26: =IF('D3'!$E21="","",'D3'!$E21) -> 0 | BC26: 0 | BE26: =IF('D3'!E22="","",'D3'!E22) -> 2 | BG26: 0.005714285714 | BI26: =IF('D3'!$E23="","",'D3'!$E23) -> 1 | BK26: 0.002857142857 | BM26: =IF('D3'!$E24="","",'D3'!$E24) -> 4 | BO26: 0.01142857143 | BQ26: =IF('D3'!$E25="","",'D3'!$E25) -> 4 | BS26: 0.01142857143 | BU26: =IF('D3'!$E26="","",'D3'!$E26) -> 0 | BW26: 0 | BY26: =IF('D3'!$E27="","",'D3'!$E27) -> 103 | CA26: 0.2942857143 | CC26: =IF('D3'!$E28="","",'D3'!$E28) -> 21 | CE26: 0.06 | CG26: =IF('D3'!$E29="","",'D3'!$E29) -> 0 | CI26: 0 | CK26: =IF('D3'!$E30="","",'D3'!$E30) -> 9 | CM26: 0.02571428571 | CO26: =IF('D3'!$E31="","",'D3'!$E31) -> 0 | CQ26: 0 | CS26: =IF('D3'!$E32="","",'D3'!$E32) -> 5 | CU26: 0.01428571429 | CW26: =IF('D3'!$E33="","",'D3'!$E33) -> 2 | CY26: 0.005714285714 | DA26: =IF('D3'!$E34="","",'D3'!$E34) -> 25 | DC26: 0.07142857143 | DE26: =IF('D3'!$E35="","",'D3'!$E35) -> 0 | DG26: 0
B27: Canton CENTRE | E27: =SUM(E$21:E$26) -> 5632 | G27: =SUM(G21:G26) -> 2446 | I27: =SUM(I21:I26) -> 2446 | K27: 0.4343039773 | M27: =SUM(M21:M26) -> 37 | O27: =SUM(O21:O26) -> 35 | Q27: =SUM(Q21:Q26) -> 2374 | S27: 0.4215198864 | U27: =SUM(U21:U26) -> 710 | W27: =IF(U27=0,0,U27/$Q27) -> 0.299073294 | Y27: =SUM(Y21:Y26) -> 4 | AA27: =IF(Y27=0,0,Y27/$Q27) -> 0.001684919966 | AC27: =SUM(AC21:AC26) -> 18 | AE27: =IF(AC27=0,0,AC27/$Q27) -> 0.007582139848 | AG27: =SUM(AG21:AG26) -> 2 | AI27: =IF(AG27=0,0,AG27/$Q27) -> 0.0008424599832 | AK27: =SUM(AK21:AK26) -> 350 | AM27: =IF(AK27=0,0,AK27/$Q27) -> 0.1474304971 | AO27: =SUM(AO21:AO26) -> 13 | AQ27: =IF(AO27=0,0,AO27/$Q27) -> 0.00547598989 | AS27: =SUM(AS21:AS26) -> 239 | AU27: =IF(AS27=0,0,AS27/$Q27) -> 0.100673968 | AW27: =SUM(AW21:AW26) -> 42 | AY27: =IF(AW27=0,0,AW27/$Q27) -> 0.01769165965 | BA27: =SUM(BA21:BA26) -> 1 | BC27: =IF(BA27=0,0,BA27/$Q27) -> 0.0004212299916 | BE27: =SUM(BE21:BE26) -> 11 | BG27: =IF(BE27=0,0,BE27/$Q27) -> 0.004633529907 | BI27: =SUM(BI21:BI26) -> 5 | BK27: =IF(BI27=0,0,BI27/$Q27) -> 0.002106149958 | BM27: =SUM(BM21:BM26) -> 13 | BO27: =IF(BM27=0,0,BM27/$Q27) -> 0.00547598989 | BQ27: =SUM(BQ21:BQ26) -> 27 | BS27: =IF(BQ27=0,0,BQ27/$Q27) -> 0.01137320977 | BU27: =SUM(BU21:BU26) -> 0 | BW27: =IF(BU27=0,0,BU27/$Q27) -> 0 | BY27: =SUM(BY21:BY26) -> 483 | CA27: =IF(BY27=0,0,BY27/$Q27) -> 0.2034540859 | CC27: =SUM(CC21:CC26) -> 181 | CE27: =IF(CC27=0,0,CC27/$Q27) -> 0.07624262848 | CG27: =SUM(CG21:CG26) -> 0 | CI27: =IF(CG27=0,0,CG27/$Q27) -> 0 | CK27: =SUM(CK21:CK26) -> 84 | CM27: =IF(CK27=0,0,CK27/$Q27) -> 0.03538331929 | CO27: =SUM(CO21:CO26) -> 0 | CQ27: =IF(CO27=0,0,CO27/$Q27) -> 0 | CS27: =SUM(CS21:CS26) -> 53 | CU27: =IF(CS27=0,0,CS27/$Q27) -> 0.02232518955 | CW27: =SUM(CW21:CW26) -> 9 | CY27: =IF(CW27=0,0,CW27/$Q27) -> 0.003791069924 | DA27: =SUM(DA21:DA26) -> 121 | DC27: =IF(DA27=0,0,DA27/$Q27) -> 0.05096882898 | DE27: =SUM(DE21:DE26) -> 8 | DG27: =IF(DE27=0,0,DE27/$Q27) -> 0.003369839933
B28: E1 - Raymond Aubert | E28: =IF('E1'!E$7="","",'E1'!E$7) -> 1168 | G28: =IF('E1'!$E8="","",'E1'!$E8) -> 475 | I28: =IF('E1'!$E9="","",'E1'!$E9) -> 475 | K28: 0.4066780822 | M28: =IF('E1'!$E10="","",'E1'!$E10) -> 10 | O28: =IF('E1'!$E11="","",'E1'!$E11) -> 8 | Q28: =IF('E1'!$E12="","",'E1'!$E12) -> 457 | S28: 0.3912671233 | U28: =IF('E1'!$E13="","",'E1'!$E13) -> 117 | W28: =IF(U28=""," ",U28/$Q28) -> 0.2560175055 | Y28: =IF('E1'!$E14="","",'E1'!$E14) -> 0 | AA28: =IF(Y28=""," ",Y28/$Q28) -> 0 | AC28: =IF('E1'!$E15="","",'E1'!$E15) -> 8 | AE28: =IF(AC28=""," ",AC28/$Q28) -> 0.01750547046 | AG28: =IF('E1'!$E16="","",'E1'!$E16) -> 1 | AI28: =IF(AG28=""," ",AG28/$Q28) -> 0.002188183807 | AK28: =IF('E1'!$E17="","",'E1'!$E17) -> 59 | AM28: =IF(AK28=""," ",AK28/$Q28) -> 0.1291028446 | AO28: =IF('E1'!$E18="","",'E1'!$E18) -> 1 | AQ28: =IF(AO28=""," ",AO28/$Q28) -> 0.002188183807 | AS28: =IF('E1'!$E19="","",'E1'!$E19) -> 48 | AU28: =IF(AS28=""," ",AS28/$Q28) -> 0.1050328228 | AW28: =IF('E1'!$E20="","",'E1'!$E20) -> 6 | AY28: =IF(AW28=""," ",AW28/$Q28) -> 0.01312910284 | BA28: =IF('E1'!$E21="","",'E1'!$E21) -> 0 | BC28: =IF(BA28=""," ",BA28/$Q28) -> 0 | BE28: =IF('E1'!E22="","",'E1'!E22) -> 0 | BG28: =IF(BE28=""," ",BE28/$Q28) -> 0 | BI28: =IF('E1'!$E23="","",'E1'!$E23) -> 1 | BK28: =IF(BI28=""," ",BI28/$Q28) -> 0.002188183807 | BM28: =IF('E1'!$E24="","",'E1'!$E24) -> 1 | BO28: =IF(BM28=""," ",BM28/$Q28) -> 0.002188183807 | BQ28: =IF('E1'!$E25="","",'E1'!$E25) -> 3 | BS28: =IF(BQ28=""," ",BQ28/$Q28) -> 0.006564551422 | BU28: =IF('E1'!$E26="","",'E1'!$E26) -> 0 | BW28: =IF(BU28=""," ",BU28/$Q28) -> 0 | BY28: =IF('E1'!$E27="","",'E1'!$E27) -> 131 | CA28: =IF(BY28=""," ",BY28/$Q28) -> 0.2866520788 | CC28: =IF('E1'!$E28="","",'E1'!$E28) -> 30 | CE28: =IF(CC28=""," ",CC28/$Q28) -> 0.06564551422 | CG28: =IF('E1'!$E29="","",'E1'!$E29) -> 0 | CI28: =IF(CG28=""," ",CG28/$Q28) -> 0 | CK28: =IF('E1'!$E30="","",'E1'!$E30) -> 16 | CM28: =IF(CK28=""," ",CK28/$Q28) -> 0.03501094092 | CO28: =IF('E1'!$E31="","",'E1'!$E31) -> 0 | CQ28: =IF(CO28=""," ",CO28/$Q28) -> 0 | CS28: =IF('E1'!$E32="","",'E1'!$E32) -> 12 | CU28: =IF(CS28=""," ",CS28/$Q28) -> 0.02625820569 | CW28: =IF('E1'!$E33="","",'E1'!$E33) -> 0 | CY28: =IF(CW28=""," ",CW28/$Q28) -> 0 | DA28: =IF('E1'!$E34="","",'E1'!$E34) -> 23 | DC28: =IF(DA28=""," ",DA28/$Q28) -> 0.05032822757 | DE28: =IF('E1'!$E35="","",'E1'!$E35) -> 0 | DG28: =IF(DE28=""," ",DE28/$Q28) -> 0
B29: E2 - Raymond Aubert | E29: =IF('E2'!$E7="","",'E2'!$E7) -> 1204 | G29: =IF('E2'!$E8="","",'E2'!$E8) -> 452 | I29: =IF('E2'!$E9="","",'E2'!$E9) -> 452 | K29: 0.3754152824 | M29: =IF('E2'!$E10="","",'E2'!$E10) -> 13 | O29: =IF('E2'!$E11="","",'E2'!$E11) -> 8 | Q29: =IF('E2'!$E12="","",'E2'!$E12) -> 431 | S29: 0.3579734219 | U29: =IF('E2'!$E13="","",'E2'!$E13) -> 120 | W29: =IF(U29=""," ",U29/$Q29) -> 0.2784222738 | Y29: =IF('E2'!$E14="","",'E2'!$E14) -> 0 | AA29: =IF(Y29=""," ",Y29/$Q29) -> 0 | AC29: =IF('E2'!$E15="","",'E2'!$E15) -> 5 | AE29: =IF(AC29=""," ",AC29/$Q29) -> 0.01160092807 | AG29: =IF('E2'!$E16="","",'E2'!$E16) -> 2 | AI29: =IF(AG29=""," ",AG29/$Q29) -> 0.00464037123 | AK29: =IF('E2'!$E17="","",'E2'!$E17) -> 51 | AM29: =IF(AK29=""," ",AK29/$Q29) -> 0.1183294664 | AO29: =IF('E2'!$E18="","",'E2'!$E18) -> 2 | AQ29: =IF(AO29=""," ",AO29/$Q29) -> 0.00464037123 | AS29: =IF('E2'!$E19="","",'E2'!$E19) -> 45 | AU29: =IF(AS29=""," ",AS29/$Q29) -> 0.1044083527 | AW29: =IF('E2'!$E20="","",'E2'!$E20) -> 11 | AY29: =IF(AW29=""," ",AW29/$Q29) -> 0.02552204176 | BA29: =IF('E2'!$E21="","",'E2'!$E21) -> 0 | BC29: =IF(BA29=""," ",BA29/$Q29) -> 0 | BE29: =IF('E2'!E22="","",'E2'!E22) -> 1 | BG29: =IF(BE29=""," ",BE29/$Q29) -> 0.002320185615 | BI29: =IF('E2'!$E23="","",'E2'!$E23) -> 3 | BK29: =IF(BI29=""," ",BI29/$Q29) -> 0.006960556845 | BM29: =IF('E2'!$E24="","",'E2'!$E24) -> 3 | BO29: =IF(BM29=""," ",BM29/$Q29) -> 0.006960556845 | BQ29: =IF('E2'!$E25="","",'E2'!$E25) -> 4 | BS29: =IF(BQ29=""," ",BQ29/$Q29) -> 0.009280742459 | BU29: =IF('E2'!$E26="","",'E2'!$E26) -> 0 | BW29: =IF(BU29=""," ",BU29/$Q29) -> 0 | BY29: =IF('E2'!$E27="","",'E2'!$E27) -> 122 | CA29: =IF(BY29=""," ",BY29/$Q29) -> 0.283062645 | CC29: =IF('E2'!$E28="","",'E2'!$E28) -> 31 | CE29: =IF(CC29=""," ",CC29/$Q29) -> 0.07192575406 | CG29: =IF('E2'!$E29="","",'E2'!$E29) -> 0 | CI29: =IF(CG29=""," ",CG29/$Q29) -> 0 | CK29: =IF('E2'!$E30="","",'E2'!$E30) -> 9 | CM29: =IF(CK29=""," ",CK29/$Q29) -> 0.02088167053 | CO29: =IF('E2'!$E31="","",'E2'!$E31) -> 0 | CQ29: =IF(CO29=""," ",CO29/$Q29) -> 0 | CS29: =IF('E2'!$E32="","",'E2'!$E32) -> 5 | CU29: =IF(CS29=""," ",CS29/$Q29) -> 0.01160092807 | CW29: =IF('E2'!$E33="","",'E2'!$E33) -> 2 | CY29: =IF(CW29=""," ",CW29/$Q29) -> 0.00464037123 | DA29: =IF('E2'!$E34="","",'E2'!$E34) -> 14 | DC29: =IF(DA29=""," ",DA29/$Q29) -> 0.03248259861 | DE29: =IF('E2'!$E35="","",'E2'!$E35) -> 1 | DG29: =IF(DE29=""," ",DE29/$Q29) -> 0.002320185615
B30: E3 - Raymond Aubert | E30: =IF('E3'!$E7="","",'E3'!$E7) -> 1030 | G30: =IF('E3'!$E8="","",'E3'!$E8) -> 389 | I30: =IF('E3'!$E9="","",'E3'!$E9) -> 389 | K30: 0.3776699029 | M30: =IF('E3'!$E10="","",'E3'!$E10) -> 12 | O30: =IF('E3'!$E11="","",'E3'!$E11) -> 11 | Q30: =IF('E3'!$E12="","",'E3'!$E12) -> 366 | S30: 0.3553398058 | U30: =IF('E3'!$E13="","",'E3'!$E13) -> 81 | W30: =IF(U30=""," ",U30/$Q30) -> 0.2213114754 | Y30: =IF('E3'!$E14="","",'E3'!$E14) -> 0 | AA30: =IF(Y30=""," ",Y30/$Q30) -> 0 | AC30: =IF('E3'!$E15="","",'E3'!$E15) -> 10 | AE30: =IF(AC30=""," ",AC30/$Q30) -> 0.02732240437 | AG30: =IF('E3'!$E16="","",'E3'!$E16) -> 1 | AI30: =IF(AG30=""," ",AG30/$Q30) -> 0.002732240437 | AK30: =IF('E3'!$E17="","",'E3'!$E17) -> 58 | AM30: =IF(AK30=""," ",AK30/$Q30) -> 0.1584699454 | AO30: =IF('E3'!$E18="","",'E3'!$E18) -> 0 | AQ30: =IF(AO30=""," ",AO30/$Q30) -> 0 | AS30: =IF('E3'!$E19="","",'E3'!$E19) -> 31 | AU30: =IF(AS30=""," ",AS30/$Q30) -> 0.08469945355 | AW30: =IF('E3'!$E20="","",'E3'!$E20) -> 7 | AY30: =IF(AW30=""," ",AW30/$Q30) -> 0.01912568306 | BA30: =IF('E3'!$E21="","",'E3'!$E21) -> 0 | BC30: =IF(BA30=""," ",BA30/$Q30) -> 0 | BE30: =IF('E3'!E22="","",'E3'!E22) -> 2 | BG30: =IF(BE30=""," ",BE30/$Q30) -> 0.005464480874 | BI30: =IF('E3'!$E23="","",'E3'!$E23) -> 1 | BK30: 0.002732240437 | BM30: =IF('E3'!$E24="","",'E3'!$E24) -> 0 | BO30: 0 | BQ30: =IF('E3'!$E25="","",'E3'!$E25) -> 1 | BS30: 0.002732240437 | BU30: =IF('E3'!$E26="","",'E3'!$E26) -> 0 | BW30: 0 | BY30: =IF('E3'!$E27="","",'E3'!$E27) -> 103 | CA30: 0.281420765 | CC30: =IF('E3'!$E28="","",'E3'!$E28) -> 25 | CE30: 0.06830601093 | CG30: =IF('E3'!$E29="","",'E3'!$E29) -> 0 | CI30: 0 | CK30: =IF('E3'!$E30="","",'E3'!$E30) -> 12 | CM30: 0.03278688525 | CO30: =IF('E3'!$E31="","",'E3'!$E31) -> 0 | CQ30: 0 | CS30: =IF('E3'!$E32="","",'E3'!$E32) -> 11 | CU30: 0.03005464481 | CW30: =IF('E3'!$E33="","",'E3'!$E33) -> 1 | CY30: 0.002732240437 | DA30: =IF('E3'!$E34="","",'E3'!$E34) -> 22 | DC30: 0.06010928962 | DE30: =IF('E3'!$E35="","",'E3'!$E35) -> 0 | DG30: 0
B31: F1 - Maison de l'enfant | E31: =IF('F1'!$E7="","",'F1'!$E7) -> 768 | G31: =IF('F1'!$E8="","",'F1'!$E8) -> 331 | I31: =IF('F1'!$E9="","",'F1'!$E9) -> 331 | K31: 0.4309895833 | M31: =IF('F1'!$E10="","",'F1'!$E10) -> 4 | O31: =IF('F1'!$E11="","",'F1'!$E11) -> 9 | Q31: =IF('F1'!$E12="","",'F1'!$E12) -> 318 | S31: 0.4140625 | U31: =IF('F1'!$E13="","",'F1'!$E13) -> 72 | W31: =IF(U31=""," ",U31/$Q31) -> 0.2264150943 | Y31: =IF('F1'!$E14="","",'F1'!$E14) -> 0 | AA31: =IF(Y31=""," ",Y31/$Q31) -> 0 | AC31: =IF('F1'!$E15="","",'F1'!$E15) -> 9 | AE31: =IF(AC31=""," ",AC31/$Q31) -> 0.02830188679 | AG31: =IF('F1'!$E16="","",'F1'!$E16) -> 0 | AI31: =IF(AG31=""," ",AG31/$Q31) -> 0 | AK31: =IF('F1'!$E17="","",'F1'!$E17) -> 48 | AM31: =IF(AK31=""," ",AK31/$Q31) -> 0.1509433962 | AO31: =IF('F1'!$E18="","",'F1'!$E18) -> 3 | AQ31: =IF(AO31=""," ",AO31/$Q31) -> 0.009433962264 | AS31: =IF('F1'!$E19="","",'F1'!$E19) -> 37 | AU31: =IF(AS31=""," ",AS31/$Q31) -> 0.1163522013 | AW31: =IF('F1'!$E20="","",'F1'!$E20) -> 12 | AY31: =IF(AW31=""," ",AW31/$Q31) -> 0.03773584906 | BA31: =IF('F1'!$E21="","",'F1'!$E21) -> 0 | BC31: =IF(BA31=""," ",BA31/$Q31) -> 0 | BE31: =IF('F1'!E22="","",'F1'!E22) -> 1 | BG31: =IF(BE31=""," ",BE31/$Q31) -> 0.003144654088 | BI31: =IF('F1'!$E23="","",'F1'!$E23) -> 0 | BK31: 0 | BM31: =IF('F1'!$E24="","",'F1'!$E24) -> 2 | BO31: 0.006289308176 | BQ31: =IF('F1'!$E25="","",'F1'!$E25) -> 2 | BS31: 0.006289308176 | BU31: =IF('F1'!$E26="","",'F1'!$E26) -> 0 | BW31: 0 | BY31: =IF('F1'!$E27="","",'F1'!$E27) -> 66 | CA31: 0.2075471698 | CC31: =IF('F1'!$E28="","",'F1'!$E28) -> 21 | CE31: 0.06603773585 | CG31: =IF('F1'!$E29="","",'F1'!$E29) -> 0 | CI31: 0 | CK31: =IF('F1'!$E30="","",'F1'!$E30) -> 8 | CM31: 0.0251572327 | CO31: =IF('F1'!$E31="","",'F1'!$E31) -> 0 | CQ31: 0 | CS31: =IF('F1'!$E32="","",'F1'!$E32) -> 10 | CU31: 0.03144654088 | CW31: =IF('F1'!$E33="","",'F1'!$E33) -> 2 | CY31: 0.006289308176 | DA31: =IF('F1'!$E34="","",'F1'!$E34) -> 25 | DC31: 0.0786163522 | DE31: =IF('F1'!$E35="","",'F1'!$E35) -> 0 | DG31: 0
B32: F2 - Émile Géhant | E32: =IF('F2'!$E7="","",'F2'!$E7) -> 516 | G32: =IF('F2'!$E8="","",'F2'!$E8) -> 224 | I32: =IF('F2'!$E9="","",'F2'!$E9) -> 224 | K32: 0.4341085271 | M32: =IF('F2'!$E10="","",'F2'!$E10) -> 6 | O32: =IF('F2'!$E11="","",'F2'!$E11) -> 3 | Q32: =IF('F2'!$E12="","",'F2'!$E12) -> 215 | S32: 0.4166666667 | U32: =IF('F2'!$E13="","",'F2'!$E13) -> 27 | W32: =IF(U32=""," ",U32/$Q32) -> 0.1255813953 | Y32: =IF('F2'!$E14="","",'F2'!$E14) -> 0 | AA32: =IF(Y32=""," ",Y32/$Q32) -> 0 | AC32: =IF('F2'!$E15="","",'F2'!$E15) -> 6 | AE32: =IF(AC32=""," ",AC32/$Q32) -> 0.02790697674 | AG32: =IF('F2'!$E16="","",'F2'!$E16) -> 0 | AI32: =IF(AG32=""," ",AG32/$Q32) -> 0 | AK32: =IF('F2'!$E17="","",'F2'!$E17) -> 25 | AM32: =IF(AK32=""," ",AK32/$Q32) -> 0.1162790698 | AO32: =IF('F2'!$E18="","",'F2'!$E18) -> 0 | AQ32: =IF(AO32=""," ",AO32/$Q32) -> 0 | AS32: =IF('F2'!$E19="","",'F2'!$E19) -> 13 | AU32: =IF(AS32=""," ",AS32/$Q32) -> 0.06046511628 | AW32: =IF('F2'!$E20="","",'F2'!$E20) -> 11 | AY32: =IF(AW32=""," ",AW32/$Q32) -> 0.0511627907 | BA32: =IF('F2'!$E21="","",'F2'!$E21) -> 0 | BC32: =IF(BA32=""," ",BA32/$Q32) -> 0 | BE32: =IF('F2'!E22="","",'F2'!E22) -> 0 | BG32: =IF(BE32=""," ",BE32/$Q32) -> 0 | BI32: =IF('F2'!$E23="","",'F2'!$E23) -> 1 | BK32: 0.004651162791 | BM32: =IF('F2'!$E24="","",'F2'!$E24) -> 1 | BO32: 0.004651162791 | BQ32: =IF('F2'!$E25="","",'F2'!$E25) -> 1 | BS32: 0.004651162791 | BU32: =IF('F2'!$E26="","",'F2'!$E26) -> 0 | BW32: 0 | BY32: =IF('F2'!$E27="","",'F2'!$E27) -> 71 | CA32: 0.3302325581 | CC32: =IF('F2'!$E28="","",'F2'!$E28) -> 22 | CE32: 0.1023255814 | CG32: =IF('F2'!$E29="","",'F2'!$E29) -> 0 | CI32: 0 | CK32: =IF('F2'!$E30="","",'F2'!$E30) -> 4 | CM32: 0.01860465116 | CO32: =IF('F2'!$E31="","",'F2'!$E31) -> 0 | CQ32: 0 | CS32: =IF('F2'!$E32="","",'F2'!$E32) -> 2 | CU32: 0.009302325581 | CW32: =IF('F2'!$E33="","",'F2'!$E33) -> 3 | CY32: 0.01395348837 | DA32: =IF('F2'!$E34="","",'F2'!$E34) -> 27 | DC32: 0.1255813953 | DE32: =IF('F2'!$E35="","",'F2'!$E35) -> 1 | DG32: 0.004651162791
B33: Canton NORD | E33: =SUM(E$28:E$32) -> 4686 | G33: =SUM(G28:G32) -> 1871 | I33: =SUM(I28:I32) -> 1871 | K33: 0.3992744345 | M33: =SUM(M28:M32) -> 45 | O33: =SUM(O28:O32) -> 39 | Q33: =SUM(Q28:Q32) -> 1787 | S33: 0.3813486983 | U33: =SUM(U28:U32) -> 417 | W33: =IF(U33=0,0,U33/$Q33) -> 0.2333519866 | Y33: =SUM(Y28:Y32) -> 0 | AA33: =IF(Y33=0,0,Y33/$Q33) -> 0 | AC33: =SUM(AC28:AC32) -> 38 | AE33: =IF(AC33=0,0,AC33/$Q33) -> 0.02126468942 | AG33: =SUM(AG28:AG32) -> 4 | AI33: =IF(AG33=0,0,AG33/$Q33) -> 0.00223838836 | AK33: =SUM(AK28:AK32) -> 241 | AM33: =IF(AK33=0,0,AK33/$Q33) -> 0.1348628987 | AO33: =SUM(AO28:AO32) -> 6 | AQ33: =IF(AO33=0,0,AO33/$Q33) -> 0.003357582541 | AS33: =SUM(AS28:AS32) -> 174 | AU33: =IF(AS33=0,0,AS33/$Q33) -> 0.09736989368 | AW33: =SUM(AW28:AW32) -> 47 | AY33: =IF(AW33=0,0,AW33/$Q33) -> 0.02630106323 | BA33: =SUM(BA28:BA32) -> 0 | BC33: =IF(BA33=0,0,BA33/$Q33) -> 0 | BE33: =SUM(BE28:BE32) -> 4 | BG33: =IF(BE33=0,0,BE33/$Q33) -> 0.00223838836 | BI33: =SUM(BI28:BI32) -> 6 | BK33: =IF(BI33=0,0,BI33/$Q33) -> 0.003357582541 | BM33: =SUM(BM28:BM32) -> 7 | BO33: =IF(BM33=0,0,BM33/$Q33) -> 0.003917179631 | BQ33: =SUM(BQ28:BQ32) -> 11 | BS33: =IF(BQ33=0,0,BQ33/$Q33) -> 0.006155567991 | BU33: =SUM(BU28:BU32) -> 0 | BW33: =IF(BU33=0,0,BU33/$Q33) -> 0 | BY33: =SUM(BY28:BY32) -> 493 | CA33: =IF(BY33=0,0,BY33/$Q33) -> 0.2758813654 | CC33: =SUM(CC28:CC32) -> 129 | CE33: =IF(CC33=0,0,CC33/$Q33) -> 0.07218802462 | CG33: =SUM(CG28:CG32) -> 0 | CI33: =IF(CG33=""," ",CG33/$Q33) -> 0 | CK33: =SUM(CK28:CK32) -> 49 | CM33: =IF(CK33=0,0,CK33/$Q33) -> 0.02742025741 | CO33: =SUM(CO28:CO32) -> 0 | CQ33: =IF(CO33=0,0,CO33/$Q33) -> 0 | CS33: =SUM(CS28:CS32) -> 40 | CU33: =IF(CS33=0,0,CS33/$Q33) -> 0.0223838836 | CW33: =SUM(CW28:CW32) -> 8 | CY33: =IF(CW33=0,0,CW33/$Q33) -> 0.004476776721 | DA33: =SUM(DA28:DA32) -> 111 | DC33: =IF(DA33=0,0,DA33/$Q33) -> 0.062115277 | DE33: =SUM(DE28:DE32) -> 2 | DG33: =IF(DE33=0,0,DE33/$Q33) -> 0.00111919418
B34: G1 - Hubert Metzger | E34: =IF('G1'!$E7="","",'G1'!$E7) -> 650 | G34: =IF('G1'!$E8="","",'G1'!$E8) -> 266 | I34: =IF('G1'!$E9="","",'G1'!$E9) -> 266 | K34: 0.4092307692 | M34: =IF('G1'!$E10="","",'G1'!$E10) -> 7 | O34: =IF('G1'!$E11="","",'G1'!$E11) -> 7 | Q34: =IF('G1'!$E12="","",'G1'!$E12) -> 252 | S34: 0.3876923077 | U34: =IF('G1'!$E13="","",'G1'!$E13) -> 31 | W34: =IF(U34=""," ",U34/$Q34) -> 0.123015873 | Y34: =IF('G1'!$E14="","",'G1'!$E14) -> 1 | AA34: =IF(Y34=""," ",Y34/$Q34) -> 0.003968253968 | AC34: =IF('G1'!$E15="","",'G1'!$E15) -> 5 | AE34: =IF(AC34=""," ",AC34/$Q34) -> 0.01984126984 | AG34: =IF('G1'!$E16="","",'G1'!$E16) -> 0 | AI34: =IF(AG34=""," ",AG34/$Q34) -> 0 | AK34: =IF('G1'!$E17="","",'G1'!$E17) -> 29 | AM34: =IF(AK34=""," ",AK34/$Q34) -> 0.1150793651 | AO34: =IF('G1'!$E18="","",'G1'!$E18) -> 1 | AQ34: =IF(AO34=""," ",AO34/$Q34) -> 0.003968253968 | AS34: =IF('G1'!$E19="","",'G1'!$E19) -> 31 | AU34: =IF(AS34=""," ",AS34/$Q34) -> 0.123015873 | AW34: =IF('G1'!$E20="","",'G1'!$E20) -> 7 | AY34: =IF(AW34=""," ",AW34/$Q34) -> 0.02777777778 | BA34: =IF('G1'!$E21="","",'G1'!$E21) -> 0 | BC34: =IF(BA34=""," ",BA34/$Q34) -> 0 | BE34: =IF('G1'!E22="","",'G1'!E22) -> 3 | BG34: =IF(BE34=""," ",BE34/$Q34) -> 0.0119047619 | BI34: =IF('G1'!$E23="","",'G1'!$E23) -> 0 | BK34: =IF(BI34=""," ",BI34/$Q34) -> 0 | BM34: =IF('G1'!$E24="","",'G1'!$E24) -> 0 | BO34: =IF(BM34=""," ",BM34/$Q34) -> 0 | BQ34: =IF('G1'!$E25="","",'G1'!$E25) -> 1 | BS34: =IF(BQ34=""," ",BQ34/$Q34) -> 0.003968253968 | BU34: =IF('G1'!$E26="","",'G1'!$E26) -> 0 | BW34: =IF(BU34=""," ",BU34/$Q34) -> 0 | BY34: =IF('G1'!$E27="","",'G1'!$E27) -> 67 | CA34: =IF(BY34=""," ",BY34/$Q34) -> 0.2658730159 | CC34: =IF('G1'!$E28="","",'G1'!$E28) -> 29 | CE34: =IF(CC34=""," ",CC34/$Q34) -> 0.1150793651 | CG34: =IF('G1'!$E29="","",'G1'!$E29) -> 0 | CI34: =IF(CG34=""," ",CG34/$Q34) -> 0 | CK34: =IF('G1'!$E30="","",'G1'!$E30) -> 7 | CM34: =IF(CK34=""," ",CK34/$Q34) -> 0.02777777778 | CO34: =IF('G1'!$E31="","",'G1'!$E31) -> 0 | CQ34: =IF(CO34=""," ",CO34/$Q34) -> 0 | CS34: =IF('G1'!$E32="","",'G1'!$E32) -> 4 | CU34: =IF(CS34=""," ",CS34/$Q34) -> 0.01587301587 | CW34: =IF('G1'!$E33="","",'G1'!$E33) -> 4 | CY34: =IF(CW34=""," ",CW34/$Q34) -> 0.01587301587 | DA34: =IF('G1'!$E34="","",'G1'!$E34) -> 31 | DC34: =IF(DA34=""," ",DA34/$Q34) -> 0.123015873 | DE34: =IF('G1'!$E35="","",'G1'!$E35) -> 1 | DG34: =IF(DE34=""," ",DE34/$Q34) -> 0.003968253968
B35: G2 - Hubert Metzger | E35: =IF('G2'!$E7="","",'G2'!$E7) -> 753 | G35: =IF('G2'!$E8="","",'G2'!$E8) -> 250 | I35: =IF('G2'!$E9="","",'G2'!$E9) -> 250 | K35: 0.3320053121 | M35: =IF('G2'!$E10="","",'G2'!$E10) -> 7 | O35: =IF('G2'!$E11="","",'G2'!$E11) -> 6 | Q35: =IF('G2'!$E12="","",'G2'!$E12) -> 237 | S35: 0.3147410359 | U35: =IF('G2'!$E13="","",'G2'!$E13) -> 41 | W35: 0.1729957806 | Y35: =IF('G2'!$E14="","",'G2'!$E14) -> 0 | AA35: 0 | AC35: =IF('G2'!$E15="","",'G2'!$E15) -> 2 | AE35: 0.008438818565 | AG35: =IF('G2'!$E16="","",'G2'!$E16) -> 2 | AI35: 0.008438818565 | AK35: =IF('G2'!$E17="","",'G2'!$E17) -> 49 | AM35: 0.2067510549 | AO35: =IF('G2'!$E18="","",'G2'!$E18) -> 0 | AQ35: 0 | AS35: =IF('G2'!$E19="","",'G2'!$E19) -> 14 | AU35: 0.05907172996 | AW35: =IF('G2'!$E20="","",'G2'!$E20) -> 4 | AY35: 0.01687763713 | BA35: =IF('G2'!$E21="","",'G2'!$E21) -> 0 | BC35: 0 | BE35: =IF('G2'!E22="","",'G2'!E22) -> 1 | BG35: 0.004219409283 | BI35: =IF('G2'!$E23="","",'G2'!$E23) -> 0 | BK35: =IF(BI35=""," ",BI35/$Q35) -> 0 | BM35: =IF('G2'!$E24="","",'G2'!$E24) -> 2 | BO35: =IF(BM35=""," ",BM35/$Q35) -> 0.008438818565 | BQ35: =IF('G2'!$E25="","",'G2'!$E25) -> 0 | BS35: =IF(BQ35=""," ",BQ35/$Q35) -> 0 | BU35: =IF('G2'!$E26="","",'G2'!$E26) -> 0 | BW35: =IF(BU35=""," ",BU35/$Q35) -> 0 | BY35: =IF('G2'!$E27="","",'G2'!$E27) -> 75 | CA35: =IF(BY35=""," ",BY35/$Q35) -> 0.3164556962 | CC35: =IF('G2'!$E28="","",'G2'!$E28) -> 11 | CE35: =IF(CC35=""," ",CC35/$Q35) -> 0.04641350211 | CG35: =IF('G2'!$E29="","",'G2'!$E29) -> 0 | CI35: =IF(CG35=""," ",CG35/$Q35) -> 0 | CK35: =IF('G2'!$E30="","",'G2'!$E30) -> 4 | CM35: =IF(CK35=""," ",CK35/$Q35) -> 0.01687763713 | CO35: =IF('G2'!$E31="","",'G2'!$E31) -> 0 | CQ35: =IF(CO35=""," ",CO35/$Q35) -> 0 | CS35: =IF('G2'!$E32="","",'G2'!$E32) -> 9 | CU35: =IF(CS35=""," ",CS35/$Q35) -> 0.03797468354 | CW35: =IF('G2'!$E33="","",'G2'!$E33) -> 1 | CY35: =IF(CW35=""," ",CW35/$Q35) -> 0.004219409283 | DA35: =IF('G2'!$E34="","",'G2'!$E34) -> 22 | DC35: =IF(DA35=""," ",DA35/$Q35) -> 0.09282700422 | DE35: =IF('G2'!$E35="","",'G2'!$E35) -> 0 | DG35: =IF(DE35=""," ",DE35/$Q35) -> 0
B36: H1 - Léonard de Vinci | E36: =IF('H1'!$E7="","",'H1'!$E7) -> 1037 | G36: =IF('H1'!$E8="","",'H1'!$E8) -> 377 | I36: =IF('H1'!$E9="","",'H1'!$E9) -> 377 | K36: 0.3635486982 | M36: =IF('H1'!$E10="","",'H1'!$E10) -> 7 | O36: =IF('H1'!$E11="","",'H1'!$E11) -> 5 | Q36: =IF('H1'!$E12="","",'H1'!$E12) -> 365 | S36: 0.3519768563 | U36: =IF('H1'!$E13="","",'H1'!$E13) -> 87 | W36: 0.2383561644 | Y36: =IF('H1'!$E14="","",'H1'!$E14) -> 0 | AA36: 0 | AC36: =IF('H1'!$E15="","",'H1'!$E15) -> 9 | AE36: 0.02465753425 | AG36: =IF('H1'!$E16="","",'H1'!$E16) -> 1 | AI36: 0.002739726027 | AK36: =IF('H1'!$E17="","",'H1'!$E17) -> 54 | AM36: 0.1479452055 | AO36: =IF('H1'!$E18="","",'H1'!$E18) -> 4 | AQ36: 0.01095890411 | AS36: =IF('H1'!$E19="","",'H1'!$E19) -> 29 | AU36: 0.07945205479 | AW36: =IF('H1'!$E20="","",'H1'!$E20) -> 3 | AY36: 0.008219178082 | BA36: =IF('H1'!$E21="","",'H1'!$E21) -> 0 | BC36: 0 | BE36: =IF('H1'!E22="","",'H1'!E22) -> 1 | BG36: 0.002739726027 | BI36: =IF('H1'!$E23="","",'H1'!$E23) -> 0 | BK36: 0 | BM36: =IF('H1'!$E24="","",'H1'!$E24) -> 0 | BO36: 0 | BQ36: =IF('H1'!$E25="","",'H1'!$E25) -> 5 | BS36: 0.01369863014 | BU36: =IF('H1'!$E26="","",'H1'!$E26) -> 0 | BW36: 0 | BY36: =IF('H1'!$E27="","",'H1'!$E27) -> 96 | CA36: 0.2630136986 | CC36: =IF('H1'!$E28="","",'H1'!$E28) -> 30 | CE36: 0.08219178082 | CG36: =IF('H1'!$E29="","",'H1'!$E29) -> 0 | CI36: 0 | CK36: =IF('H1'!$E30="","",'H1'!$E30) -> 11 | CM36: 0.0301369863 | CO36: =IF('H1'!$E31="","",'H1'!$E31) -> 0 | CQ36: 0 | CS36: =IF('H1'!$E32="","",'H1'!$E32) -> 8 | CU36: 0.02191780822 | CW36: =IF('H1'!$E33="","",'H1'!$E33) -> 1 | CY36: 0.002739726027 | DA36: =IF('H1'!$E34="","",'H1'!$E34) -> 26 | DC36: 0.07123287671 | DE36: =IF('H1'!$E35="","",'H1'!$E35) -> 0 | DG36: 0
B37: J1 - René Rücklin | E37: =IF('J1'!$E7="","",'J1'!$E7) -> 591 | G37: =IF('J1'!$E8="","",'J1'!$E8) -> 179 | I37: =IF('J1'!$E9="","",'J1'!$E9) -> 179 | K37: 0.3028764805 | M37: =IF('J1'!$E10="","",'J1'!$E10) -> 8 | O37: =IF('J1'!$E11="","",'J1'!$E11) -> 7 | Q37: =IF('J1'!$E12="","",'J1'!$E12) -> 164 | S37: 0.2774957699 | U37: =IF('J1'!$E13="","",'J1'!$E13) -> 23 | W37: 0.1402439024 | Y37: =IF('J1'!$E14="","",'J1'!$E14) -> 0 | AA37: 0 | AC37: =IF('J1'!$E15="","",'J1'!$E15) -> 7 | AE37: 0.04268292683 | AG37: =IF('J1'!$E16="","",'J1'!$E16) -> 1 | AI37: 0.006097560976 | AK37: =IF('J1'!$E17="","",'J1'!$E17) -> 21 | AM37: 0.1280487805 | AO37: =IF('J1'!$E18="","",'J1'!$E18) -> 0 | AQ37: 0 | AS37: =IF('J1'!$E19="","",'J1'!$E19) -> 10 | AU37: 0.06097560976 | AW37: =IF('J1'!$E20="","",'J1'!$E20) -> 1 | AY37: 0.006097560976 | BA37: =IF('J1'!$E21="","",'J1'!$E21) -> 0 | BC37: 0 | BE37: =IF('J1'!E22="","",'J1'!E22) -> 1 | BG37: 0.006097560976 | BI37: =IF('J1'!$E23="","",'J1'!$E23) -> 1 | BK37: 0.006097560976 | BM37: =IF('J1'!$E24="","",'J1'!$E24) -> 1 | BO37: 0.006097560976 | BQ37: =IF('J1'!$E25="","",'J1'!$E25) -> 1 | BS37: 0.006097560976 | BU37: =IF('J1'!$E26="","",'J1'!$E26) -> 0 | BW37: 0 | BY37: =IF('J1'!$E27="","",'J1'!$E27) -> 66 | CA37: 0.4024390244 | CC37: =IF('J1'!$E28="","",'J1'!$E28) -> 8 | CE37: 0.0487804878 | CG37: =IF('J1'!$E29="","",'J1'!$E29) -> 0 | CI37: 0 | CK37: =IF('J1'!$E30="","",'J1'!$E30) -> 5 | CM37: 0.03048780488 | CO37: =IF('J1'!$E31="","",'J1'!$E31) -> 0 | CQ37: 0 | CS37: =IF('J1'!$E32="","",'J1'!$E32) -> 2 | CU37: 0.01219512195 | CW37: =IF('J1'!$E33="","",'J1'!$E33) -> 4 | CY37: 0.0243902439 | DA37: =IF('J1'!$E34="","",'J1'!$E34) -> 12 | DC37: 0.07317073171 | DE37: =IF('J1'!$E35="","",'J1'!$E35) -> 0 | DG37: 0
B38: J2 - René Rücklin | E38: =IF('J2'!$E7="","",'J2'!$E7) -> 813 | G38: =IF('J2'!$E8="","",'J2'!$E8) -> 244 | I38: =IF('J2'!$E9="","",'J2'!$E9) -> 244 | K38: 0.3001230012 | M38: =IF('J2'!$E10="","",'J2'!$E10) -> 6 | O38: =IF('J2'!$E11="","",'J2'!$E11) -> 1 | Q38: =IF('J2'!$E12="","",'J2'!$E12) -> 237 | S38: 0.2915129151 | U38: =IF('J2'!$E13="","",'J2'!$E13) -> 54 | W38: 0.2278481013 | Y38: =IF('J2'!$E14="","",'J2'!$E14) -> 0 | AA38: 0 | AC38: =IF('J2'!$E15="","",'J2'!$E15) -> 10 | AE38: 0.04219409283 | AG38: =IF('J2'!$E16="","",'J2'!$E16) -> 0 | AI38: 0 | AK38: =IF('J2'!$E17="","",'J2'!$E17) -> 34 | AM38: 0.1434599156 | AO38: =IF('J2'!$E18="","",'J2'!$E18) -> 0 | AQ38: 0 | AS38: =IF('J2'!$E19="","",'J2'!$E19) -> 23 | AU38: 0.0970464135 | AW38: =IF('J2'!$E20="","",'J2'!$E20) -> 3 | AY38: 0.01265822785 | BA38: =IF('J2'!$E21="","",'J2'!$E21) -> 0 | BC38: 0 | BE38: =IF('J2'!E22="","",'J2'!E22) -> 1 | BG38: 0.004219409283 | BI38: =IF('J2'!$E23="","",'J2'!$E23) -> 1 | BK38: 0.004219409283 | BM38: =IF('J2'!$E24="","",'J2'!$E24) -> 0 | BO38: 0 | BQ38: =IF('J2'!$E25="","",'J2'!$E25) -> 1 | BS38: 0.004219409283 | BU38: =IF('J2'!$E26="","",'J2'!$E26) -> 0 | BW38: 0 | BY38: =IF('J2'!$E27="","",'J2'!$E27) -> 69 | CA38: 0.2911392405 | CC38: =IF('J2'!$E28="","",'J2'!$E28) -> 11 | CE38: 0.04641350211 | CG38: =IF('J2'!$E29="","",'J2'!$E29) -> 0 | CI38: 0 | CK38: =IF('J2'!$E30="","",'J2'!$E30) -> 6 | CM38: 0.0253164557 | CO38: =IF('J2'!$E31="","",'J2'!$E31) -> 0 | CQ38: 0 | CS38: =IF('J2'!$E32="","",'J2'!$E32) -> 2 | CU38: 0.008438818565 | CW38: =IF('J2'!$E33="","",'J2'!$E33) -> 1 | CY38: 0.004219409283 | DA38: =IF('J2'!$E34="","",'J2'!$E34) -> 20 | DC38: 0.08438818565 | DE38: =IF('J2'!$E35="","",'J2'!$E35) -> 1 | DG38: 0.004219409283
B39: J3 - René Rücklin | E39: =IF('J3'!$E7="","",'J3'!$E7) -> 556 | G39: =IF('J3'!$E8="","",'J3'!$E8) -> 142 | I39: =IF('J3'!$E9="","",'J3'!$E9) -> 142 | K39: 0.2553956835 | M39: =IF('J3'!$E10="","",'J3'!$E10) -> 4 | O39: =IF('J3'!$E11="","",'J3'!$E11) -> 5 | Q39: =IF('J3'!$E12="","",'J3'!$E12) -> 133 | S39: 0.2392086331 | U39: =IF('J3'!$E13="","",'J3'!$E13) -> 19 | W39: 0.1428571429 | Y39: =IF('J3'!$E14="","",'J3'!$E14) -> 0 | AA39: 0 | AC39: =IF('J3'!$E15="","",'J3'!$E15) -> 2 | AE39: 0.01503759398 | AG39: =IF('J3'!$E16="","",'J3'!$E16) -> 1 | AI39: 0.007518796992 | AK39: =IF('J3'!$E17="","",'J3'!$E17) -> 18 | AM39: 0.1353383459 | AO39: =IF('J3'!$E18="","",'J3'!$E18) -> 1 | AQ39: 0.007518796992 | AS39: =IF('J3'!$E19="","",'J3'!$E19) -> 14 | AU39: 0.1052631579 | AW39: =IF('J3'!$E20="","",'J3'!$E20) -> 5 | AY39: 0.03759398496 | BA39: =IF('J3'!$E21="","",'J3'!$E21) -> 0 | BC39: 0 | BE39: =IF('J3'!E22="","",'J3'!E22) -> 1 | BG39: 0.007518796992 | BI39: =IF('J3'!$E23="","",'J3'!$E23) -> 0 | BK39: 0 | BM39: =IF('J3'!$E24="","",'J3'!$E24) -> 0 | BO39: 0 | BQ39: =IF('J3'!$E25="","",'J3'!$E25) -> 2 | BS39: 0.01503759398 | BU39: =IF('J3'!$E26="","",'J3'!$E26) -> 0 | BW39: 0 | BY39: =IF('J3'!$E27="","",'J3'!$E27) -> 32 | CA39: 0.2406015038 | CC39: =IF('J3'!$E28="","",'J3'!$E28) -> 10 | CE39: 0.07518796992 | CG39: =IF('J3'!$E29="","",'J3'!$E29) -> 0 | CI39: 0 | CK39: =IF('J3'!$E30="","",'J3'!$E30) -> 2 | CM39: 0.01503759398 | CO39: =IF('J3'!$E31="","",'J3'!$E31) -> 0 | CQ39: 0 | CS39: =IF('J3'!$E32="","",'J3'!$E32) -> 3 | CU39: 0.02255639098 | CW39: =IF('J3'!$E33="","",'J3'!$E33) -> 0 | CY39: 0 | DA39: =IF('J3'!$E34="","",'J3'!$E34) -> 23 | DC39: 0.1729323308 | DE39: =IF('J3'!$E35="","",'J3'!$E35) -> 0 | DG39: 0
B40: Canton SUD | E40: =SUM(E$34:E$39) -> 4400 | G40: =SUM(G34:G39) -> 1458 | I40: =SUM(I34:I39) -> 1458 | K40: 0.3313636364 | M40: =SUM(M34:M39) -> 39 | O40: =SUM(O34:O39) -> 31 | Q40: =SUM(Q34:Q39) -> 1388 | S40: 0.3154545455 | U40: =SUM(U34:U39) -> 255 | W40: =IF(U40=0,0,U40/$Q40) -> 0.1837175793 | Y40: =SUM(Y34:Y39) -> 1 | AA40: =IF(Y40=0,0,Y40/$Q40) -> 0.0007204610951 | AC40: =SUM(AC34:AC39) -> 35 | AE40: =IF(AC40=0,0,AC40/$Q40) -> 0.02521613833 | AG40: =SUM(AG34:AG39) -> 5 | AI40: =IF(AG40=0,0,AG40/$Q40) -> 0.003602305476 | AK40: =SUM(AK34:AK39) -> 205 | AM40: =IF(AK40=0,0,AK40/$Q40) -> 0.1476945245 | AO40: =SUM(AO34:AO39) -> 6 | AQ40: =IF(AO40=0,0,AO40/$Q40) -> 0.004322766571 | AS40: =SUM(AS34:AS39) -> 121 | AU40: =IF(AS40=0,0,AS40/$Q40) -> 0.08717579251 | AW40: =SUM(AW34:AW39) -> 23 | AY40: =IF(AW40=0,0,AW40/$Q40) -> 0.01657060519 | BA40: =SUM(BA34:BA39) -> 0 | BC40: =IF(BA40=0,0,BA40/$Q40) -> 0 | BE40: =SUM(BE34:BE39) -> 8 | BG40: =IF(BE40=0,0,BE40/$Q40) -> 0.005763688761 | BI40: =SUM(BI34:BI39) -> 2 | BK40: =IF(BI40=0,0,BI40/$Q40) -> 0.00144092219 | BM40: =SUM(BM34:BM39) -> 3 | BO40: =IF(BM40=0,0,BM40/$Q40) -> 0.002161383285 | BQ40: =SUM(BQ34:BQ39) -> 10 | BS40: =IF(BQ40=0,0,BQ40/$Q40) -> 0.007204610951 | BU40: =SUM(BU34:BU39) -> 0 | BW40: =IF(BU40=0,0,BU40/$Q40) -> 0 | BY40: =SUM(BY34:BY39) -> 405 | CA40: =IF(BY40=0,0,BY40/$Q40) -> 0.2917867435 | CC40: =SUM(CC34:CC39) -> 99 | CE40: =IF(CC40=0,0,CC40/$Q40) -> 0.07132564841 | CG40: =SUM(CG34:CG39) -> 0 | CI40: =IF(CG40=0,0,CG40/$Q40) -> 0 | CK40: =SUM(CK34:CK39) -> 35 | CM40: =IF(CK40=0,0,CK40/$Q40) -> 0.02521613833 | CO40: =SUM(CO34:CO39) -> 0 | CQ40: =IF(CO40=0,0,CO40/$Q40) -> 0 | CS40: =SUM(CS34:CS39) -> 28 | CU40: =IF(CS40=0,0,CS40/$Q40) -> 0.02017291066 | CW40: =SUM(CW34:CW39) -> 11 | CY40: =IF(CW40=0,0,CW40/$Q40) -> 0.007925072046 | DA40: =SUM(DA34:DA39) -> 134 | DC40: =IF(DA40=0,0,DA40/$Q40) -> 0.09654178674 | DE40: =SUM(DE34:DE39) -> 2 | DG40: =IF(DE40=0,0,DE40/$Q40) -> 0.00144092219
B41: K1 - Louis Pergaud | E41: =IF('K1'!$E7="","",'K1'!$E7) -> 944 | G41: =IF('K1'!$E8="","",'K1'!$E8) -> 193 | I41: =IF('K1'!$E9="","",'K1'!$E9) -> 193 | K41: 0.2044491525 | M41: =IF('K1'!$E10="","",'K1'!$E10) -> 4 | O41: =IF('K1'!$E11="","",'K1'!$E11) -> 8 | Q41: =IF('K1'!$E12="","",'K1'!$E12) -> 181 | S41: 0.1917372881 | U41: =IF('K1'!$E13="","",'K1'!$E13) -> 45 | W41: =IF(U41=""," ",U41/$Q41) -> 0.2486187845 | Y41: =IF('K1'!$E14="","",'K1'!$E14) -> 0 | AA41: =IF(Y41=""," ",Y41/$Q41) -> 0 | AC41: =IF('K1'!$E15="","",'K1'!$E15) -> 8 | AE41: =IF(AC41=""," ",AC41/$Q41) -> 0.04419889503 | AG41: =IF('K1'!$E16="","",'K1'!$E16) -> 0 | AI41: =IF(AG41=""," ",AG41/$Q41) -> 0 | AK41: =IF('K1'!$E17="","",'K1'!$E17) -> 30 | AM41: =IF(AK41=""," ",AK41/$Q41) -> 0.1657458564 | AO41: =IF('K1'!$E18="","",'K1'!$E18) -> 0 | AQ41: =IF(AO41=""," ",AO41/$Q41) -> 0 | AS41: =IF('K1'!$E19="","",'K1'!$E19) -> 11 | AU41: =IF(AS41=""," ",AS41/$Q41) -> 0.06077348066 | AW41: =IF('K1'!$E20="","",'K1'!$E20) -> 1 | AY41: =IF(AW41=""," ",AW41/$Q41) -> 0.005524861878 | BA41: =IF('K1'!$E21="","",'K1'!$E21) -> 0 | BC41: =IF(BA41=""," ",BA41/$Q41) -> 0 | BE41: =IF('K1'!E22="","",'K1'!E22) -> 1 | BG41: =IF(BE41=""," ",BE41/$Q41) -> 0.005524861878 | BI41: =IF('K1'!$E23="","",'K1'!$E23) -> 0 | BK41: =IF(BI41=""," ",BI41/$Q41) -> 0 | BM41: =IF('K1'!$E24="","",'K1'!$E24) -> 1 | BO41: =IF(BM41=""," ",BM41/$Q41) -> 0.005524861878 | BQ41: =IF('K1'!$E25="","",'K1'!$E25) -> 0 | BS41: =IF(BQ41=""," ",BQ41/$Q41) -> 0 | BU41: =IF('K1'!$E26="","",'K1'!$E26) -> 0 | BW41: =IF(BU41=""," ",BU41/$Q41) -> 0 | BY41: =IF('K1'!$E27="","",'K1'!$E27) -> 46 | CA41: =IF(BY41=""," ",BY41/$Q41) -> 0.2541436464 | CC41: =IF('K1'!$E28="","",'K1'!$E28) -> 8 | CE41: =IF(CC41=""," ",CC41/$Q41) -> 0.04419889503 | CG41: =IF('K1'!$E29="","",'K1'!$E29) -> 0 | CI41: =IF(CG41=""," ",CG41/$Q41) -> 0 | CK41: =IF('K1'!$E30="","",'K1'!$E30) -> 8 | CM41: =IF(CK41=""," ",CK41/$Q41) -> 0.04419889503 | CO41: =IF('K1'!$E31="","",'K1'!$E31) -> 0 | CQ41: =IF(CO41=""," ",CO41/$Q41) -> 0 | CS41: =IF('K1'!$E32="","",'K1'!$E32) -> 3 | CU41: =IF(CS41=""," ",CS41/$Q41) -> 0.01657458564 | CW41: =IF('K1'!$E33="","",'K1'!$E33) -> 2 | CY41: =IF(CW41=""," ",CW41/$Q41) -> 0.01104972376 | DA41: =IF('K1'!$E34="","",'K1'!$E34) -> 17 | DC41: =IF(DA41=""," ",DA41/$Q41) -> 0.09392265193 | DE41: =IF('K1'!$E35="","",'K1'!$E35) -> 0 | DG41: =IF(DE41=""," ",DE41/$Q41) -> 0
B42: K2 - Louis Pergaud | E42: =IF('K2'!$E7="","",'K2'!$E7) -> 784 | G42: =IF('K2'!$E8="","",'K2'!$E8) -> 187 | I42: =IF('K2'!$E9="","",'K2'!$E9) -> 187 | K42: 0.2385204082 | M42: =IF('K2'!$E10="","",'K2'!$E10) -> 0 | O42: =IF('K2'!$E11="","",'K2'!$E11) -> 6 | Q42: =IF('K2'!$E12="","",'K2'!$E12) -> 181 | S42: 0.2308673469 | U42: =IF('K2'!$E13="","",'K2'!$E13) -> 36 | W42: =IF(U42=""," ",U42/$Q42) -> 0.1988950276 | Y42: =IF('K2'!$E14="","",'K2'!$E14) -> 0 | AA42: =IF(Y42=""," ",Y42/$Q42) -> 0 | AC42: =IF('K2'!$E15="","",'K2'!$E15) -> 6 | AE42: =IF(AC42=""," ",AC42/$Q42) -> 0.03314917127 | AG42: =IF('K2'!$E16="","",'K2'!$E16) -> 0 | AI42: =IF(AG42=""," ",AG42/$Q42) -> 0 | AK42: =IF('K2'!$E17="","",'K2'!$E17) -> 33 | AM42: =IF(AK42=""," ",AK42/$Q42) -> 0.182320442 | AO42: =IF('K2'!$E18="","",'K2'!$E18) -> 0 | AQ42: =IF(AO42=""," ",AO42/$Q42) -> 0 | AS42: =IF('K2'!$E19="","",'K2'!$E19) -> 11 | AU42: =IF(AS42=""," ",AS42/$Q42) -> 0.06077348066 | AW42: =IF('K2'!$E20="","",'K2'!$E20) -> 3 | AY42: =IF(AW42=""," ",AW42/$Q42) -> 0.01657458564 | BA42: =IF('K2'!$E21="","",'K2'!$E21) -> 0 | BC42: =IF(BA42=""," ",BA42/$Q42) -> 0 | BE42: =IF('K2'!E22="","",'K2'!E22) -> 0 | BG42: =IF(BE42=""," ",BE42/$Q42) -> 0 | BI42: =IF('K2'!$E23="","",'K2'!$E23) -> 2 | BK42: =IF(BI42=""," ",BI42/$Q42) -> 0.01104972376 | BM42: =IF('K2'!$E24="","",'K2'!$E24) -> 0 | BO42: =IF(BM42=""," ",BM42/$Q42) -> 0 | BQ42: =IF('K2'!$E25="","",'K2'!$E25) -> 1 | BS42: =IF(BQ42=""," ",BQ42/$Q42) -> 0.005524861878 | BU42: =IF('K2'!$E26="","",'K2'!$E26) -> 0 | BW42: =IF(BU42=""," ",BU42/$Q42) -> 0 | BY42: =IF('K2'!$E27="","",'K2'!$E27) -> 48 | CA42: =IF(BY42=""," ",BY42/$Q42) -> 0.2651933702 | CC42: =IF('K2'!$E28="","",'K2'!$E28) -> 15 | CE42: =IF(CC42=""," ",CC42/$Q42) -> 0.08287292818 | CG42: =IF('K2'!$E29="","",'K2'!$E29) -> 0 | CI42: =IF(CG42=""," ",CG42/$Q42) -> 0 | CK42: =IF('K2'!$E30="","",'K2'!$E30) -> 4 | CM42: =IF(CK42=""," ",CK42/$Q42) -> 0.02209944751 | CO42: =IF('K2'!$E31="","",'K2'!$E31) -> 0 | CQ42: =IF(CO42=""," ",CO42/$Q42) -> 0 | CS42: =IF('K2'!$E32="","",'K2'!$E32) -> 8 | CU42: =IF(CS42=""," ",CS42/$Q42) -> 0.04419889503 | CW42: =IF('K2'!$E33="","",'K2'!$E33) -> 1 | CY42: =IF(CW42=""," ",CW42/$Q42) -> 0.005524861878 | DA42: =IF('K2'!$E34="","",'K2'!$E34) -> 13 | DC42: =IF(DA42=""," ",DA42/$Q42) -> 0.07182320442 | DE42: =IF('K2'!$E35="","",'K2'!$E35) -> 0 | DG42: =IF(DE42=""," ",DE42/$Q42) -> 0
B43: L1 - Les Barres | E43: =IF('L1'!$E7="","",'L1'!$E7) -> 1314 | G43: =IF('L1'!$E8="","",'L1'!$E8) -> 500 | I43: =IF('L1'!$E9="","",'L1'!$E9) -> 500 | K43: 0.3805175038 | M43: =IF('L1'!$E10="","",'L1'!$E10) -> 11 | O43: =IF('L1'!$E11="","",'L1'!$E11) -> 5 | Q43: =IF('L1'!$E12="","",'L1'!$E12) -> 484 | S43: 0.3683409437 | U43: =IF('L1'!$E13="","",'L1'!$E13) -> 99 | W43: =IF(U43=""," ",U43/$Q43) -> 0.2045454545 | Y43: =IF('L1'!$E14="","",'L1'!$E14) -> 2 | AA43: =IF(Y43=""," ",Y43/$Q43) -> 0.004132231405 | AC43: =IF('L1'!$E15="","",'L1'!$E15) -> 12 | AE43: =IF(AC43=""," ",AC43/$Q43) -> 0.02479338843 | AG43: =IF('L1'!$E16="","",'L1'!$E16) -> 1 | AI43: =IF(AG43=""," ",AG43/$Q43) -> 0.002066115702 | AK43: =IF('L1'!$E17="","",'L1'!$E17) -> 87 | AM43: =IF(AK43=""," ",AK43/$Q43) -> 0.1797520661 | AO43: =IF('L1'!$E18="","",'L1'!$E18) -> 4 | AQ43: =IF(AO43=""," ",AO43/$Q43) -> 0.00826446281 | AS43: =IF('L1'!$E19="","",'L1'!$E19) -> 29 | AU43: =IF(AS43=""," ",AS43/$Q43) -> 0.05991735537 | AW43: =IF('L1'!$E20="","",'L1'!$E20) -> 19 | AY43: =IF(AW43=""," ",AW43/$Q43) -> 0.03925619835 | BA43: =IF('L1'!$E21="","",'L1'!$E21) -> 1 | BC43: =IF(BA43=""," ",BA43/$Q43) -> 0.002066115702 | BE43: =IF('L1'!E22="","",'L1'!E22) -> 2 | BG43: =IF(BE43=""," ",BE43/$Q43) -> 0.004132231405 | BI43: =IF('L1'!$E23="","",'L1'!$E23) -> 1 | BK43: 0.002066115702 | BM43: =IF('L1'!$E24="","",'L1'!$E24) -> 2 | BO43: 0.004132231405 | BQ43: =IF('L1'!$E25="","",'L1'!$E25) -> 2 | BS43: 0.004132231405 | BU43: =IF('L1'!$E26="","",'L1'!$E26) -> 0 | BW43: 0 | BY43: =IF('L1'!$E27="","",'L1'!$E27) -> 111 | CA43: 0.229338843 | CC43: =IF('L1'!$E28="","",'L1'!$E28) -> 37 | CE43: 0.07644628099 | CG43: =IF('L1'!$E29="","",'L1'!$E29) -> 0 | CI43: 0 | CK43: =IF('L1'!$E30="","",'L1'!$E30) -> 7 | CM43: 0.01446280992 | CO43: =IF('L1'!$E31="","",'L1'!$E31) -> 0 | CQ43: 0 | CS43: =IF('L1'!$E32="","",'L1'!$E32) -> 22 | CU43: 0.04545454545 | CW43: =IF('L1'!$E33="","",'L1'!$E33) -> 3 | CY43: 0.006198347107 | DA43: =IF('L1'!$E34="","",'L1'!$E34) -> 40 | DC43: 0.0826446281 | DE43: =IF('L1'!$E35="","",'L1'!$E35) -> 3 | DG43: 0.006198347107
B44: L2 - Les Barres | E44: =IF('L2'!$E7="","",'L2'!$E7) -> 1146 | G44: =IF('L2'!$E8="","",'L2'!$E8) -> 507 | I44: =IF('L2'!$E9="","",'L2'!$E9) -> 507 | K44: 0.442408377 | M44: =IF('L2'!$E10="","",'L2'!$E10) -> 5 | O44: =IF('L2'!$E11="","",'L2'!$E11) -> 15 | Q44: =IF('L2'!$E12="","",'L2'!$E12) -> 487 | S44: 0.42495637 | U44: =IF('L2'!$E13="","",'L2'!$E13) -> 91 | W44: =IF(U44=""," ",U44/$Q44) -> 0.1868583162 | Y44: =IF('L2'!$E14="","",'L2'!$E14) -> 0 | AA44: =IF(Y44=""," ",Y44/$Q44) -> 0 | AC44: =IF('L2'!$E15="","",'L2'!$E15) -> 8 | AE44: =IF(AC44=""," ",AC44/$Q44) -> 0.01642710472 | AG44: =IF('L2'!$E16="","",'L2'!$E16) -> 0 | AI44: =IF(AG44=""," ",AG44/$Q44) -> 0 | AK44: =IF('L2'!$E17="","",'L2'!$E17) -> 74 | AM44: =IF(AK44=""," ",AK44/$Q44) -> 0.1519507187 | AO44: =IF('L2'!$E18="","",'L2'!$E18) -> 3 | AQ44: =IF(AO44=""," ",AO44/$Q44) -> 0.006160164271 | AS44: =IF('L2'!$E19="","",'L2'!$E19) -> 36 | AU44: =IF(AS44=""," ",AS44/$Q44) -> 0.07392197125 | AW44: =IF('L2'!$E20="","",'L2'!$E20) -> 14 | AY44: =IF(AW44=""," ",AW44/$Q44) -> 0.02874743326 | BA44: =IF('L2'!$E21="","",'L2'!$E21) -> 0 | BC44: =IF(BA44=""," ",BA44/$Q44) -> 0 | BE44: =IF('L2'!E22="","",'L2'!E22) -> 3 | BG44: =IF(BE44=""," ",BE44/$Q44) -> 0.006160164271 | BI44: =IF('L2'!$E23="","",'L2'!$E23) -> 0 | BK44: 0 | BM44: =IF('L2'!$E24="","",'L2'!$E24) -> 4 | BO44: 0.008213552361 | BQ44: =IF('L2'!$E25="","",'L2'!$E25) -> 12 | BS44: 0.02464065708 | BU44: =IF('L2'!$E26="","",'L2'!$E26) -> 0 | BW44: 0 | BY44: =IF('L2'!$E27="","",'L2'!$E27) -> 122 | CA44: 0.250513347 | CC44: =IF('L2'!$E28="","",'L2'!$E28) -> 44 | CE44: 0.09034907598 | CG44: =IF('L2'!$E29="","",'L2'!$E29) -> 0 | CI44: 0 | CK44: =IF('L2'!$E30="","",'L2'!$E30) -> 17 | CM44: 0.03490759754 | CO44: =IF('L2'!$E31="","",'L2'!$E31) -> 0 | CQ44: 0 | CS44: =IF('L2'!$E32="","",'L2'!$E32) -> 17 | CU44: 0.03490759754 | CW44: =IF('L2'!$E33="","",'L2'!$E33) -> 2 | CY44: 0.004106776181 | DA44: =IF('L2'!$E34="","",'L2'!$E34) -> 39 | DC44: 0.08008213552 | DE44: =IF('L2'!$E35="","",'L2'!$E35) -> 1 | DG44: 0.00205338809
B45: Canton OUEST | E45: =SUM(E$41:E$44) -> 4188 | G45: =SUM(G41:G44) -> 1387 | I45: =SUM(I41:I44) -> 1387 | K45: 0.3311843362 | M45: =SUM(M41:M44) -> 20 | O45: =SUM(O41:O44) -> 34 | Q45: =SUM(Q41:Q44) -> 1333 | S45: 0.3182903534 | U45: =SUM(U41:U44) -> 271 | W45: =IF(U45=0,0,U45/$Q45) -> 0.2033008252 | Y45: =SUM(Y41:Y44) -> 2 | AA45: =IF(Y45=0,0,Y45/$Q45) -> 0.001500375094 | AC45: =SUM(AC41:AC44) -> 34 | AE45: =IF(AC45=0,0,AC45/$Q45) -> 0.02550637659 | AG45: =SUM(AG41:AG44) -> 1 | AI45: =IF(AG45=0,0,AG45/$Q45) -> 0.0007501875469 | AK45: =SUM(AK41:AK44) -> 224 | AM45: =IF(AK45=0,0,AK45/$Q45) -> 0.1680420105 | AO45: =SUM(AO41:AO44) -> 7 | AQ45: =IF(AO45=0,0,AO45/$Q45) -> 0.005251312828 | AS45: =SUM(AS41:AS44) -> 87 | AU45: =IF(AS45=0,0,AS45/$Q45) -> 0.06526631658 | AW45: =SUM(AW41:AW44) -> 37 | AY45: =IF(AW45=0,0,AW45/$Q45) -> 0.02775693923 | BA45: =SUM(BA41:BA44) -> 1 | BC45: =IF(BA45=0,0,BA45/$Q45) -> 0.0007501875469 | BE45: =SUM(BE41:BE44) -> 6 | BG45: =IF(BE45=0,0,BE45/$Q45) -> 0.004501125281 | BI45: =SUM(BI41:BI44) -> 3 | BK45: =IF(BI45=0,0,BI45/$Q45) -> 0.002250562641 | BM45: =SUM(BM41:BM44) -> 7 | BO45: =IF(BM45=0,0,BM45/$Q45) -> 0.005251312828 | BQ45: =SUM(BQ41:BQ44) -> 15 | BS45: =IF(BQ45=0,0,BQ45/$Q45) -> 0.0112528132 | BU45: =SUM(BU41:BU44) -> 0 | BW45: =IF(BU45=0,0,BU45/$Q45) -> 0 | BY45: =SUM(BY41:BY44) -> 327 | CA45: =IF(BY45=0,0,BY45/$Q45) -> 0.2453113278 | CC45: =SUM(CC41:CC44) -> 104 | CE45: =IF(CC45=0,0,CC45/$Q45) -> 0.07801950488 | CG45: =SUM(CG41:CG44) -> 0 | CI45: =IF(CG45=0,0,CG45/$Q45) -> 0 | CK45: =SUM(CK41:CK44) -> 36 | CM45: =IF(CK45=0,0,CK45/$Q45) -> 0.02700675169 | CO45: =SUM(CO41:CO44) -> 0 | CQ45: =IF(CO45=0,0,CO45/$Q45) -> 0 | CS45: =SUM(CS41:CS44) -> 50 | CU45: =IF(CS45=0,0,CS45/$Q45) -> 0.03750937734 | CW45: =SUM(CW41:CW44) -> 8 | CY45: =IF(CW45=0,0,CW45/$Q45) -> 0.006001500375 | DA45: =SUM(DA41:DA44) -> 109 | DC45: =IF(DA45=0,0,DA45/$Q45) -> 0.08177044261 | DE45: =SUM(DE41:DE44) -> 4 | DG45: =IF(DE45=0,0,DE45/$Q45) -> 0.003000750188
B48: TOTAUX | E48: =E$20+E$27+E$33+E$40+E$45 -> 26563 | G48: =G$20+G$27+G$33+G$40+G$45 -> 10250 | I48: =I$20+I$27+I$33+I$40+I$45 -> 10250 | K48: =IF(I48=""," ",I48/$E48) -> 0.3858750894 | M48: =M$20+M$27+M$33+M$40+M$45 -> 185 | O48: =O$20+O$27+O$33+O$40+O$45 -> 192 | Q48: =Q$20+Q$27+Q$33+Q$40+Q$45 -> 9873 | U48: =U$20+U$27+U$33+U$40+U$45 -> 2427 | W48: =IF($Q$48=0,0,U48/$Q$48) -> 0.2458219386 | Y48: =Y$20+Y$27+Y$33+Y$40+Y$45 -> 12 | AA48: =IF($Q$48=0,0,Y48/$Q$48) -> 0.001215436038 | AC48: =AC$20+AC$27+AC$33+AC$40+AC$45 -> 158 | AE48: =IF($Q$48=0,0,AC48/$Q$48) -> 0.01600324116 | AG48: =AG$20+AG$27+AG$33+AG$40+AG$45 -> 16 | AI48: =IF($Q$48=0,0,AG48/$Q$48) -> 0.001620581384 | AK48: =AK$20+AK$27+AK$33+AK$40+AK$45 -> 1486 | AM48: =IF($Q$48=0,0,AK48/$Q$48) -> 0.150511496 | AO48: =AO$20+AO$27+AO$33+AO$40+AO$45 -> 44 | AQ48: =IF($Q$48=0,0,AO48/$Q$48) -> 0.004456598805 | AS48: =AS$20+AS$27+AS$33+AS$40+AS$45 -> 974 | AU48: =IF($Q$48=0,0,AS48/$Q$48) -> 0.09865289172 | AW48: =AW$20+AW$27+AW$33+AW$40+AW$45 -> 209 | AY48: =IF($Q$48=0,0,AW48/$Q$48) -> 0.02116884432 | BA48: =BA$20+BA$27+BA$33+BA$40+BA$45 -> 5 | BC48: =IF($Q$48=0,0,BA48/$Q$48) -> 0.0005064316824 | BE48: =BE$20+BE$27+BE$33+BE$40+BE$45 -> 59 | BG48: =IF($Q$48=0,0,BE48/$Q$48) -> 0.005975893852 | BI48: =BI$20+BI$27+BI$33+BI$40+BI$45 -> 22 | BK48: =IF($Q$48=0,0,BI48/$Q$48) -> 0.002228299402 | BM48: =BM$20+BM$27+BM$33+BM$40+BM$45 -> 43 | BO48: =IF($Q$48=0,0,BM48/$Q$48) -> 0.004355312468 | BQ48: =BQ$20+BQ$27+BQ$33+BQ$40+BQ$45 -> 94 | BS48: =IF($Q$48=0,0,BQ48/$Q$48) -> 0.009520915628 | BU48: =BU$20+BU$27+BU$33+BU$40+BU$45 -> 1 | BW48: =IF($Q$48=0,0,BU48/$Q$48) -> 0.0001012863365 | BY48: =BY$20+BY$27+BY$33+BY$40+BY$45 -> 2270 | CA48: =IF($Q$48=0,0,BY48/$Q$48) -> 0.2299199838 | CC48: =CC$20+CC$27+CC$33+CC$40+CC$45 -> 763 | CE48: =IF($Q$48=0,0,CC48/$Q$48) -> 0.07728147473 | CG48: =CG$20+CG$27+CG$33+CG$40+CG$45 -> 0 | CI48: =IF($Q$48=0,0,CG48/$Q$48) -> 0 | CK48: =CK$20+CK$27+CK$33+CK$40+CK$45 -> 305 | CM48: =IF($Q$48=0,0,CK48/$Q$48) -> 0.03089233262 | CO48: =CO$20+CO$27+CO$33+CO$40+CO$45 -> 0 | CQ48: =IF($Q$48=0,0,CO48/$Q$48) -> 0 | CS48: =CS$20+CS$27+CS$33+CS$40+CS$45 -> 249 | CU48: =IF($Q$48=0,0,CS48/$Q$48) -> 0.02522029778 | CW48: =CW$20+CW$27+CW$33+CW$40+CW$45 -> 54 | CY48: =IF($Q$48=0,0,CW48/$Q$48) -> 0.00546946217 | DA48: =DA$20+DA$27+DA$33+DA$40+DA$45 -> 640 | DC48: =IF($Q$48=0,0,DA48/$Q$48) -> 0.06482325534 | DE48: =DE$20+DE$27+DE$33+DE$40+DE$45 -> 28 | DG48: =IF($Q$48=0,0,DE48/$Q$48) -> 0.002836017421
B49: % / exprimés
B50: % / Inscrits | M50: =IF(I48=0,0,M48/E48) -> 0.006964574784 | O50: =IF(I48=0,0,O48/E48) -> 0.007228099236 | Q50: =IF(I48=0,0,Q48/E48) -> 0.3716824154 | U50: =IF($Q$48=0,0,U48/$E$48) -> 0.0913676919 | Y50: =IF($Q$48=0,0,Y48/$E$48) -> 0.0004517562022 | AC50: =IF($Q$48=0,0,AC48/$E$48) -> 0.005948123329 | AG50: =IF($Q$48=0,0,AG48/$E$48) -> 0.000602341603 | AK50: =IF($Q$48=0,0,AK48/$E$48) -> 0.05594247638 | AO50: =IF($Q$48=0,0,AO48/$E$48) -> 0.001656439408 | AS50: =IF($Q$48=0,0,AS48/$E$48) -> 0.03666754508 | AW50: =IF($Q$48=0,0,AW48/$E$48) -> 0.007868087189 | BA50: =IF($Q$48=0,0,BA48/$E$48) -> 0.0001882317509 | BE50: =IF($Q$48=0,0,BE48/$E$48) -> 0.002221134661 | BI50: =IF($Q$48=0,0,BI48/$E$48) -> 0.0008282197041 | BM50: =IF($Q$48=0,0,BM48/$E$48) -> 0.001618793058 | BQ50: =IF($Q$48=0,0,BQ48/$E$48) -> 0.003538756918 | BU50: =IF($Q$48=0,0,BU48/$E$48) -> 3.764635019e-05 | BY50: =IF($Q$48=0,0,BY48/$E$48) -> 0.08545721492 | CC50: =IF($Q$48=0,0,CC48/$E$48) -> 0.02872416519 | CG50: =IF($Q$48=0,0,CG48/$E$48) -> 0 | CK50: =IF($Q$48=0,0,CK48/$E$48) -> 0.01148213681 | CO50: =IF($Q$48=0,0,CO48/$E$48) -> 0 | CS50: =IF($Q$48=0,0,CS48/$E$48) -> 0.009373941196 | CW50: =IF($Q$48=0,0,CW48/$E$48) -> 0.00203290291 | DA50: =IF($Q$48=0,0,DA48/$E$48) -> 0.02409366412 | DE50: =IF($Q$48=0,0,DE48/$E$48) -> 0.001054097805
